{"text_format":"3","workbook":"xlsx","n_sheets":4,"sheets":["原表","Sheet1","匹配代码","单位匹配"],"not_rendered":{"defined_names":2},"read":"whole","date_system":"1900"}

{"sheet":"原表","index":0,"n_rows":478,"n_cols":13,"rows_kept":478,"merged":[[0,0,0,12]]}
["2025年度贺州市事业单位公开招聘工作人员拟聘用人员名单（第一批）"]
["序号","报考部门","报考职位","准考证号码","招聘人数","姓名","性别","学历","学位","毕业院校全称","专业","体检考察情况","备注"]
[1,"贺州市交通运输综合行政执法支队","工作人员一","1145240300117",1,"罗中希","男","本科","工学学士","沈阳建筑大学","土木工程","合格"]
[2,"贺州市交通运输综合行政执法支队","工作人员二","1145240300223",1,"刘丹萍","女","本科","工学学士","广西财经学院","工程造价","合格"]
[3,"贺州市交通运输综合行政执法支队","工作人员三","1145240300304",1,"黎业华","男","本科","法学学士","广西大学","法学","合格"]
[4,"贺州市交通运输综合行政执法支队","工作人员四","1145240300322",1,"廖婷婷","女","本科","法学学士","聊城大学","法学","合格"]
[5,"贺州市交通运输综合行政执法支队","工作人员五","1145240300328",1,"薛剑锋","男","研究生","工程管理硕士","山西大学","工业工程与管理","合格"]
[6,"贺州市交通运输综合行政执法支队","工作人员六","1145240300330",1,"赖云端","女","研究生","管理学硕士","华东政法大学","教育经济与管理","合格"]
[7,"贺州市交通运输综合行政执法支队","工作人员八","1145240300403",1,"彭嫣","女","研究生","交通运输硕士","同济大学","交通运输","合格"]
[8,"贺州市交通运输综合行政执法支队","工作人员九","1145240300405",1,"李裕光","男","研究生","土木水利硕士","中国海洋大学","土木水利（海洋工程方向）","合格"]
[9,"贺州高新技术产业开发区综合服务中心","工作人员一","1145240301315",2,"罗亚等","女","本科","经济学学士","广西师范学院","国际经济与贸易","合格"]
[10,"贺州高新技术产业开发区综合服务中心","工作人员一","1145240301326",2,"刘颖","女","本科","经济学学士","湖南文理学院芙蓉学院","国际经济与贸易","合格"]
[11,"贺州高新技术产业开发区综合服务中心","工作人员二","2145240400212",1,"罗光华","男","本科","管理学学士","桂林理工大学","工程造价管理","合格"]
[12,"贺州市国营林场管理站","工作人员二","3145240600102",1,"刘孔梅","女","大学","工学学士","广西大学","木材科学与工程","合格"]
[13,"贺州市林业科学研究所","工作人员一","3145240600115",1,"黄成功","男","大学","农学学士","中南林业科技大学","林学","合格"]
[14,"贺州市林业科学研究所","工作人员二","3145240600128",1,"邝  姗","女","大学","农学学士","上海应用技术大学","园林","合格"]
[15,"贺州市姑婆山林场","工作人员","1145240300611",1,"邱雅茜","女","大学","文学学士","广西财经学院","秘书学","合格"]
[16,"贺州市福利彩票发行中心","财务管理","1145240300624",1,"邱丽妃","女","大学","管理学学士","桂林航天工业学院","财务管理","合格"]
[17,"贺州市黄姚古镇旅游文化产业发展中心","工作人员","2145240400422",1,"莫珊珊","女","大学本科","管理学学士","广西大学行健文理学院","审计学","合格"]
[18,"贺州市卫生健康综合服务中心","专业技术人员","5245240502116",1,"陆茵茵","女","本科","医学学士","广西医科大学","临床医学专业","合格"]
[19,"广西壮族自治区桂东人民医院","内分泌科    医师","5245240502120",1,"谭识洁","女","研究生","临床医学硕士","济宁医学院","内科学","合格"]
[20,"广西壮族自治区桂东人民医院","康复医学科  医师一","5145240502401",1,"梁永健","男","研究生","中医硕士","广西中医药大学","中医骨伤科学","合格"]
[21,"贺州市妇幼保健院","麻醉科医师","5245240502122",1,"周慧娟","女","本科","医学学士","广西医科大学","临床医学专业","合格"]
[22,"贺州市疾病预防控制中心","工作人员一","1145240301611",1,"钟钰皎","女","本科","管理学学士","广西中医药大学","公共事业管理","合格"]
[23,"贺州市疾病预防控制中心","工作人员二","5545240500814",1,"覃常聚","男","本科","理学学士","桂林医学院","医学检验技术","合格"]
[24,"贺州市皮肤病防治院（贺州市第五人民医院）","公共卫生执业医师","5645240500101",1,"岑祚洁","女","研究生","医学硕士","广西医科大学","流行病与卫生统计学","合格"]
[25,"贺州市图书馆","工作人员","2145240400111",1,"邓媛元","女","研究生","艺术硕士","昆明理工大学","艺术设计","合格"]
[26,"广西东融先行示范区（贺州）综合服务中心","工作人员","1145240301604",1,"范桂冰","女","大学","法学学士","齐鲁工业大学","法学","合格"]
[27,"贺州市农技科教站","工作人员","1145240301004",1,"江丽梦","女","大学","农学学士","贺州学院","茶学","合格"]
[28,"贺州市土壤肥料生态站","工作人员","1145240301014",1,"罗婷婷","女","大学","理学学士","闽江学院地理与     海洋学院","人文地理与城乡规划","合格"]
[29,"贺州市农业科学院","工作人员","3145240600406",1,"杨姗姗","女","大学","农学学士","华南农业大学","茶学","合格"]
[30,"贺州市地震监测服务中心","工作人员一","1145240300805",1,"黄旺团","男","大学","工学学士","浙江农林大学","风景园林","合格"]
[31,"贺州市地震监测服务中心","工作人员二","1145240300818",1,"岑萃","女","大学","理学学士","中国矿业大学","地球物理学","合格"]
[32,"贺州市融媒体中心","记者","2145240400216",1,"李艳","女","本科","理学学士","郑州师范学院","物理学","合格"]
[33,"贺州市融媒体中心","视觉设计师","2145240400317",1,"赵永辉","男","本科","艺术学学士","浙江传媒学院","动画","合格"]
[34,"贺州市公共资源交易中心","工作人员","1145240301020",1,"钟婕","女","大学","经济学学士","云南大学","保险学","合格"]
[35,"贺州市财政局社会保障资金管理中心","社会保障资金管理核算职位一","1145240300418",1,"莫国伟","男","大学本科","管理学学士","桂林航天工业学院","财务管理","合格"]
[36,"贺州市财政局社会保障资金管理中心","社会保障资金管理核算职位二","1145240300421",1,"罗媛珊","女","大学本科","经济学学士","东北师范大学经济与管理学院","财政学","合格"]
[37,"贺州市水旱灾害防御中心","专业技术岗位","3145240600202",1,"黎博予","男","大学本科","工学学士","华南农业大学","水利水电工程","合格"]
[38,"贺州市科学技术馆","专业技术岗位","2145240400206",1,"罗贞昶","男","本科","文学学士","上海理工大学","传播学","合格"]
[39,"贺州第一高级中学","图书管理员","2145240400425",1,"黄苗","女","本科","管理学学士","黑龙江大学","档案学","合格"]
[40,"贺州第一高级中学","工作人员","3145240600424",1,"杨惠","女","本科","工学学士","玉林师范学院","计算机科学与技术","合格"]
[41,"贺州第二高级中学","校医","5245240502101",1,"黄雅萍","女","本科","医学学士","湖北民族学院科技学院","临床医学","合格"]
[42,"贺州第三高级中学","校医","452402199010010000",1,"柳敏","女","本科","医学学士","桂林医学院","临床医学","合格"]
[43,"贺州第三高级中学","图书管理员","452402200008154000",1,"薛红艇","男","本科","管理学学士","湘潭大学","档案学","合格"]
[44,"贺州第三高级中学","工作人员","452427199312040000",1,"唐微","女","本科","文学学士","国家开放大学","汉语言文学（师范方向）","合格"]
[45,"贺州第三高级中学","财务人员一","452402199710110000",1,"黄彩兵","女","本科","管理学学士","广西财经学院 ","会计学","合格"]
[46,"贺州第三高级中学","财务人员二","452402199011104000",1,"黄晓","女","本科","管理学学士","广西财经学院 ","财务管理","合格"]
[47,"贺州市幼儿园","财务人员","2145240401211",1,"周娟","女","本科","管理学学士","广西大学","会计学","合格"]
[48,"贺州市职业教育发展中心","工作人员一","3145240600720",1,"麦天民","男","本科","工学学士","长安大学","汽车服务工程","合格"]
[49,"贺州市职业教育发展中心","工作人员三","2145240401130",1,"陈剑柱","男","本科","管理学学士","广西科技大学","工商管理","合格"]
[50,"贺州市职业教育发展中心","工作人员四","5545240500601",1,"袁艳华","女","本科","理学学士","南京医科大学","康复治疗学","合格"]
[51,"八步区食品药品安全信息与监控中心","工作人员","1145240302810",1,"陶翠然","女","大学","工学学士","广东药科大学","食品质量与安全","合格"]
[52,"贺州市八步区新型墙体材料推广中心","专业技术人员","2145240403513",1,"卓俊名","男","大学\n本科","管理学学士","上海电机学院","工业工程","合格"]
[53,"八步区畜牧站","工作人员","3145240602322",1,"黄梦晓","女","本科","文学学士","广西大学","汉语言文学","合格"]
[54,"八步区农产品质量安全检测站","工作人员","3145240602214",1,"罗梓芳","女","本科","农学学士","云南农业大学","农学","合格"]
[55,"八步区农业技术推广服务站","工作人员","3145240602221",1,"温则有","男","本科","农学学士","百色学院农业与食品工程学院","设施农业科学与工程","合格"]
[56,"贺州市八步区八步街道社会事务治理中心","工作人员","2145240404615",1,"毛俊人","女","大学\n本科","管理学学士","浙江师范大学","行政管理","合格"]
[57,"贺州市八步区社会工作服务中心","工作人员","1145240302616",1,"于传鹏","男","本科","工学学士","合肥工业大学","通信工程","合格"]
[58,"贺州市八步区步头镇综合行政执法队","工作人员","1145240303730",1,"唐建琴","女","大专",null,"南宁地区教育学院","行政管理","合格"]
[59,"贺州市八步区步头镇乡村建设综合服务中心","工作人员一","2145240403813",1,"罗毅军","男","大专",null,"广西外国语学院","工商企业\n管理","合格"]
[60,"贺州市八步区步头镇乡村建设综合服务中心","工作人员二","2145240403827",1,"赵水留","女","大学","管理学学士","广西科技大学","会计学","合格"]
[61,"贺州市八步区步头镇乡村建设综合服务中心","工作人员三","2145240403903",1,"于丛春","男","大学","工学\n学士","湖北文理学院","道路桥梁与渡河工程","合格"]
[62,"贺州市八步区现代商贸产业园综合服务中心","工作人员一","1145240301830",1,"吴配蓉","女","大学\n本科","文学\n学士","广西师范大学","汉语言文学","合格"]
[63,"贺州市八步区现代商贸产业园综合服务中心","工作人员二","2145240402818",1,"陈彤杏","女","大学\n本科","管理学学士","广西科技大学","会计学","合格"]
[64,"贺州市八步区现代商贸产业园综合服务中心","工作人员三","3145240602129",1,"贝媛媛","女","大学\n本科","工学\n学位","大连民族大学","城乡规划","合格"]
[65,"贺州市八步区应急管理综合行政执法大队","工作人员一","2145240402821",1,"邹奕","女","本科生","管理学学士","广西警察学院","应急管理","合格"]
[66,"贺州市八步区应急管理综合行政执法大队","工作人员二","2145240403122",1,"林萍","女","本科","工学学士","桂林电子科技大学","高分子材料与工程","合格"]
[67,"八步区乡镇林业工作总站","技术人员一","3145240600821",1,"杨厚振","男","大学本科","管理学学士","湖南农业大学","工商管理","合格"]
[68,"八步区乡镇林业工作总站","技术人员二","3145240601014",1,"叶秋娥","女","大学本科","管理学学士","上海体育学院","体育经济与管理","合格"]
[69,"八步区乡镇林业工作总站","技术人员三","3145240601115",1,"李岳霖","男","大学专科","无","黑龙江农业职业技术学院","园艺技术","合格"]
[70,"八步区乡镇林业工作总站","技术人员四","3145240601119",1,"陈莉鈫","女","大学专科","无","湖南环境生物职业技术学院","园林技术（花艺环境设计方向）","合格"]
[71,"八步区林业产权交易管理服务中心","技术人员一","3145240601207",1,"罗靖基","男","大学本科","经济学学士","广西师范大学漓江学院","金融学","合格"]
[72,"八步区林业产权交易管理服务中心","技术人员二","3145240601407",1,"陈可欣","女","大学本科","经济学学士","广西大学行健文理学院","金融学","合格"]
[73,"八步区林业产权交易管理服务中心","技术人员三","3145240601419",1,"刘欢瑞","男","大学本科","工学学士","中南林业科技大学","木材科学与工程","合格"]
[74,"八步区林业产权交易管理服务中心","技术人员四","3145240601501",1,"王慧霓","女","大学本科","农学学士","广西大学农学院","园艺","合格","递补"]
[75,"八步区林业产权交易管理服务中心","技术人员五","3145240601511",1,"廖志佳","男","大学本科","工学学士","北京科技大学","计算机科学与技术","合格"]
[76,"八步区林业产权交易管理服务中心","技术人员六","3145240601816",1,"罗惠娴","女","大学本科","工学学士","桂林电子科技大学","物联网工程","合格"]
[77,"八步区林业产权交易管理服务中心","管理人员七","1145240301810",1,"黄光威","男","大学本科","工学学士","广西警察学院","信息安全","合格"]
[78,"贺州市八步区林业科学研究所","技术人员","3145240601908",1,"姚思欢","男","大学本科","农学学士","南京农业大学","草业科学","合格"]
[79,"八步区节能监察中心","工作人员","2145240402130",1,"林旭","男","研究生","工学硕士","华南农业大学","机械工程","合格"]
[80,"八步区科学技术情报研究所","工作人员","2145240402106",1,"杨聿昕","男","本科","工学学士","华中农业大学","农业机械化及其自动化","合格"]
[81,"八步区福利院","工作人员","1145240301715",1,"贝为聪","男","本科","管理学学士","桂林旅游学院","财务管理","合格"]
[82,"八步区土地开发整理中心","工作人员","3145240602101",1,"罗垂杰","男","大学","管理学学士","广西大学","工程造价管理","合格"]
[83,"贺州市八步区莲塘镇便民服务中心","工作人员一","1145240304222",1,"古津瑜","女","大学本科","工学学士","上海工程技术大学","纺织工程","合格"]
[84,"贺州市八步区莲塘镇便民服务中心","工作人员二","1145240304514",1,"欧阳欣","男","大学本科","工学学士","桂林理工大学","机械电子工程","合格"]
[85,"贺州市八步区莲塘镇乡村建设综合服务中心","工作人员","3145240602606",1,"麦昌嘉","男","大学本科","工学学士","南宁师范大学","测绘工程","合格"]
[86,"贺州市八步区莲塘镇农业服务中心","工作人员","3145240602527",1,"黄君紫","女","大学本科","管理学学士","玉林师范学院","农林经济管理","合格"]
[87,"贺州市八步区信都镇乡村建设综合服务中心","工作人员一","2145240403622",1,"梁泽沛","男","本科","工学学士","桂林理工大学博文管理学院","材料成型及控制工程","合格"]
[88,"贺州市八步区信都镇乡村建设综合服务中心","工作人员二","2145240403713",1,"潘映蓉","女","本科","管理学学士","广西师范学院师园学院","信息管理与信息系统专业","合格"]
[89,"贺州市八步区信都镇乡村建设综合服务中心","工作人员三","2145240403725",1,"曾维康","男","本科","工学学士","江苏大学材料学院","建筑学专业","合格"]
[90,"八步区文物管理所","工作人员","2145240402406",1,"黄晓湘","女","本科","管理学学士","桂林理工大学","旅游管理","合格"]
[91,"八步区八步街道新型农村合作医疗管理分中心","信息技术员","2145240402007",1,"吴业洋","男","大学本科","工学学士","贺州学院","软件工程","合格"]
[92,"八步区仁义镇新型农村合作医疗管理分中心","医疗费用审核员","3145240602001",1,"梁婷","女","大学本科","理学学士","湖南中医药大学","护理学","合格"]
[93,"贺州市八步区仁义镇乡村建设综合服务中心","工作人员","2145240404210",1,"莫量军","男","本科","工学学士","钦州学院","机械工程","合格"]
[94,"贺州市八步区仁义镇便民服务中心","工作人员","2145240404302",1,"邓积锴","男","本科","理学学士","防灾科技学院","地质学","合格"]
[95,"贺州市八步区仁义镇农业服务中心","工作人员","2145240404227",1,"梁开荣","男","本科","农学学士","惠州学院","园林","合格"]
[96,"贺州市八步区仁义镇综合行政执法队","工作人员","2145240404305",1,"罗斌","男","本科","法学学士","广西警察学院","法学","合格"]
[97,"贺州市八步区开山镇农业服务中心","工作人员二","2145240403519",1,"黄少娟","女","本科","管理学\n学士学位","桂林理工大学博文管理学院","财务管理","合格"]
[98,"贺州市八步区开山镇便民服务中心","工作人员","2145240403514",1,"莫威","男","本科","工学\n学士学位","桂林理工大学博文管理学院","工程管理","合格"]
[99,"贺州市八步区开山镇乡村建设综合服务中心","工作人员","2145240403606",1,"邱贤涛","男","本科","工学\n学士学位","辽宁工程技术大学土\n木工程学院","土木工程","合格"]
[100,"贺州市八步区开山镇综合行政执法队","工作人员","1145240303623",1,"唐馨","女","本科","文学\n学士学位","衡阳师范学院南岳学院","商务英语","合格"]
[101,"八步区农村水利水电管理中心","工作人员一","2145240401406",1,"黄伟","男","大学","工学\n学士","大连理工大学","土木工程","合格"]
[102,"八步区农村水利水电管理中心","工作人员二","2145240401422",1,"李春花","女","大学","大学\n工学","广东白云学院","土木工程","合格"]
[103,"八步区农村水利水电管理中心","工作人员三","2145240401505",1,"黎婷","女","大学","工学\n学士","北部湾大学","食品质量与安全","合格"]
[104,"八步区农村水利水电管理中心","工作人员四","2145240401513",3,"蔡祯玉","女","大学","工学\n学士","桂林理工大学","水文与水资源工程","合格"]
[105,"八步区农村水利水电管理中心","工作人员四","2145240401511",3,"孙铭慧","女","大学","工学\n学士","郑州大学","水文与水资源工程","合格"]
[106,"八步区农村水利水电管理中心","工作人员四","2145240401518",3,"文乙荭","女","大学","工学\n学士","河海大学","水务工程","合格"]
[107,"八步区农村水利水电管理中心","工作人员五","2145240401601",1,"刘桂成","男","大学","大学管理学","广西财经学院","会计学","合格"]
[108,"八步区农村水利水电管理中心","工作人员六","2145240401628",1,"杨美萍","女","大学","管理学\n学士","桂林理工大学","会计学","合格"]
[109,"八步区水旱灾害防御中心","工作人员","2145240401728",1,"彭道质","男","大学","文学\n学士","广西民族大学","传播学","合格"]
[110,"贺州市八步区南乡镇乡村建设综合服务中心","工作人员一","2145240404311",1,"代维燚","男","大学",null,"桂林理工大学","测绘工程","合格"]
[111,"贺州市八步区南乡镇综合行政执法队","工作人员一","2145240404411",1,"江  慧","女","大专",null,"云南司法警官职业学院","戒毒矫治技术","合格"]
[112,"贺州市八步区南乡镇综合行政执法队","工作人员二","2145240404612",1,"卢凌玲","女","大专",null,"广西警察学院","法律事务","合格"]
[113,"贺州市八步区南乡镇便民服务中心","工作人员","2145240404318",1,"韦兴东","男","本科","工学学士","广西农业职业技术大学","园林景观工程","合格"]
[114,"贺州市八步区法律援助中心","工作人员","1145240303512",1,"钟星宇","女","大学","法学\n学士","山东理工大学法学院","法学","合格"]
[115,"贺州市八步区贺街镇农业服务中心","工作人员一","3145240602509",1,"高姻","女","本科","工学\n学士","广西科技师范学院","土木工程","合格"]
[116,"贺州市八步区贺街镇农业服务中心","工作人员二","1145240304204",1,"曾小蝶","女","本科","文学\n学士","南宁师范大学","广告学","合格"]
[117,"贺州市八步区贺街镇乡村建设综合服务中心","工作人员一","1145240304014",1,"王凯","男","本科","管理学学士","宜宾学院","工程管理","合格"]
[118,"贺州市八步区贺街镇乡村建设综合服务中心","工作人员二","3145240602404",1,"左阅","男","本科","工学\n学士","哈尔滨理工大学","土木工程","合格"]
[119,"贺州市八步区城东街道社会事务治理中心","工作人员","1145240303820",1,"李滢彦","女","大学","法学学士","北京物资学院","法学","合格"]
[120,"贺州市八步区里松镇便民服务中心","工作人员","1145240303722",1,"李定盈","女","大学","文学学士","广西科技师范学院","汉语言文学","合格"]
[121,"贺州市八步区里松镇乡村建设综合服务中心","工作人员","2145240403614",1,"钟微宇","男","大学","法学学士","广西警察学院","社会工作","合格"]
[122,"贺州市八步区里松镇综合行政执法队","工作人员","1145240303727",1,"林娟","女","大学","管理学学士","广西科技大学鹿山学院","财务管理","合格"]
[123,"贺州市八步区桂岭镇便民服务中心","工作人员一","1145240303906",1,"麦达格","男","大学","文学学士","贺州学院","汉语言文学","合格"]
[124,"贺州市八步区桂岭镇便民服务中心","工作人员二","1145240303916",1,"陶福定","男","大学","理学学士","广西民族师范学院","生物科学","合格"]
[125,"贺州市八步区桂岭镇便民服务中心","工作人员三","1145240303922",1,"梁小媛","女","大学","管理学学士","桂林理工大学","会计学","合格"]
[126,"贺州市八步区桂岭镇乡村建设综合服务中心","工作人员","2145240404129",1,"陈梓娴","女","大学","工学学士","合肥工业大学","集成电路设计与集成","合格"]
[127,"贺州市八步区桂岭镇农业服务中心","工作人员二","2145240404204",1,"莫巧美","女","大专",null,"广西生态工程职业技术学院","林业调查与信息处理","合格"]
[128,"贺州市八步区桂岭镇综合行政执法队","工作人员一","1145240304005",1,"徐秀云","女","大学","法学学士","湖北警官学院","法学","合格"]
[129,"贺州市八步区桂岭镇综合行政执法队","工作人员二","1145240304013",1,"姚运洲","男","大学","理学学士","梧州学院","信息与计算科学","合格"]
[130,"贺州市八步区大宁镇农业服务中心","工作人员二","2145240403923",1,"邓杨志","男","大学\n本科","管理学学士","云南民族大学","公共事业\n管理","合格"]
[131,"贺州市八步区大宁镇\n农业服务中心","工作人员一","2145240403921",1,"潘绍彬","男","大学\n本科","工学\n学士","广西大学","农业电气化","合格"]
[132,"贺州市八步区铺门镇便民服务中心","工作人员一","1145240304623",1,"董意芳","女","大学","法学学士","广西警察学院","社会工作","合格"]
[133,"贺州市八步区铺门镇乡村建设综合服务中心","工作人员","2145240404921",1,"冯宇","女","大专",null,"湖南铁路科技职业技术学院","铁道交通运营管理","合格"]
[134,"贺州市八步区铺门镇便民服务中心","工作人员二","1145240304703",1,"谢雪芬","女","大学","管理学学士","广西大学","会计学","合格"]
[135,"贺州市八步区铺门镇综合行政执法队","工作人员","1145240304527",1,"赵胜壬","男","大学","工学学士","贺州学院","工程管理","合格"]
[136,"贺州市八步区疾病预防控制中心","专业技术岗二","5645240500104","1","岑利娟","女","本科","医学学士","昆明医科大学","预防医学","合格"]
[137,"贺州市八步区防治艾滋病服务中心","专业技术岗","5645240500208",1,"李娜","女","本科","理学学士","广西中医药大学","护理学","合格"]
[138,"八步区计划生育服务站","专业技术岗","5645240500327",1,"蓝轩慧","女","本科","管理学学士","贺州学院","公共事业管理","合格"]
[139,"贺州市八步区初级卫生保健服务中心","管理岗","1145240304813",1,"莫秋霞","女","本科","文学学士","华中科技大学","新闻学","合格"]
[140,"贺州市八步区第二人民医院","专业技术岗二","5245240502125",1,"覃神焙","女","大专",null,"广西科技大学","临床医学","合格"]
[141,"贺州市八步区第二人民医院","专业技术岗三","2145240405017",1,"陈彦羽","女","大专",null,"广西外国语学院","大数据与会计","合格"]
[142,"八步区贺街中心卫生院","专业技术岗三","5345240502002",1,"罗盛翀","男","本科","理学学士","广西医科大学","临床药学专业","合格"]
[143,"八步区大宁镇中心卫生院","专业技术岗","5145240502403",1,"付蜻蜓","女","大专",null,"广东茂名健康职业学院","针灸推拿学","合格"]
[144,"八步区步头卫生院","专业技术岗","5245240502205",2,"吴佐丽","女","大专",null,"沧州医学高等专科学校","临床医学","合格"]
[145,"八步区步头卫生院","专业技术岗","5245240502130",2,"陈诚","男","大专",null,"广西中医药大学","中西医结合专业","合格"]
[146,"八步区黄洞卫生院","专业技术岗","2145240405122",1,"莫燕婷","女","大专",null,"广西财经学院","会计学","合格"]
[147,"八步区建中社区卫生服务中心","专业技术岗","5245240502208",1,"刘文雅","女","大专",null,"广西科技大学","口腔医学专业","合格"]
[148,"贺州市八步区灵峰镇乡村建设综合服务中心","工作人员","1145240303817",1,"赵龙","男","大学","管理学学士","海南热带海洋学院","物流管理","合格"]
[149,"贺州市八步区灵峰镇农业农村服务中心","工作人员一","2145240403910",1,"余运湫","男","大学","管理学学士","百色学院","人文地理与城乡规划","合格"]
[150,"贺州市八步区灵峰镇农业农村服务中心","工作人员二","2145240403917",1,"黄文芳","女","大学","管理学学士","广西财经学院","人文地理与城乡规划","合格"]
[151,"贺州市八步区民兵军事训练基地（中心）","工作人员","1145240303316",1,"李剑华","男","大专",null,"贺州学院","大数据与会计","合格"]
[152,"贺州市平桂区纪检监察电教信息中心","工作人员","1145240304901",1,"黄菊","女","大学本科","学士","广西师范大学","思想政治教育","合格"]
[153,"贺州市平桂区新兴产业发展服务中心","工作人员","1145240305023",1,"李缦","女","大学本科","学士","广西科技大学","经济学","合格"]
[154,"贺州市平桂区财政投资评审中心","工作人员","2145240405317",1,"冯璐","女","大学本科","学士","广西民族大学","税收学","合格"]
[155,"贺州市平桂区经济责任审计和政府投资审计中心","专业技术岗","2145240405412",1,"李秀慧","女","大学本科","学士","汉江师范学院","审计学","合格"]
[156,"贺州市平桂区应急管理综合行政执法大队","工作人员一","3145240602612",1,"罗厚镜","男","大学本科","学士","广西大学","矿物资源工程","合格"]
[157,"贺州市平桂区应急管理综合行政执法大队","工作人员二","1145240305114",1,"杨万就","男","大学本科","学士","广西警察学院","司法警察学","合格"]
[158,"贺州市平桂区应急管理综合行政执法大队","工作人员三","1145240305324",1,"申晗","女","大学本科","学士","天津城建大学","工商管理","合格"]
[159,"贺州市平桂区应急管理综合行政执法大队","工作人员四","2145240405508",1,"张中阳","男","大学本科","学士","桂林电子科技大学","电子封装技术","合格"]
[160,"贺州市平桂区应急管理综合行政执法大队","工作人员五","1145240305329",1,"莫汉龙","男","大学本科","学士","桂林电子科技大学","法学","合格"]
[161,"贺州市平桂区应急管理综合行政执法大队","工作人员六","3145240602628",1,"梁冰","男","大学本科","学士","湘潭大学","应用化学","合格"]
[162,"贺州市平桂区水旱灾害防御站","工作人员一","2145240405720",1,"袁溦","女","大学本科","学士","广东理工学院","财务管理","合格"]
[163,"贺州市平桂区水旱灾害防御站","工作人员二","1145240305403",1,"蔡荣乐","男","大学本科","无学位","海南大学","自动化","合格","递补"]
[164,"贺州市平桂区东干水利工程管理所","专业技术人员","3145240602814",1,"翁健翔","男","大学本科","学士","贺州学院","工程管理（工学学士学位）","合格"]
[165,"贺州市平桂区民政福利综合服务中心","工作人员","1145240305509",1,"朱彦","女","大学本科","学士","广西大学","汉语言文学","合格"]
[166,"贺州市平桂区综合运输管理服务中心","技术人员","3145240602907",1,"莫晓轲","男","大学本科","学士","华北水利水电大学","交通工程","合格"]
[167,"贺州市平桂区政务服务中心","工作人员二","3145240602923",1,"邹仁儒","男","大学本科","学士","东华理工大学","水文与水资源工程","合格","递补"]
[168,"贺州市平桂区业余体校","游泳教练","2145240405730",1,"孟晨凯","男","大学专科","无学位","南宁职业技术学院","体育运营与管理","合格"]
[169,"贺州市平桂区图书馆","文博馆员","2145240405809",1,"罗奕霏","女","大学本科","学士","西南民族大学","文物与博物馆学","合格"]
[170,"贺州市平桂区土地开发整理中心","工作人员","3145240603003",1,"曾琳棋","女","大学本科","学士","海南大学","土地资源管理","合格"]
[171,"贺州市平桂区矿产资源规费征收管理站","工作人员","1145240305525",1,"黎倩","女","大学本科","学士","闽南师范大学","汉语言文学","合格"]
[172,"贺州市平桂区地质环境监测站","工作人员","3145240603014",1,"吴祖坤","男","大学本科","学士","长沙理工大学","材料成型及控制工程","合格"]
[173,"贺州市平桂区建筑安装工程劳动保险费管理所","工作人员一","1145240305622",1,"刘金湘","女","大学本科","学士","湖南城市学院","城市管理","合格"]
[174,"贺州市平桂区建筑安装工程劳动保险费管理所","工作人员二","2145240405821",1,"陈莹","女","大学本科","学士","上海建桥学院","会计","合格"]
[175,"贺州市平桂区建筑安装工程劳动保险费管理所","工作人员三","1145240305705",1,"周伟英","男","大学本科","学士","湘潭理工学院","工商管理","合格"]
[176,"贺州市平桂区建筑安装工程劳动保险费管理所","工作人员四","3145240603111",1,"杨德森","男","研究生","硕士","广东工业大学","土木工程","合格"]
[177,"贺州市平桂区学生资助管理中心","会计一","2145240405829",1,"朱健承","男","大学本科","学士","南宁学院","会计学","合格"]
[178,"贺州市平桂区学生资助管理中心","会计二","2145240405917",1,"刘先仙","女","大学本科","学士","桂林理工大学博文管理学院","会计学","合格"]
[179,"贺州市平桂区羊头镇中心小学","会计","2145240405922",1,"陈莎莎","女","大学本科","学士","广西民族师范学院","财务管理","合格"]
[180,"贺州市平桂区羊头镇大井完小","会计","2145240406008",1,"邓晓婷","女","大学本科","学士","青岛理工大学","财务管理","合格"]
[181,"贺州市平桂区大平瑶族乡民族学校","会计","2145240406021",1,"岑家欣","男","大学本科","学士","广东海洋大学寸金学院","会计学","合格"]
[182,"贺州市平桂区鹅塘镇初级中学","会计","2145240406024",1,"黄桂芬","女","大学本科","学士","广西民族大学","会计学","合格"]
[183,"贺州市平桂区望高镇中学","会计","2145240406103",1,"吴佩红","女","大学本科","学士","广西科技师范学院","财务管理","合格"]
[184,"贺州市平桂区公会中学","会计","2145240406116",1,"谢梦霞","女","大学本科","学士","南宁学院","会计","合格"]
[185,"贺州市平桂区羊头镇中学","会计","2145240406129",1,"龙玮璐","女","大学本科","学士","广西大学行健文理学院","会计学","合格"]
[186,"贺州市平桂区沙田镇中心学校","会计","2145240406208",1,"鄢淑婷","女","大学本科","学士","湖北民族大学","会计学","合格"]
[187,"贺州市平桂区鹅塘镇中心学校","会计","2145240406216",1,"黎玲","女","大学本科","学士","广西财经学院","会计学","合格"]
[188,"贺州市平桂区流动人口计划生育管理站","临床医师","5245240502216",1,"唐艺荣","女","大学本科","学士","广西医科大学","临床医学","合格"]
[189,"贺州市平桂区防治艾滋病服务中心","会计","2145240406225",1,"王秋香","女","大学本科","学士","广西外国语学院","财务管理","合格"]
[190,"贺州市平桂区疾病预防控制中心","专业技术人员","5645240500403",1,"梁月馨","女","大学本科","学士","广西科技大学","预防医学","合格"]
[191,"贺州市平桂区大平卫生院","康复技术人员","5545240500910",1,"廖秋婷","女","大学专科","无学位","广西医科大学","康复治疗技术","合格"]
[192,"贺州市平桂区公会中心卫生院","妇产科医生","5245240502217",1,"叶密","女","大学本科","学士","桂林医学院","临床医学","合格"]
[193,"贺州市平桂区望高镇便民服务中心","工作人员一","3145240603204",1,"刘慧","女","大学本科","学士","铜仁学院","园林","合格"]
[194,"贺州市平桂区望高镇便民服务中心","工作人员二","2145240406310",1,"罗玉英","女","大学本科","学士","北部湾大学","国际经济与贸易","合格"]
[195,"贺州市平桂区望高镇便民服务中心","工作人员三","1145240305723",1,"陈佳伟","男","大学本科","无学位","南宁师范大学","汉语言文学","合格"]
[196,"贺州市平桂区望高镇综合行政执法队","工作人员一","1145240305724",1,"廖岚","女","大学本科","学士","广西警察学院","监狱学","合格"]
[197,"贺州市平桂区望高镇综合行政执法队","工作人员二","3145240603207",1,"艾丽丝","女","大学本科","学士","河北地质大学","勘查技术与工程","合格"]
[198,"贺州市平桂区羊头镇农业服务中心","专业技术人员","3145240603210",1,"毛献俊","男","大学本科","学士","淮阴工学院","园艺","合格"]
[199,"贺州市平桂区羊头镇乡村建设综合服务中心","专业技术人员","3145240603214",1,"黄秀莲","女","大学本科","学士","哈尔滨商业大学","会计学","合格"]
[200,"贺州市平桂区羊头镇便民服务中心","工作人员一","2145240406407",1,"王晓玲","女","大学本科","学士","惠州学院","服装设计与工程","合格"]
[201,"贺州市平桂区羊头镇便民服务中心","工作人员二","1145240305807",1,"刘桂林","男","大学本科","学士","广东白云学院","产品设计","合格"]
[202,"贺州市平桂区公会镇乡村建设综合服务中心","工作人员一","2145240406411",1,"李满妮","女","大学本科","学士","广西职业师范学院","市场营销教育","合格"]
[203,"贺州市平桂区公会镇乡村建设综合服务中心","工作人员二","2145240406615",1,"高雨","女","大学本科","学士","吉林警察学院","财务管理","合格"]
[204,"贺州市平桂区公会镇乡村建设综合服务中心","工作人员三","2145240406619",1,"朱春江","女","大学本科","学士","辽东学院","服装设计与工程","合格"]
[205,"贺州市平桂区公会镇乡村建设综合服务中心","工作人员四","3145240603221",1,"刘振辉","男","大学本科","学士","桂林电子科技大学","土木工程","合格"]
[206,"贺州市平桂区公会镇乡村建设综合服务中心","工作人员五","1145240305814",1,"张先瑞","男","大学专科","无学位","三亚航空旅游职业学院","飞机机电设备维修","合格"]
[207,"贺州市平桂区公会镇综合行政执法队","工作人员一","1145240305921",1,"廖小青","女","大学本科","学士","广西财经学院","法学","合格"]
[208,"贺州市平桂区公会镇综合行政执法队","工作人员二","1145240306003",1,"冯颖","女","大学本科","学士","广西财经学院","经济学","合格"]
[209,"贺州市平桂区公会镇便民服务中心","工作人员","1145240306006",1,"谭洪明","男","大学本科","学士","齐鲁工业大学","电子信息科学与技术","合格"]
[210,"贺州市平桂区沙田镇便民服务中心","工作人员一","2145240406708",1,"白新姣","女","大学本科","学士","广西民族大学","会计学","合格"]
[211,"贺州市平桂区沙田镇农业服务中心","工作人员","3145240603304",2,"谢婧","女","大学本科","学士","河池学院","贸易经济","合格"]
[212,"贺州市平桂区沙田镇农业服务中心","工作人员","3145240603315",2,"李盛","男","大学本科","学士","吉林大学珠海学院","国际经济与贸易","合格"]
[213,"贺州市平桂区沙田镇乡村建设综合服务中心","工作人员一","3145240603403",1,"韦婉玲","女","大学本科","学士","百色学院","工程管理（工学学士）","合格"]
[214,"贺州市平桂区沙田镇综合行政执法队","工作人员一","1145240306115",2,"杨庚莎","女","大学本科","学士","广西警察学院","监狱学","合格"]
[215,"贺州市平桂区沙田镇综合行政执法队","工作人员一","1145240306118",2,"周燕婷","女","大学本科","学士","广西警察学院","法学","合格"]
[216,"贺州市平桂区沙田镇综合行政执法队","工作人员二","1145240306127",1,"何林秀","女","大学本科","学士","玉林师范学院","应用统计学","合格"]
[217,"贺州市平桂区大平瑶族乡便民服务中心","工作人员","1145240306216",1,"李美莲","女","大学本科","学士","中南林业科技大学","酒店管理","合格"]
[218,"贺州市平桂区大平瑶族乡综合行政执法队","工作人员一","1145240306322",1,"谢崇争","男","大学本科","无学位","广西警察学院","法学","合格"]
[219,"贺州市平桂区大平瑶族乡综合行政执法队","工作人员二","2145240406724",1,"刘谱玉","女","大学专科","无学位","茂名职业技术学院","传播与策划","合格"]
[220,"贺州市平桂区水口镇乡村建设综合服务中心","工作人员","2145240406802",1,"陈晶晶","女","大学本科","学士","广西大学","会计学","合格","递补"]
[221,"贺州市平桂区水口镇便民服务中心","工作人员一","1145240306414",2,"雷伯成","男","大学本科","学士","广西师范大学","汉语言文学","合格"]
[222,"贺州市平桂区水口镇便民服务中心","工作人员一","1145240306417",2,"朱斌","男","大学本科","学士","长沙理工大学","汉语言文学","合格"]
[223,"贺州市平桂区水口镇便民服务中心","工作人员二","1145240306525",1,"王国雄","男","大学专科","无学位","乐山师范学院","会计","合格"]
[224,"贺州市平桂区水口镇便民服务中心","工作人员三","2145240406807",1,"严楚宏","男","大学本科","学士","广西科技大学","经济学","合格"]
[225,"贺州市平桂区水口镇综合行政执法队","工作人员","1145240306609",1,"彭敬浦","男","大学本科","学士","玉林师范学院","通信工程","合格","递补"]
[226,"昭平县财政投资评审中心","财会人员一","2145240802221",2,"叶丽爽","女","本科"," 管理学学士","广西财经学院","财务管理","合格"]
[227,"昭平县财政投资评审中心","财会人员一","2145240802302",2,"何鸿玉","女","本科","管理学学士","湖南工业大学","会计学","合格"]
[228,"昭平县财政投资评审中心","财会人员二","2145240802316",2,"林春秀","女","本科","管理学学士","桂林电子科技大学","会计学","合格"]
[229,"昭平县财政投资评审中心","财会人员二","2145240802317",2,"刘其英","女","本科","管理学学士","广西外国语学院","财务管理","合格"]
[230,"昭平县行政体制与机构改革研究室","工作人员","1145240900530",1,"赖慧娟","女","本科","文学学士","广西师范大学","秘书学","合格"]
[231,"昭平县政府投资审计中心","工作人员一","3145240604201",1,"黎展鹏","男","本科","工学学士","西安科技大学","数据科学与大数据技术","合格"]
[232,"昭平县政府投资审计中心","工作人员二","2145240802325",1,"陈小余","女","本科","法学学士","梧州学院","法学","合格"]
[233,"昭平县植保植检站","工作人员","3145240604210",1,"李朝","男","本科","农学学士","广西大学","农学","合格"]
[234,"昭平县交通运输综合行政执法大队","工作人员一","2145240802328",1,"徐辉","男","本科","法学学士","广西警察学院","侦查学","合格","递补"]
[235,"昭平县交通运输综合行政执法大队","工作人员二","2145240802407",1,"卢正松","男","本科","法学学士","东北财经大学","法学","合格"]
[236,"昭平县交通运输综合行政执法大队","工作人员三","2145240802416",1,"朱超平","男","本科","工学学士","长沙理工大学","交通工程","合格"]
[237,"昭平县交通运输综合行政执法大队","工作人员四","2145240802430",1,"李雨纯","女","本科","工学学士","上海应用技术大学","土木工程","合格"]
[238,"昭平县交通运输综合行政执法大队","工作人员五","2145240802619",1,"贝文舒","男","本科","管理学学士","广西大学","公共事业管理","合格"]
[239,"昭平县交通运输综合行政执法大队","工作人员六","2145240802706",1,"杨仕灵","女","本科","管理学学士","广西师范大学","会计学","合格"]
[240,"昭平县周家水库工程管理所","工作人员一","2145240802726",1,"欧艺杰","男","本科"," 文学学士","广西师范大学","汉语言文学","合格"]
[241,"昭平县周家水库工程管理所","工作人员二","2145240802902",1,"蔡艺明","女","本科",null,"广西师范大学","会计学","合格"]
[242,"昭平县砂子冲水库工程管理所","工作人员","3145240604213",4,"廖青江","男","本科",null,"湖南农业大学","水利水电工程","合格"]
[243,"昭平县砂子冲水库工程管理所","工作人员","3145240604216",4,"沈严言","男","本科","工学学士","黑龙江大学","农业水利工程","合格"]
[244,"昭平县砂子冲水库工程管理所","工作人员","3145240604219",4,"李林峰","男","本科","工学学士","天津城建大学","港口航道与海岸工程","合格"]
[245,"昭平县砂子冲水库工程管理所","工作人员","3145240604220",4,"叶承鑫","男","本科",null,"桂林理工大学","水文与水资源工程","合格"]
[246,"昭平县政务服务和绩效考评中心","工作人员","1145240900605",1,"单向","男","本科","管理学学士","长沙师范学院","财务管理","合格"]
[247,"昭平县数据信息中心","工作人员","3145240604223",2,"马后浪","男","本科","工学学士","河池学院","软件工程","合格"]
[248,"昭平县数据信息中心","工作人员","3145240604429",2,"李培玲","女","本科","工学学士","武昌理工学院","软件工程","合格"]
[249,"昭平县普查中心","工作人员","2145240802910",1,"邱树文","男","本科"," 经济学学士","广西财经学院","经济统计学","合格"]
[250,"昭平县房屋网签备案中心","工作人员","3145240604901",1,"刘桂源","男","本科","工学学士","广西科技师范学院","计算机科学与技术","合格"]
[251,"昭平县融媒体中心","工作人员","2145240802926",1,"黎小满","女","本科","文学学士","浙江万里学院","汉语言文学","合格"]
[252,"昭平县医疗保障管理服务中心","财会人员","2145240803011",1,"谈建伟","男","本科","","广西职业师范学院","会计学","合格"]
[253,"昭平县医疗保障管理服务中心","工作人员","3145240605110",1,"虞礼谦","男","专科",null,"无锡职业技术学院","软件技术","合格"]
[254,"昭平县环境卫生管理站","工作人员一","2145240803328",1,"谭罗诗园","女","本科","管理学学士","桂林电子科技大学","物流管理","合格"]
[255,"昭平县环境卫生管理站","工作人员二","2145240804111",1,"陶再贵","男","本科","管理学学士","百色学院","城市管理","合格"]
[256,"昭平县环境卫生管理站","工作人员三","2145240804118",1,"朱艳红","女","本科","管理学学士","北部湾大学","财务管理","合格"]
[257,"昭平县城市管理综合服务中心","工作人员二","2145240804202",1,"谢雪颖","女","本科","法学学士","广西民族大学","法学","合格"]
[258,"昭平县富罗林场","工作人员","3145240605203",2,"黄水妹","女","本科"," 农学学士","玉林师范学院","园林","合格"]
[259,"昭平县富罗林场","工作人员","3145240605205",2,"吴天晴","女","专科","","广东生态工程职业学院","林业信息技术应用","合格"]
[260,"昭平县大脑山林场","工作人员一","1145240900617",1,"袁小玲","女","本科","文学学士","广西师范大学","汉语言文学","合格"]
[261,"昭平县大脑山林场","财会人员","2145240804316",1,"李榕秀","女","专科","","广西职业技术学院","会计电算化","合格"]
[262,"昭平县教研室","工作人员","2145240804330",1,"朱悦微","女","本科","文学学士","玉林师范学院","汉语言文学","合格"]
[263,"昭平县职业技术学校","财会人员","2145240804405",1,"叶舒涵","女","本科","管理学学士","天津中德应用技术大学","财务管理","合格"]
[264,"昭平县走马镇乡村建设综合服务中心","工作人员","3145240605224",1,"罗忠资","男","本科","工学学士","桂林理工大学","建筑电气与智能化","合格"]
[265,"昭平县木格乡便民服务中心","工作人员","2145240804409",1,"黎添","男","本科","文学学士","贺州学院","汉语言文学","合格"]
[266,"昭平县流动人口计划管理站","财会人员","2145240804428",1,"罗佳佳","女","本科","管理学学士","广西大学行健文理学院","会计学","合格"]
[267,"昭平县疾病预防控制中心","工作人员","5645240500426",1,"何小紫","女","本科","医学学士","右江民族医学院","预防医学","合格"]
[268,"昭平县中医医院","临床医师","5245240502304",1,"黄宗操","男","本科","医学学士","右江民族医学院","临床医学","合格"]
[269,"昭平县木格乡卫生院","医学影像技士","5545240501006",1,"陈波","男","专科","","永州职业技术学院","医学影像技术","合格"]
[270,"富川瑶族自治县职业教育中心","校医","5645240500413",1,"林涓","女","大学本科（技工院校预备技师（技师）班）","无学位","右江民族医学院","医学影像学","合格"]
[271,"富川瑶族自治县职业教育中心","财务","2145240406827",1,"蒋丽虹","女","大学本科（技工院校预备技师（技师）班）","学士","湖南交通工程学院","财务管理","合格"]
[272,"富川瑶族自治县石家乡中心校","财务","2145240406904",1,"林梦霞","女","大学本科（技工院校预备技师（技师）班）","学士","广西外国语学院","财务管理专业","合格"]
[273,"富川瑶族自治县立新小学","财务","2145240407011",1,"谢颖","女","大学本科（技工院校预备技师（技师）班）","学士","广西师范大学漓江学院","财务管理","合格"]
[274,"富川瑶族自治县新华乡中心校","财务","2145240407021",1,"蒋冬秀","女","大学本科（技工院校预备技师（技师）班）","学士","黑龙江财经学院","会计学","合格"]
[275,"富川瑶族自治县白沙镇中心校","财务","2145240407101",1,"莫元昭","男","大学本科（技工院校预备技师（技师）班）","学士","桂林电子科技大学","会计学","合格"]
[276,"富川瑶族自治县麦岭镇中心校","财务","2145240407130",1,"田春花","女","大学本科（技工院校预备技师（技师）班）","无学位","湖南文理学院","会计学","合格"]
[277,"富川瑶族自治县疾病预防控制中心","公卫医师","5645240500417",1,"杨茵茵","女","大学本科（技工院校预备技师（技师）班）","学士","广西医科大学","妇幼保健医学","合格"]
[278,"富川瑶族自治县妇幼保健院","财务岗位","2145240407206",1,"李荣玲","女","大学本科（技工院校预备技师（技师）班）","学士","武汉工商学院","财务管理","合格"]
[279,"富川瑶族自治县妇幼保健院","医院办公室岗位","2145240407218",1,"盘彩丽","女","大学本科（技工院校预备技师（技师）班）","学士","玉林师范学院","汉语国际教育","合格"]
[280,"富川瑶族自治县民族医医院","会计岗位","2145240407303",1,"毛丽华","女","大学本科（技工院校预备技师（技师）班）","学士","广西民族大学","会计学","合格","递补"]
[281,"富川瑶族自治县民族医医院","中医临床医师","5145240502406",1,"魏饶","男","大学本科（技工院校预备技师（技师）班）","学士","广西中医药大学","中医学","合格"]
[282,"富川瑶族自治县人民医院","临床医生一","5245240502218",2,"黄艳燕","女","大学本科（技工院校预备技师（技师）班）","","南华大学","临床医学","合格"]
[283,"富川瑶族自治县人民医院","临床医生二","5245240502224",1,"何凯林","女","大学本科（技工院校预备技师（技师）班）","学士","桂林医学院","临床医学","合格"]
[284,"富川瑶族自治县人民医院","临床医生三","5245240502227",3,"钟馨莹","女","大学本科（技工院校预备技师（技师）班）","学士","温州医科大学仁济学院","临床医学","合格"]
[285,"富川瑶族自治县人民医院","临床医生四","5245240502230",2,"杨东莹","女","大学本科（技工院校预备技师（技师）班）","学士","潍坊医学院","临床医学","合格"]
[286,"富川瑶族自治县人民医院","临床医生四","5245240502301",2,"黄伟","男","大学本科（技工院校预备技师（技师）班）","学士","新乡医学院","临床医学","合格"]
[287,"富川瑶族自治县人民医院","医学检验","5545240500918",1,"唐华惯","女","大学本科（技工院校预备技师（技师）班）","学士","广西科技大学","医学检验技术","合格"]
[288,"富川瑶族自治县人民医院","护理","5445240501130",6,"陶海霞","女","大学本科（技工院校预备技师（技师）班）","学士","广西中医药大学","护理学","合格"]
[289,"富川瑶族自治县人民医院","护理","5445240501105",6,"李莲妃","女","大学本科（技工院校预备技师（技师）班）","学士","右江民族医学院","护理学","合格"]
[290,"富川瑶族自治县人民医院","护理","5445240501217",6,"毛珍凤","女","大学本科（技工院校预备技师（技师）班）","学士","右江民族医学院","护理学","合格"]
[291,"富川瑶族自治县人民医院","护理","5445240501116",6,"温和运","男","大学本科（技工院校预备技师（技师）班）","学士","广西科技大学","护理学","合格"]
[292,"富川瑶族自治县人民医院","护理","5445240501208",6,"岑思思","女","大学本科（技工院校预备技师（技师）班）","学士","广西医科大学","护理学","合格"]
[293,"富川瑶族自治县人民医院","护理","5445240501215",6,"罗丽","女","大学本科（技工院校预备技师（技师）班）","学士","广西科技大学医学院","护理学","合格"]
[294,"富川瑶族自治县人民医院","财务","2145240407229",1,"陈小婉","女","大学本科（技工院校预备技师（技师）班）","学士","广西大学行健文理学院","财务管理","合格"]
[295,"富川瑶族自治县白沙镇卫生院","会计岗位","2145240407316",1,"黎嫄","女","大学本科（技工院校预备技师（技师）班）","学士","广西师范大学漓江学院","会计学","合格"]
[296,"富川瑶族自治县葛坡镇卫生院","会计岗位","2145240407326",1,"徐梦遥","女","大学本科（技工院校预备技师（技师）班）","","广西财经学院","会计学","合格"]
[297,"富川瑶族自治县新华乡卫生院","会计岗位","2145240407409",1,"李婷","女","大学本科（技工院校预备技师（技师）班）","无学位","广西师范大学","会计学","合格"]
[298,"富川瑶族自治县柳家乡卫生院","中西医临床岗位","5145240502407",1,"徐爱英","女","大学本科（技工院校预备技师（技师）班）","学士","广西中医药大学","中西医临床医学","合格"]
[299,"富川瑶族自治县麦岭中心卫生院","临床医生岗位","5245240502302",1,"莫秋英","女","大学本科（技工院校预备技师（技师）班）","无学位","广西医科大学","临床医学","合格"]
[300,"富川瑶族自治县民族艺术团","舞蹈编导","2145240407411",1,"吕文婷","女","大学本科（技工院校预备技师（技师）班）","学士","北部湾大学","舞蹈表演","合格"]
[301,"富川瑶族自治县民政福利综合服务中心","会计","1145240306616",1,"蒋婧","女","大学本科（技工院校预备技师（技师）班）","学士","广西科技师范学院","财务管理","合格"]
[302,"富川瑶族自治县民政福利综合服务中心","工作人员","1145240306730",1,"陈剑","男","大学本科（技工院校预备技师（技师）班）","学士","东南大学","能源与动力工程","合格"]
[303,"富川瑶族自治县财政局财政投资评审中心","工作人员","2145240407429",1,"曾志彬","男","大学本科（技工院校预备技师（技师）班）","学士","湖南交通工程学院","工程造价(工学学位)","合格"]
[304,"富川瑶族自治县土地收购储备中心","专业技术人员","1145240307002",1,"李光熠","男","大学本科（技工院校预备技师（技师）班）","学士","广西大学","化学工程与工艺","合格"]
[305,"富川瑶族自治县鸡公山水库水利工程管理所","专业技术人员","3145240603419",1,"严秀琴","女","大学本科（技工院校预备技师（技师）班）","学士","桂林理工大学","水文与水资源工程","合格"]
[306,"富川瑶族自治县公证处","公证员","2145240407503",1,"黎荣兰","女","大学本科（技工院校预备技师（技师）班）","学士","广西师范大学","法学","合格"]
[307,"富川瑶族自治县交通运输综合行政执法大队","工作人员一","2145240407512",1,"吴杨琥","男","大学本科（技工院校预备技师（技师）班）","无学位","湖南文理学院","法学","合格"]
[308,"富川瑶族自治县交通运输综合行政执法大队","工作人员二","2145240407527",1,"岑春成","男","大学本科（技工院校预备技师（技师）班）","","玉林师范学院","法学","合格"]
[309,"富川瑶族自治县交通运输综合行政执法大队","办公室人员","2145240407701",1,"植彦杰","男","大学本科（技工院校预备技师（技师）班）","","上海工程技术大学","广告学","合格"]
[310,"富川瑶族自治县交通运输综合行政执法大队","财务人员","2145240407729",1,"杨梦甜","女","大学本科（技工院校预备技师（技师）班）","学士","广西师范大学漓江学院","财务管理","合格"]
[311,"富川瑶族自治县政务服务和绩效考评中心","专业技术人员","5645240500422",1,"肖诗晴","女","大学专科（技工院校高级工班）","无学位","娄底职业技术学院","幼儿发展与健康管理","合格"]
[312,"富川瑶族自治县政务服务和绩效考评中心","财务人员","2145240407828",1,"黄雅婷","女","大学本科（技工院校预备技师（技师）班）","学士","桂林旅游学院","财务管理","合格"]
[313,"富川瑶族自治县未成年人思想道德建设服务中心","工作人员一","1145240307103",1,"莫现福","男","大学本科（技工院校预备技师（技师）班）","学士","广西外国语学院","汉语言文学","合格"]
[314,"富川瑶族自治县未成年人思想道德建设服务中心","工作人员二","1145240307105",1,"陀玲","女","大学本科（技工院校预备技师（技师）班）","学士","梧州学院","汉语言文学","合格"]
[315,"富川瑶族自治县融媒体中心","工作人员","2145240408010",1,"王璟","男","大学本科（技工院校预备技师（技师）班）","学士","北部湾大学","财务管理","合格"]
[316,"富川瑶族自治县经济作物站","专业技术人员","3145240603422",1,"熊晓兰","女","大学本科（技工院校预备技师（技师）班）","学士","广西大学","农业资源与环境","合格"]
[317,"富川瑶族自治县动物疫病预防控制中心","专业技术人员","3145240603502",1,"林青","男","大学本科（技工院校预备技师（技师）班）","学士","天津农学院","动物医学（小动物医学专业）","合格"]
[318,"富川瑶族自治县乡村振兴建设服务站","工作人员","2145240408212",1,"毛欣淮","男","大学本科（技工院校预备技师（技师）班）","学士","三峡大学科技学院","工程造价","合格"]
[319,"富川瑶族自治县政府发展研究中心","工作人员一","1145240307117",1,"钟莹","女","大学本科（技工院校预备技师（技师）班）","学士","梧州学院","哲学","合格","递补"]
[320,"富川瑶族自治县政府发展研究中心","工作人员二","1145240307126",1,"林欣","女","大学本科（技工院校预备技师（技师）班）","学士","桂林理工大学","财务管理","合格"]
[321,"富川瑶族自治县政府发展研究中心","工作人员三","1145240307205",1,"杨润祥","女","大学本科（技工院校预备技师（技师）班）","学士","泰国南邦皇家大学","对外交流泰语","合格"]
[322,"富川瑶族自治县民兵训练基地","办公室人员","1145240307411",1,"陈嘉欣","女","大学本科（技工院校预备技师（技师）班）","学士","桂林旅游学院","汉语国际教育专业","合格"]
[323,"富川瑶族自治县劳动人事争议仲裁院","工作人员一","1145240307426",1,"洪达俭","男","大学本科（技工院校预备技师（技师）班）","学士","桂林电子科技大学","法学","合格"]
[324,"富川瑶族自治县劳动人事争议仲裁院","工作人员二","1145240307502",1,"杨雯","女","大学本科（技工院校预备技师（技师）班）","学士","广西师范大学","法学","合格"]
[325,"富川瑶族自治县劳动人事争议仲裁院","工作人员三","1145240307510",1,"何晓菲","女","大学本科（技工院校预备技师（技师）班）","学士","广西民族大学","传播学","合格"]
[326,"富川瑶族自治县应急救援指挥中心","工作人员一","2145240408413",2,"林瑶","女","大学本科（技工院校预备技师（技师）班）","学士","广西财经学院","人力资源管理","合格"]
[327,"富川瑶族自治县应急救援指挥中心","工作人员一","2145240408225",2,"黄翔","男","大学本科（技工院校预备技师（技师）班）","学士","天津工业大学","轻化工程","合格"]
[328,"富川瑶族自治县应急救援指挥中心","工作人员二","2145240408529",1,"邹世平","男","大学专科（技工院校高级工班）","","湖南安全技术职业学院","安全技术与管理","合格"]
[329,"富川瑶族自治县应急救援指挥中心","工作人员三","2145240408728",2,"叶诚","男","大学专科（技工院校高级工班）","","江西司法警官职业学院","治安管理","合格"]
[330,"中共富川瑶族自治县委员会办公室信息管理和专用通信服务中心","工作人员一","1145240307526",1,"柳媛媛","女","大学本科（技工院校预备技师（技师）班）","学士","广西民族大学相思湖学院","计算机科学与技术","合格"]
[331,"中共富川瑶族自治县委员会办公室信息管理和专用通信服务中心","工作人员二","1145240307612",1,"杨彩虹","女","大学本科（技工院校预备技师（技师）班）","学士","百色学院","思想政治教育","合格"]
[332,"富川瑶族自治县医疗救助中心","工作人员","2145240502705",1,"易志文","男","大学本科（技工院校预备技师（技师）班）","学士","江西理工大学","计算机科学与技术","合格"]
[333,"富川瑶族自治县社会工作服务中心","工作人员","1145240307722",1,"杨菲菲","女","大学本科（技工院校预备技师（技师）班）","学士","梧州学院","人力资源管理","合格"]
[334,"富川瑶族自治县科技馆","工作人员","1145240307823",1,"罗秋琴","女","大学本科（技工院校预备技师（技师）班）","学士","湖南涉外经济学院","网络与新媒体","合格"]
[335,"朝东镇综合行政执法队","工作人员三","2145240502726",1,"杨青","女","大学本科（技工院校预备技师（技师）班）","学士","广西财经学院","商务经济学","合格"]
[336,"福利镇乡村建设综合服务中心","会计","3145240603607",1,"黄国富","男","大学专科（技工院校高级工班）","无学位","广西经贸职业技术学院","会计（国际会计方向）","合格"]
[337,"葛坡镇综合行政执法队","管理岗位","1145240307907",1,"吴明","男","大学本科（技工院校预备技师（技师）班）","学士","湖南警察学院","法学","合格"]
[338,"葛坡镇综合行政执法队","专业技术岗位","2145240502806",1,"陈新润","男","大学本科（技工院校预备技师（技师）班）","学士","南宁理工学院","工程管理","合格"]
[339,"城北镇乡村建设综合服务中心","工作人员","2145240502918",1,"卢守春","男","大学本科（技工院校预备技师（技师）班）","学士","吉林财经大学","数学与应用数学","合格"]
[340,"城北镇综治行政执法队","工作人员","2145240502828",1,"李有秀","女","大学本科（技工院校预备技师（技师）班）","学士","闽江学院","社会工作","合格"]
[341,"柳家乡行政综合执法队","专业技术岗","2145240503002",1,"谢芙蓉","女","大学本科（技工院校预备技师（技师）班）","学士","广西警察学院","法学","合格"]
[342,"柳家乡乡村建设综合服务中心","管理岗","1145240307924",1,"黄美","女","大学本科（技工院校预备技师（技师）班）","学士","广西科技大学","工商管理","合格"]
[343,"古城镇乡村建设综合服务中心","工作人员","2145240503019",1,"陈宇菁","女","大学本科（技工院校预备技师（技师）班）","学士","徐州工程学院","物流工程","合格"]
[344,"白沙镇乡村建设综合服务中心","工作人员一","1145240308118",1,"蒋诗琪","女","大学本科（技工院校预备技师（技师）班）","学士","天津工业大学","轻化工程","合格"]
[345,"白沙镇乡村建设综合服务中心","工作人员二","3145240603822",1,"程芳宗","男","大学本科（技工院校预备技师（技师）班）","学士","桂林理工大学博文管理学院","土木工程","合格"]
[346,"白沙镇综合行政执法队","工作人员","2145240503124",1,"何依玲","女","大学本科（技工院校预备技师（技师）班）","学士","广西警察学院","监狱学","合格"]
[347,"富阳镇便民服务中心","工作人员一","1145240308213",1,"蒋璐","女","大学本科（技工院校预备技师（技师）班）","学士","西南民族大学","金融学","合格"]
[348,"富阳镇便民服务中心","工作人员二","1145240308221",1,"岑菊蓉","女","大学本科（技工院校预备技师（技师）班）","学士","贺州学院","汉语言文学","合格"]
[349,"富阳镇农业服务中心","工作人员","2145240503212",2,"徐凌峰","男","大学本科（技工院校预备技师（技师）班）","学士","湖南涉外经济学院","机械设计制造及其自动化","合格"]
[350,"富阳镇农业服务中心","工作人员","2145240503228",2,"奉子暄","男","大学本科（技工院校预备技师（技师）班）","学士","哈尔滨工业大学（深圳）","机械设计制造及其自动化","合格"]
[351,"富阳镇综合行政执法队","工作人员","3145240603917",2,"杨冠川","女","大学本科（技工院校预备技师（技师）班）","学士","南开大学","环境科学","合格"]
[352,"富阳镇综合行政执法队","工作人员","3145240603904",2,"梁淮钧","男","大学本科（技工院校预备技师（技师）班）","学士","广西大学","环境工程","合格"]
[353,"富阳镇乡村建设综合服务中心","工作人员","3145240604013",1,"黄祯滴","男","大学本科（技工院校预备技师（技师）班）","学士","桂林电子科技大学","网络工程","合格"]
[354,"新华乡乡村建设综合服务中心","工作人员一","2145240503401",1,"俸绪崴","男","大学专科（技工院校高级工班）","","广西生态工程职业技术学院","风景园林设计","合格"]
[355,"新华乡乡村建设综合服务中心","工作人员二","2145240800305",1,"丁奎元","男","大学专科（技工院校高级工班）","","湖北交通职业技术学院","工程造价","合格"]
[356,"新华乡乡村建设综合服务中心","工作人员三","2145240801608",1,"马杰","男","大学本科（技工院校预备技师（技师）班）","无学位","桂林电子科技大学","通信工程","合格"]
[357,"新华乡综合行政执法队","工作人员一","2145240802025",1,"白丽云","女","大学本科（技工院校预备技师（技师）班）","","广西师范大学","法学","合格"]
[358,"新华乡综合行政执法队","工作人员二","2145240802113",1,"黄梅凤","女","大学本科（技工院校预备技师（技师）班）","学士","广西民族大学","会计学","合格"]
[359,"麦岭镇综合行政执法队","专业技术岗","2145240802120",1,"张玉秀","女","大学本科（技工院校预备技师（技师）班）","学士","广西财经学院","财政学","合格"]
[360,"麦岭镇农业服务中心","专业技术岗","2145240802205",1,"何欢婷","女","大学本科（技工院校预备技师（技师）班）","学士","南宁学院","会计学","合格"]
[361,"麦岭镇乡村建设综合服务中心","管理岗","1145240308301",1,"陈轩","男","大学本科（技工院校预备技师（技师）班）","学士","广西民族大学","法学","合格"]
[362,"石家乡乡村建设综合服务中心","工作人员一","3145240604026",1,"毛宾潮","男","大学本科（技工院校预备技师（技师）班）","学士","广西大学行健文理学院","风景园林","合格"]
[363,"石家乡乡村建设综合服务中心","工作人员二","3145240604104",1,"曾庆健","男","大学本科（技工院校预备技师（技师）班）","学士","桂林理工大学","测绘工程","合格"]
[364,"石家乡乡村建设综合服务中心","工作人员三","2145240802206",1,"黎俊","男","大学本科（技工院校预备技师（技师）班）","学士","广西民族师范学院","财务管理","合格"]
[365,"石家乡乡村建设综合服务中心","工作人员四","1145240308306",1,"廖凤美","女","大学本科（技工院校预备技师（技师）班）","学士","唐山师范学院","秘书学","合格"]
[366,"石家乡便民服务中心","工作人员","1145240308324",1,"刘小倩","女","大学本科（技工院校预备技师（技师）班）","学士","湖南城市学院","复合材料与工程","合格"]
[367,"石家乡农业服务中心","工作人员二","1145240900102",1,"谢婷","女","大学本科（技工院校预备技师（技师）班）","学士","广西外国语学院","日语","合格"]
[368,"石家乡综合行政执法队","工作人员二","2145240802214",1,"陈娟","女","大学本科（技工院校预备技师（技师）班）","学士","广西民族大学","会计学","合格"]
[369,"石家乡综合行政执法队","工作人员三","1145240900209",1,"赖宜鑫","男","大学本科（技工院校预备技师（技师）班）","学士","南宁师范大学","环境设计","合格"]
[370,"莲山镇乡村建设综合服务中心","工作人员","3145240604119",1,"林志","男","大学本科（技工院校预备技师（技师）班）","学士","广西大学","土木工程","合格"]
[371,"莲山镇综合行政执法队","工作人员","2145240802218",1,"唐亚芳","女","大学本科（技工院校预备技师（技师）班）","学士","广西师范大学","法学","合格"]
[372,"莲山镇便民服务中心","工作人员一","1145240900220",1,"潘耿成","男","大学本科（技工院校预备技师（技师）班）","学士","南宁学院","计算机科学与技术","合格"]
[373,"莲山镇便民服务中心","工作人员二","1145240900520",2,"杨晶晶","女","大学本科（技工院校预备技师（技师）班）","学士","广西财经学院","金融学","合格"]
[374,"莲山镇便民服务中心","工作人员二","1145240900521",2,"董金燕","女","大学本科（技工院校预备技师（技师）班）","学士","广西民族大学","经济学","合格"]
[375,"中国共产党钟山县委员会党校","专职教师","2145240804503",1,"黄杏柃","女","大学","学士","湖北工程学院","思想政治教育","合格"]
[376,"钟山县经济合作服务中心","工作人员","1145240900730",1,"陈美香","女","大学","学士","广西大学","汉语言文学","合格"]
[377,"钟山县互联网传播管理中心","工作人员","1145240900807",1,"韦德萍","女","大学","学士","广西大学","汉语言文学","合格"]
[378,"钟山县融媒体中心","播音主持","2145240804517",1,"莫文倩","女","大学","学士","长沙学院","播音与主持艺术","合格"]
[379,"钟山县融媒体中心","记者","2145240804526",1,"姚慧敏","女","大学","学士","南宁师范大学","新闻学","合格"]
[380,"钟山县融媒体中心","编辑","2145240804611",2,"车豪康","男","大学","学士","西北民族大学","广播电视编导","合格"]
[381,"钟山县融媒体中心","编辑","2145240804612",2,"吴思宇","女","大学","学士","武汉华夏理工学院","网络与新媒体","合格"]
[382,"钟山县价格认证中心","工作人员","1145240900909",1,"刘卫萍","女","大学","学士","广西科技师范学院","食品质量与安全","合格"]
[383,"钟山县青少年活动中心","工作人员","2145240804702",1,"陈小梅","女","大学","学士","桂林学院（原广西师范大学漓江学院）","汉语言文学","合格"]
[384,"钟山县花山瑶族乡民族学校","会计","2145240804719",1,"朱玲","女","大学","学士","桂林学院（原广西师范大学漓江学院）","财务管理","合格"]
[385,"钟山县中小企业服务中心","工作人员一","2145240804727",1,"李泓涛","女","大学","学士","山东大学","会计学","合格"]
[386,"钟山县中小企业服务中心","工作人员二","2145240805013",1,"刘土凤","女","大学","学士","天津财经大学","市场营销","合格"]
[387,"钟山县科学技术试验所","工作人员","2145240805119",1,"何涛","男","大学","学士","西南财经大学","统计学","合格"]
[388,"广西省工委历史博物馆钟山县管理所","工作人员","2145240805210",1,"郭玉琴","女","大学","学士","广西民族大学","汉语言文学","合格"]
[389,"广西壮族自治区钟山县公证处","公证员","2145240805302",1,"张梦洁","女","大学","学士","浙江工商大学","法学","合格"]
[390,"钟山县财政票据管理中心","工作人员一","2145240805313",1,"胡佳裕","女","大学","学士","湖北商贸学院","审计学","合格"]
[391,"钟山县财政票据管理中心","工作人员二","1145240901003",1,"黄杰","男","大学","学士","湘潭大学","档案学","合格"]
[392,"钟山县财政票据管理中心","工作人员三","1145240901012",1,"何芳萍","女","大学","学士","白城师范学院","网络与新媒体","合格"]
[393,"钟山县财政票据管理中心","工作人员五","2145240805318",1,"黎正婕","女","大学","学士","广西民族大学相思湖学院","税收学","合格"]
[394,"钟山县不动产登记服务中心","测绘人员","2145240805323",2,"朱家将","男","大学","学士","北部湾大学","测绘工程","合格"]
[395,"钟山县不动产登记服务中心","测绘人员","2145240805321",2,"李光夏","男","大学","学士","柳州工学院","测绘工程","合格"]
[396,"钟山县林业技术推广站","工作人员","1145240901022",1,"张莹","女","大学","学士","桂林理工大学博文管理学院","汉语言文学","合格"]
[397,"钟山县国营花山林场","工作人员一","3145240605410",2,"覃睿","女","大学","学士","昆明学院","园林","合格"]
[398,"钟山县国营花山林场","工作人员一","3145240605409",2,"杨情","女","大学","学士","河南城建学院","园林","合格"]
[399,"钟山县国营花山林场","工作人员二","3145240605423",1,"麦新民","男","大学","学士","广西财经学院","会计学","合格"]
[400,"钟山县国营花山林场","工作人员三","1145240901105",1,"董金英","女","大学","学士","黑龙江八一农垦大学","园林","合格"]
[401,"钟山县水土保持站","工作人员","3145240605427",1,"杨慧君","女","大学","学士","江苏师范大学","测绘工程","合格"]
[402,"钟山县水旱灾害防御站","工作人员一","3145240605514",1,"李水英","女","大学","学士","桂林理工大学","机械设计制造及其自动化","合格"]
[403,"钟山县水旱灾害防御站","工作人员二","3145240605527",1,"肖惠方","女","大学","学士","广东海洋大学寸金学院","工程管理","合格"]
[404,"钟山县水利水电工程质量与安全监督管理站","工作人员","3145240605611",2,"廖富妹","女","大学","学士","长沙理工大学","水文与水资源工程","合格"]
[405,"钟山县水利水电工程质量与安全监督管理站","工作人员","3145240605612",2,"马秀盛","男","大学","学士","桂林理工大学","水文与水资源工程","合格"]
[406,"钟山县龙潭水库工程管理所","工作人员一","3145240605617",1,"董永年","男","大学","学士","广西科技大学","土木工程","合格"]
[407,"钟山县龙潭水库工程管理所","工作人员二","3145240605626",2,"梁永岗","男","大学","学士","桂林理工大学","水文与水资源工程","合格"]
[408,"钟山县农业机械化服务中心","工作人员一","2145240805405",1,"邓丽连","女","大学","学士","广西民族师范学院","汉语言文学","合格"]
[409,"钟山县农业机械化服务中心","工作人员二","2145240805503",2,"周阳威","男","大学","学士","上海第二工业大学","车辆工程","合格"]
[410,"钟山县种子与种植业工作站","工作人员一","2145240805625",1,"苏语歆","女","大学","学士","南宁学院","会计学","合格"]
[411,"钟山县种子与种植业工作站","工作人员二","2145240805702",2,"黎玉雪","女","大学","学士","广西大学","农学","合格"]
[412,"钟山县种子与种植业工作站","工作人员二","2145240805706",2,"陈宴帅","男","大学","学士","广西农业职业技术大学","设施园艺","合格"]
[413,"钟山县水产畜牧站","工作人员","2145240805708",1,"冯钰婷","女","大学","学士","湖南应用技术学院","水产养殖学","合格"]
[414,"钟山县动物疫病预防控制中心","工作人员","2145240805711",1,"欧兵","男","大学","学士","天津农学院","动物医学（小动物医学方向）","合格"]
[415,"钟山县土壤肥料生态站","工作人员","2145240805715",1,"贺爽","女","大学","学士","云南农业大学","水土保持与荒漠化防治","合格"]
[416,"钟山县植保植检站","工作人员","2145240805716",1,"黎思盈","女","大学","学士","甘肃农业大学","种子科学与工程","合格"]
[417,"钟山县村级集体经济发展中心","工作人员","1145240901110",1,"李慜琪","女","大学","学士","百色学院","工程管理（房地产经营与管理）","合格"]
[418,"钟山县图书馆","工作人员","2145240806001",1,"杨秋英","女","大学","学士","山东工商学院","软件工程","合格"]
[419,"钟山县文化馆","会计","2145240806008",1,"刘建丹","女","大学","学士","南宁学院","会计学","合格"]
[420,"钟山县业余体育学校","拳击教练员","2145240806028",1,"陈致坚","男","大学","学士","成都体育学院","运动训练","合格"]
[421,"钟山县文化旅游发展中心","管理人员","1145240901402",1,"周永嘉","男","大学","学士","桂林理工大学","旅游管理","合格"]
[422,"钟山县科学技术馆","工作人员一","1145240901420",1,"岑冰","女","大学","学士","台州学院","财务管理","合格"]
[423,"钟山县科学技术馆","工作人员二","1145240901429",1,"陈美调","女","大学","学士","青岛农业大学","公共事业管理","合格"]
[424,"钟山县应急救援指挥中心","专业技术人员一","2145240806102",1,"王绪忠","男","大学","学士","广西大学","矿物资源工程","合格"]
[425,"钟山县应急救援指挥中心","专业技术人员三","2145240806105",1,"陈泰斗","男","大学","学士","天津理工大学","资源循环科学与工程","合格"]
[426,"钟山县人民医院","内科医师","5245240502309",4,"莫绍培","男","大学","学士","广西科技大学","临床医学","合格"]
[427,"钟山县人民医院","内科医师","5245240502307",4,"姚莹莹","女","大学","学士","桂林医学院","临床医学","合格"]
[428,"钟山县人民医院","内科医师","5245240502308",4,"梁智丽","女","大学","学士","右江民族医学院","临床医学","合格"]
[429,"钟山县人民医院","眼耳鼻咽喉科医师","5245240502311",1,"潘国启","男","大学","学士","山西长治医学院","临床医学","合格"]
[430,"钟山县回龙镇卫生院","内科医生","5245240502314",2,"李振胜","男","大专",null,"广西卫生职业技术学院","临床医学","合格"]
[431,"钟山县疾病预防控制中心","公共卫生医师","5645240500501",2,"蒋潇逸","女","大学","学士","四川大学","预防医学","合格"]
[432,"钟山县疾病预防控制中心","公共卫生医师","5645240500503",2,"黄子建","男","大学","学士","右江民族医学院","预防医学","合格"]
[433,"钟山县石龙中心卫生院","中医科医生","5145240502415",1,"杨盛健","男","大专",null,"江西中医药高等专科学校","中医学","合格"]
[434,"钟山县石龙中心卫生院","临床护士","5445240501306",2,"陈若涵","女","大学","学士","桂林医学院","护理学","合格"]
[435,"钟山县中医医院","内科医生一","5145240502417",1,"盘世玉","女","大学","学士","广西中医药大学赛恩斯新医药学院","中医","合格"]
[436,"钟山县中医医院","内科医生二","5145240502419",1,"钟毅","男","大学","学士","广西中医药大学","针灸推拿学","合格"]
[437,"钟山县中医医院","临床护士二","5445240501810",1,"欧华英","女","大学","学士","广西中医药大学","护理学","合格"]
[438,"钟山县中医医院","财务人员","2145240806209",1,"曾思思","女","大学","学士","广西职业师范学院","财务会计教育","合格"]
[439,"钟山县珊瑚镇卫生院","临床医师","5245240502317",1,"吴源佳","女","大专",null,"黔南民族医学高等专科学校","临床医学","合格"]
[440,"钟山县妇幼保健院","妇产科医师","5245240502318",1,"潘娇艳","女","大学","学士","广西科技大学","临床医学","合格"]
[441,"钟山县钟山镇卫生院","外科医生","5245240502320",2,"李小美","女","大学","学士","广西科技大学","临床医学","合格"]
[442,"钟山县钟山镇卫生院","五官科医生","5245240502326",1,"邹叶红","女","大学","学士","广西科技大学","临床医学","合格"]
[443,"钟山县钟山镇卫生院","妇产科医生","5245240502327",1,"董诗琦","女","大专",null,"广西医科大学","临床医学","合格"]
[444,"钟山县红花镇中心卫生院","临床医师","5145240502421",1,"叶良恩","男","大专",null,"广西中医药大学","针灸推拿","合格"]
[445,"钟山县同古镇综合行政执法队","工作人员","1145240901523",1,"莫炳秀","男","大学","学士","南宁学院","工程造价","合格"]
[446,"钟山县同古镇便民服务中心","工作人员","1145240901602",1,"陶昱宗","男","大学","学士","玉林师范学院","环境设计","合格"]
[447,"钟山县珊瑚镇乡村建设综合服务中心","工作人员一","1145240901609",1,"周勇","男","大学","学士","柳州工学院","建筑学","合格"]
[448,"钟山县珊瑚镇乡村建设综合服务中心","工作人员二","1145240901618",1,"沈太金","男","大学","学士","桂林理工大学","信息与计算科学","合格"]
[449,"钟山县红花镇便民服务中心","工作人员","1145240901910",1,"徐成翰","男","大学","学士","南宁师范大学","法学","合格"]
[450,"钟山县清塘镇便民服务中心","财会人员","1145240901915",1,"雷坤侃","男","大学","学士","广西科技大学","会计学","合格"]
[451,"钟山县清塘镇综合行政执法队","工作人员","1145240902023",1,"张晴","女","大学","学士","贺州学院","服装与服饰设计","合格"]
[452,"钟山县清塘镇综合行政执法队","财会人员","2145240806227",1,"董阿春","女","大学","学士","南宁学院","财务管理","合格"]
[453,"钟山县清塘镇乡村建设综合服务中心","工作人员","1145240902108",1,"李霖东","男","大学","学士","桂林电子科技大学","交通工程","合格"]
[454,"钟山县凤翔镇便民服务中心","工作人员","1145240902124",1,"张恒睿","男","大学","学士","广西大学","会计学","合格"]
[455,"钟山县凤翔镇乡村建设综合服务中心","工作人员","1145240902127",1,"莫钦敦","男","大学","学士","桂林理工大学","地下水科学与工程","合格"]
[456,"钟山县凤翔镇综合行政执法队","工作人员","1145240902207",1,"潘海丽","女","大学","学士","九江学院","法学","合格"]
[457,"钟山县钟山镇便民服务中心","工作人员一","1145240902830",2,"潘明花","女","大学","学士","广西师范大学","电子信息工程","合格"]
[458,"钟山县钟山镇便民服务中心","工作人员一","1145240902807",2,"谢雨欣","女","大学","学士","天津商业大学","包装工程","合格"]
[459,"钟山县钟山镇便民服务中心","工作人员二","1145240902919",1,"周云亮","男","大学","学士","华中农业大学楚天学院","生物工程","合格"]
[460,"钟山县钟山镇农业服务中心","工作人员","3145240605629",1,"虞华颖","男","大学","学士","四川农业大学","农业机械化及其自动化","合格"]
[461,"钟山县钟山镇乡村建设综合服务中心","工作人员一","2145240806426",1,"莫丽英","女","大学","学士","武汉理工大学","地理信息科学","合格"]
[462,"钟山县钟山镇乡村建设综合服务中心","工作人员二","2145240806625",1,"吴淑惠","女","大学","学士","广西大学","英语","合格"]
[463,"钟山县公安镇便民服务中心","工作人员一","1145240902925",1,"杨小红","女","大学","学士","遵义医科大学","英语","合格"]
[464,"钟山县公安镇便民服务中心","工作人员二","1145240903029",1,"隆玉秋","女","大学","学士","南宁师范大学","公共事业管理","合格"]
[465,"钟山县公安镇乡村建设综合服务中心","工作人员","2145240806801",1,"朱小英","女","大学","学士","广西财经学院","人文地理与城乡规划","合格"]
[466,"钟山县两安瑶族乡乡村建设综合服务中心","技术人员","3145240605704",1,"陆丹丹","女","大学","学士","扬州大学","建筑学","合格"]
[467,"钟山县两安瑶族乡综合行政执法队","技术人员","2145240806815",1,"廖燕燕","女","大学","学士","华南师范大学","法学","合格"]
[468,"钟山县两安瑶族乡农业服务中心","技术人员","3145240605711",1,"钟宁贵","男","大学","学士","广西大学","畜牧兽医","合格"]
[469,"钟山县两安瑶族乡农业服务中心","技术人员","1145240903204",1,"徐步坤","男","大学","学士","广西职业师范学院","市场营销教育","合格"]
[470,"钟山县两安瑶族乡农业服务中心","技术人员","2145240806817",1,"黄晨","女","大学","学士","桂林理工大学","广告学","合格"]
[471,"钟山县燕塘镇便民服务中心","工作人员","1145240903209",1,"郭鑫","女","大学","学士","广西外国语学院","新闻学","合格"]
[472,"钟山县燕塘镇便民服务中心","专技人员","2145240806827",1,"林艳兰","女","大学","学士","莆田学院","财务管理","合格"]
[473,"钟山县燕塘镇农业服务中心","专技人员","3145240605713",2,"董慧芸","女","大学","学士","新疆农业大学","农学","合格"]
[474,"钟山县燕塘镇农业服务中心","专技人员","3145240605712",2,"陈新袁","男","大学","学士","天津农学院","海洋渔业科学与技术","合格"]
[475,"钟山县燕塘镇综合行政执法队","工作人员一","1145240903220",1,"陶小云","女","大学","学士","玉林师范学院","法学","合格"]
[476,"钟山县燕塘镇综合行政执法队","工作人员二","1145240903305",1,"贺晨乔","男","大学","学士","广西大学行健文理学院","汉语言文学","合格"]

{"sheet":"Sheet1","index":1,"n_rows":478,"n_cols":15,"rows_kept":478}
["2025年度贺州市事业单位公开招聘工作人员拟聘用人员名单（第一批）"]
["主管单位","报考部门","报考职位",null,"岗位代码","准考证号码","招聘人数","姓名","性别","学历","学位","毕业院校全称","专业","体检考察情况","备注"]
[{"$f":"VLOOKUP(E3,单位匹配!A:D,2,0)","v":"贺州市交通运输局"},"贺州市交通运输综合行政执法支队","工作人员一",{"$f":"B3&C3","v":"贺州市交通运输综合行政执法支队工作人员一"},{"$f":"VLOOKUP(D3,匹配代码!A:B,2,0)","v":"1452400001"},"1145240300117",1,"罗中希","男","本科","工学学士","沈阳建筑大学","土木工程","合格"]
[{"$f":"VLOOKUP(E4,单位匹配!A:D,2,0)","v":"贺州市交通运输局"},"贺州市交通运输综合行政执法支队","工作人员二",{"$f":"B4&C4","v":"贺州市交通运输综合行政执法支队工作人员二"},{"$f":"VLOOKUP(D4,匹配代码!A:B,2,0)","v":"1452400002"},"1145240300223",1,"刘丹萍","女","本科","工学学士","广西财经学院","工程造价","合格"]
[{"$f":"VLOOKUP(E5,单位匹配!A:D,2,0)","v":"贺州市交通运输局"},"贺州市交通运输综合行政执法支队","工作人员三","贺州市交通运输综合行政执法支队工作人员三",{"$f":"VLOOKUP(D5,匹配代码!A:B,2,0)","v":"1452400003"},"1145240300304",1,"黎业华","男","本科","法学学士","广西大学","法学","合格"]
[{"$f":"VLOOKUP(E6,单位匹配!A:D,2,0)","v":"贺州市交通运输局"},"贺州市交通运输综合行政执法支队","工作人员四","贺州市交通运输综合行政执法支队工作人员四",{"$f":"VLOOKUP(D6,匹配代码!A:B,2,0)","v":"1452400004"},"1145240300322",1,"廖婷婷","女","本科","法学学士","聊城大学","法学","合格"]
[{"$f":"VLOOKUP(E7,单位匹配!A:D,2,0)","v":"贺州市交通运输局"},"贺州市交通运输综合行政执法支队","工作人员五","贺州市交通运输综合行政执法支队工作人员五",{"$f":"VLOOKUP(D7,匹配代码!A:B,2,0)","v":"1452400005"},"1145240300328",1,"薛剑锋","男","研究生","工程管理硕士","山西大学","工业工程与管理","合格"]
[{"$f":"VLOOKUP(E8,单位匹配!A:D,2,0)","v":"贺州市交通运输局"},"贺州市交通运输综合行政执法支队","工作人员六","贺州市交通运输综合行政执法支队工作人员六",{"$f":"VLOOKUP(D8,匹配代码!A:B,2,0)","v":"1452400006"},"1145240300330",1,"赖云端","女","研究生","管理学硕士","华东政法大学","教育经济与管理","合格"]
[{"$f":"VLOOKUP(E9,单位匹配!A:D,2,0)","v":"贺州市交通运输局"},"贺州市交通运输综合行政执法支队","工作人员八","贺州市交通运输综合行政执法支队工作人员八",{"$f":"VLOOKUP(D9,匹配代码!A:B,2,0)","v":"1452400008"},"1145240300403",1,"彭嫣","女","研究生","交通运输硕士","同济大学","交通运输","合格"]
[{"$f":"VLOOKUP(E10,单位匹配!A:D,2,0)","v":"贺州市交通运输局"},"贺州市交通运输综合行政执法支队","工作人员九","贺州市交通运输综合行政执法支队工作人员九",{"$f":"VLOOKUP(D10,匹配代码!A:B,2,0)","v":"1452400009"},"1145240300405",1,"李裕光","男","研究生","土木水利硕士","中国海洋大学","土木水利（海洋工程方向）","合格"]
[{"$f":"VLOOKUP(E11,单位匹配!A:D,2,0)","v":"贺州高新技术产业开发区管理委员会"},"贺州高新技术产业开发区综合服务中心","工作人员一","贺州高新技术产业开发区综合服务中心工作人员一",{"$f":"VLOOKUP(D11,匹配代码!A:B,2,0)","v":"1452400032"},"1145240301315",2,"罗亚等","女","本科","经济学学士","广西师范学院","国际经济与贸易","合格"]
[{"$f":"VLOOKUP(E12,单位匹配!A:D,2,0)","v":"贺州高新技术产业开发区管理委员会"},"贺州高新技术产业开发区综合服务中心","工作人员一","贺州高新技术产业开发区综合服务中心工作人员一",{"$f":"VLOOKUP(D12,匹配代码!A:B,2,0)","v":"1452400032"},"1145240301326",2,"刘颖","女","本科","经济学学士","湖南文理学院芙蓉学院","国际经济与贸易","合格"]
[{"$f":"VLOOKUP(E13,单位匹配!A:D,2,0)","v":"贺州高新技术产业开发区管理委员会"},"贺州高新技术产业开发区综合服务中心","工作人员二","贺州高新技术产业开发区综合服务中心工作人员二",{"$f":"VLOOKUP(D13,匹配代码!A:B,2,0)","v":"1452400033"},"2145240400212",1,"罗光华","男","本科","管理学学士","桂林理工大学","工程造价管理","合格"]
[{"$f":"VLOOKUP(E14,单位匹配!A:D,2,0)","v":"贺州市林业局"},"贺州市国营林场管理站","工作人员二","贺州市国营林场管理站工作人员二",{"$f":"VLOOKUP(D14,匹配代码!A:B,2,0)","v":"1452400014"},"3145240600102",1,"刘孔梅","女","大学","工学学士","广西大学","木材科学与工程","合格"]
[{"$f":"VLOOKUP(E15,单位匹配!A:D,2,0)","v":"贺州市林业局"},"贺州市林业科学研究所","工作人员一","贺州市林业科学研究所工作人员一",{"$f":"VLOOKUP(D15,匹配代码!A:B,2,0)","v":"1452400016"},"3145240600115",1,"黄成功","男","大学","农学学士","中南林业科技大学","林学","合格"]
[{"$f":"VLOOKUP(E16,单位匹配!A:D,2,0)","v":"贺州市林业局"},"贺州市林业科学研究所","工作人员二","贺州市林业科学研究所工作人员二",{"$f":"VLOOKUP(D16,匹配代码!A:B,2,0)","v":"1452400017"},"3145240600128",1,"邝  姗","女","大学","农学学士","上海应用技术大学","园林","合格"]
[{"$f":"VLOOKUP(E17,单位匹配!A:D,2,0)","v":"贺州市林业局"},"贺州市姑婆山林场","工作人员","贺州市姑婆山林场工作人员",{"$f":"VLOOKUP(D17,匹配代码!A:B,2,0)","v":"1452400015"},"1145240300611",1,"邱雅茜","女","大学","文学学士","广西财经学院","秘书学","合格"]
[{"$f":"VLOOKUP(E18,单位匹配!A:D,2,0)","v":"贺州市民政局"},"贺州市福利彩票发行中心","财务管理","贺州市福利彩票发行中心财务管理",{"$f":"VLOOKUP(D18,匹配代码!A:B,2,0)","v":"1452400019"},"1145240300624",1,"邱丽妃","女","大学","管理学学士","桂林航天工业学院","财务管理","合格"]
[{"$f":"VLOOKUP(E19,单位匹配!A:D,2,0)","v":"贺州市人民政府"},"贺州市黄姚古镇旅游文化产业发展中心","工作人员","贺州市黄姚古镇旅游文化产业发展中心工作人员",{"$f":"VLOOKUP(D19,匹配代码!A:B,2,0)","v":"1452400037"},"2145240400422",1,"莫珊珊","女","大学本科","管理学学士","广西大学行健文理学院","审计学","合格"]
[{"$f":"VLOOKUP(E20,单位匹配!A:D,2,0)","v":"贺州市卫生健康委员会"},"贺州市卫生健康综合服务中心","专业技术人员","贺州市卫生健康综合服务中心专业技术人员",{"$f":"VLOOKUP(D20,匹配代码!A:B,2,0)","v":"1452400051"},"5245240502116",1,"陆茵茵","女","本科","医学学士","广西医科大学","临床医学专业","合格"]
[{"$f":"VLOOKUP(E21,单位匹配!A:D,2,0)","v":"贺州市卫生健康委员会"},"广西壮族自治区桂东人民医院","内分泌科医师","广西壮族自治区桂东人民医院内分泌科医师",{"$f":"VLOOKUP(D21,匹配代码!A:B,2,0)","v":"1452400057"},"5245240502120",1,"谭识洁","女","研究生","临床医学硕士","济宁医学院","内科学","合格"]
[{"$f":"VLOOKUP(E22,单位匹配!A:D,2,0)","v":"贺州市卫生健康委员会"},"广西壮族自治区桂东人民医院","康复医学科医师一","广西壮族自治区桂东人民医院康复医学科医师一",{"$f":"VLOOKUP(D22,匹配代码!A:B,2,0)","v":"1452400064"},"5145240502401",1,"梁永健","男","研究生","中医硕士","广西中医药大学","中医骨伤科学","合格"]
[{"$f":"VLOOKUP(E23,单位匹配!A:D,2,0)","v":"贺州市卫生健康委员会"},"贺州市妇幼保健院","麻醉科医师","贺州市妇幼保健院麻醉科医师",{"$f":"VLOOKUP(D23,匹配代码!A:B,2,0)","v":"1452400070"},"5245240502122",1,"周慧娟","女","本科","医学学士","广西医科大学","临床医学专业","合格"]
[{"$f":"VLOOKUP(E24,单位匹配!A:D,2,0)","v":"贺州市卫生健康委员会"},"贺州市疾病预防控制中心","工作人员一","贺州市疾病预防控制中心工作人员一",{"$f":"VLOOKUP(D24,匹配代码!A:B,2,0)","v":"1452400072"},"1145240301611",1,"钟钰皎","女","本科","管理学学士","广西中医药大学","公共事业管理","合格"]
[{"$f":"VLOOKUP(E25,单位匹配!A:D,2,0)","v":"贺州市卫生健康委员会"},"贺州市疾病预防控制中心","工作人员二","贺州市疾病预防控制中心工作人员二",{"$f":"VLOOKUP(D25,匹配代码!A:B,2,0)","v":"1452400073"},"5545240500814",1,"覃常聚","男","本科","理学学士","桂林医学院","医学检验技术","合格"]
[{"$f":"VLOOKUP(E26,单位匹配!A:D,2,0)","v":"贺州市卫生健康委员会"},"贺州市皮肤病防治院（贺州市第五人民医院）","公共卫生执业医师","贺州市皮肤病防治院（贺州市第五人民医院）公共卫生执业医师",{"$f":"VLOOKUP(D26,匹配代码!A:B,2,0)","v":"1452400071"},"5645240500101",1,"岑祚洁","女","研究生","医学硕士","广西医科大学","流行病与卫生统计学","合格"]
[{"$f":"VLOOKUP(E27,单位匹配!A:D,2,0)","v":"贺州市文化广电和旅游局"},"贺州市图书馆","工作人员","贺州市图书馆工作人员",{"$f":"VLOOKUP(D27,匹配代码!A:B,2,0)","v":"1452400020"},"2145240400111",1,"邓媛元","女","研究生","艺术硕士","昆明理工大学","艺术设计","合格"]
[{"$f":"VLOOKUP(E28,单位匹配!A:D,2,0)","v":"广西东融先行示范区（贺州）管理委员会"},"广西东融先行示范区（贺州）综合服务中心","工作人员","广西东融先行示范区（贺州）综合服务中心工作人员",{"$f":"VLOOKUP(D28,匹配代码!A:B,2,0)","v":"1452400034"},"1145240301604",1,"范桂冰","女","大学","法学学士","齐鲁工业大学","法学","合格"]
[{"$f":"VLOOKUP(E29,单位匹配!A:D,2,0)","v":"贺州市农业农村局"},"贺州市农技科教站","工作人员","贺州市农技科教站工作人员",{"$f":"VLOOKUP(D29,匹配代码!A:B,2,0)","v":"1452400027"},"1145240301004",1,"江丽梦","女","大学","农学学士","贺州学院","茶学","合格"]
[{"$f":"VLOOKUP(E30,单位匹配!A:D,2,0)","v":"贺州市农业农村局"},"贺州市土壤肥料生态站","工作人员","贺州市土壤肥料生态站工作人员",{"$f":"VLOOKUP(D30,匹配代码!A:B,2,0)","v":"1452400028"},"1145240301014",1,"罗婷婷","女","大学","理学学士","闽江学院地理与     海洋学院","人文地理与城乡规划","合格"]
[{"$f":"VLOOKUP(E31,单位匹配!A:D,2,0)","v":"贺州市农业农村局"},"贺州市农业科学院","工作人员","贺州市农业科学院工作人员",{"$f":"VLOOKUP(D31,匹配代码!A:B,2,0)","v":"1452400029"},"3145240600406",1,"杨姗姗","女","大学","农学学士","华南农业大学","茶学","合格"]
[{"$f":"VLOOKUP(E32,单位匹配!A:D,2,0)","v":"贺州市应急管理局"},"贺州市地震监测服务中心","工作人员一","贺州市地震监测服务中心工作人员一",{"$f":"VLOOKUP(D32,匹配代码!A:B,2,0)","v":"1452400021"},"1145240300805",1,"黄旺团","男","大学","工学学士","浙江农林大学","风景园林","合格"]
[{"$f":"VLOOKUP(E33,单位匹配!A:D,2,0)","v":"贺州市应急管理局"},"贺州市地震监测服务中心","工作人员二","贺州市地震监测服务中心工作人员二",{"$f":"VLOOKUP(D33,匹配代码!A:B,2,0)","v":"1452400022"},"1145240300818",1,"岑萃","女","大学","理学学士","中国矿业大学","地球物理学","合格"]
[{"$f":"VLOOKUP(E34,单位匹配!A:D,2,0)","v":"贺州市融媒体中心"},"贺州市融媒体中心","记者","贺州市融媒体中心记者",{"$f":"VLOOKUP(D34,匹配代码!A:B,2,0)","v":"1452400035"},"2145240400216",1,"李艳","女","本科","理学学士","郑州师范学院","物理学","合格"]
[{"$f":"VLOOKUP(E35,单位匹配!A:D,2,0)","v":"贺州市融媒体中心"},"贺州市融媒体中心","视觉设计师","贺州市融媒体中心视觉设计师",{"$f":"VLOOKUP(D35,匹配代码!A:B,2,0)","v":"1452400036"},"2145240400317",1,"赵永辉","男","本科","艺术学学士","浙江传媒学院","动画","合格"]
[{"$f":"VLOOKUP(E36,单位匹配!A:D,2,0)","v":"贺州市行政审批局"},"贺州市公共资源交易中心","工作人员","贺州市公共资源交易中心工作人员",{"$f":"VLOOKUP(D36,匹配代码!A:B,2,0)","v":"1452400030"},"1145240301020",1,"钟婕","女","大学","经济学学士","云南大学","保险学","合格"]
[{"$f":"VLOOKUP(E37,单位匹配!A:D,2,0)","v":"贺州市财政局"},"贺州市财政局社会保障资金管理中心","社会保障资金管理核算职位一","贺州市财政局社会保障资金管理中心社会保障资金管理核算职位一",{"$f":"VLOOKUP(D37,匹配代码!A:B,2,0)","v":"1452400011"},"1145240300418",1,"莫国伟","男","大学本科","管理学学士","桂林航天工业学院","财务管理","合格"]
[{"$f":"VLOOKUP(E38,单位匹配!A:D,2,0)","v":"贺州市财政局"},"贺州市财政局社会保障资金管理中心","社会保障资金管理核算职位二","贺州市财政局社会保障资金管理中心社会保障资金管理核算职位二",{"$f":"VLOOKUP(D38,匹配代码!A:B,2,0)","v":"1452400012"},"1145240300421",1,"罗媛珊","女","大学本科","经济学学士","东北师范大学经济与管理学院","财政学","合格"]
[{"$f":"VLOOKUP(E39,单位匹配!A:D,2,0)","v":"贺州市水利局"},"贺州市水旱灾害防御中心","专业技术岗位","贺州市水旱灾害防御中心专业技术岗位",{"$f":"VLOOKUP(D39,匹配代码!A:B,2,0)","v":"1452400018"},"3145240600202",1,"黎博予","男","大学本科","工学学士","华南农业大学","水利水电工程","合格"]
[{"$f":"VLOOKUP(E40,单位匹配!A:D,2,0)","v":"贺州市科学技术协会"},"贺州市科学技术馆","专业技术岗位","贺州市科学技术馆专业技术岗位",{"$f":"VLOOKUP(D40,匹配代码!A:B,2,0)","v":"1452400031"},"2145240400206",1,"罗贞昶","男","本科","文学学士","上海理工大学","传播学","合格"]
[{"$f":"VLOOKUP(E41,单位匹配!A:D,2,0)","v":"贺州市教育局"},"贺州第一高级中学","图书管理员","贺州第一高级中学图书管理员",{"$f":"VLOOKUP(D41,匹配代码!A:B,2,0)","v":"1452400038"},"2145240400425",1,"黄苗","女","本科","管理学学士","黑龙江大学","档案学","合格"]
[{"$f":"VLOOKUP(E42,单位匹配!A:D,2,0)","v":"贺州市教育局"},"贺州第一高级中学","工作人员","贺州第一高级中学工作人员",{"$f":"VLOOKUP(D42,匹配代码!A:B,2,0)","v":"1452400039"},"3145240600424",1,"杨惠","女","本科","工学学士","玉林师范学院","计算机科学与技术","合格"]
[{"$f":"VLOOKUP(E43,单位匹配!A:D,2,0)","v":"贺州市教育局"},"贺州第二高级中学","校医","贺州第二高级中学校医",{"$f":"VLOOKUP(D43,匹配代码!A:B,2,0)","v":"1452400040"},"5245240502101",1,"黄雅萍","女","本科","医学学士","湖北民族学院科技学院","临床医学","合格"]
[{"$f":"VLOOKUP(E44,单位匹配!A:D,2,0)","v":"贺州市教育局"},"贺州第三高级中学","校医","贺州第三高级中学校医",{"$f":"VLOOKUP(D44,匹配代码!A:B,2,0)","v":"1452400041"},"452402199010010000",1,"柳敏","女","本科","医学学士","桂林医学院","临床医学","合格"]
[{"$f":"VLOOKUP(E45,单位匹配!A:D,2,0)","v":"贺州市教育局"},"贺州第三高级中学","图书管理员","贺州第三高级中学图书管理员",{"$f":"VLOOKUP(D45,匹配代码!A:B,2,0)","v":"1452400042"},"452402200008154000",1,"薛红艇","男","本科","管理学学士","湘潭大学","档案学","合格"]
[{"$f":"VLOOKUP(E46,单位匹配!A:D,2,0)","v":"贺州市教育局"},"贺州第三高级中学","工作人员","贺州第三高级中学工作人员",{"$f":"VLOOKUP(D46,匹配代码!A:B,2,0)","v":"1452400043"},"452427199312040000",1,"唐微","女","本科","文学学士","国家开放大学","汉语言文学（师范方向）","合格"]
[{"$f":"VLOOKUP(E47,单位匹配!A:D,2,0)","v":"贺州市教育局"},"贺州第三高级中学","财务人员一","贺州第三高级中学财务人员一",{"$f":"VLOOKUP(D47,匹配代码!A:B,2,0)","v":"1452400044"},"452402199710110000",1,"黄彩兵","女","本科","管理学学士","广西财经学院 ","会计学","合格"]
[{"$f":"VLOOKUP(E48,单位匹配!A:D,2,0)","v":"贺州市教育局"},"贺州第三高级中学","财务人员二","贺州第三高级中学财务人员二",{"$f":"VLOOKUP(D48,匹配代码!A:B,2,0)","v":"1452400045"},"452402199011104000",1,"黄晓","女","本科","管理学学士","广西财经学院 ","财务管理","合格"]
[{"$f":"VLOOKUP(E49,单位匹配!A:D,2,0)","v":"贺州市教育局"},"贺州市幼儿园","财务人员","贺州市幼儿园财务人员",{"$f":"VLOOKUP(D49,匹配代码!A:B,2,0)","v":"1452400050"},"2145240401211",1,"周娟","女","本科","管理学学士","广西大学","会计学","合格"]
[{"$f":"VLOOKUP(E50,单位匹配!A:D,2,0)","v":"贺州市教育局"},"贺州市职业教育发展中心","工作人员一","贺州市职业教育发展中心工作人员一",{"$f":"VLOOKUP(D50,匹配代码!A:B,2,0)","v":"1452400046"},"3145240600720",1,"麦天民","男","本科","工学学士","长安大学","汽车服务工程","合格"]
[{"$f":"VLOOKUP(E51,单位匹配!A:D,2,0)","v":"贺州市教育局"},"贺州市职业教育发展中心","工作人员三","贺州市职业教育发展中心工作人员三",{"$f":"VLOOKUP(D51,匹配代码!A:B,2,0)","v":"1452400048"},"2145240401130",1,"陈剑柱","男","本科","管理学学士","广西科技大学","工商管理","合格"]
[{"$f":"VLOOKUP(E52,单位匹配!A:D,2,0)","v":"贺州市教育局"},"贺州市职业教育发展中心","工作人员四","贺州市职业教育发展中心工作人员四",{"$f":"VLOOKUP(D52,匹配代码!A:B,2,0)","v":"1452400049"},"5545240500601",1,"袁艳华","女","本科","理学学士","南京医科大学","康复治疗学","合格"]
[{"$f":"VLOOKUP(E53,单位匹配!A:D,2,0)","v":"贺州市八步区市场监督管理局"},"八步区食品药品安全信息与监控中心","工作人员","八步区食品药品安全信息与监控中心工作人员",{"$f":"VLOOKUP(D53,匹配代码!A:B,2,0)","v":"1452400106"},"1145240302810",1,"陶翠然","女","大学","工学学士","广东药科大学","食品质量与安全","合格"]
[{"$f":"VLOOKUP(E54,单位匹配!A:D,2,0)","v":"贺州市八步区住房和城乡建设局"},"贺州市八步区新型墙体材料推广中心","专业技术人员","贺州市八步区新型墙体材料推广中心专业技术人员",{"$f":"VLOOKUP(D54,匹配代码!A:B,2,0)","v":"1452400107"},"2145240403513",1,"卓俊名","男","大学\n本科","管理学学士","上海电机学院","工业工程","合格"]
[{"$f":"VLOOKUP(E55,单位匹配!A:D,2,0)","v":"贺州市八步区农业农村局"},"贺州市八步区畜牧站","工作人员","贺州市八步区畜牧站工作人员",{"$f":"VLOOKUP(D55,匹配代码!A:B,2,0)","v":"1452400111"},"3145240602322",1,"黄梦晓","女","本科","文学学士","广西大学","汉语言文学","合格"]
[{"$f":"VLOOKUP(E56,单位匹配!A:D,2,0)","v":"贺州市八步区农业农村局"},"八步区农产品质量安全检测站","工作人员","八步区农产品质量安全检测站工作人员",{"$f":"VLOOKUP(D56,匹配代码!A:B,2,0)","v":"1452400109"},"3145240602214",1,"罗梓芳","女","本科","农学学士","云南农业大学","农学","合格"]
[{"$f":"VLOOKUP(E57,单位匹配!A:D,2,0)","v":"贺州市八步区农业农村局"},"贺州市八步区农业技术推广服务站","工作人员","贺州市八步区农业技术推广服务站工作人员",{"$f":"VLOOKUP(D57,匹配代码!A:B,2,0)","v":"1452400110"},"3145240602221",1,"温则有","男","本科","农学学士","百色学院农业与食品工程学院","设施农业科学与工程","合格"]
[{"$f":"VLOOKUP(E58,单位匹配!A:D,2,0)","v":"贺州市八步区八步街道办事处"},"贺州市八步区八步街道社会事务治理中心","工作人员","贺州市八步区八步街道社会事务治理中心工作人员",{"$f":"VLOOKUP(D58,匹配代码!A:B,2,0)","v":"1452400154"},"2145240404615",1,"毛俊人","女","大学\n本科","管理学学士","浙江师范大学","行政管理","合格"]
[{"$f":"VLOOKUP(E59,单位匹配!A:D,2,0)","v":"中共贺州市八步区委员会社会工作部"},"贺州市八步区社会工作服务中心","工作人员","贺州市八步区社会工作服务中心工作人员",{"$f":"VLOOKUP(D59,匹配代码!A:B,2,0)","v":"1452400103"},"1145240302616",1,"于传鹏","男","本科","工学学士","合肥工业大学","通信工程","合格"]
[{"$f":"VLOOKUP(E60,单位匹配!A:D,2,0)","v":"贺州市八步区步头镇人民政府"},"贺州市八步区步头镇综合行政执法队","工作人员","贺州市八步区步头镇综合行政执法队工作人员",{"$f":"VLOOKUP(D60,匹配代码!A:B,2,0)","v":"1452400129"},"1145240303730",1,"唐建琴","女","大专",null,"南宁地区教育学院","行政管理","合格"]
[{"$f":"VLOOKUP(E61,单位匹配!A:D,2,0)","v":"贺州市八步区步头镇人民政府"},"贺州市八步区步头镇乡村建设综合服务中心","工作人员一","贺州市八步区步头镇乡村建设综合服务中心工作人员一",{"$f":"VLOOKUP(D61,匹配代码!A:B,2,0)","v":"1452400125"},"2145240403813",1,"罗毅军","男","大专",null,"广西外国语学院","工商企业\n管理","合格"]
[{"$f":"VLOOKUP(E62,单位匹配!A:D,2,0)","v":"贺州市八步区步头镇人民政府"},"贺州市八步区步头镇乡村建设综合服务中心","工作人员二","贺州市八步区步头镇乡村建设综合服务中心工作人员二",{"$f":"VLOOKUP(D62,匹配代码!A:B,2,0)","v":"1452400126"},"2145240403827",1,"赵水留","女","大学","管理学学士","广西科技大学","会计学","合格"]
[{"$f":"VLOOKUP(E63,单位匹配!A:D,2,0)","v":"贺州市八步区步头镇人民政府"},"贺州市八步区步头镇乡村建设综合服务中心","工作人员三","贺州市八步区步头镇乡村建设综合服务中心工作人员三",{"$f":"VLOOKUP(D63,匹配代码!A:B,2,0)","v":"1452400127"},"2145240403903",1,"于丛春","男","大学","工学\n学士","湖北文理学院","道路桥梁与渡河工程","合格"]
[{"$f":"VLOOKUP(E64,单位匹配!A:D,2,0)","v":"贺州市八步区人民政府"},"贺州市八步区现代商贸产业园综合服务中心","工作人员一","贺州市八步区现代商贸产业园综合服务中心工作人员一",{"$f":"VLOOKUP(D64,匹配代码!A:B,2,0)","v":"1452400100"},"1145240301830",1,"吴配蓉","女","大学\n本科","文学\n学士","广西师范大学","汉语言文学","合格"]
[{"$f":"VLOOKUP(E65,单位匹配!A:D,2,0)","v":"贺州市八步区人民政府"},"贺州市八步区现代商贸产业园综合服务中心","工作人员二","贺州市八步区现代商贸产业园综合服务中心工作人员二",{"$f":"VLOOKUP(D65,匹配代码!A:B,2,0)","v":"1452400101"},"2145240402818",1,"陈彤杏","女","大学\n本科","管理学学士","广西科技大学","会计学","合格"]
[{"$f":"VLOOKUP(E66,单位匹配!A:D,2,0)","v":"贺州市八步区人民政府"},"贺州市八步区现代商贸产业园综合服务中心","工作人员三","贺州市八步区现代商贸产业园综合服务中心工作人员三",{"$f":"VLOOKUP(D66,匹配代码!A:B,2,0)","v":"1452400102"},"3145240602129",1,"贝媛媛","女","大学\n本科","工学\n学位","大连民族大学","城乡规划","合格"]
[{"$f":"VLOOKUP(E67,单位匹配!A:D,2,0)","v":"贺州市八步区应急管理局"},"贺州市八步区应急管理综合行政执法大队","工作人员一","贺州市八步区应急管理综合行政执法大队工作人员一",{"$f":"VLOOKUP(D67,匹配代码!A:B,2,0)","v":"1452400104"},"2145240402821",1,"邹奕","女","本科生","管理学学士","广西警察学院","应急管理","合格"]
[{"$f":"VLOOKUP(E68,单位匹配!A:D,2,0)","v":"贺州市八步区应急管理局"},"贺州市八步区应急管理综合行政执法大队","工作人员二",{"$f":"B68&C68","v":"贺州市八步区应急管理综合行政执法大队工作人员二"},{"$f":"VLOOKUP(D68,匹配代码!A:B,2,0)","v":"1452400105"},"2145240403122",1,"林萍","女","本科","工学学士","桂林电子科技大学","高分子材料与工程","合格"]
[{"$f":"VLOOKUP(E69,单位匹配!A:D,2,0)","v":"贺州市八步区林业局"},"八步区乡镇林业工作总站","技术人员一","八步区乡镇林业工作总站技术人员一",{"$f":"VLOOKUP(D69,匹配代码!A:B,2,0)","v":"1452400075"},"3145240600821",1,"杨厚振","男","大学本科","管理学学士","湖南农业大学","工商管理","合格"]
[{"$f":"VLOOKUP(E70,单位匹配!A:D,2,0)","v":"贺州市八步区林业局"},"八步区乡镇林业工作总站","技术人员二","八步区乡镇林业工作总站技术人员二",{"$f":"VLOOKUP(D70,匹配代码!A:B,2,0)","v":"1452400076"},"3145240601014",1,"叶秋娥","女","大学本科","管理学学士","上海体育学院","体育经济与管理","合格"]
[{"$f":"VLOOKUP(E71,单位匹配!A:D,2,0)","v":"贺州市八步区林业局"},"八步区乡镇林业工作总站","技术人员三","八步区乡镇林业工作总站技术人员三",{"$f":"VLOOKUP(D71,匹配代码!A:B,2,0)","v":"1452400077"},"3145240601115",1,"李岳霖","男","大学专科","无","黑龙江农业职业技术学院","园艺技术","合格"]
[{"$f":"VLOOKUP(E72,单位匹配!A:D,2,0)","v":"贺州市八步区林业局"},"八步区乡镇林业工作总站","技术人员四","八步区乡镇林业工作总站技术人员四",{"$f":"VLOOKUP(D72,匹配代码!A:B,2,0)","v":"1452400078"},"3145240601119",1,"陈莉鈫","女","大学专科","无","湖南环境生物职业技术学院","园林技术（花艺环境设计方向）","合格"]
[{"$f":"VLOOKUP(E73,单位匹配!A:D,2,0)","v":"贺州市八步区林业局"},"八步区林业产权交易管理服务中心","技术人员一","八步区林业产权交易管理服务中心技术人员一",{"$f":"VLOOKUP(D73,匹配代码!A:B,2,0)","v":"1452400079"},"3145240601207",1,"罗靖基","男","大学本科","经济学学士","广西师范大学漓江学院","金融学","合格"]
[{"$f":"VLOOKUP(E74,单位匹配!A:D,2,0)","v":"贺州市八步区林业局"},"八步区林业产权交易管理服务中心","技术人员二","八步区林业产权交易管理服务中心技术人员二",{"$f":"VLOOKUP(D74,匹配代码!A:B,2,0)","v":"1452400080"},"3145240601407",1,"陈可欣","女","大学本科","经济学学士","广西大学行健文理学院","金融学","合格"]
[{"$f":"VLOOKUP(E75,单位匹配!A:D,2,0)","v":"贺州市八步区林业局"},"八步区林业产权交易管理服务中心","技术人员三","八步区林业产权交易管理服务中心技术人员三",{"$f":"VLOOKUP(D75,匹配代码!A:B,2,0)","v":"1452400081"},"3145240601419",1,"刘欢瑞","男","大学本科","工学学士","中南林业科技大学","木材科学与工程","合格"]
[{"$f":"VLOOKUP(E76,单位匹配!A:D,2,0)","v":"贺州市八步区林业局"},"八步区林业产权交易管理服务中心","技术人员四","八步区林业产权交易管理服务中心技术人员四",{"$f":"VLOOKUP(D76,匹配代码!A:B,2,0)","v":"1452400082"},"3145240601501",1,"王慧霓","女","大学本科","农学学士","广西大学农学院","园艺","合格","递补"]
[{"$f":"VLOOKUP(E77,单位匹配!A:D,2,0)","v":"贺州市八步区林业局"},"八步区林业产权交易管理服务中心","技术人员五","八步区林业产权交易管理服务中心技术人员五",{"$f":"VLOOKUP(D77,匹配代码!A:B,2,0)","v":"1452400083"},"3145240601511",1,"廖志佳","男","大学本科","工学学士","北京科技大学","计算机科学与技术","合格"]
[{"$f":"VLOOKUP(E78,单位匹配!A:D,2,0)","v":"贺州市八步区林业局"},"八步区林业产权交易管理服务中心","技术人员六","八步区林业产权交易管理服务中心技术人员六",{"$f":"VLOOKUP(D78,匹配代码!A:B,2,0)","v":"1452400084"},"3145240601816",1,"罗惠娴","女","大学本科","工学学士","桂林电子科技大学","物联网工程","合格"]
[{"$f":"VLOOKUP(E79,单位匹配!A:D,2,0)","v":"贺州市八步区林业局"},"八步区林业产权交易管理服务中心","管理人员七","八步区林业产权交易管理服务中心管理人员七",{"$f":"VLOOKUP(D79,匹配代码!A:B,2,0)","v":"1452400085"},"1145240301810",1,"黄光威","男","大学本科","工学学士","广西警察学院","信息安全","合格"]
[{"$f":"VLOOKUP(E80,单位匹配!A:D,2,0)","v":"贺州市八步区林业局"},"贺州市八步区林业科学研究所","技术人员","贺州市八步区林业科学研究所技术人员",{"$f":"VLOOKUP(D80,匹配代码!A:B,2,0)","v":"1452400086"},"3145240601908",1,"姚思欢","男","大学本科","农学学士","南京农业大学","草业科学","合格"]
[{"$f":"VLOOKUP(E81,单位匹配!A:D,2,0)","v":"贺州市八步区经济贸易局"},"八步区节能监察中心","工作人员","八步区节能监察中心工作人员",{"$f":"VLOOKUP(D81,匹配代码!A:B,2,0)","v":"1452400097"},"2145240402130",1,"林旭","男","研究生","工学硕士","华南农业大学","机械工程","合格"]
[{"$f":"VLOOKUP(E82,单位匹配!A:D,2,0)","v":"贺州市八步区经济贸易局"},"八步区科学技术情报研究所","工作人员","八步区科学技术情报研究所工作人员",{"$f":"VLOOKUP(D82,匹配代码!A:B,2,0)","v":"1452400096"},"2145240402106",1,"杨聿昕","男","本科","工学学士","华中农业大学","农业机械化及其自动化","合格"]
[{"$f":"VLOOKUP(E83,单位匹配!A:D,2,0)","v":"贺州市八步区民政局"},"八步区福利院","工作人员","八步区福利院工作人员",{"$f":"VLOOKUP(D83,匹配代码!A:B,2,0)","v":"1452400074"},"1145240301715",1,"贝为聪","男","本科","管理学学士","桂林旅游学院","财务管理","合格"]
[{"$f":"VLOOKUP(E84,单位匹配!A:D,2,0)","v":"贺州市八步区自然资源局"},"八步区土地开发整理中心","工作人员","八步区土地开发整理中心工作人员",{"$f":"VLOOKUP(D84,匹配代码!A:B,2,0)","v":"1452400099"},"3145240602101",1,"罗垂杰","男","大学","管理学学士","广西大学","工程造价管理","合格"]
[{"$f":"VLOOKUP(E85,单位匹配!A:D,2,0)","v":"贺州市八步区莲塘镇人民政府"},"贺州市八步区莲塘镇便民服务中心","工作人员一","贺州市八步区莲塘镇便民服务中心工作人员一",{"$f":"VLOOKUP(D85,匹配代码!A:B,2,0)","v":"1452400159"},"1145240304222",1,"古津瑜","女","大学本科","工学学士","上海工程技术大学","纺织工程","合格"]
[{"$f":"VLOOKUP(E86,单位匹配!A:D,2,0)","v":"贺州市八步区莲塘镇人民政府"},"贺州市八步区莲塘镇便民服务中心","工作人员二","贺州市八步区莲塘镇便民服务中心工作人员二",{"$f":"VLOOKUP(D86,匹配代码!A:B,2,0)","v":"1452400160"},"1145240304514",1,"欧阳欣","男","大学本科","工学学士","桂林理工大学","机械电子工程","合格"]
[{"$f":"VLOOKUP(E87,单位匹配!A:D,2,0)","v":"贺州市八步区莲塘镇人民政府"},"贺州市八步区莲塘镇乡村建设综合服务中心","工作人员","贺州市八步区莲塘镇乡村建设综合服务中心工作人员",{"$f":"VLOOKUP(D87,匹配代码!A:B,2,0)","v":"1452400162"},"3145240602606",1,"麦昌嘉","男","大学本科","工学学士","南宁师范大学","测绘工程","合格"]
[{"$f":"VLOOKUP(E88,单位匹配!A:D,2,0)","v":"贺州市八步区莲塘镇人民政府"},"贺州市八步区莲塘镇农业服务中心","工作人员","贺州市八步区莲塘镇农业服务中心工作人员",{"$f":"VLOOKUP(D88,匹配代码!A:B,2,0)","v":"1452400161"},"3145240602527",1,"黄君紫","女","大学本科","管理学学士","玉林师范学院","农林经济管理","合格"]
[{"$f":"VLOOKUP(E89,单位匹配!A:D,2,0)","v":"贺州市八步区信都镇人民政府"},"贺州市八步区信都镇乡村建设综合服务中心","工作人员一","贺州市八步区信都镇乡村建设综合服务中心工作人员一",{"$f":"VLOOKUP(D89,匹配代码!A:B,2,0)","v":"1452400122"},"2145240403622",1,"梁泽沛","男","本科","工学学士","桂林理工大学博文管理学院","材料成型及控制工程","合格"]
[{"$f":"VLOOKUP(E90,单位匹配!A:D,2,0)","v":"贺州市八步区信都镇人民政府"},"贺州市八步区信都镇乡村建设综合服务中心","工作人员二","贺州市八步区信都镇乡村建设综合服务中心工作人员二",{"$f":"VLOOKUP(D90,匹配代码!A:B,2,0)","v":"1452400123"},"2145240403713",1,"潘映蓉","女","本科","管理学学士","广西师范学院师园学院","信息管理与信息系统专业","合格"]
[{"$f":"VLOOKUP(E91,单位匹配!A:D,2,0)","v":"贺州市八步区信都镇人民政府"},"贺州市八步区信都镇乡村建设综合服务中心","工作人员三","贺州市八步区信都镇乡村建设综合服务中心工作人员三",{"$f":"VLOOKUP(D91,匹配代码!A:B,2,0)","v":"1452400124"},"2145240403725",1,"曾维康","男","本科","工学学士","江苏大学材料学院","建筑学专业","合格"]
[{"$f":"VLOOKUP(E92,单位匹配!A:D,2,0)","v":"贺州市八步区文化广电和旅游局"},"八步区文物管理所","工作人员","八步区文物管理所工作人员",{"$f":"VLOOKUP(D92,匹配代码!A:B,2,0)","v":"1452400098"},"2145240402406",1,"黄晓湘","女","本科","管理学学士","桂林理工大学","旅游管理","合格"]
[{"$f":"VLOOKUP(E93,单位匹配!A:D,2,0)","v":"贺州市八步区医疗保障管理服务中心"},"八步区八步街道新型农村合作医疗管理分中心","信息技术员","八步区八步街道新型农村合作医疗管理分中心信息技术员",{"$f":"VLOOKUP(D93,匹配代码!A:B,2,0)","v":"1452400094"},"2145240402007",1,"吴业洋","男","大学本科","工学学士","贺州学院","软件工程","合格"]
[{"$f":"VLOOKUP(E94,单位匹配!A:D,2,0)","v":"贺州市八步区医疗保障管理服务中心"},"八步区仁义镇新型农村合作医疗管理分中心","医疗费用审核员","八步区仁义镇新型农村合作医疗管理分中心医疗费用审核员",{"$f":"VLOOKUP(D94,匹配代码!A:B,2,0)","v":"1452400095"},"3145240602001",1,"梁婷","女","大学本科","理学学士","湖南中医药大学","护理学","合格"]
[{"$f":"VLOOKUP(E95,单位匹配!A:D,2,0)","v":"贺州市八步区仁义镇人民政府"},"贺州市八步区仁义镇乡村建设综合服务中心","工作人员","贺州市八步区仁义镇乡村建设综合服务中心工作人员",{"$f":"VLOOKUP(D95,匹配代码!A:B,2,0)","v":"1452400144"},"2145240404210",1,"莫量军","男","本科","工学学士","钦州学院","机械工程","合格"]
[{"$f":"VLOOKUP(E96,单位匹配!A:D,2,0)","v":"贺州市八步区仁义镇人民政府"},"贺州市八步区仁义镇便民服务中心","工作人员","贺州市八步区仁义镇便民服务中心工作人员",{"$f":"VLOOKUP(D96,匹配代码!A:B,2,0)","v":"1452400147"},"2145240404302",1,"邓积锴","男","本科","理学学士","防灾科技学院","地质学","合格"]
[{"$f":"VLOOKUP(E97,单位匹配!A:D,2,0)","v":"贺州市八步区仁义镇人民政府"},"贺州市八步区仁义镇农业服务中心","工作人员二","贺州市八步区仁义镇农业服务中心工作人员二",{"$f":"VLOOKUP(D97,匹配代码!A:B,2,0)","v":"1452400146"},"2145240404227",1,"梁开荣","男","本科","农学学士","惠州学院","园林","合格"]
[{"$f":"VLOOKUP(E98,单位匹配!A:D,2,0)","v":"贺州市八步区仁义镇人民政府"},"贺州市八步区仁义镇综合行政执法队","工作人员","贺州市八步区仁义镇综合行政执法队工作人员",{"$f":"VLOOKUP(D98,匹配代码!A:B,2,0)","v":"1452400148"},"2145240404305",1,"罗斌","男","本科","法学学士","广西警察学院","法学","合格"]
[{"$f":"VLOOKUP(E99,单位匹配!A:D,2,0)","v":"贺州市八步区开山镇人民政府"},"贺州市八步区开山镇农业服务中心","工作人员二","贺州市八步区开山镇农业服务中心工作人员二",{"$f":"VLOOKUP(D99,匹配代码!A:B,2,0)","v":"1452400116"},"2145240403519",1,"黄少娟","女","本科","管理学\n学士学位","桂林理工大学博文管理学院","财务管理","合格"]
[{"$f":"VLOOKUP(E100,单位匹配!A:D,2,0)","v":"贺州市八步区开山镇人民政府"},"贺州市八步区开山镇便民服务中心","工作人员","贺州市八步区开山镇便民服务中心工作人员",{"$f":"VLOOKUP(D100,匹配代码!A:B,2,0)","v":"1452400113"},"2145240403514",1,"莫威","男","本科","工学\n学士学位","桂林理工大学博文管理学院","工程管理","合格"]
[{"$f":"VLOOKUP(E101,单位匹配!A:D,2,0)","v":"贺州市八步区开山镇人民政府"},"贺州市八步区开山镇乡村建设综合服务中心","工作人员","贺州市八步区开山镇乡村建设综合服务中心工作人员",{"$f":"VLOOKUP(D101,匹配代码!A:B,2,0)","v":"1452400117"},"2145240403606",1,"邱贤涛","男","本科","工学\n学士学位","辽宁工程技术大学土\n木工程学院","土木工程","合格"]
[{"$f":"VLOOKUP(E102,单位匹配!A:D,2,0)","v":"贺州市八步区开山镇人民政府"},"贺州市八步区开山镇综合行政执法队","工作人员","贺州市八步区开山镇综合行政执法队工作人员",{"$f":"VLOOKUP(D102,匹配代码!A:B,2,0)","v":"1452400114"},"1145240303623",1,"唐馨","女","本科","文学\n学士学位","衡阳师范学院南岳学院","商务英语","合格"]
[{"$f":"VLOOKUP(E103,单位匹配!A:D,2,0)","v":"贺州市八步区水利局"},"八步区农村水利水电管理中心","工作人员一","八步区农村水利水电管理中心工作人员一",{"$f":"VLOOKUP(D103,匹配代码!A:B,2,0)","v":"1452400087"},"2145240401406",1,"黄伟","男","大学","工学\n学士","大连理工大学","土木工程","合格"]
[{"$f":"VLOOKUP(E104,单位匹配!A:D,2,0)","v":"贺州市八步区水利局"},"八步区农村水利水电管理中心","工作人员二","八步区农村水利水电管理中心工作人员二",{"$f":"VLOOKUP(D104,匹配代码!A:B,2,0)","v":"1452400088"},"2145240401422",1,"李春花","女","大学","大学\n工学","广东白云学院","土木工程","合格"]
[{"$f":"VLOOKUP(E105,单位匹配!A:D,2,0)","v":"贺州市八步区水利局"},"八步区农村水利水电管理中心","工作人员三","八步区农村水利水电管理中心工作人员三",{"$f":"VLOOKUP(D105,匹配代码!A:B,2,0)","v":"1452400089"},"2145240401505",1,"黎婷","女","大学","工学\n学士","北部湾大学","食品质量与安全","合格"]
[{"$f":"VLOOKUP(E106,单位匹配!A:D,2,0)","v":"贺州市八步区水利局"},"八步区农村水利水电管理中心","工作人员四","八步区农村水利水电管理中心工作人员四",{"$f":"VLOOKUP(D106,匹配代码!A:B,2,0)","v":"1452400090"},"2145240401513",3,"蔡祯玉","女","大学","工学\n学士","桂林理工大学","水文与水资源工程","合格"]
[{"$f":"VLOOKUP(E107,单位匹配!A:D,2,0)","v":"贺州市八步区水利局"},"八步区农村水利水电管理中心","工作人员四","八步区农村水利水电管理中心工作人员四",{"$f":"VLOOKUP(D107,匹配代码!A:B,2,0)","v":"1452400090"},"2145240401511",3,"孙铭慧","女","大学","工学\n学士","郑州大学","水文与水资源工程","合格"]
[{"$f":"VLOOKUP(E108,单位匹配!A:D,2,0)","v":"贺州市八步区水利局"},"八步区农村水利水电管理中心","工作人员四","八步区农村水利水电管理中心工作人员四",{"$f":"VLOOKUP(D108,匹配代码!A:B,2,0)","v":"1452400090"},"2145240401518",3,"文乙荭","女","大学","工学\n学士","河海大学","水务工程","合格"]
[{"$f":"VLOOKUP(E109,单位匹配!A:D,2,0)","v":"贺州市八步区水利局"},"八步区农村水利水电管理中心","工作人员五","八步区农村水利水电管理中心工作人员五",{"$f":"VLOOKUP(D109,匹配代码!A:B,2,0)","v":"1452400091"},"2145240401601",1,"刘桂成","男","大学","大学管理学","广西财经学院","会计学","合格"]
[{"$f":"VLOOKUP(E110,单位匹配!A:D,2,0)","v":"贺州市八步区水利局"},"八步区农村水利水电管理中心","工作人员六","八步区农村水利水电管理中心工作人员六",{"$f":"VLOOKUP(D110,匹配代码!A:B,2,0)","v":"1452400092"},"2145240401628",1,"杨美萍","女","大学","管理学\n学士","桂林理工大学","会计学","合格"]
[{"$f":"VLOOKUP(E111,单位匹配!A:D,2,0)","v":"贺州市八步区水利局"},"八步区水旱灾害防御中心","工作人员","八步区水旱灾害防御中心工作人员",{"$f":"VLOOKUP(D111,匹配代码!A:B,2,0)","v":"1452400093"},"2145240401728",1,"彭道质","男","大学","文学\n学士","广西民族大学","传播学","合格"]
[{"$f":"VLOOKUP(E112,单位匹配!A:D,2,0)","v":"贺州市八步区南乡镇人民政府"},"贺州市八步区南乡镇乡村建设综合服务中心","工作人员一","贺州市八步区南乡镇乡村建设综合服务中心工作人员一",{"$f":"VLOOKUP(D112,匹配代码!A:B,2,0)","v":"1452400149"},"2145240404311",1,"代维燚","男","大学",null,"桂林理工大学","测绘工程","合格"]
[{"$f":"VLOOKUP(E113,单位匹配!A:D,2,0)","v":"贺州市八步区南乡镇人民政府"},"贺州市八步区南乡镇综合行政执法队","工作人员一","贺州市八步区南乡镇综合行政执法队工作人员一",{"$f":"VLOOKUP(D113,匹配代码!A:B,2,0)","v":"1452400152"},"2145240404411",1,"江  慧","女","大专",null,"云南司法警官职业学院","戒毒矫治技术","合格"]
[{"$f":"VLOOKUP(E114,单位匹配!A:D,2,0)","v":"贺州市八步区南乡镇人民政府"},"贺州市八步区南乡镇综合行政执法队","工作人员二","贺州市八步区南乡镇综合行政执法队工作人员二",{"$f":"VLOOKUP(D114,匹配代码!A:B,2,0)","v":"1452400153"},"2145240404612",1,"卢凌玲","女","大专",null,"广西警察学院","法律事务","合格"]
[{"$f":"VLOOKUP(E115,单位匹配!A:D,2,0)","v":"贺州市八步区南乡镇人民政府"},"贺州市八步区南乡镇便民服务中心","工作人员","贺州市八步区南乡镇便民服务中心工作人员",{"$f":"VLOOKUP(D115,匹配代码!A:B,2,0)","v":"1452400151"},"2145240404318",1,"韦兴东","男","本科","工学学士","广西农业职业技术大学","园林景观工程","合格"]
[{"$f":"VLOOKUP(E116,单位匹配!A:D,2,0)","v":"贺州市八步区司法局"},"贺州市八步区法律援助中心","工作人员","贺州市八步区法律援助中心工作人员",{"$f":"VLOOKUP(D116,匹配代码!A:B,2,0)","v":"1452400112"},"1145240303512",1,"钟星宇","女","大学","法学\n学士","山东理工大学法学院","法学","合格"]
[{"$f":"VLOOKUP(E117,单位匹配!A:D,2,0)","v":"贺州市八步区贺街镇人民政府"},"贺州市八步区贺街镇农业服务中心","工作人员一","贺州市八步区贺街镇农业服务中心工作人员一",{"$f":"VLOOKUP(D117,匹配代码!A:B,2,0)","v":"1452400157"},"3145240602509",1,"高姻","女","本科","工学\n学士","广西科技师范学院","土木工程","合格"]
[{"$f":"VLOOKUP(E118,单位匹配!A:D,2,0)","v":"贺州市八步区贺街镇人民政府"},"贺州市八步区贺街镇农业服务中心","工作人员二","贺州市八步区贺街镇农业服务中心工作人员二",{"$f":"VLOOKUP(D118,匹配代码!A:B,2,0)","v":"1452400158"},"1145240304204",1,"曾小蝶","女","本科","文学\n学士","南宁师范大学","广告学","合格"]
[{"$f":"VLOOKUP(E119,单位匹配!A:D,2,0)","v":"贺州市八步区贺街镇人民政府"},"贺州市八步区贺街镇乡村建设综合服务中心","工作人员一","贺州市八步区贺街镇乡村建设综合服务中心工作人员一",{"$f":"VLOOKUP(D119,匹配代码!A:B,2,0)","v":"1452400155"},"1145240304014",1,"王凯","男","本科","管理学学士","宜宾学院","工程管理","合格"]
[{"$f":"VLOOKUP(E120,单位匹配!A:D,2,0)","v":"贺州市八步区贺街镇人民政府"},"贺州市八步区贺街镇乡村建设综合服务中心","工作人员二","贺州市八步区贺街镇乡村建设综合服务中心工作人员二",{"$f":"VLOOKUP(D120,匹配代码!A:B,2,0)","v":"1452400156"},"3145240602404",1,"左阅","男","本科","工学\n学士","哈尔滨理工大学","土木工程","合格"]
[{"$f":"VLOOKUP(E121,单位匹配!A:D,2,0)","v":"贺州市八步区城东街道办事处"},"贺州市八步区城东街道社会事务治理中心","工作人员","贺州市八步区城东街道社会事务治理中心工作人员",{"$f":"VLOOKUP(D121,匹配代码!A:B,2,0)","v":"1452400133"},"1145240303820",1,"李滢彦","女","大学","法学学士","北京物资学院","法学","合格"]
[{"$f":"VLOOKUP(E122,单位匹配!A:D,2,0)","v":"贺州市八步区里松镇人民政府"},"贺州市八步区里松镇便民服务中心","工作人员","贺州市八步区里松镇便民服务中心工作人员",{"$f":"VLOOKUP(D122,匹配代码!A:B,2,0)","v":"1452400119"},"1145240303722",1,"李定盈","女","大学","文学学士","广西科技师范学院","汉语言文学","合格"]
[{"$f":"VLOOKUP(E123,单位匹配!A:D,2,0)","v":"贺州市八步区里松镇人民政府"},"贺州市八步区里松镇乡村建设综合服务中心","工作人员","贺州市八步区里松镇乡村建设综合服务中心工作人员",{"$f":"VLOOKUP(D123,匹配代码!A:B,2,0)","v":"1452400120"},"2145240403614",1,"钟微宇","男","大学","法学学士","广西警察学院","社会工作","合格"]
[{"$f":"VLOOKUP(E124,单位匹配!A:D,2,0)","v":"贺州市八步区里松镇人民政府"},"贺州市八步区里松镇综合行政执法队","工作人员","贺州市八步区里松镇综合行政执法队工作人员",{"$f":"VLOOKUP(D124,匹配代码!A:B,2,0)","v":"1452400121"},"1145240303727",1,"林娟","女","大学","管理学学士","广西科技大学鹿山学院","财务管理","合格"]
[{"$f":"VLOOKUP(E125,单位匹配!A:D,2,0)","v":"贺州市八步区桂岭镇人民政府"},"贺州市八步区桂岭镇便民服务中心","工作人员一","贺州市八步区桂岭镇便民服务中心工作人员一",{"$f":"VLOOKUP(D125,匹配代码!A:B,2,0)","v":"1452400136"},"1145240303906",1,"麦达格","男","大学","文学学士","贺州学院","汉语言文学","合格"]
[{"$f":"VLOOKUP(E126,单位匹配!A:D,2,0)","v":"贺州市八步区桂岭镇人民政府"},"贺州市八步区桂岭镇便民服务中心","工作人员二","贺州市八步区桂岭镇便民服务中心工作人员二",{"$f":"VLOOKUP(D126,匹配代码!A:B,2,0)","v":"1452400137"},"1145240303916",1,"陶福定","男","大学","理学学士","广西民族师范学院","生物科学","合格"]
[{"$f":"VLOOKUP(E127,单位匹配!A:D,2,0)","v":"贺州市八步区桂岭镇人民政府"},"贺州市八步区桂岭镇便民服务中心","工作人员三","贺州市八步区桂岭镇便民服务中心工作人员三",{"$f":"VLOOKUP(D127,匹配代码!A:B,2,0)","v":"1452400138"},"1145240303922",1,"梁小媛","女","大学","管理学学士","桂林理工大学","会计学","合格"]
[{"$f":"VLOOKUP(E128,单位匹配!A:D,2,0)","v":"贺州市八步区桂岭镇人民政府"},"贺州市八步区桂岭镇乡村建设综合服务中心","工作人员","贺州市八步区桂岭镇乡村建设综合服务中心工作人员",{"$f":"VLOOKUP(D128,匹配代码!A:B,2,0)","v":"1452400139"},"2145240404129",1,"陈梓娴","女","大学","工学学士","合肥工业大学","集成电路设计与集成","合格"]
[{"$f":"VLOOKUP(E129,单位匹配!A:D,2,0)","v":"贺州市八步区桂岭镇人民政府"},"贺州市八步区桂岭镇农业服务中心","工作人员二","贺州市八步区桂岭镇农业服务中心工作人员二",{"$f":"VLOOKUP(D129,匹配代码!A:B,2,0)","v":"1452400141"},"2145240404204",1,"莫巧美","女","大专",null,"广西生态工程职业技术学院","林业调查与信息处理","合格"]
[{"$f":"VLOOKUP(E130,单位匹配!A:D,2,0)","v":"贺州市八步区桂岭镇人民政府"},"贺州市八步区桂岭镇综合行政执法队","工作人员一","贺州市八步区桂岭镇综合行政执法队工作人员一",{"$f":"VLOOKUP(D130,匹配代码!A:B,2,0)","v":"1452400142"},"1145240304005",1,"徐秀云","女","大学","法学学士","湖北警官学院","法学","合格"]
[{"$f":"VLOOKUP(E131,单位匹配!A:D,2,0)","v":"贺州市八步区桂岭镇人民政府"},"贺州市八步区桂岭镇综合行政执法队","工作人员二","贺州市八步区桂岭镇综合行政执法队工作人员二",{"$f":"VLOOKUP(D131,匹配代码!A:B,2,0)","v":"1452400143"},"1145240304013",1,"姚运洲","男","大学","理学学士","梧州学院","信息与计算科学","合格"]
[{"$f":"VLOOKUP(E132,单位匹配!A:D,2,0)","v":"贺州市八步区大宁镇人民政府"},"贺州市八步区大宁镇农业服务中心","工作人员二",{"$f":"B132&C132","v":"贺州市八步区大宁镇农业服务中心工作人员二"},{"$f":"VLOOKUP(D132,匹配代码!A:B,2,0)","v":"1452400135"},"2145240403923",1,"邓杨志","男","大学\n本科","管理学学士","云南民族大学","公共事业\n管理","合格"]
[{"$f":"VLOOKUP(E133,单位匹配!A:D,2,0)","v":"贺州市八步区大宁镇人民政府"},"贺州市八步区大宁镇农业服务中心","工作人员一","贺州市八步区大宁镇农业服务中心工作人员一",{"$f":"VLOOKUP(D133,匹配代码!A:B,2,0)","v":"1452400134"},"2145240403921",1,"潘绍彬","男","大学\n本科","工学\n学士","广西大学","农业电气化","合格"]
[{"$f":"VLOOKUP(E134,单位匹配!A:D,2,0)","v":"贺州市八步区铺门镇人民政府"},"贺州市八步区铺门镇便民服务中心","工作人员一","贺州市八步区铺门镇便民服务中心工作人员一",{"$f":"VLOOKUP(D134,匹配代码!A:B,2,0)","v":"1452400164"},"1145240304623",1,"董意芳","女","大学","法学学士","广西警察学院","社会工作","合格"]
[{"$f":"VLOOKUP(E135,单位匹配!A:D,2,0)","v":"贺州市八步区铺门镇人民政府"},"贺州市八步区铺门镇乡村建设综合服务中心","工作人员","贺州市八步区铺门镇乡村建设综合服务中心工作人员",{"$f":"VLOOKUP(D135,匹配代码!A:B,2,0)","v":"1452400167"},"2145240404921",1,"冯宇","女","大专",null,"湖南铁路科技职业技术学院","铁道交通运营管理","合格"]
[{"$f":"VLOOKUP(E136,单位匹配!A:D,2,0)","v":"贺州市八步区铺门镇人民政府"},"贺州市八步区铺门镇便民服务中心","工作人员二","贺州市八步区铺门镇便民服务中心工作人员二",{"$f":"VLOOKUP(D136,匹配代码!A:B,2,0)","v":"1452400165"},"1145240304703",1,"谢雪芬","女","大学","管理学学士","广西大学","会计学","合格"]
[{"$f":"VLOOKUP(E137,单位匹配!A:D,2,0)","v":"贺州市八步区铺门镇人民政府"},"贺州市八步区铺门镇综合行政执法队","工作人员","贺州市八步区铺门镇综合行政执法队工作人员",{"$f":"VLOOKUP(D137,匹配代码!A:B,2,0)","v":"1452400163"},"1145240304527",1,"赵胜壬","男","大学","工学学士","贺州学院","工程管理","合格"]
[{"$f":"VLOOKUP(E138,单位匹配!A:D,2,0)","v":"贺州市八步区卫生健康局"},"贺州市八步区疾病预防控制中心","专业技术岗二","贺州市八步区疾病预防控制中心专业技术岗二",{"$f":"VLOOKUP(D138,匹配代码!A:B,2,0)","v":"1452400169"},"5645240500104","1","岑利娟","女","本科","医学学士","昆明医科大学","预防医学","合格"]
[{"$f":"VLOOKUP(E139,单位匹配!A:D,2,0)","v":"贺州市八步区卫生健康局"},"贺州市八步区防治艾滋病服务中心","专业技术岗","贺州市八步区防治艾滋病服务中心专业技术岗",{"$f":"VLOOKUP(D139,匹配代码!A:B,2,0)","v":"1452400170"},"5645240500208",1,"李娜","女","本科","理学学士","广西中医药大学","护理学","合格"]
[{"$f":"VLOOKUP(E140,单位匹配!A:D,2,0)","v":"贺州市八步区卫生健康局"},"八步区计划生育服务站","专业技术岗","八步区计划生育服务站专业技术岗",{"$f":"VLOOKUP(D140,匹配代码!A:B,2,0)","v":"1452400171"},"5645240500327",1,"蓝轩慧","女","本科","管理学学士","贺州学院","公共事业管理","合格"]
[{"$f":"VLOOKUP(E141,单位匹配!A:D,2,0)","v":"贺州市八步区卫生健康局"},"贺州市八步区初级卫生保健服务中心","管理岗","贺州市八步区初级卫生保健服务中心管理岗",{"$f":"VLOOKUP(D141,匹配代码!A:B,2,0)","v":"1452400172"},"1145240304813",1,"莫秋霞","女","本科","文学学士","华中科技大学","新闻学","合格"]
[{"$f":"VLOOKUP(E142,单位匹配!A:D,2,0)","v":"贺州市八步区卫生健康局"},"贺州市八步区第二人民医院","专业技术岗二","贺州市八步区第二人民医院专业技术岗二",{"$f":"VLOOKUP(D142,匹配代码!A:B,2,0)","v":"1452400177"},"5245240502125",1,"覃神焙","女","大专",null,"广西科技大学","临床医学","合格"]
[{"$f":"VLOOKUP(E143,单位匹配!A:D,2,0)","v":"贺州市八步区卫生健康局"},"贺州市八步区第二人民医院","专业技术岗三","贺州市八步区第二人民医院专业技术岗三",{"$f":"VLOOKUP(D143,匹配代码!A:B,2,0)","v":"1452400178"},"2145240405017",1,"陈彦羽","女","大专",null,"广西外国语学院","大数据与会计","合格"]
[{"$f":"VLOOKUP(E144,单位匹配!A:D,2,0)","v":"贺州市八步区卫生健康局"},"八步区贺街中心卫生院","专业技术岗三","八步区贺街中心卫生院专业技术岗三",{"$f":"VLOOKUP(D144,匹配代码!A:B,2,0)","v":"1452400181"},"5345240502002",1,"罗盛翀","男","本科","理学学士","广西医科大学","临床药学专业","合格"]
[{"$f":"VLOOKUP(E145,单位匹配!A:D,2,0)","v":"贺州市八步区卫生健康局"},"八步区大宁镇中心卫生院","专业技术岗","八步区大宁镇中心卫生院专业技术岗",{"$f":"VLOOKUP(D145,匹配代码!A:B,2,0)","v":"1452400182"},"5145240502403",1,"付蜻蜓","女","大专",null,"广东茂名健康职业学院","针灸推拿学","合格"]
[{"$f":"VLOOKUP(E146,单位匹配!A:D,2,0)","v":"贺州市八步区卫生健康局"},"八步区步头卫生院","专业技术岗","八步区步头卫生院专业技术岗",{"$f":"VLOOKUP(D146,匹配代码!A:B,2,0)","v":"1452400184"},"5245240502205",2,"吴佐丽","女","大专",null,"沧州医学高等专科学校","临床医学","合格"]
[{"$f":"VLOOKUP(E147,单位匹配!A:D,2,0)","v":"贺州市八步区卫生健康局"},"八步区步头卫生院","专业技术岗","八步区步头卫生院专业技术岗",{"$f":"VLOOKUP(D147,匹配代码!A:B,2,0)","v":"1452400184"},"5245240502130",2,"陈诚","男","大专",null,"广西中医药大学","中西医结合专业","合格"]
[{"$f":"VLOOKUP(E148,单位匹配!A:D,2,0)","v":"贺州市八步区卫生健康局"},"八步区黄洞卫生院","专业技术岗","八步区黄洞卫生院专业技术岗",{"$f":"VLOOKUP(D148,匹配代码!A:B,2,0)","v":"1452400187"},"2145240405122",1,"莫燕婷","女","大专",null,"广西财经学院","会计学","合格"]
[{"$f":"VLOOKUP(E149,单位匹配!A:D,2,0)","v":"贺州市八步区卫生健康局"},"八步区建中社区卫生服务中心","专业技术岗","八步区建中社区卫生服务中心专业技术岗",{"$f":"VLOOKUP(D149,匹配代码!A:B,2,0)","v":"1452400188"},"5245240502208",1,"刘文雅","女","大专",null,"广西科技大学","口腔医学专业","合格"]
[{"$f":"VLOOKUP(E150,单位匹配!A:D,2,0)","v":"贺州市八步区灵峰镇人民政府"},"贺州市八步区灵峰镇乡村建设综合服务中心","工作人员","贺州市八步区灵峰镇乡村建设综合服务中心工作人员",{"$f":"VLOOKUP(D150,匹配代码!A:B,2,0)","v":"1452400132"},"1145240303817",1,"赵龙","男","大学","管理学学士","海南热带海洋学院","物流管理","合格"]
[{"$f":"VLOOKUP(E151,单位匹配!A:D,2,0)","v":"贺州市八步区灵峰镇人民政府"},"贺州市八步区灵峰镇农业农村服务中心","工作人员一","贺州市八步区灵峰镇农业农村服务中心工作人员一",{"$f":"VLOOKUP(D151,匹配代码!A:B,2,0)","v":"1452400130"},"2145240403910",1,"余运湫","男","大学","管理学学士","百色学院","人文地理与城乡规划","合格"]
[{"$f":"VLOOKUP(E152,单位匹配!A:D,2,0)","v":"贺州市八步区灵峰镇人民政府"},"贺州市八步区灵峰镇农业农村服务中心","工作人员二","贺州市八步区灵峰镇农业农村服务中心工作人员二",{"$f":"VLOOKUP(D152,匹配代码!A:B,2,0)","v":"1452400131"},"2145240403917",1,"黄文芳","女","大学","管理学学士","广西财经学院","人文地理与城乡规划","合格"]
[{"$f":"VLOOKUP(E153,单位匹配!A:D,2,0)","v":"中国人民解放军广西壮族自治区贺州市八步区人民武装部"},"贺州市八步区民兵军事训练基地(中心)","工作人员","贺州市八步区民兵军事训练基地(中心)工作人员",{"$f":"VLOOKUP(D153,匹配代码!A:B,2,0)","v":"1452400108"},"1145240303316",1,"李剑华","男","大专",null,"贺州学院","大数据与会计","合格"]
[{"$f":"VLOOKUP(E154,单位匹配!A:D,2,0)","v":"中共贺州市平桂区纪律检查委员会机关贺州市平桂区监察委员会"},"贺州市平桂区纪检监察电教信息中心","工作人员","贺州市平桂区纪检监察电教信息中心工作人员",{"$f":"VLOOKUP(D154,匹配代码!A:B,2,0)","v":"1452400189"},"1145240304901",1,"黄菊","女","大学本科","学士","广西师范大学","思想政治教育","合格"]
[{"$f":"VLOOKUP(E155,单位匹配!A:D,2,0)","v":"贺州市平桂区新兴产业发展服务中心"},"贺州市平桂区新兴产业发展服务中心","工作人员","贺州市平桂区新兴产业发展服务中心工作人员",{"$f":"VLOOKUP(D155,匹配代码!A:B,2,0)","v":"1452400192"},"1145240305023",1,"李缦","女","大学本科","学士","广西科技大学","经济学","合格"]
[{"$f":"VLOOKUP(E156,单位匹配!A:D,2,0)","v":"贺州市平桂区财政局"},"贺州市平桂区财政投资评审中心","工作人员","贺州市平桂区财政投资评审中心工作人员",{"$f":"VLOOKUP(D156,匹配代码!A:B,2,0)","v":"1452400193"},"2145240405317",1,"冯璐","女","大学本科","学士","广西民族大学","税收学","合格"]
[{"$f":"VLOOKUP(E157,单位匹配!A:D,2,0)","v":"贺州市平桂区审计局"},"贺州市平桂区经济责任审计和政府投资审计中心","专业技术岗","贺州市平桂区经济责任审计和政府投资审计中心专业技术岗",{"$f":"VLOOKUP(D157,匹配代码!A:B,2,0)","v":"1452400194"},"2145240405412",1,"李秀慧","女","大学本科","学士","汉江师范学院","审计学","合格"]
[{"$f":"VLOOKUP(E158,单位匹配!A:D,2,0)","v":"贺州市平桂区应急管理局"},"贺州市平桂区应急管理综合行政执法大队","工作人员一","贺州市平桂区应急管理综合行政执法大队工作人员一",{"$f":"VLOOKUP(D158,匹配代码!A:B,2,0)","v":"1452400195"},"3145240602612",1,"罗厚镜","男","大学本科","学士","广西大学","矿物资源工程","合格"]
[{"$f":"VLOOKUP(E159,单位匹配!A:D,2,0)","v":"贺州市平桂区应急管理局"},"贺州市平桂区应急管理综合行政执法大队","工作人员二","贺州市平桂区应急管理综合行政执法大队工作人员二",{"$f":"VLOOKUP(D159,匹配代码!A:B,2,0)","v":"1452400196"},"1145240305114",1,"杨万就","男","大学本科","学士","广西警察学院","司法警察学","合格"]
[{"$f":"VLOOKUP(E160,单位匹配!A:D,2,0)","v":"贺州市平桂区应急管理局"},"贺州市平桂区应急管理综合行政执法大队","工作人员三","贺州市平桂区应急管理综合行政执法大队工作人员三",{"$f":"VLOOKUP(D160,匹配代码!A:B,2,0)","v":"1452400197"},"1145240305324",1,"申晗","女","大学本科","学士","天津城建大学","工商管理","合格"]
[{"$f":"VLOOKUP(E161,单位匹配!A:D,2,0)","v":"贺州市平桂区应急管理局"},"贺州市平桂区应急管理综合行政执法大队","工作人员四","贺州市平桂区应急管理综合行政执法大队工作人员四",{"$f":"VLOOKUP(D161,匹配代码!A:B,2,0)","v":"1452400198"},"2145240405508",1,"张中阳","男","大学本科","学士","桂林电子科技大学","电子封装技术","合格"]
[{"$f":"VLOOKUP(E162,单位匹配!A:D,2,0)","v":"贺州市平桂区应急管理局"},"贺州市平桂区应急管理综合行政执法大队","工作人员五","贺州市平桂区应急管理综合行政执法大队工作人员五",{"$f":"VLOOKUP(D162,匹配代码!A:B,2,0)","v":"1452400199"},"1145240305329",1,"莫汉龙","男","大学本科","学士","桂林电子科技大学","法学","合格"]
[{"$f":"VLOOKUP(E163,单位匹配!A:D,2,0)","v":"贺州市平桂区应急管理局"},"贺州市平桂区应急管理综合行政执法大队","工作人员六","贺州市平桂区应急管理综合行政执法大队工作人员六",{"$f":"VLOOKUP(D163,匹配代码!A:B,2,0)","v":"1452400200"},"3145240602628",1,"梁冰","男","大学本科","学士","湘潭大学","应用化学","合格"]
[{"$f":"VLOOKUP(E164,单位匹配!A:D,2,0)","v":"贺州市平桂区水利局"},"贺州市平桂区水旱灾害防御站","工作人员一","贺州市平桂区水旱灾害防御站工作人员一",{"$f":"VLOOKUP(D164,匹配代码!A:B,2,0)","v":"1452400201"},"2145240405720",1,"袁溦","女","大学本科","学士","广东理工学院","财务管理","合格"]
[{"$f":"VLOOKUP(E165,单位匹配!A:D,2,0)","v":"贺州市平桂区水利局"},"贺州市平桂区水旱灾害防御站","工作人员二","贺州市平桂区水旱灾害防御站工作人员二",{"$f":"VLOOKUP(D165,匹配代码!A:B,2,0)","v":"1452400202"},"1145240305403",1,"蔡荣乐","男","大学本科","无学位","海南大学","自动化","合格","递补"]
[{"$f":"VLOOKUP(E166,单位匹配!A:D,2,0)","v":"贺州市平桂区水利局"},"贺州市平桂区东干水利工程管理所","专业技术人员","贺州市平桂区东干水利工程管理所专业技术人员",{"$f":"VLOOKUP(D166,匹配代码!A:B,2,0)","v":"1452400203"},"3145240602814",1,"翁健翔","男","大学本科","学士","贺州学院","工程管理（工学学士学位）","合格"]
[{"$f":"VLOOKUP(E167,单位匹配!A:D,2,0)","v":"贺州市平桂区民政局"},"贺州市平桂区民政福利综合服务中心","工作人员","贺州市平桂区民政福利综合服务中心工作人员",{"$f":"VLOOKUP(D167,匹配代码!A:B,2,0)","v":"1452400205"},"1145240305509",1,"朱彦","女","大学本科","学士","广西大学","汉语言文学","合格"]
[{"$f":"VLOOKUP(E168,单位匹配!A:D,2,0)","v":"贺州市平桂区交通运输局"},"贺州市平桂区综合运输管理服务中心","技术人员","贺州市平桂区综合运输管理服务中心技术人员",{"$f":"VLOOKUP(D168,匹配代码!A:B,2,0)","v":"1452400206"},"3145240602907",1,"莫晓轲","男","大学本科","学士","华北水利水电大学","交通工程","合格"]
[{"$f":"VLOOKUP(E169,单位匹配!A:D,2,0)","v":"贺州市平桂区行政审批局"},"贺州市平桂区政务服务中心","工作人员二","贺州市平桂区政务服务中心工作人员二",{"$f":"VLOOKUP(D169,匹配代码!A:B,2,0)","v":"1452400208"},"3145240602923",1,"邹仁儒","男","大学本科","学士","东华理工大学","水文与水资源工程","合格","递补"]
[{"$f":"VLOOKUP(E170,单位匹配!A:D,2,0)","v":"贺州市平桂区文化广电和旅游局"},"贺州市平桂区业余体校","游泳教练","贺州市平桂区业余体校游泳教练",{"$f":"VLOOKUP(D170,匹配代码!A:B,2,0)","v":"1452400209"},"2145240405730",1,"孟晨凯","男","大学专科","无学位","南宁职业技术学院","体育运营与管理","合格"]
[{"$f":"VLOOKUP(E171,单位匹配!A:D,2,0)","v":"贺州市平桂区文化广电和旅游局"},"贺州市平桂区图书馆","文博馆员","贺州市平桂区图书馆文博馆员",{"$f":"VLOOKUP(D171,匹配代码!A:B,2,0)","v":"1452400210"},"2145240405809",1,"罗奕霏","女","大学本科","学士","西南民族大学","文物与博物馆学","合格"]
[{"$f":"VLOOKUP(E172,单位匹配!A:D,2,0)","v":"贺州市平桂区自然资源局"},"贺州市平桂区土地开发整理中心","工作人员","贺州市平桂区土地开发整理中心工作人员",{"$f":"VLOOKUP(D172,匹配代码!A:B,2,0)","v":"1452400212"},"3145240603003",1,"曾琳棋","女","大学本科","学士","海南大学","土地资源管理","合格"]
[{"$f":"VLOOKUP(E173,单位匹配!A:D,2,0)","v":"贺州市平桂区自然资源局"},"贺州市平桂区矿产资源规费征收管理站","工作人员","贺州市平桂区矿产资源规费征收管理站工作人员",{"$f":"VLOOKUP(D173,匹配代码!A:B,2,0)","v":"1452400211"},"1145240305525",1,"黎倩","女","大学本科","学士","闽南师范大学","汉语言文学","合格"]
[{"$f":"VLOOKUP(E174,单位匹配!A:D,2,0)","v":"贺州市平桂区自然资源局"},"贺州市平桂区地质环境监测站","工作人员","贺州市平桂区地质环境监测站工作人员",{"$f":"VLOOKUP(D174,匹配代码!A:B,2,0)","v":"1452400213"},"3145240603014",1,"吴祖坤","男","大学本科","学士","长沙理工大学","材料成型及控制工程","合格"]
[{"$f":"VLOOKUP(E175,单位匹配!A:D,2,0)","v":"贺州市平桂区住房和城乡建设局"},"贺州市平桂区建筑安装工程劳动保险费管理所","工作人员一","贺州市平桂区建筑安装工程劳动保险费管理所工作人员一",{"$f":"VLOOKUP(D175,匹配代码!A:B,2,0)","v":"1452400214"},"1145240305622",1,"刘金湘","女","大学本科","学士","湖南城市学院","城市管理","合格"]
[{"$f":"VLOOKUP(E176,单位匹配!A:D,2,0)","v":"贺州市平桂区住房和城乡建设局"},"贺州市平桂区建筑安装工程劳动保险费管理所","工作人员二","贺州市平桂区建筑安装工程劳动保险费管理所工作人员二",{"$f":"VLOOKUP(D176,匹配代码!A:B,2,0)","v":"1452400215"},"2145240405821",1,"陈莹","女","大学本科","学士","上海建桥学院","会计","合格"]
[{"$f":"VLOOKUP(E177,单位匹配!A:D,2,0)","v":"贺州市平桂区住房和城乡建设局"},"贺州市平桂区建筑安装工程劳动保险费管理所","工作人员三","贺州市平桂区建筑安装工程劳动保险费管理所工作人员三",{"$f":"VLOOKUP(D177,匹配代码!A:B,2,0)","v":"1452400216"},"1145240305705",1,"周伟英","男","大学本科","学士","湘潭理工学院","工商管理","合格"]
[{"$f":"VLOOKUP(E178,单位匹配!A:D,2,0)","v":"贺州市平桂区住房和城乡建设局"},"贺州市平桂区建筑安装工程劳动保险费管理所","工作人员四","贺州市平桂区建筑安装工程劳动保险费管理所工作人员四",{"$f":"VLOOKUP(D178,匹配代码!A:B,2,0)","v":"1452400217"},"3145240603111",1,"杨德森","男","研究生","硕士","广东工业大学","土木工程","合格"]
[{"$f":"VLOOKUP(E179,单位匹配!A:D,2,0)","v":"贺州市平桂区教育局"},"贺州市平桂区学生资助管理中心","会计一","贺州市平桂区学生资助管理中心会计一",{"$f":"VLOOKUP(D179,匹配代码!A:B,2,0)","v":"1452400218"},"2145240405829",1,"朱健承","男","大学本科","学士","南宁学院","会计学","合格"]
[{"$f":"VLOOKUP(E180,单位匹配!A:D,2,0)","v":"贺州市平桂区教育局"},"贺州市平桂区学生资助管理中心","会计二","贺州市平桂区学生资助管理中心会计二",{"$f":"VLOOKUP(D180,匹配代码!A:B,2,0)","v":"1452400219"},"2145240405917",1,"刘先仙","女","大学本科","学士","桂林理工大学博文管理学院","会计学","合格"]
[{"$f":"VLOOKUP(E181,单位匹配!A:D,2,0)","v":"贺州市平桂区教育局"},"贺州市平桂区羊头镇中心小学","会计","贺州市平桂区羊头镇中心小学会计",{"$f":"VLOOKUP(D181,匹配代码!A:B,2,0)","v":"1452400220"},"2145240405922",1,"陈莎莎","女","大学本科","学士","广西民族师范学院","财务管理","合格"]
[{"$f":"VLOOKUP(E182,单位匹配!A:D,2,0)","v":"贺州市平桂区教育局"},"贺州市平桂区羊头镇大井完小","会计","贺州市平桂区羊头镇大井完小会计",{"$f":"VLOOKUP(D182,匹配代码!A:B,2,0)","v":"1452400221"},"2145240406008",1,"邓晓婷","女","大学本科","学士","青岛理工大学","财务管理","合格"]
[{"$f":"VLOOKUP(E183,单位匹配!A:D,2,0)","v":"贺州市平桂区教育局"},"贺州市平桂区大平瑶族乡民族学校","会计","贺州市平桂区大平瑶族乡民族学校会计",{"$f":"VLOOKUP(D183,匹配代码!A:B,2,0)","v":"1452400222"},"2145240406021",1,"岑家欣","男","大学本科","学士","广东海洋大学寸金学院","会计学","合格"]
[{"$f":"VLOOKUP(E184,单位匹配!A:D,2,0)","v":"贺州市平桂区教育局"},"贺州市平桂区鹅塘镇初级中学","会计","贺州市平桂区鹅塘镇初级中学会计",{"$f":"VLOOKUP(D184,匹配代码!A:B,2,0)","v":"1452400223"},"2145240406024",1,"黄桂芬","女","大学本科","学士","广西民族大学","会计学","合格"]
[{"$f":"VLOOKUP(E185,单位匹配!A:D,2,0)","v":"贺州市平桂区教育局"},"贺州市平桂区望高镇中学","会计","贺州市平桂区望高镇中学会计",{"$f":"VLOOKUP(D185,匹配代码!A:B,2,0)","v":"1452400224"},"2145240406103",1,"吴佩红","女","大学本科","学士","广西科技师范学院","财务管理","合格"]
[{"$f":"VLOOKUP(E186,单位匹配!A:D,2,0)","v":"贺州市平桂区教育局"},"贺州市平桂区公会中学","会计","贺州市平桂区公会中学会计",{"$f":"VLOOKUP(D186,匹配代码!A:B,2,0)","v":"1452400225"},"2145240406116",1,"谢梦霞","女","大学本科","学士","南宁学院","会计","合格"]
[{"$f":"VLOOKUP(E187,单位匹配!A:D,2,0)","v":"贺州市平桂区教育局"},"贺州市平桂区羊头镇中学","会计","贺州市平桂区羊头镇中学会计",{"$f":"VLOOKUP(D187,匹配代码!A:B,2,0)","v":"1452400226"},"2145240406129",1,"龙玮璐","女","大学本科","学士","广西大学行健文理学院","会计学","合格"]
[{"$f":"VLOOKUP(E188,单位匹配!A:D,2,0)","v":"贺州市平桂区教育局"},"贺州市平桂区沙田镇中心学校","会计","贺州市平桂区沙田镇中心学校会计",{"$f":"VLOOKUP(D188,匹配代码!A:B,2,0)","v":"1452400227"},"2145240406208",1,"鄢淑婷","女","大学本科","学士","湖北民族大学","会计学","合格"]
[{"$f":"VLOOKUP(E189,单位匹配!A:D,2,0)","v":"贺州市平桂区教育局"},"贺州市平桂区鹅塘镇中心学校","会计","贺州市平桂区鹅塘镇中心学校会计",{"$f":"VLOOKUP(D189,匹配代码!A:B,2,0)","v":"1452400228"},"2145240406216",1,"黎玲","女","大学本科","学士","广西财经学院","会计学","合格"]
[{"$f":"VLOOKUP(E190,单位匹配!A:D,2,0)","v":"贺州市平桂区卫生健康局"},"贺州市平桂区流动人口计划生育管理站","临床医师","贺州市平桂区流动人口计划生育管理站临床医师",{"$f":"VLOOKUP(D190,匹配代码!A:B,2,0)","v":"1452400229"},"5245240502216",1,"唐艺荣","女","大学本科","学士","广西医科大学","临床医学","合格"]
[{"$f":"VLOOKUP(E191,单位匹配!A:D,2,0)","v":"贺州市平桂区卫生健康局"},"贺州市平桂区防治艾滋病服务中心","会计","贺州市平桂区防治艾滋病服务中心会计",{"$f":"VLOOKUP(D191,匹配代码!A:B,2,0)","v":"1452400231"},"2145240406225",1,"王秋香","女","大学本科","学士","广西外国语学院","财务管理","合格"]
[{"$f":"VLOOKUP(E192,单位匹配!A:D,2,0)","v":"贺州市平桂区卫生健康局"},"贺州市平桂区疾病预防控制中心","专业技术人员","贺州市平桂区疾病预防控制中心专业技术人员",{"$f":"VLOOKUP(D192,匹配代码!A:B,2,0)","v":"1452400232"},"5645240500403",1,"梁月馨","女","大学本科","学士","广西科技大学","预防医学","合格"]
[{"$f":"VLOOKUP(E193,单位匹配!A:D,2,0)","v":"贺州市平桂区卫生健康局"},"贺州市平桂区大平卫生院","康复技术人员","贺州市平桂区大平卫生院康复技术人员",{"$f":"VLOOKUP(D193,匹配代码!A:B,2,0)","v":"1452400237"},"5545240500910",1,"廖秋婷","女","大学专科","无学位","广西医科大学","康复治疗技术","合格"]
[{"$f":"VLOOKUP(E194,单位匹配!A:D,2,0)","v":"贺州市平桂区卫生健康局"},"贺州市平桂区公会中心卫生院","妇产科医生","贺州市平桂区公会中心卫生院妇产科医生",{"$f":"VLOOKUP(D194,匹配代码!A:B,2,0)","v":"1452400241"},"5245240502217",1,"叶密","女","大学本科","学士","桂林医学院","临床医学","合格"]
[{"$f":"VLOOKUP(E195,单位匹配!A:D,2,0)","v":"贺州市平桂区望高镇人民政府"},"贺州市平桂区望高镇便民服务中心","工作人员一","贺州市平桂区望高镇便民服务中心工作人员一",{"$f":"VLOOKUP(D195,匹配代码!A:B,2,0)","v":"1452400245"},"3145240603204",1,"刘慧","女","大学本科","学士","铜仁学院","园林","合格"]
[{"$f":"VLOOKUP(E196,单位匹配!A:D,2,0)","v":"贺州市平桂区望高镇人民政府"},"贺州市平桂区望高镇便民服务中心","工作人员二",{"$f":"B196&C196","v":"贺州市平桂区望高镇便民服务中心工作人员二"},{"$f":"VLOOKUP(D196,匹配代码!A:B,2,0)","v":"1452400246"},"2145240406310",1,"罗玉英","女","大学本科","学士","北部湾大学","国际经济与贸易","合格"]
[{"$f":"VLOOKUP(E197,单位匹配!A:D,2,0)","v":"贺州市平桂区望高镇人民政府"},"贺州市平桂区望高镇便民服务中心","工作人员三","贺州市平桂区望高镇便民服务中心工作人员三",{"$f":"VLOOKUP(D197,匹配代码!A:B,2,0)","v":"1452400247"},"1145240305723",1,"陈佳伟","男","大学本科","无学位","南宁师范大学","汉语言文学","合格"]
[{"$f":"VLOOKUP(E198,单位匹配!A:D,2,0)","v":"贺州市平桂区望高镇人民政府"},"贺州市平桂区望高镇综合行政执法队","工作人员一","贺州市平桂区望高镇综合行政执法队工作人员一",{"$f":"VLOOKUP(D198,匹配代码!A:B,2,0)","v":"1452400248"},"1145240305724",1,"廖岚","女","大学本科","学士","广西警察学院","监狱学","合格"]
[{"$f":"VLOOKUP(E199,单位匹配!A:D,2,0)","v":"贺州市平桂区望高镇人民政府"},"贺州市平桂区望高镇综合行政执法队","工作人员二","贺州市平桂区望高镇综合行政执法队工作人员二",{"$f":"VLOOKUP(D199,匹配代码!A:B,2,0)","v":"1452400249"},"3145240603207",1,"艾丽丝","女","大学本科","学士","河北地质大学","勘查技术与工程","合格"]
[{"$f":"VLOOKUP(E200,单位匹配!A:D,2,0)","v":"贺州市平桂区羊头镇人民政府"},"贺州市平桂区羊头镇农业服务中心","专业技术人员","贺州市平桂区羊头镇农业服务中心专业技术人员",{"$f":"VLOOKUP(D200,匹配代码!A:B,2,0)","v":"1452400250"},"3145240603210",1,"毛献俊","男","大学本科","学士","淮阴工学院","园艺","合格"]
[{"$f":"VLOOKUP(E201,单位匹配!A:D,2,0)","v":"贺州市平桂区羊头镇人民政府"},"贺州市平桂区羊头镇乡村建设综合服务中心","专业技术人员","贺州市平桂区羊头镇乡村建设综合服务中心专业技术人员",{"$f":"VLOOKUP(D201,匹配代码!A:B,2,0)","v":"1452400251"},"3145240603214",1,"黄秀莲","女","大学本科","学士","哈尔滨商业大学","会计学","合格"]
[{"$f":"VLOOKUP(E202,单位匹配!A:D,2,0)","v":"贺州市平桂区羊头镇人民政府"},"贺州市平桂区羊头镇便民服务中心","工作人员一","贺州市平桂区羊头镇便民服务中心工作人员一",{"$f":"VLOOKUP(D202,匹配代码!A:B,2,0)","v":"1452400252"},"2145240406407",1,"王晓玲","女","大学本科","学士","惠州学院","服装设计与工程","合格"]
[{"$f":"VLOOKUP(E203,单位匹配!A:D,2,0)","v":"贺州市平桂区羊头镇人民政府"},"贺州市平桂区羊头镇便民服务中心","工作人员二","贺州市平桂区羊头镇便民服务中心工作人员二",{"$f":"VLOOKUP(D203,匹配代码!A:B,2,0)","v":"1452400253"},"1145240305807",1,"刘桂林","男","大学本科","学士","广东白云学院","产品设计","合格"]
[{"$f":"VLOOKUP(E204,单位匹配!A:D,2,0)","v":"贺州市平桂区公会镇人民政府"},"贺州市平桂区公会镇乡村建设综合服务中心","工作人员一","贺州市平桂区公会镇乡村建设综合服务中心工作人员一",{"$f":"VLOOKUP(D204,匹配代码!A:B,2,0)","v":"1452400254"},"2145240406411",1,"李满妮","女","大学本科","学士","广西职业师范学院","市场营销教育","合格"]
[{"$f":"VLOOKUP(E205,单位匹配!A:D,2,0)","v":"贺州市平桂区公会镇人民政府"},"贺州市平桂区公会镇乡村建设综合服务中心","工作人员二","贺州市平桂区公会镇乡村建设综合服务中心工作人员二",{"$f":"VLOOKUP(D205,匹配代码!A:B,2,0)","v":"1452400255"},"2145240406615",1,"高雨","女","大学本科","学士","吉林警察学院","财务管理","合格"]
[{"$f":"VLOOKUP(E206,单位匹配!A:D,2,0)","v":"贺州市平桂区公会镇人民政府"},"贺州市平桂区公会镇乡村建设综合服务中心","工作人员三","贺州市平桂区公会镇乡村建设综合服务中心工作人员三",{"$f":"VLOOKUP(D206,匹配代码!A:B,2,0)","v":"1452400256"},"2145240406619",1,"朱春江","女","大学本科","学士","辽东学院","服装设计与工程","合格"]
[{"$f":"VLOOKUP(E207,单位匹配!A:D,2,0)","v":"贺州市平桂区公会镇人民政府"},"贺州市平桂区公会镇乡村建设综合服务中心","工作人员四","贺州市平桂区公会镇乡村建设综合服务中心工作人员四",{"$f":"VLOOKUP(D207,匹配代码!A:B,2,0)","v":"1452400257"},"3145240603221",1,"刘振辉","男","大学本科","学士","桂林电子科技大学","土木工程","合格"]
[{"$f":"VLOOKUP(E208,单位匹配!A:D,2,0)","v":"贺州市平桂区公会镇人民政府"},"贺州市平桂区公会镇乡村建设综合服务中心","工作人员五","贺州市平桂区公会镇乡村建设综合服务中心工作人员五",{"$f":"VLOOKUP(D208,匹配代码!A:B,2,0)","v":"1452400258"},"1145240305814",1,"张先瑞","男","大学专科","无学位","三亚航空旅游职业学院","飞机机电设备维修","合格"]
[{"$f":"VLOOKUP(E209,单位匹配!A:D,2,0)","v":"贺州市平桂区公会镇人民政府"},"贺州市平桂区公会镇综合行政执法队","工作人员一","贺州市平桂区公会镇综合行政执法队工作人员一",{"$f":"VLOOKUP(D209,匹配代码!A:B,2,0)","v":"1452400259"},"1145240305921",1,"廖小青","女","大学本科","学士","广西财经学院","法学","合格"]
[{"$f":"VLOOKUP(E210,单位匹配!A:D,2,0)","v":"贺州市平桂区公会镇人民政府"},"贺州市平桂区公会镇综合行政执法队","工作人员二","贺州市平桂区公会镇综合行政执法队工作人员二",{"$f":"VLOOKUP(D210,匹配代码!A:B,2,0)","v":"1452400260"},"1145240306003",1,"冯颖","女","大学本科","学士","广西财经学院","经济学","合格"]
[{"$f":"VLOOKUP(E211,单位匹配!A:D,2,0)","v":"贺州市平桂区公会镇人民政府"},"贺州市平桂区公会镇便民服务中心","工作人员","贺州市平桂区公会镇便民服务中心工作人员",{"$f":"VLOOKUP(D211,匹配代码!A:B,2,0)","v":"1452400261"},"1145240306006",1,"谭洪明","男","大学本科","学士","齐鲁工业大学","电子信息科学与技术","合格"]
[{"$f":"VLOOKUP(E212,单位匹配!A:D,2,0)","v":"贺州市平桂区沙田镇人民政府"},"贺州市平桂区沙田镇便民服务中心","工作人员一","贺州市平桂区沙田镇便民服务中心工作人员一",{"$f":"VLOOKUP(D212,匹配代码!A:B,2,0)","v":"1452400262"},"2145240406708",1,"白新姣","女","大学本科","学士","广西民族大学","会计学","合格"]
[{"$f":"VLOOKUP(E213,单位匹配!A:D,2,0)","v":"贺州市平桂区沙田镇人民政府"},"贺州市平桂区沙田镇农业服务中心","工作人员","贺州市平桂区沙田镇农业服务中心工作人员",{"$f":"VLOOKUP(D213,匹配代码!A:B,2,0)","v":"1452400264"},"3145240603304",2,"谢婧","女","大学本科","学士","河池学院","贸易经济","合格"]
[{"$f":"VLOOKUP(E214,单位匹配!A:D,2,0)","v":"贺州市平桂区沙田镇人民政府"},"贺州市平桂区沙田镇农业服务中心","工作人员","贺州市平桂区沙田镇农业服务中心工作人员",{"$f":"VLOOKUP(D214,匹配代码!A:B,2,0)","v":"1452400264"},"3145240603315",2,"李盛","男","大学本科","学士","吉林大学珠海学院","国际经济与贸易","合格"]
[{"$f":"VLOOKUP(E215,单位匹配!A:D,2,0)","v":"贺州市平桂区沙田镇人民政府"},"贺州市平桂区沙田镇乡村建设综合服务中心","工作人员一","贺州市平桂区沙田镇乡村建设综合服务中心工作人员一",{"$f":"VLOOKUP(D215,匹配代码!A:B,2,0)","v":"1452400265"},"3145240603403",1,"韦婉玲","女","大学本科","学士","百色学院","工程管理（工学学士）","合格"]
[{"$f":"VLOOKUP(E216,单位匹配!A:D,2,0)","v":"贺州市平桂区沙田镇人民政府"},"贺州市平桂区沙田镇综合行政执法队","工作人员一","贺州市平桂区沙田镇综合行政执法队工作人员一",{"$f":"VLOOKUP(D216,匹配代码!A:B,2,0)","v":"1452400267"},"1145240306115",2,"杨庚莎","女","大学本科","学士","广西警察学院","监狱学","合格"]
[{"$f":"VLOOKUP(E217,单位匹配!A:D,2,0)","v":"贺州市平桂区沙田镇人民政府"},"贺州市平桂区沙田镇综合行政执法队","工作人员一","贺州市平桂区沙田镇综合行政执法队工作人员一",{"$f":"VLOOKUP(D217,匹配代码!A:B,2,0)","v":"1452400267"},"1145240306118",2,"周燕婷","女","大学本科","学士","广西警察学院","法学","合格"]
[{"$f":"VLOOKUP(E218,单位匹配!A:D,2,0)","v":"贺州市平桂区沙田镇人民政府"},"贺州市平桂区沙田镇综合行政执法队","工作人员二","贺州市平桂区沙田镇综合行政执法队工作人员二",{"$f":"VLOOKUP(D218,匹配代码!A:B,2,0)","v":"1452400268"},"1145240306127",1,"何林秀","女","大学本科","学士","玉林师范学院","应用统计学","合格"]
[{"$f":"VLOOKUP(E219,单位匹配!A:D,2,0)","v":"贺州市平桂区大平瑶族乡人民政府"},"贺州市平桂区大平瑶族乡便民服务中心","工作人员","贺州市平桂区大平瑶族乡便民服务中心工作人员",{"$f":"VLOOKUP(D219,匹配代码!A:B,2,0)","v":"1452400271"},"1145240306216",1,"李美莲","女","大学本科","学士","中南林业科技大学","酒店管理","合格"]
[{"$f":"VLOOKUP(E220,单位匹配!A:D,2,0)","v":"贺州市平桂区大平瑶族乡人民政府"},"贺州市平桂区大平瑶族乡综合行政执法队","工作人员一","贺州市平桂区大平瑶族乡综合行政执法队工作人员一",{"$f":"VLOOKUP(D220,匹配代码!A:B,2,0)","v":"1452400272"},"1145240306322",1,"谢崇争","男","大学本科","无学位","广西警察学院","法学","合格"]
[{"$f":"VLOOKUP(E221,单位匹配!A:D,2,0)","v":"贺州市平桂区大平瑶族乡人民政府"},"贺州市平桂区大平瑶族乡综合行政执法队","工作人员二","贺州市平桂区大平瑶族乡综合行政执法队工作人员二",{"$f":"VLOOKUP(D221,匹配代码!A:B,2,0)","v":"1452400273"},"2145240406724",1,"刘谱玉","女","大学专科","无学位","茂名职业技术学院","传播与策划","合格"]
[{"$f":"VLOOKUP(E222,单位匹配!A:D,2,0)","v":"贺州市平桂区水口镇人民政府"},"贺州市平桂区水口镇乡村建设综合服务中心","工作人员","贺州市平桂区水口镇乡村建设综合服务中心工作人员",{"$f":"VLOOKUP(D222,匹配代码!A:B,2,0)","v":"1452400274"},"2145240406802",1,"陈晶晶","女","大学本科","学士","广西大学","会计学","合格","递补"]
[{"$f":"VLOOKUP(E223,单位匹配!A:D,2,0)","v":"贺州市平桂区水口镇人民政府"},"贺州市平桂区水口镇便民服务中心","工作人员一","贺州市平桂区水口镇便民服务中心工作人员一",{"$f":"VLOOKUP(D223,匹配代码!A:B,2,0)","v":"1452400275"},"1145240306414",2,"雷伯成","男","大学本科","学士","广西师范大学","汉语言文学","合格"]
[{"$f":"VLOOKUP(E224,单位匹配!A:D,2,0)","v":"贺州市平桂区水口镇人民政府"},"贺州市平桂区水口镇便民服务中心","工作人员一","贺州市平桂区水口镇便民服务中心工作人员一",{"$f":"VLOOKUP(D224,匹配代码!A:B,2,0)","v":"1452400275"},"1145240306417",2,"朱斌","男","大学本科","学士","长沙理工大学","汉语言文学","合格"]
[{"$f":"VLOOKUP(E225,单位匹配!A:D,2,0)","v":"贺州市平桂区水口镇人民政府"},"贺州市平桂区水口镇便民服务中心","工作人员二","贺州市平桂区水口镇便民服务中心工作人员二",{"$f":"VLOOKUP(D225,匹配代码!A:B,2,0)","v":"1452400276"},"1145240306525",1,"王国雄","男","大学专科","无学位","乐山师范学院","会计","合格"]
[{"$f":"VLOOKUP(E226,单位匹配!A:D,2,0)","v":"贺州市平桂区水口镇人民政府"},"贺州市平桂区水口镇便民服务中心","工作人员三","贺州市平桂区水口镇便民服务中心工作人员三",{"$f":"VLOOKUP(D226,匹配代码!A:B,2,0)","v":"1452400277"},"2145240406807",1,"严楚宏","男","大学本科","学士","广西科技大学","经济学","合格"]
[{"$f":"VLOOKUP(E227,单位匹配!A:D,2,0)","v":"贺州市平桂区水口镇人民政府"},"贺州市平桂区水口镇综合行政执法队","工作人员","贺州市平桂区水口镇综合行政执法队工作人员",{"$f":"VLOOKUP(D227,匹配代码!A:B,2,0)","v":"1452400278"},"1145240306609",1,"彭敬浦","男","大学本科","学士","玉林师范学院","通信工程","合格","递补"]
[{"$f":"VLOOKUP(E228,单位匹配!A:D,2,0)","v":"昭平县财政局"},"昭平县财政投资评审中心","财会人员一","昭平县财政投资评审中心财会人员一",{"$f":"VLOOKUP(D228,匹配代码!A:B,2,0)","v":"1452400392"},"2145240802221",2,"叶丽爽","女","本科"," 管理学学士","广西财经学院","财务管理","合格"]
[{"$f":"VLOOKUP(E229,单位匹配!A:D,2,0)","v":"昭平县财政局"},"昭平县财政投资评审中心","财会人员一","昭平县财政投资评审中心财会人员一",{"$f":"VLOOKUP(D229,匹配代码!A:B,2,0)","v":"1452400392"},"2145240802302",2,"何鸿玉","女","本科","管理学学士","湖南工业大学","会计学","合格"]
[{"$f":"VLOOKUP(E230,单位匹配!A:D,2,0)","v":"昭平县财政局"},"昭平县财政投资评审中心","财会人员二","昭平县财政投资评审中心财会人员二",{"$f":"VLOOKUP(D230,匹配代码!A:B,2,0)","v":"1452400393"},"2145240802316",2,"林春秀","女","本科","管理学学士","桂林电子科技大学","会计学","合格"]
[{"$f":"VLOOKUP(E231,单位匹配!A:D,2,0)","v":"昭平县财政局"},"昭平县财政投资评审中心","财会人员二","昭平县财政投资评审中心财会人员二",{"$f":"VLOOKUP(D231,匹配代码!A:B,2,0)","v":"1452400393"},"2145240802317",2,"刘其英","女","本科","管理学学士","广西外国语学院","财务管理","合格"]
[{"$f":"VLOOKUP(E232,单位匹配!A:D,2,0)","v":"中共昭平县委员会机构编制委员会办公室"},"昭平县行政体制与机构改革研究室","工作人员","昭平县行政体制与机构改革研究室工作人员",{"$f":"VLOOKUP(D232,匹配代码!A:B,2,0)","v":"1452400394"},"1145240900530",1,"赖慧娟","女","本科","文学学士","广西师范大学","秘书学","合格"]
[{"$f":"VLOOKUP(E233,单位匹配!A:D,2,0)","v":"昭平县审计局"},"昭平县政府投资审计中心","工作人员一","昭平县政府投资审计中心工作人员一",{"$f":"VLOOKUP(D233,匹配代码!A:B,2,0)","v":"1452400395"},"3145240604201",1,"黎展鹏","男","本科","工学学士","西安科技大学","数据科学与大数据技术","合格"]
[{"$f":"VLOOKUP(E234,单位匹配!A:D,2,0)","v":"昭平县审计局"},"昭平县政府投资审计中心","工作人员二","昭平县政府投资审计中心工作人员二",{"$f":"VLOOKUP(D234,匹配代码!A:B,2,0)","v":"1452400396"},"2145240802325",1,"陈小余","女","本科","法学学士","梧州学院","法学","合格"]
[{"$f":"VLOOKUP(E235,单位匹配!A:D,2,0)","v":"昭平县农业农村局"},"昭平县植保植检站","工作人员","昭平县植保植检站工作人员",{"$f":"VLOOKUP(D235,匹配代码!A:B,2,0)","v":"1452400397"},"3145240604210",1,"李朝","男","本科","农学学士","广西大学","农学","合格"]
[{"$f":"VLOOKUP(E236,单位匹配!A:D,2,0)","v":"昭平县交通运输局"},"昭平县交通运输综合行政执法大队","工作人员一","昭平县交通运输综合行政执法大队工作人员一",{"$f":"VLOOKUP(D236,匹配代码!A:B,2,0)","v":"1452400398"},"2145240802328",1,"徐辉","男","本科","法学学士","广西警察学院","侦查学","合格","递补"]
[{"$f":"VLOOKUP(E237,单位匹配!A:D,2,0)","v":"昭平县交通运输局"},"昭平县交通运输综合行政执法大队","工作人员二","昭平县交通运输综合行政执法大队工作人员二",{"$f":"VLOOKUP(D237,匹配代码!A:B,2,0)","v":"1452400399"},"2145240802407",1,"卢正松","男","本科","法学学士","东北财经大学","法学","合格"]
[{"$f":"VLOOKUP(E238,单位匹配!A:D,2,0)","v":"昭平县交通运输局"},"昭平县交通运输综合行政执法大队","工作人员三","昭平县交通运输综合行政执法大队工作人员三",{"$f":"VLOOKUP(D238,匹配代码!A:B,2,0)","v":"1452400400"},"2145240802416",1,"朱超平","男","本科","工学学士","长沙理工大学","交通工程","合格"]
[{"$f":"VLOOKUP(E239,单位匹配!A:D,2,0)","v":"昭平县交通运输局"},"昭平县交通运输综合行政执法大队","工作人员四","昭平县交通运输综合行政执法大队工作人员四",{"$f":"VLOOKUP(D239,匹配代码!A:B,2,0)","v":"1452400401"},"2145240802430",1,"李雨纯","女","本科","工学学士","上海应用技术大学","土木工程","合格"]
[{"$f":"VLOOKUP(E240,单位匹配!A:D,2,0)","v":"昭平县交通运输局"},"昭平县交通运输综合行政执法大队","工作人员五","昭平县交通运输综合行政执法大队工作人员五",{"$f":"VLOOKUP(D240,匹配代码!A:B,2,0)","v":"1452400402"},"2145240802619",1,"贝文舒","男","本科","管理学学士","广西大学","公共事业管理","合格"]
[{"$f":"VLOOKUP(E241,单位匹配!A:D,2,0)","v":"昭平县交通运输局"},"昭平县交通运输综合行政执法大队","工作人员六","昭平县交通运输综合行政执法大队工作人员六",{"$f":"VLOOKUP(D241,匹配代码!A:B,2,0)","v":"1452400403"},"2145240802706",1,"杨仕灵","女","本科","管理学学士","广西师范大学","会计学","合格"]
[{"$f":"VLOOKUP(E242,单位匹配!A:D,2,0)","v":"昭平县水利局"},"昭平县周家水库工程管理所","工作人员一","昭平县周家水库工程管理所工作人员一",{"$f":"VLOOKUP(D242,匹配代码!A:B,2,0)","v":"1452400404"},"2145240802726",1,"欧艺杰","男","本科"," 文学学士","广西师范大学","汉语言文学","合格"]
[{"$f":"VLOOKUP(E243,单位匹配!A:D,2,0)","v":"昭平县水利局"},"昭平县周家水库工程管理所","工作人员二","昭平县周家水库工程管理所工作人员二",{"$f":"VLOOKUP(D243,匹配代码!A:B,2,0)","v":"1452400405"},"2145240802902",1,"蔡艺明","女","本科",null,"广西师范大学","会计学","合格"]
[{"$f":"VLOOKUP(E244,单位匹配!A:D,2,0)","v":"昭平县水利局"},"昭平县砂子冲水库工程管理所","工作人员","昭平县砂子冲水库工程管理所工作人员",{"$f":"VLOOKUP(D244,匹配代码!A:B,2,0)","v":"1452400407"},"3145240604213",4,"廖青江","男","本科",null,"湖南农业大学","水利水电工程","合格"]
[{"$f":"VLOOKUP(E245,单位匹配!A:D,2,0)","v":"昭平县水利局"},"昭平县砂子冲水库工程管理所","工作人员","昭平县砂子冲水库工程管理所工作人员",{"$f":"VLOOKUP(D245,匹配代码!A:B,2,0)","v":"1452400407"},"3145240604216",4,"沈严言","男","本科","工学学士","黑龙江大学","农业水利工程","合格"]
[{"$f":"VLOOKUP(E246,单位匹配!A:D,2,0)","v":"昭平县水利局"},"昭平县砂子冲水库工程管理所","工作人员","昭平县砂子冲水库工程管理所工作人员",{"$f":"VLOOKUP(D246,匹配代码!A:B,2,0)","v":"1452400407"},"3145240604219",4,"李林峰","男","本科","工学学士","天津城建大学","港口航道与海岸工程","合格"]
[{"$f":"VLOOKUP(E247,单位匹配!A:D,2,0)","v":"昭平县水利局"},"昭平县砂子冲水库工程管理所","工作人员","昭平县砂子冲水库工程管理所工作人员",{"$f":"VLOOKUP(D247,匹配代码!A:B,2,0)","v":"1452400407"},"3145240604220",4,"叶承鑫","男","本科",null,"桂林理工大学","水文与水资源工程","合格"]
[{"$f":"VLOOKUP(E248,单位匹配!A:D,2,0)","v":"昭平县行政审批局"},"昭平县政务服务和绩效考评中心","工作人员","昭平县政务服务和绩效考评中心工作人员",{"$f":"VLOOKUP(D248,匹配代码!A:B,2,0)","v":"1452400408"},"1145240900605",1,"单向","男","本科","管理学学士","长沙师范学院","财务管理","合格"]
[{"$f":"VLOOKUP(E249,单位匹配!A:D,2,0)","v":"昭平县行政审批局"},"昭平县数据信息中心","工作人员","昭平县数据信息中心工作人员",{"$f":"VLOOKUP(D249,匹配代码!A:B,2,0)","v":"1452400409"},"3145240604223",2,"马后浪","男","本科","工学学士","河池学院","软件工程","合格"]
[{"$f":"VLOOKUP(E250,单位匹配!A:D,2,0)","v":"昭平县行政审批局"},"昭平县数据信息中心","工作人员","昭平县数据信息中心工作人员",{"$f":"VLOOKUP(D250,匹配代码!A:B,2,0)","v":"1452400409"},"3145240604429",2,"李培玲","女","本科","工学学士","武昌理工学院","软件工程","合格"]
[{"$f":"VLOOKUP(E251,单位匹配!A:D,2,0)","v":"昭平县统计局"},"昭平县普查中心","工作人员","昭平县普查中心工作人员",{"$f":"VLOOKUP(D251,匹配代码!A:B,2,0)","v":"1452400410"},"2145240802910",1,"邱树文","男","本科"," 经济学学士","广西财经学院","经济统计学","合格"]
[{"$f":"VLOOKUP(E252,单位匹配!A:D,2,0)","v":"昭平县住房和城乡建设局"},"昭平县房屋网签备案中心","工作人员","昭平县房屋网签备案中心工作人员",{"$f":"VLOOKUP(D252,匹配代码!A:B,2,0)","v":"1452400411"},"3145240604901",1,"刘桂源","男","本科","工学学士","广西科技师范学院","计算机科学与技术","合格"]
[{"$f":"VLOOKUP(E253,单位匹配!A:D,2,0)","v":"中共昭平县委员会宣传部"},"昭平县融媒体中心","工作人员","昭平县融媒体中心工作人员",{"$f":"VLOOKUP(D253,匹配代码!A:B,2,0)","v":"1452400412"},"2145240802926",1,"黎小满","女","本科","文学学士","浙江万里学院","汉语言文学","合格"]
[{"$f":"VLOOKUP(E254,单位匹配!A:D,2,0)","v":"昭平县医疗保障局"},"昭平县医疗保障管理服务中心","财会人员","昭平县医疗保障管理服务中心财会人员",{"$f":"VLOOKUP(D254,匹配代码!A:B,2,0)","v":"1452400413"},"2145240803011",1,"谈建伟","男","本科","","广西职业师范学院","会计学","合格"]
[{"$f":"VLOOKUP(E255,单位匹配!A:D,2,0)","v":"昭平县医疗保障局"},"昭平县医疗保障管理服务中心","工作人员","昭平县医疗保障管理服务中心工作人员",{"$f":"VLOOKUP(D255,匹配代码!A:B,2,0)","v":"1452400414"},"3145240605110",1,"虞礼谦","男","专科",null,"无锡职业技术学院","软件技术","合格"]
[{"$f":"VLOOKUP(E256,单位匹配!A:D,2,0)","v":"昭平县综合行政执法局"},"昭平县环境卫生管理站","工作人员一","昭平县环境卫生管理站工作人员一",{"$f":"VLOOKUP(D256,匹配代码!A:B,2,0)","v":"1452400415"},"2145240803328",1,"谭罗诗园","女","本科","管理学学士","桂林电子科技大学","物流管理","合格"]
[{"$f":"VLOOKUP(E257,单位匹配!A:D,2,0)","v":"昭平县综合行政执法局"},"昭平县环境卫生管理站","工作人员二","昭平县环境卫生管理站工作人员二",{"$f":"VLOOKUP(D257,匹配代码!A:B,2,0)","v":"1452400416"},"2145240804111",1,"陶再贵","男","本科","管理学学士","百色学院","城市管理","合格"]
[{"$f":"VLOOKUP(E258,单位匹配!A:D,2,0)","v":"昭平县综合行政执法局"},"昭平县环境卫生管理站","工作人员三","昭平县环境卫生管理站工作人员三",{"$f":"VLOOKUP(D258,匹配代码!A:B,2,0)","v":"1452400417"},"2145240804118",1,"朱艳红","女","本科","管理学学士","北部湾大学","财务管理","合格"]
[{"$f":"VLOOKUP(E259,单位匹配!A:D,2,0)","v":"昭平县综合行政执法局"},"昭平县城市管理综合服务中心","工作人员二","昭平县城市管理综合服务中心工作人员二",{"$f":"VLOOKUP(D259,匹配代码!A:B,2,0)","v":"1452400419"},"2145240804202",1,"谢雪颖","女","本科","法学学士","广西民族大学","法学","合格"]
[{"$f":"VLOOKUP(E260,单位匹配!A:D,2,0)","v":"昭平县林业局"},"昭平县富罗林场","工作人员",{"$f":"B260&C260","v":"昭平县富罗林场工作人员"},{"$f":"VLOOKUP(D260,匹配代码!A:B,2,0)","v":"1452400420"},"3145240605203",2,"黄水妹","女","本科"," 农学学士","玉林师范学院","园林","合格"]
[{"$f":"VLOOKUP(E261,单位匹配!A:D,2,0)","v":"昭平县林业局"},"昭平县富罗林场","工作人员","昭平县富罗林场工作人员",{"$f":"VLOOKUP(D261,匹配代码!A:B,2,0)","v":"1452400420"},"3145240605205",2,"吴天晴","女","专科","","广东生态工程职业学院","林业信息技术应用","合格"]
[{"$f":"VLOOKUP(E262,单位匹配!A:D,2,0)","v":"昭平县林业局"},"昭平县大脑山林场","工作人员一","昭平县大脑山林场工作人员一",{"$f":"VLOOKUP(D262,匹配代码!A:B,2,0)","v":"1452400421"},"1145240900617",1,"袁小玲","女","本科","文学学士","广西师范大学","汉语言文学","合格"]
[{"$f":"VLOOKUP(E263,单位匹配!A:D,2,0)","v":"昭平县林业局"},"昭平县大脑山林场","财会人员","昭平县大脑山林场财会人员",{"$f":"VLOOKUP(D263,匹配代码!A:B,2,0)","v":"1452400423"},"2145240804316",1,"李榕秀","女","专科","","广西职业技术学院","会计电算化","合格"]
[{"$f":"VLOOKUP(E264,单位匹配!A:D,2,0)","v":"昭平县教育局"},"昭平县教研室","工作人员","昭平县教研室工作人员",{"$f":"VLOOKUP(D264,匹配代码!A:B,2,0)","v":"1452400424"},"2145240804330",1,"朱悦微","女","本科","文学学士","玉林师范学院","汉语言文学","合格"]
[{"$f":"VLOOKUP(E265,单位匹配!A:D,2,0)","v":"昭平县教育局"},"昭平县职业技术学校","财会人员","昭平县职业技术学校财会人员",{"$f":"VLOOKUP(D265,匹配代码!A:B,2,0)","v":"1452400425"},"2145240804405",1,"叶舒涵","女","本科","管理学学士","天津中德应用技术大学","财务管理","合格"]
[{"$f":"VLOOKUP(E266,单位匹配!A:D,2,0)","v":"昭平县走马镇人民政府"},"昭平县走马镇乡村建设综合服务中心","工作人员","昭平县走马镇乡村建设综合服务中心工作人员",{"$f":"VLOOKUP(D266,匹配代码!A:B,2,0)","v":"1452400426"},"3145240605224",1,"罗忠资","男","本科","工学学士","桂林理工大学","建筑电气与智能化","合格"]
[{"$f":"VLOOKUP(E267,单位匹配!A:D,2,0)","v":"昭平县木格乡人民政府"},"昭平县木格乡便民服务中心","工作人员","昭平县木格乡便民服务中心工作人员",{"$f":"VLOOKUP(D267,匹配代码!A:B,2,0)","v":"1452400427"},"2145240804409",1,"黎添","男","本科","文学学士","贺州学院","汉语言文学","合格"]
[{"$f":"VLOOKUP(E268,单位匹配!A:D,2,0)","v":"昭平县卫生健康局"},"昭平县流动人口计划管理站","财会人员","昭平县流动人口计划管理站财会人员",{"$f":"VLOOKUP(D268,匹配代码!A:B,2,0)","v":"1452400428"},"2145240804428",1,"罗佳佳","女","本科","管理学学士","广西大学行健文理学院","会计学","合格"]
[{"$f":"VLOOKUP(E269,单位匹配!A:D,2,0)","v":"昭平县卫生健康局"},"昭平县疾病预防控制中心","工作人员","昭平县疾病预防控制中心工作人员",{"$f":"VLOOKUP(D269,匹配代码!A:B,2,0)","v":"1452400429"},"5645240500426",1,"何小紫","女","本科","医学学士","右江民族医学院","预防医学","合格"]
[{"$f":"VLOOKUP(E270,单位匹配!A:D,2,0)","v":"昭平县卫生健康局"},"昭平县中医医院","临床医师","昭平县中医医院临床医师",{"$f":"VLOOKUP(D270,匹配代码!A:B,2,0)","v":"1452400432"},"5245240502304",1,"黄宗操","男","本科","医学学士","右江民族医学院","临床医学","合格"]
[{"$f":"VLOOKUP(E271,单位匹配!A:D,2,0)","v":"昭平县卫生健康局"},"昭平县木格乡卫生院","医学影像技士","昭平县木格乡卫生院医学影像技士",{"$f":"VLOOKUP(D271,匹配代码!A:B,2,0)","v":"1452400435"},"5545240501006",1,"陈波","男","专科","","永州职业技术学院","医学影像技术","合格"]
[{"$f":"VLOOKUP(E272,单位匹配!A:D,2,0)","v":"富川瑶族自治县教育局"},"富川瑶族自治县职业教育中心","校医","富川瑶族自治县职业教育中心校医",{"$f":"VLOOKUP(D272,匹配代码!A:B,2,0)","v":"1452400281"},"5645240500413",1,"林涓","女","大学本科（技工院校预备技师（技师）班）","无学位","右江民族医学院","医学影像学","合格"]
[{"$f":"VLOOKUP(E273,单位匹配!A:D,2,0)","v":"富川瑶族自治县教育局"},"富川瑶族自治县职业教育中心","财务","富川瑶族自治县职业教育中心财务",{"$f":"VLOOKUP(D273,匹配代码!A:B,2,0)","v":"1452400280"},"2145240406827",1,"蒋丽虹","女","大学本科（技工院校预备技师（技师）班）","学士","湖南交通工程学院","财务管理","合格"]
[{"$f":"VLOOKUP(E274,单位匹配!A:D,2,0)","v":"富川瑶族自治县教育局"},"富川瑶族自治县石家乡中心校","财务","富川瑶族自治县石家乡中心校财务",{"$f":"VLOOKUP(D274,匹配代码!A:B,2,0)","v":"1452400282"},"2145240406904",1,"林梦霞","女","大学本科（技工院校预备技师（技师）班）","学士","广西外国语学院","财务管理专业","合格"]
[{"$f":"VLOOKUP(E275,单位匹配!A:D,2,0)","v":"富川瑶族自治县教育局"},"富川瑶族自治县立新小学","财务","富川瑶族自治县立新小学财务",{"$f":"VLOOKUP(D275,匹配代码!A:B,2,0)","v":"1452400284"},"2145240407011",1,"谢颖","女","大学本科（技工院校预备技师（技师）班）","学士","广西师范大学漓江学院","财务管理","合格"]
[{"$f":"VLOOKUP(E276,单位匹配!A:D,2,0)","v":"富川瑶族自治县教育局"},"富川瑶族自治县新华乡中心校","财务","富川瑶族自治县新华乡中心校财务",{"$f":"VLOOKUP(D276,匹配代码!A:B,2,0)","v":"1452400285"},"2145240407021",1,"蒋冬秀","女","大学本科（技工院校预备技师（技师）班）","学士","黑龙江财经学院","会计学","合格"]
[{"$f":"VLOOKUP(E277,单位匹配!A:D,2,0)","v":"富川瑶族自治县教育局"},"富川瑶族自治县白沙镇中心校","财务","富川瑶族自治县白沙镇中心校财务",{"$f":"VLOOKUP(D277,匹配代码!A:B,2,0)","v":"1452400286"},"2145240407101",1,"莫元昭","男","大学本科（技工院校预备技师（技师）班）","学士","桂林电子科技大学","会计学","合格"]
[{"$f":"VLOOKUP(E278,单位匹配!A:D,2,0)","v":"富川瑶族自治县教育局"},"富川瑶族自治县麦岭镇中心校","财务","富川瑶族自治县麦岭镇中心校财务",{"$f":"VLOOKUP(D278,匹配代码!A:B,2,0)","v":"1452400287"},"2145240407130",1,"田春花","女","大学本科（技工院校预备技师（技师）班）","无学位","湖南文理学院","会计学","合格"]
[{"$f":"VLOOKUP(E279,单位匹配!A:D,2,0)","v":"富川瑶族自治县卫生健康局"},"富川瑶族自治县疾病预防控制中心","公卫医师","富川瑶族自治县疾病预防控制中心公卫医师",{"$f":"VLOOKUP(D279,匹配代码!A:B,2,0)","v":"1452400288"},"5645240500417",1,"杨茵茵","女","大学本科（技工院校预备技师（技师）班）","学士","广西医科大学","妇幼保健医学","合格"]
[{"$f":"VLOOKUP(E280,单位匹配!A:D,2,0)","v":"富川瑶族自治县卫生健康局"},"富川瑶族自治县妇幼保健院","财务岗位","富川瑶族自治县妇幼保健院财务岗位",{"$f":"VLOOKUP(D280,匹配代码!A:B,2,0)","v":"1452400291"},"2145240407206",1,"李荣玲","女","大学本科（技工院校预备技师（技师）班）","学士","武汉工商学院","财务管理","合格"]
[{"$f":"VLOOKUP(E281,单位匹配!A:D,2,0)","v":"富川瑶族自治县卫生健康局"},"富川瑶族自治县妇幼保健院","医院办公室岗位","富川瑶族自治县妇幼保健院医院办公室岗位",{"$f":"VLOOKUP(D281,匹配代码!A:B,2,0)","v":"1452400292"},"2145240407218",1,"盘彩丽","女","大学本科（技工院校预备技师（技师）班）","学士","玉林师范学院","汉语国际教育","合格"]
[{"$f":"VLOOKUP(E282,单位匹配!A:D,2,0)","v":"富川瑶族自治县卫生健康局"},"富川瑶族自治县民族医医院","会计岗位","富川瑶族自治县民族医医院会计岗位",{"$f":"VLOOKUP(D282,匹配代码!A:B,2,0)","v":"1452400305"},"2145240407303",1,"毛丽华","女","大学本科（技工院校预备技师（技师）班）","学士","广西民族大学","会计学","合格","递补"]
[{"$f":"VLOOKUP(E283,单位匹配!A:D,2,0)","v":"富川瑶族自治县卫生健康局"},"富川瑶族自治县民族医医院","中医临床医师","富川瑶族自治县民族医医院中医临床医师",{"$f":"VLOOKUP(D283,匹配代码!A:B,2,0)","v":"1452400304"},"5145240502406",1,"魏饶","男","大学本科（技工院校预备技师（技师）班）","学士","广西中医药大学","中医学","合格"]
[{"$f":"VLOOKUP(E284,单位匹配!A:D,2,0)","v":"富川瑶族自治县卫生健康局"},"富川瑶族自治县人民医院","临床医生一","富川瑶族自治县人民医院临床医生一",{"$f":"VLOOKUP(D284,匹配代码!A:B,2,0)","v":"1452400293"},"5245240502218",2,"黄艳燕","女","大学本科（技工院校预备技师（技师）班）","","南华大学","临床医学","合格"]
[{"$f":"VLOOKUP(E285,单位匹配!A:D,2,0)","v":"富川瑶族自治县卫生健康局"},"富川瑶族自治县人民医院","临床医生二","富川瑶族自治县人民医院临床医生二",{"$f":"VLOOKUP(D285,匹配代码!A:B,2,0)","v":"1452400294"},"5245240502224",1,"何凯林","女","大学本科（技工院校预备技师（技师）班）","学士","桂林医学院","临床医学","合格"]
[{"$f":"VLOOKUP(E286,单位匹配!A:D,2,0)","v":"富川瑶族自治县卫生健康局"},"富川瑶族自治县人民医院","临床医生三","富川瑶族自治县人民医院临床医生三",{"$f":"VLOOKUP(D286,匹配代码!A:B,2,0)","v":"1452400295"},"5245240502227",3,"钟馨莹","女","大学本科（技工院校预备技师（技师）班）","学士","温州医科大学仁济学院","临床医学","合格"]
[{"$f":"VLOOKUP(E287,单位匹配!A:D,2,0)","v":"富川瑶族自治县卫生健康局"},"富川瑶族自治县人民医院","临床医生四","富川瑶族自治县人民医院临床医生四",{"$f":"VLOOKUP(D287,匹配代码!A:B,2,0)","v":"1452400296"},"5245240502230",2,"杨东莹","女","大学本科（技工院校预备技师（技师）班）","学士","潍坊医学院","临床医学","合格"]
[{"$f":"VLOOKUP(E288,单位匹配!A:D,2,0)","v":"富川瑶族自治县卫生健康局"},"富川瑶族自治县人民医院","临床医生四","富川瑶族自治县人民医院临床医生四",{"$f":"VLOOKUP(D288,匹配代码!A:B,2,0)","v":"1452400296"},"5245240502301",2,"黄伟","男","大学本科（技工院校预备技师（技师）班）","学士","新乡医学院","临床医学","合格"]
[{"$f":"VLOOKUP(E289,单位匹配!A:D,2,0)","v":"富川瑶族自治县卫生健康局"},"富川瑶族自治县人民医院","医学检验","富川瑶族自治县人民医院医学检验",{"$f":"VLOOKUP(D289,匹配代码!A:B,2,0)","v":"1452400300"},"5545240500918",1,"唐华惯","女","大学本科（技工院校预备技师（技师）班）","学士","广西科技大学","医学检验技术","合格"]
[{"$f":"VLOOKUP(E290,单位匹配!A:D,2,0)","v":"富川瑶族自治县卫生健康局"},"富川瑶族自治县人民医院","护理","富川瑶族自治县人民医院护理",{"$f":"VLOOKUP(D290,匹配代码!A:B,2,0)","v":"1452400302"},"5445240501130",6,"陶海霞","女","大学本科（技工院校预备技师（技师）班）","学士","广西中医药大学","护理学","合格"]
[{"$f":"VLOOKUP(E291,单位匹配!A:D,2,0)","v":"富川瑶族自治县卫生健康局"},"富川瑶族自治县人民医院","护理","富川瑶族自治县人民医院护理",{"$f":"VLOOKUP(D291,匹配代码!A:B,2,0)","v":"1452400302"},"5445240501105",6,"李莲妃","女","大学本科（技工院校预备技师（技师）班）","学士","右江民族医学院","护理学","合格"]
[{"$f":"VLOOKUP(E292,单位匹配!A:D,2,0)","v":"富川瑶族自治县卫生健康局"},"富川瑶族自治县人民医院","护理","富川瑶族自治县人民医院护理",{"$f":"VLOOKUP(D292,匹配代码!A:B,2,0)","v":"1452400302"},"5445240501217",6,"毛珍凤","女","大学本科（技工院校预备技师（技师）班）","学士","右江民族医学院","护理学","合格"]
[{"$f":"VLOOKUP(E293,单位匹配!A:D,2,0)","v":"富川瑶族自治县卫生健康局"},"富川瑶族自治县人民医院","护理","富川瑶族自治县人民医院护理",{"$f":"VLOOKUP(D293,匹配代码!A:B,2,0)","v":"1452400302"},"5445240501116",6,"温和运","男","大学本科（技工院校预备技师（技师）班）","学士","广西科技大学","护理学","合格"]
[{"$f":"VLOOKUP(E294,单位匹配!A:D,2,0)","v":"富川瑶族自治县卫生健康局"},"富川瑶族自治县人民医院","护理","富川瑶族自治县人民医院护理",{"$f":"VLOOKUP(D294,匹配代码!A:B,2,0)","v":"1452400302"},"5445240501208",6,"岑思思","女","大学本科（技工院校预备技师（技师）班）","学士","广西医科大学","护理学","合格"]
[{"$f":"VLOOKUP(E295,单位匹配!A:D,2,0)","v":"富川瑶族自治县卫生健康局"},"富川瑶族自治县人民医院","护理","富川瑶族自治县人民医院护理",{"$f":"VLOOKUP(D295,匹配代码!A:B,2,0)","v":"1452400302"},"5445240501215",6,"罗丽","女","大学本科（技工院校预备技师（技师）班）","学士","广西科技大学医学院","护理学","合格"]
[{"$f":"VLOOKUP(E296,单位匹配!A:D,2,0)","v":"富川瑶族自治县卫生健康局"},"富川瑶族自治县人民医院","财务","富川瑶族自治县人民医院财务",{"$f":"VLOOKUP(D296,匹配代码!A:B,2,0)","v":"1452400303"},"2145240407229",1,"陈小婉","女","大学本科（技工院校预备技师（技师）班）","学士","广西大学行健文理学院","财务管理","合格"]
[{"$f":"VLOOKUP(E297,单位匹配!A:D,2,0)","v":"富川瑶族自治县卫生健康局"},"富川瑶族自治县白沙镇卫生院","会计岗位","富川瑶族自治县白沙镇卫生院会计岗位",{"$f":"VLOOKUP(D297,匹配代码!A:B,2,0)","v":"1452400307"},"2145240407316",1,"黎嫄","女","大学本科（技工院校预备技师（技师）班）","学士","广西师范大学漓江学院","会计学","合格"]
[{"$f":"VLOOKUP(E298,单位匹配!A:D,2,0)","v":"富川瑶族自治县卫生健康局"},"富川瑶族自治县葛坡镇卫生院","会计岗位","富川瑶族自治县葛坡镇卫生院会计岗位",{"$f":"VLOOKUP(D298,匹配代码!A:B,2,0)","v":"1452400308"},"2145240407326",1,"徐梦遥","女","大学本科（技工院校预备技师（技师）班）","","广西财经学院","会计学","合格"]
[{"$f":"VLOOKUP(E299,单位匹配!A:D,2,0)","v":"富川瑶族自治县卫生健康局"},"富川瑶族自治县新华乡卫生院","会计岗位","富川瑶族自治县新华乡卫生院会计岗位",{"$f":"VLOOKUP(D299,匹配代码!A:B,2,0)","v":"1452400312"},"2145240407409",1,"李婷","女","大学本科（技工院校预备技师（技师）班）","无学位","广西师范大学","会计学","合格"]
[{"$f":"VLOOKUP(E300,单位匹配!A:D,2,0)","v":"富川瑶族自治县卫生健康局"},"富川瑶族自治县柳家乡卫生院","中西医临床岗位","富川瑶族自治县柳家乡卫生院中西医临床岗位",{"$f":"VLOOKUP(D300,匹配代码!A:B,2,0)","v":"1452400313"},"5145240502407",1,"徐爱英","女","大学本科（技工院校预备技师（技师）班）","学士","广西中医药大学","中西医临床医学","合格"]
[{"$f":"VLOOKUP(E301,单位匹配!A:D,2,0)","v":"富川瑶族自治县卫生健康局"},"富川瑶族自治县麦岭中心卫生院","临床医生岗位","富川瑶族自治县麦岭中心卫生院临床医生岗位",{"$f":"VLOOKUP(D301,匹配代码!A:B,2,0)","v":"1452400311"},"5245240502302",1,"莫秋英","女","大学本科（技工院校预备技师（技师）班）","无学位","广西医科大学","临床医学","合格"]
[{"$f":"VLOOKUP(E302,单位匹配!A:D,2,0)","v":"富川瑶族自治县文体广电和旅游局"},"富川瑶族自治县民族艺术团","舞蹈编导","富川瑶族自治县民族艺术团舞蹈编导",{"$f":"VLOOKUP(D302,匹配代码!A:B,2,0)","v":"1452400314"},"2145240407411",1,"吕文婷","女","大学本科（技工院校预备技师（技师）班）","学士","北部湾大学","舞蹈表演","合格"]
[{"$f":"VLOOKUP(E303,单位匹配!A:D,2,0)","v":"富川瑶族自治县民政局"},"富川瑶族自治县民政福利综合服务中心","会计","富川瑶族自治县民政福利综合服务中心会计",{"$f":"VLOOKUP(D303,匹配代码!A:B,2,0)","v":"1452400315"},"1145240306616",1,"蒋婧","女","大学本科（技工院校预备技师（技师）班）","学士","广西科技师范学院","财务管理","合格"]
[{"$f":"VLOOKUP(E304,单位匹配!A:D,2,0)","v":"富川瑶族自治县民政局"},"富川瑶族自治县民政福利综合服务中心","工作人员","富川瑶族自治县民政福利综合服务中心工作人员",{"$f":"VLOOKUP(D304,匹配代码!A:B,2,0)","v":"1452400316"},"1145240306730",1,"陈剑","男","大学本科（技工院校预备技师（技师）班）","学士","东南大学","能源与动力工程","合格"]
[{"$f":"VLOOKUP(E305,单位匹配!A:D,2,0)","v":"富川瑶族自治县财政局"},"富川瑶族自治县财政局财政投资评审中心","工作人员","富川瑶族自治县财政局财政投资评审中心工作人员",{"$f":"VLOOKUP(D305,匹配代码!A:B,2,0)","v":"1452400317"},"2145240407429",1,"曾志彬","男","大学本科（技工院校预备技师（技师）班）","学士","湖南交通工程学院","工程造价(工学学位)","合格"]
[{"$f":"VLOOKUP(E306,单位匹配!A:D,2,0)","v":"富川瑶族自治县自然资源局"},"富川瑶族自治县土地收购储备中心","专业技术人员","富川瑶族自治县土地收购储备中心专业技术人员",{"$f":"VLOOKUP(D306,匹配代码!A:B,2,0)","v":"1452400318"},"1145240307002",1,"李光熠","男","大学本科（技工院校预备技师（技师）班）","学士","广西大学","化学工程与工艺","合格"]
[{"$f":"VLOOKUP(E307,单位匹配!A:D,2,0)","v":"富川瑶族自治县水利局"},"富川瑶族自治县鸡公山水库水利工程管理所","专业技术人员","富川瑶族自治县鸡公山水库水利工程管理所专业技术人员",{"$f":"VLOOKUP(D307,匹配代码!A:B,2,0)","v":"1452400319"},"3145240603419",1,"严秀琴","女","大学本科（技工院校预备技师（技师）班）","学士","桂林理工大学","水文与水资源工程","合格"]
[{"$f":"VLOOKUP(E308,单位匹配!A:D,2,0)","v":"富川瑶族自治县司法局"},"富川瑶族自治县公证处","公证员","富川瑶族自治县公证处公证员",{"$f":"VLOOKUP(D308,匹配代码!A:B,2,0)","v":"1452400320"},"2145240407503",1,"黎荣兰","女","大学本科（技工院校预备技师（技师）班）","学士","广西师范大学","法学","合格"]
[{"$f":"VLOOKUP(E309,单位匹配!A:D,2,0)","v":"富川瑶族自治县交通运输局"},"富川瑶族自治县交通运输综合行政执法大队","工作人员一","富川瑶族自治县交通运输综合行政执法大队工作人员一",{"$f":"VLOOKUP(D309,匹配代码!A:B,2,0)","v":"1452400321"},"2145240407512",1,"吴杨琥","男","大学本科（技工院校预备技师（技师）班）","无学位","湖南文理学院","法学","合格"]
[{"$f":"VLOOKUP(E310,单位匹配!A:D,2,0)","v":"富川瑶族自治县交通运输局"},"富川瑶族自治县交通运输综合行政执法大队","工作人员二","富川瑶族自治县交通运输综合行政执法大队工作人员二",{"$f":"VLOOKUP(D310,匹配代码!A:B,2,0)","v":"1452400322"},"2145240407527",1,"岑春成","男","大学本科（技工院校预备技师（技师）班）","","玉林师范学院","法学","合格"]
[{"$f":"VLOOKUP(E311,单位匹配!A:D,2,0)","v":"富川瑶族自治县交通运输局"},"富川瑶族自治县交通运输综合行政执法大队","办公室人员","富川瑶族自治县交通运输综合行政执法大队办公室人员",{"$f":"VLOOKUP(D311,匹配代码!A:B,2,0)","v":"1452400323"},"2145240407701",1,"植彦杰","男","大学本科（技工院校预备技师（技师）班）","","上海工程技术大学","广告学","合格"]
[{"$f":"VLOOKUP(E312,单位匹配!A:D,2,0)","v":"富川瑶族自治县交通运输局"},"富川瑶族自治县交通运输综合行政执法大队","财务人员","富川瑶族自治县交通运输综合行政执法大队财务人员",{"$f":"VLOOKUP(D312,匹配代码!A:B,2,0)","v":"1452400324"},"2145240407729",1,"杨梦甜","女","大学本科（技工院校预备技师（技师）班）","学士","广西师范大学漓江学院","财务管理","合格"]
[{"$f":"VLOOKUP(E313,单位匹配!A:D,2,0)","v":"富川瑶族自治县行政审批局"},"富川瑶族自治县政务服务和绩效考评中心","专业技术人员","富川瑶族自治县政务服务和绩效考评中心专业技术人员",{"$f":"VLOOKUP(D313,匹配代码!A:B,2,0)","v":"1452400326"},"5645240500422",1,"肖诗晴","女","大学专科（技工院校高级工班）","无学位","娄底职业技术学院","幼儿发展与健康管理","合格"]
[{"$f":"VLOOKUP(E314,单位匹配!A:D,2,0)","v":"富川瑶族自治县行政审批局"},"富川瑶族自治县政务服务和绩效考评中心","财务人员","富川瑶族自治县政务服务和绩效考评中心财务人员",{"$f":"VLOOKUP(D314,匹配代码!A:B,2,0)","v":"1452400325"},"2145240407828",1,"黄雅婷","女","大学本科（技工院校预备技师（技师）班）","学士","桂林旅游学院","财务管理","合格"]
[{"$f":"VLOOKUP(E315,单位匹配!A:D,2,0)","v":"中共富川瑶族自治县委员会宣传部"},"富川瑶族自治县未成年人思想道德建设服务中心","工作人员一","富川瑶族自治县未成年人思想道德建设服务中心工作人员一",{"$f":"VLOOKUP(D315,匹配代码!A:B,2,0)","v":"1452400327"},"1145240307103",1,"莫现福","男","大学本科（技工院校预备技师（技师）班）","学士","广西外国语学院","汉语言文学","合格"]
[{"$f":"VLOOKUP(E316,单位匹配!A:D,2,0)","v":"中共富川瑶族自治县委员会宣传部"},"富川瑶族自治县未成年人思想道德建设服务中心","工作人员二","富川瑶族自治县未成年人思想道德建设服务中心工作人员二",{"$f":"VLOOKUP(D316,匹配代码!A:B,2,0)","v":"1452400328"},"1145240307105",1,"陀玲","女","大学本科（技工院校预备技师（技师）班）","学士","梧州学院","汉语言文学","合格"]
[{"$f":"VLOOKUP(E317,单位匹配!A:D,2,0)","v":"中共富川瑶族自治县委员会宣传部"},"富川瑶族自治县融媒体中心","工作人员","富川瑶族自治县融媒体中心工作人员",{"$f":"VLOOKUP(D317,匹配代码!A:B,2,0)","v":"1452400329"},"2145240408010",1,"王璟","男","大学本科（技工院校预备技师（技师）班）","学士","北部湾大学","财务管理","合格"]
[{"$f":"VLOOKUP(E318,单位匹配!A:D,2,0)","v":"富川瑶族自治县农业农村局"},"富川瑶族自治县经济作物站","专业技术人员","富川瑶族自治县经济作物站专业技术人员",{"$f":"VLOOKUP(D318,匹配代码!A:B,2,0)","v":"1452400330"},"3145240603422",1,"熊晓兰","女","大学本科（技工院校预备技师（技师）班）","学士","广西大学","农业资源与环境","合格"]
[{"$f":"VLOOKUP(E319,单位匹配!A:D,2,0)","v":"富川瑶族自治县农业农村局"},"富川瑶族自治县动物疫病预防控制中心","专业技术人员","富川瑶族自治县动物疫病预防控制中心专业技术人员",{"$f":"VLOOKUP(D319,匹配代码!A:B,2,0)","v":"1452400331"},"3145240603502",1,"林青","男","大学本科（技工院校预备技师（技师）班）","学士","天津农学院","动物医学（小动物医学专业）","合格"]
[{"$f":"VLOOKUP(E320,单位匹配!A:D,2,0)","v":"富川瑶族自治县农业农村局"},"富川瑶族自治县乡村振兴建设服务站","工作人员","富川瑶族自治县乡村振兴建设服务站工作人员",{"$f":"VLOOKUP(D320,匹配代码!A:B,2,0)","v":"1452400332"},"2145240408212",1,"毛欣淮","男","大学本科（技工院校预备技师（技师）班）","学士","三峡大学科技学院","工程造价","合格"]
[{"$f":"VLOOKUP(E321,单位匹配!A:D,2,0)","v":"富川瑶族自治县人民政府办公室"},"富川瑶族自治县政府发展研究中心","工作人员一","富川瑶族自治县政府发展研究中心工作人员一",{"$f":"VLOOKUP(D321,匹配代码!A:B,2,0)","v":"1452400333"},"1145240307117",1,"钟莹","女","大学本科（技工院校预备技师（技师）班）","学士","梧州学院","哲学","合格","递补"]
[{"$f":"VLOOKUP(E322,单位匹配!A:D,2,0)","v":"富川瑶族自治县人民政府办公室"},"富川瑶族自治县政府发展研究中心","工作人员二","富川瑶族自治县政府发展研究中心工作人员二",{"$f":"VLOOKUP(D322,匹配代码!A:B,2,0)","v":"1452400334"},"1145240307126",1,"林欣","女","大学本科（技工院校预备技师（技师）班）","学士","桂林理工大学","财务管理","合格"]
[{"$f":"VLOOKUP(E323,单位匹配!A:D,2,0)","v":"富川瑶族自治县人民政府办公室"},"富川瑶族自治县政府发展研究中心","工作人员三","富川瑶族自治县政府发展研究中心工作人员三",{"$f":"VLOOKUP(D323,匹配代码!A:B,2,0)","v":"1452400335"},"1145240307205",1,"杨润祥","女","大学本科（技工院校预备技师（技师）班）","学士","泰国南邦皇家大学","对外交流泰语","合格"]
[{"$f":"VLOOKUP(E324,单位匹配!A:D,2,0)","v":"富川瑶族自治县人民武装部"},"富川瑶族自治县民兵训练基地","办公室人员",{"$f":"B324&C324","v":"富川瑶族自治县民兵训练基地办公室人员"},{"$f":"VLOOKUP(D324,匹配代码!A:B,2,0)","v":"1452400336"},"1145240307411",1,"陈嘉欣","女","大学本科（技工院校预备技师（技师）班）","学士","桂林旅游学院","汉语国际教育专业","合格"]
[{"$f":"VLOOKUP(E325,单位匹配!A:D,2,0)","v":"富川瑶族自治县人力资源和社会保障局"},"富川瑶族自治县劳动人事争议仲裁院","工作人员一","富川瑶族自治县劳动人事争议仲裁院工作人员一",{"$f":"VLOOKUP(D325,匹配代码!A:B,2,0)","v":"1452400337"},"1145240307426",1,"洪达俭","男","大学本科（技工院校预备技师（技师）班）","学士","桂林电子科技大学","法学","合格"]
[{"$f":"VLOOKUP(E326,单位匹配!A:D,2,0)","v":"富川瑶族自治县人力资源和社会保障局"},"富川瑶族自治县劳动人事争议仲裁院","工作人员二","富川瑶族自治县劳动人事争议仲裁院工作人员二",{"$f":"VLOOKUP(D326,匹配代码!A:B,2,0)","v":"1452400338"},"1145240307502",1,"杨雯","女","大学本科（技工院校预备技师（技师）班）","学士","广西师范大学","法学","合格"]
[{"$f":"VLOOKUP(E327,单位匹配!A:D,2,0)","v":"富川瑶族自治县人力资源和社会保障局"},"富川瑶族自治县劳动人事争议仲裁院","工作人员三","富川瑶族自治县劳动人事争议仲裁院工作人员三",{"$f":"VLOOKUP(D327,匹配代码!A:B,2,0)","v":"1452400339"},"1145240307510",1,"何晓菲","女","大学本科（技工院校预备技师（技师）班）","学士","广西民族大学","传播学","合格"]
[{"$f":"VLOOKUP(E328,单位匹配!A:D,2,0)","v":"富川瑶族自治县应急管理局"},"富川瑶族自治县应急救援指挥中心","工作人员一","富川瑶族自治县应急救援指挥中心工作人员一",{"$f":"VLOOKUP(D328,匹配代码!A:B,2,0)","v":"1452400340"},"2145240408413",2,"林瑶","女","大学本科（技工院校预备技师（技师）班）","学士","广西财经学院","人力资源管理","合格"]
[{"$f":"VLOOKUP(E329,单位匹配!A:D,2,0)","v":"富川瑶族自治县应急管理局"},"富川瑶族自治县应急救援指挥中心","工作人员一","富川瑶族自治县应急救援指挥中心工作人员一",{"$f":"VLOOKUP(D329,匹配代码!A:B,2,0)","v":"1452400340"},"2145240408225",2,"黄翔","男","大学本科（技工院校预备技师（技师）班）","学士","天津工业大学","轻化工程","合格"]
[{"$f":"VLOOKUP(E330,单位匹配!A:D,2,0)","v":"富川瑶族自治县应急管理局"},"富川瑶族自治县应急救援指挥中心","工作人员二","富川瑶族自治县应急救援指挥中心工作人员二",{"$f":"VLOOKUP(D330,匹配代码!A:B,2,0)","v":"1452400341"},"2145240408529",1,"邹世平","男","大学专科（技工院校高级工班）","","湖南安全技术职业学院","安全技术与管理","合格"]
[{"$f":"VLOOKUP(E331,单位匹配!A:D,2,0)","v":"富川瑶族自治县应急管理局"},"富川瑶族自治县应急救援指挥中心","工作人员三","富川瑶族自治县应急救援指挥中心工作人员三",{"$f":"VLOOKUP(D331,匹配代码!A:B,2,0)","v":"1452400342"},"2145240408728",2,"叶诚","男","大学专科（技工院校高级工班）","","江西司法警官职业学院","治安管理","合格"]
[{"$f":"VLOOKUP(E332,单位匹配!A:D,2,0)","v":"中共富川瑶族自治县委员会办公室"},"中共委员会办公室信息管理和专用通信服务中心","工作人员一","中共委员会办公室信息管理和专用通信服务中心工作人员一",{"$f":"VLOOKUP(D332,匹配代码!A:B,2,0)","v":"1452400343"},"1145240307526",1,"柳媛媛","女","大学本科（技工院校预备技师（技师）班）","学士","广西民族大学相思湖学院","计算机科学与技术","合格"]
[{"$f":"VLOOKUP(E333,单位匹配!A:D,2,0)","v":"中共富川瑶族自治县委员会办公室"},"中共委员会办公室信息管理和专用通信服务中心","工作人员二","中共委员会办公室信息管理和专用通信服务中心工作人员二",{"$f":"VLOOKUP(D333,匹配代码!A:B,2,0)","v":"1452400344"},"1145240307612",1,"杨彩虹","女","大学本科（技工院校预备技师（技师）班）","学士","百色学院","思想政治教育","合格"]
[{"$f":"VLOOKUP(E334,单位匹配!A:D,2,0)","v":"富川瑶族自治县医疗保障局"},"富川瑶族自治县医疗救助中心","工作人员","富川瑶族自治县医疗救助中心工作人员",{"$f":"VLOOKUP(D334,匹配代码!A:B,2,0)","v":"1452400345"},"2145240502705",1,"易志文","男","大学本科（技工院校预备技师（技师）班）","学士","江西理工大学","计算机科学与技术","合格"]
[{"$f":"VLOOKUP(E335,单位匹配!A:D,2,0)","v":"中共富川瑶族自治县委员会社会工作部"},"富川瑶族自治县社会工作服务中心","工作人员","富川瑶族自治县社会工作服务中心工作人员",{"$f":"VLOOKUP(D335,匹配代码!A:B,2,0)","v":"1452400346"},"1145240307722",1,"杨菲菲","女","大学本科（技工院校预备技师（技师）班）","学士","梧州学院","人力资源管理","合格"]
[{"$f":"VLOOKUP(E336,单位匹配!A:D,2,0)","v":"富川瑶族自治县科学技术协会"},"富川瑶族自治县科技馆","工作人员","富川瑶族自治县科技馆工作人员",{"$f":"VLOOKUP(D336,匹配代码!A:B,2,0)","v":"1452400347"},"1145240307823",1,"罗秋琴","女","大学本科（技工院校预备技师（技师）班）","学士","湖南涉外经济学院","网络与新媒体","合格"]
[{"$f":"VLOOKUP(E337,单位匹配!A:D,2,0)","v":"朝东镇人民政府"},"朝东镇综合行政执法队","工作人员三","朝东镇综合行政执法队工作人员三",{"$f":"VLOOKUP(D337,匹配代码!A:B,2,0)","v":"1452400352"},"2145240502726",1,"杨青","女","大学本科（技工院校预备技师（技师）班）","学士","广西财经学院","商务经济学","合格"]
[{"$f":"VLOOKUP(E338,单位匹配!A:D,2,0)","v":"福利镇人民政府"},"福利镇乡村建设综合服务中心","会计","福利镇乡村建设综合服务中心会计",{"$f":"VLOOKUP(D338,匹配代码!A:B,2,0)","v":"1452400353"},"3145240603607",1,"黄国富","男","大学专科（技工院校高级工班）","无学位","广西经贸职业技术学院","会计（国际会计方向）","合格"]
[{"$f":"VLOOKUP(E339,单位匹配!A:D,2,0)","v":"葛坡镇人民政府"},"葛坡镇综合行政执法队","管理岗位","葛坡镇综合行政执法队管理岗位",{"$f":"VLOOKUP(D339,匹配代码!A:B,2,0)","v":"1452400354"},"1145240307907",1,"吴明","男","大学本科（技工院校预备技师（技师）班）","学士","湖南警察学院","法学","合格"]
[{"$f":"VLOOKUP(E340,单位匹配!A:D,2,0)","v":"葛坡镇人民政府"},"葛坡镇综合行政执法队","专业技术岗位","葛坡镇综合行政执法队专业技术岗位",{"$f":"VLOOKUP(D340,匹配代码!A:B,2,0)","v":"1452400355"},"2145240502806",1,"陈新润","男","大学本科（技工院校预备技师（技师）班）","学士","南宁理工学院","工程管理","合格"]
[{"$f":"VLOOKUP(E341,单位匹配!A:D,2,0)","v":"城北镇人民政府"},"城北镇乡村建设综合服务中心","工作人员","城北镇乡村建设综合服务中心工作人员",{"$f":"VLOOKUP(D341,匹配代码!A:B,2,0)","v":"1452400357"},"2145240502918",1,"卢守春","男","大学本科（技工院校预备技师（技师）班）","学士","吉林财经大学","数学与应用数学","合格"]
[{"$f":"VLOOKUP(E342,单位匹配!A:D,2,0)","v":"城北镇人民政府"},"城北镇综治行政执法队","工作人员","城北镇综治行政执法队工作人员",{"$f":"VLOOKUP(D342,匹配代码!A:B,2,0)","v":"1452400356"},"2145240502828",1,"李有秀","女","大学本科（技工院校预备技师（技师）班）","学士","闽江学院","社会工作","合格"]
[{"$f":"VLOOKUP(E343,单位匹配!A:D,2,0)","v":"柳家乡人民政府"},"柳家乡行政综合执法队","专业技术岗","柳家乡行政综合执法队专业技术岗",{"$f":"VLOOKUP(D343,匹配代码!A:B,2,0)","v":"1452400359"},"2145240503002",1,"谢芙蓉","女","大学本科（技工院校预备技师（技师）班）","学士","广西警察学院","法学","合格"]
[{"$f":"VLOOKUP(E344,单位匹配!A:D,2,0)","v":"柳家乡人民政府"},"柳家乡乡村建设综合服务中心","管理岗","柳家乡乡村建设综合服务中心管理岗",{"$f":"VLOOKUP(D344,匹配代码!A:B,2,0)","v":"1452400358"},"1145240307924",1,"黄美","女","大学本科（技工院校预备技师（技师）班）","学士","广西科技大学","工商管理","合格"]
[{"$f":"VLOOKUP(E345,单位匹配!A:D,2,0)","v":"古城镇人民政府"},"古城镇乡村建设综合服务中心","工作人员","古城镇乡村建设综合服务中心工作人员",{"$f":"VLOOKUP(D345,匹配代码!A:B,2,0)","v":"1452400360"},"2145240503019",1,"陈宇菁","女","大学本科（技工院校预备技师（技师）班）","学士","徐州工程学院","物流工程","合格"]
[{"$f":"VLOOKUP(E346,单位匹配!A:D,2,0)","v":"白沙镇人民政府"},"白沙镇乡村建设综合服务中心","工作人员一","白沙镇乡村建设综合服务中心工作人员一",{"$f":"VLOOKUP(D346,匹配代码!A:B,2,0)","v":"1452400362"},"1145240308118",1,"蒋诗琪","女","大学本科（技工院校预备技师（技师）班）","学士","天津工业大学","轻化工程","合格"]
[{"$f":"VLOOKUP(E347,单位匹配!A:D,2,0)","v":"白沙镇人民政府"},"白沙镇乡村建设综合服务中心","工作人员二","白沙镇乡村建设综合服务中心工作人员二",{"$f":"VLOOKUP(D347,匹配代码!A:B,2,0)","v":"1452400363"},"3145240603822",1,"程芳宗","男","大学本科（技工院校预备技师（技师）班）","学士","桂林理工大学博文管理学院","土木工程","合格"]
[{"$f":"VLOOKUP(E348,单位匹配!A:D,2,0)","v":"白沙镇人民政府"},"白沙镇综合行政执法队","工作人员","白沙镇综合行政执法队工作人员",{"$f":"VLOOKUP(D348,匹配代码!A:B,2,0)","v":"1452400364"},"2145240503124",1,"何依玲","女","大学本科（技工院校预备技师（技师）班）","学士","广西警察学院","监狱学","合格"]
[{"$f":"VLOOKUP(E349,单位匹配!A:D,2,0)","v":"富阳镇人民政府"},"富阳镇便民服务中心","工作人员一","富阳镇便民服务中心工作人员一",{"$f":"VLOOKUP(D349,匹配代码!A:B,2,0)","v":"1452400365"},"1145240308213",1,"蒋璐","女","大学本科（技工院校预备技师（技师）班）","学士","西南民族大学","金融学","合格"]
[{"$f":"VLOOKUP(E350,单位匹配!A:D,2,0)","v":"富阳镇人民政府"},"富阳镇便民服务中心","工作人员二","富阳镇便民服务中心工作人员二",{"$f":"VLOOKUP(D350,匹配代码!A:B,2,0)","v":"1452400366"},"1145240308221",1,"岑菊蓉","女","大学本科（技工院校预备技师（技师）班）","学士","贺州学院","汉语言文学","合格"]
[{"$f":"VLOOKUP(E351,单位匹配!A:D,2,0)","v":"富阳镇人民政府"},"富阳镇农业服务中心","工作人员","富阳镇农业服务中心工作人员",{"$f":"VLOOKUP(D351,匹配代码!A:B,2,0)","v":"1452400367"},"2145240503212",2,"徐凌峰","男","大学本科（技工院校预备技师（技师）班）","学士","湖南涉外经济学院","机械设计制造及其自动化","合格"]
[{"$f":"VLOOKUP(E352,单位匹配!A:D,2,0)","v":"富阳镇人民政府"},"富阳镇农业服务中心","工作人员","富阳镇农业服务中心工作人员",{"$f":"VLOOKUP(D352,匹配代码!A:B,2,0)","v":"1452400367"},"2145240503228",2,"奉子暄","男","大学本科（技工院校预备技师（技师）班）","学士","哈尔滨工业大学（深圳）","机械设计制造及其自动化","合格"]
[{"$f":"VLOOKUP(E353,单位匹配!A:D,2,0)","v":"富阳镇人民政府"},"富阳镇综合行政执法队","工作人员","富阳镇综合行政执法队工作人员",{"$f":"VLOOKUP(D353,匹配代码!A:B,2,0)","v":"1452400368"},"3145240603917",2,"杨冠川","女","大学本科（技工院校预备技师（技师）班）","学士","南开大学","环境科学","合格"]
[{"$f":"VLOOKUP(E354,单位匹配!A:D,2,0)","v":"富阳镇人民政府"},"富阳镇综合行政执法队","工作人员","富阳镇综合行政执法队工作人员",{"$f":"VLOOKUP(D354,匹配代码!A:B,2,0)","v":"1452400368"},"3145240603904",2,"梁淮钧","男","大学本科（技工院校预备技师（技师）班）","学士","广西大学","环境工程","合格"]
[{"$f":"VLOOKUP(E355,单位匹配!A:D,2,0)","v":"富阳镇人民政府"},"富阳镇乡村建设综合服务中心","工作人员","富阳镇乡村建设综合服务中心工作人员",{"$f":"VLOOKUP(D355,匹配代码!A:B,2,0)","v":"1452400369"},"3145240604013",1,"黄祯滴","男","大学本科（技工院校预备技师（技师）班）","学士","桂林电子科技大学","网络工程","合格"]
[{"$f":"VLOOKUP(E356,单位匹配!A:D,2,0)","v":"新华乡人民政府"},"新华乡乡村建设综合服务中心","工作人员一","新华乡乡村建设综合服务中心工作人员一",{"$f":"VLOOKUP(D356,匹配代码!A:B,2,0)","v":"1452400370"},"2145240503401",1,"俸绪崴","男","大学专科（技工院校高级工班）","","广西生态工程职业技术学院","风景园林设计","合格"]
[{"$f":"VLOOKUP(E357,单位匹配!A:D,2,0)","v":"新华乡人民政府"},"新华乡乡村建设综合服务中心","工作人员二","新华乡乡村建设综合服务中心工作人员二",{"$f":"VLOOKUP(D357,匹配代码!A:B,2,0)","v":"1452400371"},"2145240800305",1,"丁奎元","男","大学专科（技工院校高级工班）","","湖北交通职业技术学院","工程造价","合格"]
[{"$f":"VLOOKUP(E358,单位匹配!A:D,2,0)","v":"新华乡人民政府"},"新华乡乡村建设综合服务中心","工作人员三","新华乡乡村建设综合服务中心工作人员三",{"$f":"VLOOKUP(D358,匹配代码!A:B,2,0)","v":"1452400372"},"2145240801608",1,"马杰","男","大学本科（技工院校预备技师（技师）班）","无学位","桂林电子科技大学","通信工程","合格"]
[{"$f":"VLOOKUP(E359,单位匹配!A:D,2,0)","v":"新华乡人民政府"},"新华乡综合行政执法队","工作人员一","新华乡综合行政执法队工作人员一",{"$f":"VLOOKUP(D359,匹配代码!A:B,2,0)","v":"1452400373"},"2145240802025",1,"白丽云","女","大学本科（技工院校预备技师（技师）班）","","广西师范大学","法学","合格"]
[{"$f":"VLOOKUP(E360,单位匹配!A:D,2,0)","v":"新华乡人民政府"},"新华乡综合行政执法队","工作人员二","新华乡综合行政执法队工作人员二",{"$f":"VLOOKUP(D360,匹配代码!A:B,2,0)","v":"1452400374"},"2145240802113",1,"黄梅凤","女","大学本科（技工院校预备技师（技师）班）","学士","广西民族大学","会计学","合格"]
[{"$f":"VLOOKUP(E361,单位匹配!A:D,2,0)","v":"麦岭镇人民政府"},"麦岭镇综合行政执法队","专业技术岗","麦岭镇综合行政执法队专业技术岗",{"$f":"VLOOKUP(D361,匹配代码!A:B,2,0)","v":"1452400376"},"2145240802120",1,"张玉秀","女","大学本科（技工院校预备技师（技师）班）","学士","广西财经学院","财政学","合格"]
[{"$f":"VLOOKUP(E362,单位匹配!A:D,2,0)","v":"麦岭镇人民政府"},"麦岭镇农业服务中心","专业技术岗","麦岭镇农业服务中心专业技术岗",{"$f":"VLOOKUP(D362,匹配代码!A:B,2,0)","v":"1452400377"},"2145240802205",1,"何欢婷","女","大学本科（技工院校预备技师（技师）班）","学士","南宁学院","会计学","合格"]
[{"$f":"VLOOKUP(E363,单位匹配!A:D,2,0)","v":"麦岭镇人民政府"},"麦岭镇乡村建设综合服务中心","管理岗","麦岭镇乡村建设综合服务中心管理岗",{"$f":"VLOOKUP(D363,匹配代码!A:B,2,0)","v":"1452400375"},"1145240308301",1,"陈轩","男","大学本科（技工院校预备技师（技师）班）","学士","广西民族大学","法学","合格"]
[{"$f":"VLOOKUP(E364,单位匹配!A:D,2,0)","v":"石家乡人民政府"},"石家乡乡村建设综合服务中心","工作人员一","石家乡乡村建设综合服务中心工作人员一",{"$f":"VLOOKUP(D364,匹配代码!A:B,2,0)","v":"1452400378"},"3145240604026",1,"毛宾潮","男","大学本科（技工院校预备技师（技师）班）","学士","广西大学行健文理学院","风景园林","合格"]
[{"$f":"VLOOKUP(E365,单位匹配!A:D,2,0)","v":"石家乡人民政府"},"石家乡乡村建设综合服务中心","工作人员二","石家乡乡村建设综合服务中心工作人员二",{"$f":"VLOOKUP(D365,匹配代码!A:B,2,0)","v":"1452400379"},"3145240604104",1,"曾庆健","男","大学本科（技工院校预备技师（技师）班）","学士","桂林理工大学","测绘工程","合格"]
[{"$f":"VLOOKUP(E366,单位匹配!A:D,2,0)","v":"石家乡人民政府"},"石家乡乡村建设综合服务中心","工作人员三","石家乡乡村建设综合服务中心工作人员三",{"$f":"VLOOKUP(D366,匹配代码!A:B,2,0)","v":"1452400380"},"2145240802206",1,"黎俊","男","大学本科（技工院校预备技师（技师）班）","学士","广西民族师范学院","财务管理","合格"]
[{"$f":"VLOOKUP(E367,单位匹配!A:D,2,0)","v":"石家乡人民政府"},"石家乡乡村建设综合服务中心","工作人员四","石家乡乡村建设综合服务中心工作人员四",{"$f":"VLOOKUP(D367,匹配代码!A:B,2,0)","v":"1452400381"},"1145240308306",1,"廖凤美","女","大学本科（技工院校预备技师（技师）班）","学士","唐山师范学院","秘书学","合格"]
[{"$f":"VLOOKUP(E368,单位匹配!A:D,2,0)","v":"石家乡人民政府"},"石家乡便民服务中心","工作人员","石家乡便民服务中心工作人员",{"$f":"VLOOKUP(D368,匹配代码!A:B,2,0)","v":"1452400382"},"1145240308324",1,"刘小倩","女","大学本科（技工院校预备技师（技师）班）","学士","湖南城市学院","复合材料与工程","合格"]
[{"$f":"VLOOKUP(E369,单位匹配!A:D,2,0)","v":"石家乡人民政府"},"石家乡农业服务中心","工作人员二","石家乡农业服务中心工作人员二",{"$f":"VLOOKUP(D369,匹配代码!A:B,2,0)","v":"1452400384"},"1145240900102",1,"谢婷","女","大学本科（技工院校预备技师（技师）班）","学士","广西外国语学院","日语","合格"]
[{"$f":"VLOOKUP(E370,单位匹配!A:D,2,0)","v":"石家乡人民政府"},"石家乡综合行政执法队","工作人员二","石家乡综合行政执法队工作人员二",{"$f":"VLOOKUP(D370,匹配代码!A:B,2,0)","v":"1452400386"},"2145240802214",1,"陈娟","女","大学本科（技工院校预备技师（技师）班）","学士","广西民族大学","会计学","合格"]
[{"$f":"VLOOKUP(E371,单位匹配!A:D,2,0)","v":"石家乡人民政府"},"石家乡综合行政执法队","工作人员三","石家乡综合行政执法队工作人员三",{"$f":"VLOOKUP(D371,匹配代码!A:B,2,0)","v":"1452400387"},"1145240900209",1,"赖宜鑫","男","大学本科（技工院校预备技师（技师）班）","学士","南宁师范大学","环境设计","合格"]
[{"$f":"VLOOKUP(E372,单位匹配!A:D,2,0)","v":"莲山镇人民政府"},"莲山镇乡村建设综合服务中心","工作人员","莲山镇乡村建设综合服务中心工作人员",{"$f":"VLOOKUP(D372,匹配代码!A:B,2,0)","v":"1452400388"},"3145240604119",1,"林志","男","大学本科（技工院校预备技师（技师）班）","学士","广西大学","土木工程","合格"]
[{"$f":"VLOOKUP(E373,单位匹配!A:D,2,0)","v":"莲山镇人民政府"},"莲山镇综合行政执法队","工作人员","莲山镇综合行政执法队工作人员",{"$f":"VLOOKUP(D373,匹配代码!A:B,2,0)","v":"1452400389"},"2145240802218",1,"唐亚芳","女","大学本科（技工院校预备技师（技师）班）","学士","广西师范大学","法学","合格"]
[{"$f":"VLOOKUP(E374,单位匹配!A:D,2,0)","v":"莲山镇人民政府"},"莲山镇便民服务中心","工作人员一","莲山镇便民服务中心工作人员一",{"$f":"VLOOKUP(D374,匹配代码!A:B,2,0)","v":"1452400390"},"1145240900220",1,"潘耿成","男","大学本科（技工院校预备技师（技师）班）","学士","南宁学院","计算机科学与技术","合格"]
[{"$f":"VLOOKUP(E375,单位匹配!A:D,2,0)","v":"莲山镇人民政府"},"莲山镇便民服务中心","工作人员二","莲山镇便民服务中心工作人员二",{"$f":"VLOOKUP(D375,匹配代码!A:B,2,0)","v":"1452400391"},"1145240900520",2,"杨晶晶","女","大学本科（技工院校预备技师（技师）班）","学士","广西财经学院","金融学","合格"]
[{"$f":"VLOOKUP(E376,单位匹配!A:D,2,0)","v":"莲山镇人民政府"},"莲山镇便民服务中心","工作人员二","莲山镇便民服务中心工作人员二",{"$f":"VLOOKUP(D376,匹配代码!A:B,2,0)","v":"1452400391"},"1145240900521",2,"董金燕","女","大学本科（技工院校预备技师（技师）班）","学士","广西民族大学","经济学","合格"]
[{"$f":"VLOOKUP(E377,单位匹配!A:D,2,0)","v":"中共钟山县委员会"},"中国共产党钟山县委员会党校","专职教师","中国共产党钟山县委员会党校专职教师",{"$f":"VLOOKUP(D377,匹配代码!A:B,2,0)","v":"1452400436"},"2145240804503",1,"黄杏柃","女","大学","学士","湖北工程学院","思想政治教育","合格"]
[{"$f":"VLOOKUP(E378,单位匹配!A:D,2,0)","v":"钟山县人民政府办公室"},"钟山县经济合作服务中心","工作人员","钟山县经济合作服务中心工作人员",{"$f":"VLOOKUP(D378,匹配代码!A:B,2,0)","v":"1452400437"},"1145240900730",1,"陈美香","女","大学","学士","广西大学","汉语言文学","合格"]
[{"$f":"VLOOKUP(E379,单位匹配!A:D,2,0)","v":"中共钟山县委员会宣传部"},"钟山县互联网传播管理中心","工作人员","钟山县互联网传播管理中心工作人员",{"$f":"VLOOKUP(D379,匹配代码!A:B,2,0)","v":"1452400438"},"1145240900807",1,"韦德萍","女","大学","学士","广西大学","汉语言文学","合格"]
[{"$f":"VLOOKUP(E380,单位匹配!A:D,2,0)","v":"中共钟山县委员会宣传部"},"钟山县融媒体中心","播音主持","钟山县融媒体中心播音主持",{"$f":"VLOOKUP(D380,匹配代码!A:B,2,0)","v":"1452400439"},"2145240804517",1,"莫文倩","女","大学","学士","长沙学院","播音与主持艺术","合格"]
[{"$f":"VLOOKUP(E381,单位匹配!A:D,2,0)","v":"中共钟山县委员会宣传部"},"钟山县融媒体中心","记者","钟山县融媒体中心记者",{"$f":"VLOOKUP(D381,匹配代码!A:B,2,0)","v":"1452400440"},"2145240804526",1,"姚慧敏","女","大学","学士","南宁师范大学","新闻学","合格"]
[{"$f":"VLOOKUP(E382,单位匹配!A:D,2,0)","v":"中共钟山县委员会宣传部"},"钟山县融媒体中心","编辑","钟山县融媒体中心编辑",{"$f":"VLOOKUP(D382,匹配代码!A:B,2,0)","v":"1452400441"},"2145240804611",2,"车豪康","男","大学","学士","西北民族大学","广播电视编导","合格"]
[{"$f":"VLOOKUP(E383,单位匹配!A:D,2,0)","v":"中共钟山县委员会宣传部"},"钟山县融媒体中心","编辑","钟山县融媒体中心编辑",{"$f":"VLOOKUP(D383,匹配代码!A:B,2,0)","v":"1452400441"},"2145240804612",2,"吴思宇","女","大学","学士","武汉华夏理工学院","网络与新媒体","合格"]
[{"$f":"VLOOKUP(E384,单位匹配!A:D,2,0)","v":"钟山县发展和改革局"},"钟山县价格认证中心","工作人员","钟山县价格认证中心工作人员",{"$f":"VLOOKUP(D384,匹配代码!A:B,2,0)","v":"1452400442"},"1145240900909",1,"刘卫萍","女","大学","学士","广西科技师范学院","食品质量与安全","合格"]
[{"$f":"VLOOKUP(E385,单位匹配!A:D,2,0)","v":"钟山县教育局"},"钟山县青少年活动中心","工作人员","钟山县青少年活动中心工作人员",{"$f":"VLOOKUP(D385,匹配代码!A:B,2,0)","v":"1452400443"},"2145240804702",1,"陈小梅","女","大学","学士","桂林学院（原广西师范大学漓江学院）","汉语言文学","合格"]
[{"$f":"VLOOKUP(E386,单位匹配!A:D,2,0)","v":"钟山县教育局"},"钟山县花山瑶族乡民族学校","会计","钟山县花山瑶族乡民族学校会计",{"$f":"VLOOKUP(D386,匹配代码!A:B,2,0)","v":"1452400444"},"2145240804719",1,"朱玲","女","大学","学士","桂林学院（原广西师范大学漓江学院）","财务管理","合格"]
[{"$f":"VLOOKUP(E387,单位匹配!A:D,2,0)","v":"钟山县经济贸易局"},"钟山县中小企业服务中心","工作人员一","钟山县中小企业服务中心工作人员一",{"$f":"VLOOKUP(D387,匹配代码!A:B,2,0)","v":"1452400445"},"2145240804727",1,"李泓涛","女","大学","学士","山东大学","会计学","合格"]
[{"$f":"VLOOKUP(E388,单位匹配!A:D,2,0)","v":"钟山县经济贸易局"},"钟山县中小企业服务中心","工作人员二",{"$f":"B388&C388","v":"钟山县中小企业服务中心工作人员二"},{"$f":"VLOOKUP(D388,匹配代码!A:B,2,0)","v":"1452400446"},"2145240805013",1,"刘土凤","女","大学","学士","天津财经大学","市场营销","合格"]
[{"$f":"VLOOKUP(E389,单位匹配!A:D,2,0)","v":"钟山县经济贸易局"},"钟山县科学技术试验所","工作人员","钟山县科学技术试验所工作人员",{"$f":"VLOOKUP(D389,匹配代码!A:B,2,0)","v":"1452400447"},"2145240805119",1,"何涛","男","大学","学士","西南财经大学","统计学","合格"]
[{"$f":"VLOOKUP(E390,单位匹配!A:D,2,0)","v":"钟山县文化广电和旅游局"},"广西省工委历史博物馆钟山县管理所","工作人员","广西省工委历史博物馆钟山县管理所工作人员",{"$f":"VLOOKUP(D390,匹配代码!A:B,2,0)","v":"1452400448"},"2145240805210",1,"郭玉琴","女","大学","学士","广西民族大学","汉语言文学","合格"]
[{"$f":"VLOOKUP(E391,单位匹配!A:D,2,0)","v":"钟山县司法局"},"广西壮族自治区钟山县公证处","公证员","广西壮族自治区钟山县公证处公证员",{"$f":"VLOOKUP(D391,匹配代码!A:B,2,0)","v":"1452400449"},"2145240805302",1,"张梦洁","女","大学","学士","浙江工商大学","法学","合格"]
[{"$f":"VLOOKUP(E392,单位匹配!A:D,2,0)","v":"钟山县财政局"},"钟山县财政票据管理中心","工作人员一","钟山县财政票据管理中心工作人员一",{"$f":"VLOOKUP(D392,匹配代码!A:B,2,0)","v":"1452400450"},"2145240805313",1,"胡佳裕","女","大学","学士","湖北商贸学院","审计学","合格"]
[{"$f":"VLOOKUP(E393,单位匹配!A:D,2,0)","v":"钟山县财政局"},"钟山县财政票据管理中心","工作人员二","钟山县财政票据管理中心工作人员二",{"$f":"VLOOKUP(D393,匹配代码!A:B,2,0)","v":"1452400451"},"1145240901003",1,"黄杰","男","大学","学士","湘潭大学","档案学","合格"]
[{"$f":"VLOOKUP(E394,单位匹配!A:D,2,0)","v":"钟山县财政局"},"钟山县财政票据管理中心","工作人员三","钟山县财政票据管理中心工作人员三",{"$f":"VLOOKUP(D394,匹配代码!A:B,2,0)","v":"1452400452"},"1145240901012",1,"何芳萍","女","大学","学士","白城师范学院","网络与新媒体","合格"]
[{"$f":"VLOOKUP(E395,单位匹配!A:D,2,0)","v":"钟山县财政局"},"钟山县财政票据管理中心","工作人员五","钟山县财政票据管理中心工作人员五",{"$f":"VLOOKUP(D395,匹配代码!A:B,2,0)","v":"1452400454"},"2145240805318",1,"黎正婕","女","大学","学士","广西民族大学相思湖学院","税收学","合格"]
[{"$f":"VLOOKUP(E396,单位匹配!A:D,2,0)","v":"钟山县自然资源局"},"钟山县不动产登记服务中心","测绘人员","钟山县不动产登记服务中心测绘人员",{"$f":"VLOOKUP(D396,匹配代码!A:B,2,0)","v":"1452400455"},"2145240805323",2,"朱家将","男","大学","学士","北部湾大学","测绘工程","合格"]
[{"$f":"VLOOKUP(E397,单位匹配!A:D,2,0)","v":"钟山县自然资源局"},"钟山县不动产登记服务中心","测绘人员","钟山县不动产登记服务中心测绘人员",{"$f":"VLOOKUP(D397,匹配代码!A:B,2,0)","v":"1452400455"},"2145240805321",2,"李光夏","男","大学","学士","柳州工学院","测绘工程","合格"]
[{"$f":"VLOOKUP(E398,单位匹配!A:D,2,0)","v":"钟山县林业局"},"钟山县林业技术推广站","工作人员","钟山县林业技术推广站工作人员",{"$f":"VLOOKUP(D398,匹配代码!A:B,2,0)","v":"1452400456"},"1145240901022",1,"张莹","女","大学","学士","桂林理工大学博文管理学院","汉语言文学","合格"]
[{"$f":"VLOOKUP(E399,单位匹配!A:D,2,0)","v":"钟山县林业局"},"钟山县国营花山林场","工作人员一","钟山县国营花山林场工作人员一",{"$f":"VLOOKUP(D399,匹配代码!A:B,2,0)","v":"1452400457"},"3145240605410",2,"覃睿","女","大学","学士","昆明学院","园林","合格"]
[{"$f":"VLOOKUP(E400,单位匹配!A:D,2,0)","v":"钟山县林业局"},"钟山县国营花山林场","工作人员一","钟山县国营花山林场工作人员一",{"$f":"VLOOKUP(D400,匹配代码!A:B,2,0)","v":"1452400457"},"3145240605409",2,"杨情","女","大学","学士","河南城建学院","园林","合格"]
[{"$f":"VLOOKUP(E401,单位匹配!A:D,2,0)","v":"钟山县林业局"},"钟山县国营花山林场","工作人员二","钟山县国营花山林场工作人员二",{"$f":"VLOOKUP(D401,匹配代码!A:B,2,0)","v":"1452400458"},"3145240605423",1,"麦新民","男","大学","学士","广西财经学院","会计学","合格"]
[{"$f":"VLOOKUP(E402,单位匹配!A:D,2,0)","v":"钟山县林业局"},"钟山县国营花山林场","工作人员三","钟山县国营花山林场工作人员三",{"$f":"VLOOKUP(D402,匹配代码!A:B,2,0)","v":"1452400459"},"1145240901105",1,"董金英","女","大学","学士","黑龙江八一农垦大学","园林","合格"]
[{"$f":"VLOOKUP(E403,单位匹配!A:D,2,0)","v":"钟山县水利局"},"钟山县水土保持站","工作人员","钟山县水土保持站工作人员",{"$f":"VLOOKUP(D403,匹配代码!A:B,2,0)","v":"1452400460"},"3145240605427",1,"杨慧君","女","大学","学士","江苏师范大学","测绘工程","合格"]
[{"$f":"VLOOKUP(E404,单位匹配!A:D,2,0)","v":"钟山县水利局"},"钟山县水旱灾害防御站","工作人员一","钟山县水旱灾害防御站工作人员一",{"$f":"VLOOKUP(D404,匹配代码!A:B,2,0)","v":"1452400461"},"3145240605514",1,"李水英","女","大学","学士","桂林理工大学","机械设计制造及其自动化","合格"]
[{"$f":"VLOOKUP(E405,单位匹配!A:D,2,0)","v":"钟山县水利局"},"钟山县水旱灾害防御站","工作人员二","钟山县水旱灾害防御站工作人员二",{"$f":"VLOOKUP(D405,匹配代码!A:B,2,0)","v":"1452400462"},"3145240605527",1,"肖惠方","女","大学","学士","广东海洋大学寸金学院","工程管理","合格"]
[{"$f":"VLOOKUP(E406,单位匹配!A:D,2,0)","v":"钟山县水利局"},"钟山县水利水电工程质量与安全监督管理站","工作人员","钟山县水利水电工程质量与安全监督管理站工作人员",{"$f":"VLOOKUP(D406,匹配代码!A:B,2,0)","v":"1452400463"},"3145240605611",2,"廖富妹","女","大学","学士","长沙理工大学","水文与水资源工程","合格"]
[{"$f":"VLOOKUP(E407,单位匹配!A:D,2,0)","v":"钟山县水利局"},"钟山县水利水电工程质量与安全监督管理站","工作人员","钟山县水利水电工程质量与安全监督管理站工作人员",{"$f":"VLOOKUP(D407,匹配代码!A:B,2,0)","v":"1452400463"},"3145240605612",2,"马秀盛","男","大学","学士","桂林理工大学","水文与水资源工程","合格"]
[{"$f":"VLOOKUP(E408,单位匹配!A:D,2,0)","v":"钟山县水利局"},"钟山县龙潭水库工程管理所","工作人员一","钟山县龙潭水库工程管理所工作人员一",{"$f":"VLOOKUP(D408,匹配代码!A:B,2,0)","v":"1452400464"},"3145240605617",1,"董永年","男","大学","学士","广西科技大学","土木工程","合格"]
[{"$f":"VLOOKUP(E409,单位匹配!A:D,2,0)","v":"钟山县水利局"},"钟山县龙潭水库工程管理所","工作人员二","钟山县龙潭水库工程管理所工作人员二",{"$f":"VLOOKUP(D409,匹配代码!A:B,2,0)","v":"1452400465"},"3145240605626",2,"梁永岗","男","大学","学士","桂林理工大学","水文与水资源工程","合格"]
[{"$f":"VLOOKUP(E410,单位匹配!A:D,2,0)","v":"钟山县农业农村局"},"钟山县农业机械化服务中心","工作人员一","钟山县农业机械化服务中心工作人员一",{"$f":"VLOOKUP(D410,匹配代码!A:B,2,0)","v":"1452400466"},"2145240805405",1,"邓丽连","女","大学","学士","广西民族师范学院","汉语言文学","合格"]
[{"$f":"VLOOKUP(E411,单位匹配!A:D,2,0)","v":"钟山县农业农村局"},"钟山县农业机械化服务中心","工作人员二","钟山县农业机械化服务中心工作人员二",{"$f":"VLOOKUP(D411,匹配代码!A:B,2,0)","v":"1452400467"},"2145240805503",2,"周阳威","男","大学","学士","上海第二工业大学","车辆工程","合格"]
[{"$f":"VLOOKUP(E412,单位匹配!A:D,2,0)","v":"钟山县农业农村局"},"钟山县种子与种植业工作站","工作人员一","钟山县种子与种植业工作站工作人员一",{"$f":"VLOOKUP(D412,匹配代码!A:B,2,0)","v":"1452400468"},"2145240805625",1,"苏语歆","女","大学","学士","南宁学院","会计学","合格"]
[{"$f":"VLOOKUP(E413,单位匹配!A:D,2,0)","v":"钟山县农业农村局"},"钟山县种子与种植业工作站","工作人员二","钟山县种子与种植业工作站工作人员二",{"$f":"VLOOKUP(D413,匹配代码!A:B,2,0)","v":"1452400469"},"2145240805702",2,"黎玉雪","女","大学","学士","广西大学","农学","合格"]
[{"$f":"VLOOKUP(E414,单位匹配!A:D,2,0)","v":"钟山县农业农村局"},"钟山县种子与种植业工作站","工作人员二","钟山县种子与种植业工作站工作人员二",{"$f":"VLOOKUP(D414,匹配代码!A:B,2,0)","v":"1452400469"},"2145240805706",2,"陈宴帅","男","大学","学士","广西农业职业技术大学","设施园艺","合格"]
[{"$f":"VLOOKUP(E415,单位匹配!A:D,2,0)","v":"钟山县农业农村局"},"钟山县水产畜牧站","工作人员","钟山县水产畜牧站工作人员",{"$f":"VLOOKUP(D415,匹配代码!A:B,2,0)","v":"1452400470"},"2145240805708",1,"冯钰婷","女","大学","学士","湖南应用技术学院","水产养殖学","合格"]
[{"$f":"VLOOKUP(E416,单位匹配!A:D,2,0)","v":"钟山县农业农村局"},"钟山县动物疫病预防控制中心","工作人员","钟山县动物疫病预防控制中心工作人员",{"$f":"VLOOKUP(D416,匹配代码!A:B,2,0)","v":"1452400471"},"2145240805711",1,"欧兵","男","大学","学士","天津农学院","动物医学（小动物医学方向）","合格"]
[{"$f":"VLOOKUP(E417,单位匹配!A:D,2,0)","v":"钟山县农业农村局"},"钟山县土壤肥料生态站","工作人员","钟山县土壤肥料生态站工作人员",{"$f":"VLOOKUP(D417,匹配代码!A:B,2,0)","v":"1452400472"},"2145240805715",1,"贺爽","女","大学","学士","云南农业大学","水土保持与荒漠化防治","合格"]
[{"$f":"VLOOKUP(E418,单位匹配!A:D,2,0)","v":"钟山县农业农村局"},"钟山县植保植检站","工作人员","钟山县植保植检站工作人员",{"$f":"VLOOKUP(D418,匹配代码!A:B,2,0)","v":"1452400473"},"2145240805716",1,"黎思盈","女","大学","学士","甘肃农业大学","种子科学与工程","合格"]
[{"$f":"VLOOKUP(E419,单位匹配!A:D,2,0)","v":"钟山县农业农村局"},"钟山县村级集体经济发展中心","工作人员","钟山县村级集体经济发展中心工作人员",{"$f":"VLOOKUP(D419,匹配代码!A:B,2,0)","v":"1452400474"},"1145240901110",1,"李慜琪","女","大学","学士","百色学院","工程管理（房地产经营与管理）","合格"]
[{"$f":"VLOOKUP(E420,单位匹配!A:D,2,0)","v":"钟山县文化广电和旅游局"},"钟山县图书馆","工作人员","钟山县图书馆工作人员",{"$f":"VLOOKUP(D420,匹配代码!A:B,2,0)","v":"1452400475"},"2145240806001",1,"杨秋英","女","大学","学士","山东工商学院","软件工程","合格"]
[{"$f":"VLOOKUP(E421,单位匹配!A:D,2,0)","v":"钟山县文化广电和旅游局"},"钟山县文化馆","会计","钟山县文化馆会计",{"$f":"VLOOKUP(D421,匹配代码!A:B,2,0)","v":"1452400476"},"2145240806008",1,"刘建丹","女","大学","学士","南宁学院","会计学","合格"]
[{"$f":"VLOOKUP(E422,单位匹配!A:D,2,0)","v":"钟山县文化广电和旅游局"},"钟山县业余体育学校","拳击教练员","钟山县业余体育学校拳击教练员",{"$f":"VLOOKUP(D422,匹配代码!A:B,2,0)","v":"1452400477"},"2145240806028",1,"陈致坚","男","大学","学士","成都体育学院","运动训练","合格"]
[{"$f":"VLOOKUP(E423,单位匹配!A:D,2,0)","v":"钟山县文化广电和旅游局"},"钟山县文化旅游发展中心","管理人员","钟山县文化旅游发展中心管理人员",{"$f":"VLOOKUP(D423,匹配代码!A:B,2,0)","v":"1452400478"},"1145240901402",1,"周永嘉","男","大学","学士","桂林理工大学","旅游管理","合格"]
[{"$f":"VLOOKUP(E424,单位匹配!A:D,2,0)","v":"钟山县科学技术协会"},"钟山县科学技术馆","工作人员一","钟山县科学技术馆工作人员一",{"$f":"VLOOKUP(D424,匹配代码!A:B,2,0)","v":"1452400479"},"1145240901420",1,"岑冰","女","大学","学士","台州学院","财务管理","合格"]
[{"$f":"VLOOKUP(E425,单位匹配!A:D,2,0)","v":"钟山县科学技术协会"},"钟山县科学技术馆","工作人员二","钟山县科学技术馆工作人员二",{"$f":"VLOOKUP(D425,匹配代码!A:B,2,0)","v":"1452400480"},"1145240901429",1,"陈美调","女","大学","学士","青岛农业大学","公共事业管理","合格"]
[{"$f":"VLOOKUP(E426,单位匹配!A:D,2,0)","v":"钟山县应急管理局"},"钟山县应急救援指挥中心","专业技术人员一","钟山县应急救援指挥中心专业技术人员一",{"$f":"VLOOKUP(D426,匹配代码!A:B,2,0)","v":"1452400481"},"2145240806102",1,"王绪忠","男","大学","学士","广西大学","矿物资源工程","合格"]
[{"$f":"VLOOKUP(E427,单位匹配!A:D,2,0)","v":"钟山县应急管理局"},"钟山县应急救援指挥中心","专业技术人员三","钟山县应急救援指挥中心专业技术人员三",{"$f":"VLOOKUP(D427,匹配代码!A:B,2,0)","v":"1452400483"},"2145240806105",1,"陈泰斗","男","大学","学士","天津理工大学","资源循环科学与工程","合格"]
[{"$f":"VLOOKUP(E428,单位匹配!A:D,2,0)","v":"钟山县卫生健康局"},"钟山县人民医院","内科医师","钟山县人民医院内科医师",{"$f":"VLOOKUP(D428,匹配代码!A:B,2,0)","v":"1452400484"},"5245240502309",4,"莫绍培","男","大学","学士","广西科技大学","临床医学","合格"]
[{"$f":"VLOOKUP(E429,单位匹配!A:D,2,0)","v":"钟山县卫生健康局"},"钟山县人民医院","内科医师","钟山县人民医院内科医师",{"$f":"VLOOKUP(D429,匹配代码!A:B,2,0)","v":"1452400484"},"5245240502307",4,"姚莹莹","女","大学","学士","桂林医学院","临床医学","合格"]
[{"$f":"VLOOKUP(E430,单位匹配!A:D,2,0)","v":"钟山县卫生健康局"},"钟山县人民医院","内科医师","钟山县人民医院内科医师",{"$f":"VLOOKUP(D430,匹配代码!A:B,2,0)","v":"1452400484"},"5245240502308",4,"梁智丽","女","大学","学士","右江民族医学院","临床医学","合格"]
[{"$f":"VLOOKUP(E431,单位匹配!A:D,2,0)","v":"钟山县卫生健康局"},"钟山县人民医院","眼耳鼻咽喉科医师","钟山县人民医院眼耳鼻咽喉科医师",{"$f":"VLOOKUP(D431,匹配代码!A:B,2,0)","v":"1452400489"},"5245240502311",1,"潘国启","男","大学","学士","山西长治医学院","临床医学","合格"]
[{"$f":"VLOOKUP(E432,单位匹配!A:D,2,0)","v":"钟山县卫生健康局"},"钟山县回龙镇卫生院","内科医生","钟山县回龙镇卫生院内科医生",{"$f":"VLOOKUP(D432,匹配代码!A:B,2,0)","v":"1452400491"},"5245240502314",2,"李振胜","男","大专",null,"广西卫生职业技术学院","临床医学","合格"]
[{"$f":"VLOOKUP(E433,单位匹配!A:D,2,0)","v":"钟山县卫生健康局"},"钟山县疾病预防控制中心","公共卫生医师","钟山县疾病预防控制中心公共卫生医师",{"$f":"VLOOKUP(D433,匹配代码!A:B,2,0)","v":"1452400496"},"5645240500501",2,"蒋潇逸","女","大学","学士","四川大学","预防医学","合格"]
[{"$f":"VLOOKUP(E434,单位匹配!A:D,2,0)","v":"钟山县卫生健康局"},"钟山县疾病预防控制中心","公共卫生医师","钟山县疾病预防控制中心公共卫生医师",{"$f":"VLOOKUP(D434,匹配代码!A:B,2,0)","v":"1452400496"},"5645240500503",2,"黄子建","男","大学","学士","右江民族医学院","预防医学","合格"]
[{"$f":"VLOOKUP(E435,单位匹配!A:D,2,0)","v":"钟山县卫生健康局"},"钟山县石龙中心卫生院","中医科医生","钟山县石龙中心卫生院中医科医生",{"$f":"VLOOKUP(D435,匹配代码!A:B,2,0)","v":"1452400497"},"5145240502415",1,"杨盛健","男","大专",null,"江西中医药高等专科学校","中医学","合格"]
[{"$f":"VLOOKUP(E436,单位匹配!A:D,2,0)","v":"钟山县卫生健康局"},"钟山县石龙中心卫生院","临床护士","钟山县石龙中心卫生院临床护士",{"$f":"VLOOKUP(D436,匹配代码!A:B,2,0)","v":"1452400498"},"5445240501306",2,"陈若涵","女","大学","学士","桂林医学院","护理学","合格"]
[{"$f":"VLOOKUP(E437,单位匹配!A:D,2,0)","v":"钟山县卫生健康局"},"钟山县中医医院","内科医生一","钟山县中医医院内科医生一",{"$f":"VLOOKUP(D437,匹配代码!A:B,2,0)","v":"1452400501"},"5145240502417",1,"盘世玉","女","大学","学士","广西中医药大学赛恩斯新医药学院","中医","合格"]
[{"$f":"VLOOKUP(E438,单位匹配!A:D,2,0)","v":"钟山县卫生健康局"},"钟山县中医医院","内科医生二","钟山县中医医院内科医生二",{"$f":"VLOOKUP(D438,匹配代码!A:B,2,0)","v":"1452400502"},"5145240502419",1,"钟毅","男","大学","学士","广西中医药大学","针灸推拿学","合格"]
[{"$f":"VLOOKUP(E439,单位匹配!A:D,2,0)","v":"钟山县卫生健康局"},"钟山县中医医院","临床护士二","钟山县中医医院临床护士二",{"$f":"VLOOKUP(D439,匹配代码!A:B,2,0)","v":"1452400504"},"5445240501810",1,"欧华英","女","大学","学士","广西中医药大学","护理学","合格"]
[{"$f":"VLOOKUP(E440,单位匹配!A:D,2,0)","v":"钟山县卫生健康局"},"钟山县中医医院","财务人员","钟山县中医医院财务人员",{"$f":"VLOOKUP(D440,匹配代码!A:B,2,0)","v":"1452400505"},"2145240806209",1,"曾思思","女","大学","学士","广西职业师范学院","财务会计教育","合格"]
[{"$f":"VLOOKUP(E441,单位匹配!A:D,2,0)","v":"钟山县卫生健康局"},"钟山县珊瑚镇卫生院","临床医师","钟山县珊瑚镇卫生院临床医师",{"$f":"VLOOKUP(D441,匹配代码!A:B,2,0)","v":"1452400506"},"5245240502317",1,"吴源佳","女","大专",null,"黔南民族医学高等专科学校","临床医学","合格"]
[{"$f":"VLOOKUP(E442,单位匹配!A:D,2,0)","v":"钟山县卫生健康局"},"钟山县妇幼保健院","妇产科医师","钟山县妇幼保健院妇产科医师",{"$f":"VLOOKUP(D442,匹配代码!A:B,2,0)","v":"1452400510"},"5245240502318",1,"潘娇艳","女","大学","学士","广西科技大学","临床医学","合格"]
[{"$f":"VLOOKUP(E443,单位匹配!A:D,2,0)","v":"钟山县卫生健康局"},"钟山县钟山镇卫生院","外科医生","钟山县钟山镇卫生院外科医生",{"$f":"VLOOKUP(D443,匹配代码!A:B,2,0)","v":"1452400512"},"5245240502320",2,"李小美","女","大学","学士","广西科技大学","临床医学","合格"]
[{"$f":"VLOOKUP(E444,单位匹配!A:D,2,0)","v":"钟山县卫生健康局"},"钟山县钟山镇卫生院","五官科医生","钟山县钟山镇卫生院五官科医生",{"$f":"VLOOKUP(D444,匹配代码!A:B,2,0)","v":"1452400513"},"5245240502326",1,"邹叶红","女","大学","学士","广西科技大学","临床医学","合格"]
[{"$f":"VLOOKUP(E445,单位匹配!A:D,2,0)","v":"钟山县卫生健康局"},"钟山县钟山镇卫生院","妇产科医生","钟山县钟山镇卫生院妇产科医生",{"$f":"VLOOKUP(D445,匹配代码!A:B,2,0)","v":"1452400514"},"5245240502327",1,"董诗琦","女","大专",null,"广西医科大学","临床医学","合格"]
[{"$f":"VLOOKUP(E446,单位匹配!A:D,2,0)","v":"钟山县卫生健康局"},"钟山县红花镇中心卫生院","临床医师","钟山县红花镇中心卫生院临床医师",{"$f":"VLOOKUP(D446,匹配代码!A:B,2,0)","v":"1452400516"},"5145240502421",1,"叶良恩","男","大专",null,"广西中医药大学","针灸推拿","合格"]
[{"$f":"VLOOKUP(E447,单位匹配!A:D,2,0)","v":"钟山县同古镇人民政府"},"钟山县同古镇综合行政执法队","工作人员","钟山县同古镇综合行政执法队工作人员",{"$f":"VLOOKUP(D447,匹配代码!A:B,2,0)","v":"1452400520"},"1145240901523",1,"莫炳秀","男","大学","学士","南宁学院","工程造价","合格"]
[{"$f":"VLOOKUP(E448,单位匹配!A:D,2,0)","v":"钟山县同古镇人民政府"},"钟山县同古镇便民服务中心","工作人员","钟山县同古镇便民服务中心工作人员",{"$f":"VLOOKUP(D448,匹配代码!A:B,2,0)","v":"1452400521"},"1145240901602",1,"陶昱宗","男","大学","学士","玉林师范学院","环境设计","合格"]
[{"$f":"VLOOKUP(E449,单位匹配!A:D,2,0)","v":"钟山县珊瑚镇人民政府"},"钟山县珊瑚镇乡村建设综合服务中心","工作人员一","钟山县珊瑚镇乡村建设综合服务中心工作人员一",{"$f":"VLOOKUP(D449,匹配代码!A:B,2,0)","v":"1452400522"},"1145240901609",1,"周勇","男","大学","学士","柳州工学院","建筑学","合格"]
[{"$f":"VLOOKUP(E450,单位匹配!A:D,2,0)","v":"钟山县珊瑚镇人民政府"},"钟山县珊瑚镇乡村建设综合服务中心","工作人员二","钟山县珊瑚镇乡村建设综合服务中心工作人员二",{"$f":"VLOOKUP(D450,匹配代码!A:B,2,0)","v":"1452400523"},"1145240901618",1,"沈太金","男","大学","学士","桂林理工大学","信息与计算科学","合格"]
[{"$f":"VLOOKUP(E451,单位匹配!A:D,2,0)","v":"钟山县红花镇人民政府"},"钟山县红花镇便民服务中心","工作人员","钟山县红花镇便民服务中心工作人员",{"$f":"VLOOKUP(D451,匹配代码!A:B,2,0)","v":"1452400525"},"1145240901910",1,"徐成翰","男","大学","学士","南宁师范大学","法学","合格"]
[{"$f":"VLOOKUP(E452,单位匹配!A:D,2,0)","v":"钟山县清塘镇人民政府"},"钟山县清塘镇便民服务中心","财会人员",{"$f":"B452&C452","v":"钟山县清塘镇便民服务中心财会人员"},{"$f":"VLOOKUP(D452,匹配代码!A:B,2,0)","v":"1452400526"},"1145240901915",1,"雷坤侃","男","大学","学士","广西科技大学","会计学","合格"]
[{"$f":"VLOOKUP(E453,单位匹配!A:D,2,0)","v":"钟山县清塘镇人民政府"},"钟山县清塘镇综合行政执法队","工作人员",{"$f":"B453&C453","v":"钟山县清塘镇综合行政执法队工作人员"},{"$f":"VLOOKUP(D453,匹配代码!A:B,2,0)","v":"1452400528"},"1145240902023",1,"张晴","女","大学","学士","贺州学院","服装与服饰设计","合格"]
[{"$f":"VLOOKUP(E454,单位匹配!A:D,2,0)","v":"钟山县清塘镇人民政府"},"钟山县清塘镇综合行政执法队","财会人员",{"$f":"B454&C454","v":"钟山县清塘镇综合行政执法队财会人员"},{"$f":"VLOOKUP(D454,匹配代码!A:B,2,0)","v":"1452400529"},"2145240806227",1,"董阿春","女","大学","学士","南宁学院","财务管理","合格"]
[{"$f":"VLOOKUP(E455,单位匹配!A:D,2,0)","v":"钟山县清塘镇人民政府"},"钟山县清塘镇乡村建设综合服务中心","工作人员",{"$f":"B455&C455","v":"钟山县清塘镇乡村建设综合服务中心工作人员"},{"$f":"VLOOKUP(D455,匹配代码!A:B,2,0)","v":"1452400530"},"1145240902108",1,"李霖东","男","大学","学士","桂林电子科技大学","交通工程","合格"]
[{"$f":"VLOOKUP(E456,单位匹配!A:D,2,0)","v":"钟山县凤翔镇人民政府"},"钟山县凤翔镇便民服务中心","工作人员",{"$f":"B456&C456","v":"钟山县凤翔镇便民服务中心工作人员"},{"$f":"VLOOKUP(D456,匹配代码!A:B,2,0)","v":"1452400531"},"1145240902124",1,"张恒睿","男","大学","学士","广西大学","会计学","合格"]
[{"$f":"VLOOKUP(E457,单位匹配!A:D,2,0)","v":"钟山县凤翔镇人民政府"},"钟山县凤翔镇乡村建设综合服务中心","工作人员",{"$f":"B457&C457","v":"钟山县凤翔镇乡村建设综合服务中心工作人员"},{"$f":"VLOOKUP(D457,匹配代码!A:B,2,0)","v":"1452400532"},"1145240902127",1,"莫钦敦","男","大学","学士","桂林理工大学","地下水科学与工程","合格"]
[{"$f":"VLOOKUP(E458,单位匹配!A:D,2,0)","v":"钟山县凤翔镇人民政府"},"钟山县凤翔镇综合行政执法队","工作人员",{"$f":"B458&C458","v":"钟山县凤翔镇综合行政执法队工作人员"},{"$f":"VLOOKUP(D458,匹配代码!A:B,2,0)","v":"1452400533"},"1145240902207",1,"潘海丽","女","大学","学士","九江学院","法学","合格"]
[{"$f":"VLOOKUP(E459,单位匹配!A:D,2,0)","v":"钟山县钟山镇人民政府"},"钟山县钟山镇便民服务中心","工作人员一",{"$f":"B459&C459","v":"钟山县钟山镇便民服务中心工作人员一"},{"$f":"VLOOKUP(D459,匹配代码!A:B,2,0)","v":"1452400534"},"1145240902830",2,"潘明花","女","大学","学士","广西师范大学","电子信息工程","合格"]
[{"$f":"VLOOKUP(E460,单位匹配!A:D,2,0)","v":"钟山县钟山镇人民政府"},"钟山县钟山镇便民服务中心","工作人员一",{"$f":"B460&C460","v":"钟山县钟山镇便民服务中心工作人员一"},{"$f":"VLOOKUP(D460,匹配代码!A:B,2,0)","v":"1452400534"},"1145240902807",2,"谢雨欣","女","大学","学士","天津商业大学","包装工程","合格"]
[{"$f":"VLOOKUP(E461,单位匹配!A:D,2,0)","v":"钟山县钟山镇人民政府"},"钟山县钟山镇便民服务中心","工作人员二",{"$f":"B461&C461","v":"钟山县钟山镇便民服务中心工作人员二"},{"$f":"VLOOKUP(D461,匹配代码!A:B,2,0)","v":"1452400535"},"1145240902919",1,"周云亮","男","大学","学士","华中农业大学楚天学院","生物工程","合格"]
[{"$f":"VLOOKUP(E462,单位匹配!A:D,2,0)","v":"钟山县钟山镇人民政府"},"钟山县钟山镇农业服务中心","工作人员",{"$f":"B462&C462","v":"钟山县钟山镇农业服务中心工作人员"},{"$f":"VLOOKUP(D462,匹配代码!A:B,2,0)","v":"1452400536"},"3145240605629",1,"虞华颖","男","大学","学士","四川农业大学","农业机械化及其自动化","合格"]
[{"$f":"VLOOKUP(E463,单位匹配!A:D,2,0)","v":"钟山县钟山镇人民政府"},"钟山县钟山镇乡村建设综合服务中心","工作人员一",{"$f":"B463&C463","v":"钟山县钟山镇乡村建设综合服务中心工作人员一"},{"$f":"VLOOKUP(D463,匹配代码!A:B,2,0)","v":"1452400537"},"2145240806426",1,"莫丽英","女","大学","学士","武汉理工大学","地理信息科学","合格"]
[{"$f":"VLOOKUP(E464,单位匹配!A:D,2,0)","v":"钟山县钟山镇人民政府"},"钟山县钟山镇乡村建设综合服务中心","工作人员二",{"$f":"B464&C464","v":"钟山县钟山镇乡村建设综合服务中心工作人员二"},{"$f":"VLOOKUP(D464,匹配代码!A:B,2,0)","v":"1452400538"},"2145240806625",1,"吴淑惠","女","大学","学士","广西大学","英语","合格"]
[{"$f":"VLOOKUP(E465,单位匹配!A:D,2,0)","v":"钟山县公安镇人民政府"},"钟山县公安镇便民服务中心","工作人员一",{"$f":"B465&C465","v":"钟山县公安镇便民服务中心工作人员一"},{"$f":"VLOOKUP(D465,匹配代码!A:B,2,0)","v":"1452400539"},"1145240902925",1,"杨小红","女","大学","学士","遵义医科大学","英语","合格"]
[{"$f":"VLOOKUP(E466,单位匹配!A:D,2,0)","v":"钟山县公安镇人民政府"},"钟山县公安镇便民服务中心","工作人员二",{"$f":"B466&C466","v":"钟山县公安镇便民服务中心工作人员二"},{"$f":"VLOOKUP(D466,匹配代码!A:B,2,0)","v":"1452400540"},"1145240903029",1,"隆玉秋","女","大学","学士","南宁师范大学","公共事业管理","合格"]
[{"$f":"VLOOKUP(E467,单位匹配!A:D,2,0)","v":"钟山县公安镇人民政府"},"钟山县公安镇乡村建设综合服务中心","工作人员",{"$f":"B467&C467","v":"钟山县公安镇乡村建设综合服务中心工作人员"},{"$f":"VLOOKUP(D467,匹配代码!A:B,2,0)","v":"1452400541"},"2145240806801",1,"朱小英","女","大学","学士","广西财经学院","人文地理与城乡规划","合格"]
[{"$f":"VLOOKUP(E468,单位匹配!A:D,2,0)","v":"钟山县两安瑶族乡人民政府"},"钟山县两安瑶族乡乡村建设综合服务中心","技术人员",{"$f":"B468&C468","v":"钟山县两安瑶族乡乡村建设综合服务中心技术人员"},{"$f":"VLOOKUP(D468,匹配代码!A:B,2,0)","v":"1452400542"},"3145240605704",1,"陆丹丹","女","大学","学士","扬州大学","建筑学","合格"]
[{"$f":"VLOOKUP(E469,单位匹配!A:D,2,0)","v":"钟山县两安瑶族乡人民政府"},"钟山县两安瑶族乡综合行政执法队","技术人员",{"$f":"B469&C469","v":"钟山县两安瑶族乡综合行政执法队技术人员"},{"$f":"VLOOKUP(D469,匹配代码!A:B,2,0)","v":"1452400543"},"2145240806815",1,"廖燕燕","女","大学","学士","华南师范大学","法学","合格"]
[{"$f":"VLOOKUP(E470,单位匹配!A:D,2,0)","v":"钟山县两安瑶族乡人民政府"},"钟山县两安瑶族乡农业服务中心","技术人员",{"$f":"B470&C470","v":"钟山县两安瑶族乡农业服务中心技术人员"},{"$f":"VLOOKUP(D470,匹配代码!A:B,2,0)","v":"1452400544"},"3145240605711",1,"钟宁贵","男","大学","学士","广西大学","畜牧兽医","合格"]
[{"$f":"VLOOKUP(E471,单位匹配!A:D,2,0)","v":"钟山县两安瑶族乡人民政府"},"钟山县两安瑶族乡农业服务中心","技术人员",{"$f":"B471&C471","v":"钟山县两安瑶族乡农业服务中心技术人员"},{"$f":"VLOOKUP(D471,匹配代码!A:B,2,0)","v":"1452400544"},"1145240903204",1,"徐步坤","男","大学","学士","广西职业师范学院","市场营销教育","合格"]
[{"$f":"VLOOKUP(E472,单位匹配!A:D,2,0)","v":"钟山县两安瑶族乡人民政府"},"钟山县两安瑶族乡农业服务中心","技术人员",{"$f":"B472&C472","v":"钟山县两安瑶族乡农业服务中心技术人员"},{"$f":"VLOOKUP(D472,匹配代码!A:B,2,0)","v":"1452400544"},"2145240806817",1,"黄晨","女","大学","学士","桂林理工大学","广告学","合格"]
[{"$f":"VLOOKUP(E473,单位匹配!A:D,2,0)","v":"钟山县燕塘镇人民政府"},"钟山县燕塘镇便民服务中心","工作人员",{"$f":"B473&C473","v":"钟山县燕塘镇便民服务中心工作人员"},{"$f":"VLOOKUP(D473,匹配代码!A:B,2,0)","v":"1452400547"},"1145240903209",1,"郭鑫","女","大学","学士","广西外国语学院","新闻学","合格"]
[{"$f":"VLOOKUP(E474,单位匹配!A:D,2,0)","v":"钟山县燕塘镇人民政府"},"钟山县燕塘镇便民服务中心","专技人员",{"$f":"B474&C474","v":"钟山县燕塘镇便民服务中心专技人员"},{"$f":"VLOOKUP(D474,匹配代码!A:B,2,0)","v":"1452400548"},"2145240806827",1,"林艳兰","女","大学","学士","莆田学院","财务管理","合格"]
[{"$f":"VLOOKUP(E475,单位匹配!A:D,2,0)","v":"钟山县燕塘镇人民政府"},"钟山县燕塘镇农业服务中心","专技人员",{"$f":"B475&C475","v":"钟山县燕塘镇农业服务中心专技人员"},{"$f":"VLOOKUP(D475,匹配代码!A:B,2,0)","v":"1452400549"},"3145240605713",2,"董慧芸","女","大学","学士","新疆农业大学","农学","合格"]
[{"$f":"VLOOKUP(E476,单位匹配!A:D,2,0)","v":"钟山县燕塘镇人民政府"},"钟山县燕塘镇农业服务中心","专技人员",{"$f":"B476&C476","v":"钟山县燕塘镇农业服务中心专技人员"},{"$f":"VLOOKUP(D476,匹配代码!A:B,2,0)","v":"1452400549"},"3145240605712",2,"陈新袁","男","大学","学士","天津农学院","海洋渔业科学与技术","合格"]
[{"$f":"VLOOKUP(E477,单位匹配!A:D,2,0)","v":"钟山县燕塘镇人民政府"},"钟山县燕塘镇综合行政执法队","工作人员一",{"$f":"B477&C477","v":"钟山县燕塘镇综合行政执法队工作人员一"},{"$f":"VLOOKUP(D477,匹配代码!A:B,2,0)","v":"1452400550"},"1145240903220",1,"陶小云","女","大学","学士","玉林师范学院","法学","合格"]
[{"$f":"VLOOKUP(E478,单位匹配!A:D,2,0)","v":"钟山县燕塘镇人民政府"},"钟山县燕塘镇综合行政执法队","工作人员二",{"$f":"B478&C478","v":"钟山县燕塘镇综合行政执法队工作人员二"},{"$f":"VLOOKUP(D478,匹配代码!A:B,2,0)","v":"1452400551"},"1145240903305",1,"贺晨乔","男","大学","学士","广西大学行健文理学院","汉语言文学","合格"]

{"sheet":"匹配代码","index":2,"n_rows":552,"n_cols":5,"rows_kept":552}
[null,"岗位编码","主管部门","招聘单位","招聘岗位名称"]
["贺州市交通运输综合行政执法支队工作人员一","1452400001","贺州市交通运输局","贺州市交通运输综合行政执法支队","工作人员一"]
["贺州市交通运输综合行政执法支队工作人员二","1452400002","贺州市交通运输局","贺州市交通运输综合行政执法支队","工作人员二"]
["贺州市交通运输综合行政执法支队工作人员三","1452400003","贺州市交通运输局","贺州市交通运输综合行政执法支队","工作人员三"]
["贺州市交通运输综合行政执法支队工作人员四","1452400004","贺州市交通运输局","贺州市交通运输综合行政执法支队","工作人员四"]
["贺州市交通运输综合行政执法支队工作人员五","1452400005","贺州市交通运输局","贺州市交通运输综合行政执法支队","工作人员五"]
["贺州市交通运输综合行政执法支队工作人员六","1452400006","贺州市交通运输局","贺州市交通运输综合行政执法支队","工作人员六"]
["贺州市交通运输综合行政执法支队工作人员七","1452400007","贺州市交通运输局","贺州市交通运输综合行政执法支队","工作人员七"]
["贺州市交通运输综合行政执法支队工作人员八","1452400008","贺州市交通运输局","贺州市交通运输综合行政执法支队","工作人员八"]
["贺州市交通运输综合行政执法支队工作人员九","1452400009","贺州市交通运输局","贺州市交通运输综合行政执法支队","工作人员九"]
["贺州市综合运输发展中心工作人员","1452400010","贺州市交通运输局","贺州市综合运输发展中心","工作人员"]
["贺州市财政局社会保障资金管理中心社会保障资金管理核算职位一","1452400011","贺州市财政局","贺州市财政局社会保障资金管理中心","社会保障资金管理核算职位一"]
["贺州市财政局社会保障资金管理中心社会保障资金管理核算职位二","1452400012","贺州市财政局","贺州市财政局社会保障资金管理中心","社会保障资金管理核算职位二"]
["贺州市国营林场管理站工作人员一","1452400013","贺州市林业局","贺州市国营林场管理站","工作人员一"]
["贺州市国营林场管理站工作人员二","1452400014","贺州市林业局","贺州市国营林场管理站","工作人员二"]
["贺州市姑婆山林场工作人员","1452400015","贺州市林业局","贺州市姑婆山林场","工作人员"]
["贺州市林业科学研究所工作人员一","1452400016","贺州市林业局","贺州市林业科学研究所","工作人员一"]
["贺州市林业科学研究所工作人员二","1452400017","贺州市林业局","贺州市林业科学研究所","工作人员二"]
["贺州市水旱灾害防御中心专业技术岗位","1452400018","贺州市水利局","贺州市水旱灾害防御中心","专业技术岗位"]
["贺州市福利彩票发行中心财务管理","1452400019","贺州市民政局","贺州市福利彩票发行中心","财务管理"]
["贺州市图书馆工作人员","1452400020","贺州市文化广电和旅游局","贺州市图书馆","工作人员"]
["贺州市地震监测服务中心工作人员一","1452400021","贺州市应急管理局","贺州市地震监测服务中心","工作人员一"]
["贺州市地震监测服务中心工作人员二","1452400022","贺州市应急管理局","贺州市地震监测服务中心","工作人员二"]
["贺州市土地征收服务中心工作人员","1452400023","贺州市自然资源局","贺州市土地征收服务中心","工作人员"]
["贺州市矿产站工作人员","1452400024","贺州市自然资源局","贺州市矿产站","工作人员"]
["贺州市城乡规划设计院工作人员","1452400025","贺州市自然资源局","贺州市城乡规划设计院","工作人员"]
["贺州市自然资源测绘地理信息规划院工作人员","1452400026","贺州市自然资源局","贺州市自然资源测绘地理信息规划院","工作人员"]
["贺州市农技科教站工作人员","1452400027","贺州市农业农村局","贺州市农技科教站","工作人员"]
["贺州市土壤肥料生态站工作人员","1452400028","贺州市农业农村局","贺州市土壤肥料生态站","工作人员"]
["贺州市农业科学院工作人员","1452400029","贺州市农业农村局","贺州市农业科学院","工作人员"]
["贺州市公共资源交易中心工作人员","1452400030","贺州市行政审批局","贺州市公共资源交易中心","工作人员"]
["贺州市科学技术馆专业技术岗位","1452400031","贺州市科学技术协会","贺州市科学技术馆","专业技术岗位"]
["贺州高新技术产业开发区综合服务中心工作人员一","1452400032","贺州高新技术产业开发区管理委员会","贺州高新技术产业开发区综合服务中心","工作人员一"]
["贺州高新技术产业开发区综合服务中心工作人员二","1452400033","贺州高新技术产业开发区管理委员会","贺州高新技术产业开发区综合服务中心","工作人员二"]
["广西东融先行示范区（贺州）综合服务中心工作人员","1452400034","广西东融先行示范区（贺州）管理委员会","广西东融先行示范区（贺州）综合服务中心","工作人员"]
["贺州市融媒体中心记者","1452400035","贺州市融媒体中心","贺州市融媒体中心","记者"]
["贺州市融媒体中心视觉设计师","1452400036","贺州市融媒体中心","贺州市融媒体中心","视觉设计师"]
["贺州市黄姚古镇旅游文化产业发展中心工作人员","1452400037","贺州市人民政府","贺州市黄姚古镇旅游文化产业发展中心","工作人员"]
["贺州第一高级中学图书管理员","1452400038","贺州市教育局","贺州第一高级中学","图书管理员"]
["贺州第一高级中学工作人员","1452400039","贺州市教育局","贺州第一高级中学","工作人员"]
["贺州第二高级中学校医","1452400040","贺州市教育局","贺州第二高级中学","校医"]
["贺州第三高级中学校医","1452400041","贺州市教育局","贺州第三高级中学","校医"]
["贺州第三高级中学图书管理员","1452400042","贺州市教育局","贺州第三高级中学","图书管理员"]
["贺州第三高级中学工作人员","1452400043","贺州市教育局","贺州第三高级中学","工作人员"]
["贺州第三高级中学财务人员一","1452400044","贺州市教育局","贺州第三高级中学","财务人员一"]
["贺州第三高级中学财务人员二","1452400045","贺州市教育局","贺州第三高级中学","财务人员二"]
["贺州市职业教育发展中心工作人员一","1452400046","贺州市教育局","贺州市职业教育发展中心","工作人员一"]
["贺州市职业教育发展中心工作人员二","1452400047","贺州市教育局","贺州市职业教育发展中心","工作人员二"]
["贺州市职业教育发展中心工作人员三","1452400048","贺州市教育局","贺州市职业教育发展中心","工作人员三"]
["贺州市职业教育发展中心工作人员四","1452400049","贺州市教育局","贺州市职业教育发展中心","工作人员四"]
["贺州市幼儿园财务人员","1452400050","贺州市教育局","贺州市幼儿园","财务人员"]
["贺州市卫生健康综合服务中心专业技术人员","1452400051","贺州市卫生健康委员会","贺州市卫生健康综合服务中心","专业技术人员"]
["广西壮族自治区桂东人民医院神经内科一科医师","1452400052","贺州市卫生健康委员会","广西壮族自治区桂东人民医院","神经内科一科医师"]
["广西壮族自治区桂东人民医院神经内科二科医师","1452400053","贺州市卫生健康委员会","广西壮族自治区桂东人民医院","神经内科二科医师"]
["广西壮族自治区桂东人民医院心血管内科一科医师","1452400054","贺州市卫生健康委员会","广西壮族自治区桂东人民医院","心血管内科一科医师"]
["广西壮族自治区桂东人民医院心血管内科二科医师","1452400055","贺州市卫生健康委员会","广西壮族自治区桂东人民医院","心血管内科二科医师"]
["广西壮族自治区桂东人民医院肾内科医师","1452400056","贺州市卫生健康委员会","广西壮族自治区桂东人民医院","肾内科医师"]
["广西壮族自治区桂东人民医院内分泌科医师","1452400057","贺州市卫生健康委员会","广西壮族自治区桂东人民医院","内分泌科医师"]
["广西壮族自治区桂东人民医院神经外科医师","1452400058","贺州市卫生健康委员会","广西壮族自治区桂东人民医院","神经外科医师"]
["广西壮族自治区桂东人民医院心胸外科医师","1452400059","贺州市卫生健康委员会","广西壮族自治区桂东人民医院","心胸外科医师"]
["广西壮族自治区桂东人民医院儿科医师","1452400060","贺州市卫生健康委员会","广西壮族自治区桂东人民医院","儿科医师"]
["广西壮族自治区桂东人民医院感染性疾病科一科医师","1452400061","贺州市卫生健康委员会","广西壮族自治区桂东人民医院","感染性疾病科一科医师"]
["广西壮族自治区桂东人民医院感染性疾病科二科医师","1452400062","贺州市卫生健康委员会","广西壮族自治区桂东人民医院","感染性疾病科二科医师"]
["广西壮族自治区桂东人民医院急诊医学科医师","1452400063","贺州市卫生健康委员会","广西壮族自治区桂东人民医院","急诊医学科医师"]
["广西壮族自治区桂东人民医院康复医学科医师一","1452400064","贺州市卫生健康委员会","广西壮族自治区桂东人民医院","康复医学科医师一"]
["广西壮族自治区桂东人民医院康复医学科医师二","1452400065","贺州市卫生健康委员会","广西壮族自治区桂东人民医院","康复医学科医师二"]
["广西壮族自治区桂东人民医院麻醉科医师","1452400066","贺州市卫生健康委员会","广西壮族自治区桂东人民医院","麻醉科医师"]
["广西壮族自治区桂东人民医院重症医学科医师","1452400067","贺州市卫生健康委员会","广西壮族自治区桂东人民医院","重症医学科医师"]
["广西壮族自治区桂东人民医院血液风湿免疫科医师","1452400068","贺州市卫生健康委员会","广西壮族自治区桂东人民医院","血液风湿免疫科医师"]
["贺州市妇幼保健院放射科医师","1452400069","贺州市卫生健康委员会","贺州市妇幼保健院","放射科医师"]
["贺州市妇幼保健院麻醉科医师","1452400070","贺州市卫生健康委员会","贺州市妇幼保健院","麻醉科医师"]
["贺州市皮肤病防治院（贺州市第五人民医院）公共卫生执业医师","1452400071","贺州市卫生健康委员会","贺州市皮肤病防治院（贺州市第五人民医院）","公共卫生执业医师"]
["贺州市疾病预防控制中心工作人员一","1452400072","贺州市卫生健康委员会","贺州市疾病预防控制中心","工作人员一"]
["贺州市疾病预防控制中心工作人员二","1452400073","贺州市卫生健康委员会","贺州市疾病预防控制中心","工作人员二"]
["八步区福利院工作人员","1452400074","贺州市八步区民政局","八步区福利院","工作人员"]
["八步区乡镇林业工作总站技术人员一","1452400075","贺州市八步区林业局","八步区乡镇林业工作总站","技术人员一"]
["八步区乡镇林业工作总站技术人员二","1452400076","贺州市八步区林业局","八步区乡镇林业工作总站","技术人员二"]
["八步区乡镇林业工作总站技术人员三","1452400077","贺州市八步区林业局","八步区乡镇林业工作总站","技术人员三"]
["八步区乡镇林业工作总站技术人员四","1452400078","贺州市八步区林业局","八步区乡镇林业工作总站","技术人员四"]
["八步区林业产权交易管理服务中心技术人员一","1452400079","贺州市八步区林业局","八步区林业产权交易管理服务中心","技术人员一"]
["八步区林业产权交易管理服务中心技术人员二","1452400080","贺州市八步区林业局","八步区林业产权交易管理服务中心","技术人员二"]
["八步区林业产权交易管理服务中心技术人员三","1452400081","贺州市八步区林业局","八步区林业产权交易管理服务中心","技术人员三"]
["八步区林业产权交易管理服务中心技术人员四","1452400082","贺州市八步区林业局","八步区林业产权交易管理服务中心","技术人员四"]
["八步区林业产权交易管理服务中心技术人员五","1452400083","贺州市八步区林业局","八步区林业产权交易管理服务中心","技术人员五"]
["八步区林业产权交易管理服务中心技术人员六","1452400084","贺州市八步区林业局","八步区林业产权交易管理服务中心","技术人员六"]
["八步区林业产权交易管理服务中心管理人员七","1452400085","贺州市八步区林业局","八步区林业产权交易管理服务中心","管理人员七"]
["贺州市八步区林业科学研究所技术人员","1452400086","贺州市八步区林业局","贺州市八步区林业科学研究所","技术人员"]
["八步区农村水利水电管理中心工作人员一","1452400087","贺州市八步区水利局","八步区农村水利水电管理中心","工作人员一"]
["八步区农村水利水电管理中心工作人员二","1452400088","贺州市八步区水利局","八步区农村水利水电管理中心","工作人员二"]
["八步区农村水利水电管理中心工作人员三","1452400089","贺州市八步区水利局","八步区农村水利水电管理中心","工作人员三"]
["八步区农村水利水电管理中心工作人员四","1452400090","贺州市八步区水利局","八步区农村水利水电管理中心","工作人员四"]
["八步区农村水利水电管理中心工作人员五","1452400091","贺州市八步区水利局","八步区农村水利水电管理中心","工作人员五"]
["八步区农村水利水电管理中心工作人员六","1452400092","贺州市八步区水利局","八步区农村水利水电管理中心","工作人员六"]
["八步区水旱灾害防御中心工作人员","1452400093","贺州市八步区水利局","八步区水旱灾害防御中心","工作人员"]
["八步区八步街道新型农村合作医疗管理分中心信息技术员","1452400094","贺州市八步区医疗保障管理服务中心","八步区八步街道新型农村合作医疗管理分中心","信息技术员"]
["八步区仁义镇新型农村合作医疗管理分中心医疗费用审核员","1452400095","贺州市八步区医疗保障管理服务中心","八步区仁义镇新型农村合作医疗管理分中心","医疗费用审核员"]
["八步区科学技术情报研究所工作人员","1452400096","贺州市八步区经济贸易局","八步区科学技术情报研究所","工作人员"]
["八步区节能监察中心工作人员","1452400097","贺州市八步区经济贸易局","八步区节能监察中心","工作人员"]
["八步区文物管理所工作人员","1452400098","贺州市八步区文化广电和旅游局","八步区文物管理所","工作人员"]
["八步区土地开发整理中心工作人员","1452400099","贺州市八步区自然资源局","八步区土地开发整理中心","工作人员"]
["贺州市八步区现代商贸产业园综合服务中心工作人员一","1452400100","贺州市八步区人民政府","贺州市八步区现代商贸产业园综合服务中心","工作人员一"]
["贺州市八步区现代商贸产业园综合服务中心工作人员二","1452400101","贺州市八步区人民政府","贺州市八步区现代商贸产业园综合服务中心","工作人员二"]
["贺州市八步区现代商贸产业园综合服务中心工作人员三","1452400102","贺州市八步区人民政府","贺州市八步区现代商贸产业园综合服务中心","工作人员三"]
["贺州市八步区社会工作服务中心工作人员","1452400103","中共贺州市八步区委员会社会工作部","贺州市八步区社会工作服务中心","工作人员"]
["贺州市八步区应急管理综合行政执法大队工作人员一","1452400104","贺州市八步区应急管理局","贺州市八步区应急管理综合行政执法大队","工作人员一"]
["贺州市八步区应急管理综合行政执法大队工作人员二","1452400105","贺州市八步区应急管理局","贺州市八步区应急管理综合行政执法大队","工作人员二"]
["八步区食品药品安全信息与监控中心工作人员","1452400106","贺州市八步区市场监督管理局","八步区食品药品安全信息与监控中心","工作人员"]
["贺州市八步区新型墙体材料推广中心专业技术人员","1452400107","贺州市八步区住房和城乡建设局","贺州市八步区新型墙体材料推广中心","专业技术人员"]
["贺州市八步区民兵军事训练基地(中心)工作人员","1452400108","中国人民解放军广西壮族自治区贺州市八步区人民武装部","贺州市八步区民兵军事训练基地(中心)","工作人员"]
["八步区农产品质量安全检测站工作人员","1452400109","贺州市八步区农业农村局","八步区农产品质量安全检测站","工作人员"]
["贺州市八步区农业技术推广服务站工作人员","1452400110","贺州市八步区农业农村局","贺州市八步区农业技术推广服务站","工作人员"]
["贺州市八步区畜牧站工作人员","1452400111","贺州市八步区农业农村局","贺州市八步区畜牧站","工作人员"]
["贺州市八步区法律援助中心工作人员","1452400112","贺州市八步区司法局","贺州市八步区法律援助中心","工作人员"]
["贺州市八步区开山镇便民服务中心工作人员","1452400113","贺州市八步区开山镇人民政府","贺州市八步区开山镇便民服务中心","工作人员"]
["贺州市八步区开山镇综合行政执法队工作人员","1452400114","贺州市八步区开山镇人民政府","贺州市八步区开山镇综合行政执法队","工作人员"]
["贺州市八步区开山镇农业服务中心工作人员一","1452400115","贺州市八步区开山镇人民政府","贺州市八步区开山镇农业服务中心","工作人员一"]
["贺州市八步区开山镇农业服务中心工作人员二","1452400116","贺州市八步区开山镇人民政府","贺州市八步区开山镇农业服务中心","工作人员二"]
["贺州市八步区开山镇乡村建设综合服务中心工作人员","1452400117","贺州市八步区开山镇人民政府","贺州市八步区开山镇乡村建设综合服务中心","工作人员"]
["贺州市八步区黄洞瑶族乡便民服务中心工作人员","1452400118","贺州市八步区黄洞瑶族乡人民政府","贺州市八步区黄洞瑶族乡便民服务中心","工作人员"]
["贺州市八步区里松镇便民服务中心工作人员","1452400119","贺州市八步区里松镇人民政府","贺州市八步区里松镇便民服务中心","工作人员"]
["贺州市八步区里松镇乡村建设综合服务中心工作人员","1452400120","贺州市八步区里松镇人民政府","贺州市八步区里松镇乡村建设综合服务中心","工作人员"]
["贺州市八步区里松镇综合行政执法队工作人员","1452400121","贺州市八步区里松镇人民政府","贺州市八步区里松镇综合行政执法队","工作人员"]
["贺州市八步区信都镇乡村建设综合服务中心工作人员一","1452400122","贺州市八步区信都镇人民政府","贺州市八步区信都镇乡村建设综合服务中心","工作人员一"]
["贺州市八步区信都镇乡村建设综合服务中心工作人员二","1452400123","贺州市八步区信都镇人民政府","贺州市八步区信都镇乡村建设综合服务中心","工作人员二"]
["贺州市八步区信都镇乡村建设综合服务中心工作人员三","1452400124","贺州市八步区信都镇人民政府","贺州市八步区信都镇乡村建设综合服务中心","工作人员三"]
["贺州市八步区步头镇乡村建设综合服务中心工作人员一","1452400125","贺州市八步区步头镇人民政府","贺州市八步区步头镇乡村建设综合服务中心","工作人员一"]
["贺州市八步区步头镇乡村建设综合服务中心工作人员二","1452400126","贺州市八步区步头镇人民政府","贺州市八步区步头镇乡村建设综合服务中心","工作人员二"]
["贺州市八步区步头镇乡村建设综合服务中心工作人员三","1452400127","贺州市八步区步头镇人民政府","贺州市八步区步头镇乡村建设综合服务中心","工作人员三"]
["贺州市八步区步头镇农业服务中心工作人员","1452400128","贺州市八步区步头镇人民政府","贺州市八步区步头镇农业服务中心","工作人员"]
["贺州市八步区步头镇综合行政执法队工作人员","1452400129","贺州市八步区步头镇人民政府","贺州市八步区步头镇综合行政执法队","工作人员"]
["贺州市八步区灵峰镇农业农村服务中心工作人员一","1452400130","贺州市八步区灵峰镇人民政府","贺州市八步区灵峰镇农业农村服务中心","工作人员一"]
["贺州市八步区灵峰镇农业农村服务中心工作人员二","1452400131","贺州市八步区灵峰镇人民政府","贺州市八步区灵峰镇农业农村服务中心","工作人员二"]
["贺州市八步区灵峰镇乡村建设综合服务中心工作人员","1452400132","贺州市八步区灵峰镇人民政府","贺州市八步区灵峰镇乡村建设综合服务中心","工作人员"]
["贺州市八步区城东街道社会事务治理中心工作人员","1452400133","贺州市八步区城东街道办事处","贺州市八步区城东街道社会事务治理中心","工作人员"]
["贺州市八步区大宁镇农业服务中心工作人员一","1452400134","贺州市八步区大宁镇人民政府","贺州市八步区大宁镇农业服务中心","工作人员一"]
["贺州市八步区大宁镇农业服务中心工作人员二","1452400135","贺州市八步区大宁镇人民政府","贺州市八步区大宁镇农业服务中心","工作人员二"]
["贺州市八步区桂岭镇便民服务中心工作人员一","1452400136","贺州市八步区桂岭镇人民政府","贺州市八步区桂岭镇便民服务中心","工作人员一"]
["贺州市八步区桂岭镇便民服务中心工作人员二","1452400137","贺州市八步区桂岭镇人民政府","贺州市八步区桂岭镇便民服务中心","工作人员二"]
["贺州市八步区桂岭镇便民服务中心工作人员三","1452400138","贺州市八步区桂岭镇人民政府","贺州市八步区桂岭镇便民服务中心","工作人员三"]
["贺州市八步区桂岭镇乡村建设综合服务中心工作人员","1452400139","贺州市八步区桂岭镇人民政府","贺州市八步区桂岭镇乡村建设综合服务中心","工作人员"]
["贺州市八步区桂岭镇农业服务中心工作人员一","1452400140","贺州市八步区桂岭镇人民政府","贺州市八步区桂岭镇农业服务中心","工作人员一"]
["贺州市八步区桂岭镇农业服务中心工作人员二","1452400141","贺州市八步区桂岭镇人民政府","贺州市八步区桂岭镇农业服务中心","工作人员二"]
["贺州市八步区桂岭镇综合行政执法队工作人员一","1452400142","贺州市八步区桂岭镇人民政府","贺州市八步区桂岭镇综合行政执法队","工作人员一"]
["贺州市八步区桂岭镇综合行政执法队工作人员二","1452400143","贺州市八步区桂岭镇人民政府","贺州市八步区桂岭镇综合行政执法队","工作人员二"]
["贺州市八步区仁义镇乡村建设综合服务中心工作人员","1452400144","贺州市八步区仁义镇人民政府","贺州市八步区仁义镇乡村建设综合服务中心","工作人员"]
["贺州市八步区仁义镇农业服务中心工作人员一","1452400145","贺州市八步区仁义镇人民政府","贺州市八步区仁义镇农业服务中心","工作人员一"]
["贺州市八步区仁义镇农业服务中心工作人员二","1452400146","贺州市八步区仁义镇人民政府","贺州市八步区仁义镇农业服务中心","工作人员二"]
["贺州市八步区仁义镇便民服务中心工作人员","1452400147","贺州市八步区仁义镇人民政府","贺州市八步区仁义镇便民服务中心","工作人员"]
["贺州市八步区仁义镇综合行政执法队工作人员","1452400148","贺州市八步区仁义镇人民政府","贺州市八步区仁义镇综合行政执法队","工作人员"]
["贺州市八步区南乡镇乡村建设综合服务中心工作人员一","1452400149","贺州市八步区南乡镇人民政府","贺州市八步区南乡镇乡村建设综合服务中心","工作人员一"]
["贺州市八步区南乡镇乡村建设综合服务中心工作人员二","1452400150","贺州市八步区南乡镇人民政府","贺州市八步区南乡镇乡村建设综合服务中心","工作人员二"]
["贺州市八步区南乡镇便民服务中心工作人员","1452400151","贺州市八步区南乡镇人民政府","贺州市八步区南乡镇便民服务中心","工作人员"]
["贺州市八步区南乡镇综合行政执法队工作人员一","1452400152","贺州市八步区南乡镇人民政府","贺州市八步区南乡镇综合行政执法队","工作人员一"]
["贺州市八步区南乡镇综合行政执法队工作人员二","1452400153","贺州市八步区南乡镇人民政府","贺州市八步区南乡镇综合行政执法队","工作人员二"]
["贺州市八步区八步街道社会事务治理中心工作人员","1452400154","贺州市八步区八步街道办事处","贺州市八步区八步街道社会事务治理中心","工作人员"]
["贺州市八步区贺街镇乡村建设综合服务中心工作人员一","1452400155","贺州市八步区贺街镇人民政府","贺州市八步区贺街镇乡村建设综合服务中心","工作人员一"]
["贺州市八步区贺街镇乡村建设综合服务中心工作人员二","1452400156","贺州市八步区贺街镇人民政府","贺州市八步区贺街镇乡村建设综合服务中心","工作人员二"]
["贺州市八步区贺街镇农业服务中心工作人员一","1452400157","贺州市八步区贺街镇人民政府","贺州市八步区贺街镇农业服务中心","工作人员一"]
["贺州市八步区贺街镇农业服务中心工作人员二","1452400158","贺州市八步区贺街镇人民政府","贺州市八步区贺街镇农业服务中心","工作人员二"]
["贺州市八步区莲塘镇便民服务中心工作人员一","1452400159","贺州市八步区莲塘镇人民政府","贺州市八步区莲塘镇便民服务中心","工作人员一"]
["贺州市八步区莲塘镇便民服务中心工作人员二","1452400160","贺州市八步区莲塘镇人民政府","贺州市八步区莲塘镇便民服务中心","工作人员二"]
["贺州市八步区莲塘镇农业服务中心工作人员","1452400161","贺州市八步区莲塘镇人民政府","贺州市八步区莲塘镇农业服务中心","工作人员"]
["贺州市八步区莲塘镇乡村建设综合服务中心工作人员","1452400162","贺州市八步区莲塘镇人民政府","贺州市八步区莲塘镇乡村建设综合服务中心","工作人员"]
["贺州市八步区铺门镇综合行政执法队工作人员","1452400163","贺州市八步区铺门镇人民政府","贺州市八步区铺门镇综合行政执法队","工作人员"]
["贺州市八步区铺门镇便民服务中心工作人员一","1452400164","贺州市八步区铺门镇人民政府","贺州市八步区铺门镇便民服务中心","工作人员一"]
["贺州市八步区铺门镇便民服务中心工作人员二","1452400165","贺州市八步区铺门镇人民政府","贺州市八步区铺门镇便民服务中心","工作人员二"]
["贺州市八步区铺门镇农业服务中心工作人员","1452400166","贺州市八步区铺门镇人民政府","贺州市八步区铺门镇农业服务中心","工作人员"]
["贺州市八步区铺门镇乡村建设综合服务中心工作人员","1452400167","贺州市八步区铺门镇人民政府","贺州市八步区铺门镇乡村建设综合服务中心","工作人员"]
["贺州市八步区疾病预防控制中心专业技术岗一","1452400168","贺州市八步区卫生健康局","贺州市八步区疾病预防控制中心","专业技术岗一"]
["贺州市八步区疾病预防控制中心专业技术岗二","1452400169","贺州市八步区卫生健康局","贺州市八步区疾病预防控制中心","专业技术岗二"]
["贺州市八步区防治艾滋病服务中心专业技术岗","1452400170","贺州市八步区卫生健康局","贺州市八步区防治艾滋病服务中心","专业技术岗"]
["八步区计划生育服务站专业技术岗","1452400171","贺州市八步区卫生健康局","八步区计划生育服务站","专业技术岗"]
["贺州市八步区初级卫生保健服务中心管理岗","1452400172","贺州市八步区卫生健康局","贺州市八步区初级卫生保健服务中心","管理岗"]
["八步区桂岭中心卫生院专业技术岗一","1452400173","贺州市八步区卫生健康局","八步区桂岭中心卫生院","专业技术岗一"]
["八步区桂岭中心卫生院专业技术岗二","1452400174","贺州市八步区卫生健康局","八步区桂岭中心卫生院","专业技术岗二"]
["八步区桂岭中心卫生院专业技术岗三","1452400175","贺州市八步区卫生健康局","八步区桂岭中心卫生院","专业技术岗三"]
["贺州市八步区第二人民医院专业技术岗一","1452400176","贺州市八步区卫生健康局","贺州市八步区第二人民医院","专业技术岗一"]
["贺州市八步区第二人民医院专业技术岗二","1452400177","贺州市八步区卫生健康局","贺州市八步区第二人民医院","专业技术岗二"]
["贺州市八步区第二人民医院专业技术岗三","1452400178","贺州市八步区卫生健康局","贺州市八步区第二人民医院","专业技术岗三"]
["八步区贺街中心卫生院专业技术岗一","1452400179","贺州市八步区卫生健康局","八步区贺街中心卫生院","专业技术岗一"]
["八步区贺街中心卫生院专业技术岗二","1452400180","贺州市八步区卫生健康局","八步区贺街中心卫生院","专业技术岗二"]
["八步区贺街中心卫生院专业技术岗三","1452400181","贺州市八步区卫生健康局","八步区贺街中心卫生院","专业技术岗三"]
["八步区大宁镇中心卫生院专业技术岗","1452400182","贺州市八步区卫生健康局","八步区大宁镇中心卫生院","专业技术岗"]
["八步区开山卫生院专业技术岗","1452400183","贺州市八步区卫生健康局","八步区开山卫生院","专业技术岗"]
["八步区步头卫生院专业技术岗","1452400184","贺州市八步区卫生健康局","八步区步头卫生院","专业技术岗"]
["八步区南乡卫生院专业技术岗","1452400185","贺州市八步区卫生健康局","八步区南乡卫生院","专业技术岗"]
["八步区里松卫生院专业技术岗","1452400186","贺州市八步区卫生健康局","八步区里松卫生院","专业技术岗"]
["八步区黄洞卫生院专业技术岗","1452400187","贺州市八步区卫生健康局","八步区黄洞卫生院","专业技术岗"]
["八步区建中社区卫生服务中心专业技术岗","1452400188","贺州市八步区卫生健康局","八步区建中社区卫生服务中心","专业技术岗"]
["贺州市平桂区纪检监察电教信息中心工作人员","1452400189","中共贺州市平桂区纪律检查委员会机关贺州市平桂区监察委员会","贺州市平桂区纪检监察电教信息中心","工作人员"]
["贺州市平桂区民兵军事训练基地民兵教练员一","1452400190","贺州市平桂区发展和改革局","贺州市平桂区民兵军事训练基地","民兵教练员一"]
["贺州市平桂区民兵军事训练基地民兵教练员二","1452400191","贺州市平桂区发展和改革局","贺州市平桂区民兵军事训练基地","民兵教练员二"]
["贺州市平桂区新兴产业发展服务中心工作人员","1452400192","贺州市平桂区新兴产业发展服务中心","贺州市平桂区新兴产业发展服务中心","工作人员"]
["贺州市平桂区财政投资评审中心工作人员","1452400193","贺州市平桂区财政局","贺州市平桂区财政投资评审中心","工作人员"]
["贺州市平桂区经济责任审计和政府投资审计中心专业技术岗","1452400194","贺州市平桂区审计局","贺州市平桂区经济责任审计和政府投资审计中心","专业技术岗"]
["贺州市平桂区应急管理综合行政执法大队工作人员一","1452400195","贺州市平桂区应急管理局","贺州市平桂区应急管理综合行政执法大队","工作人员一"]
["贺州市平桂区应急管理综合行政执法大队工作人员二","1452400196","贺州市平桂区应急管理局","贺州市平桂区应急管理综合行政执法大队","工作人员二"]
["贺州市平桂区应急管理综合行政执法大队工作人员三","1452400197","贺州市平桂区应急管理局","贺州市平桂区应急管理综合行政执法大队","工作人员三"]
["贺州市平桂区应急管理综合行政执法大队工作人员四","1452400198","贺州市平桂区应急管理局","贺州市平桂区应急管理综合行政执法大队","工作人员四"]
["贺州市平桂区应急管理综合行政执法大队工作人员五","1452400199","贺州市平桂区应急管理局","贺州市平桂区应急管理综合行政执法大队","工作人员五"]
["贺州市平桂区应急管理综合行政执法大队工作人员六","1452400200","贺州市平桂区应急管理局","贺州市平桂区应急管理综合行政执法大队","工作人员六"]
["贺州市平桂区水旱灾害防御站工作人员一","1452400201","贺州市平桂区水利局","贺州市平桂区水旱灾害防御站","工作人员一"]
["贺州市平桂区水旱灾害防御站工作人员二","1452400202","贺州市平桂区水利局","贺州市平桂区水旱灾害防御站","工作人员二"]
["贺州市平桂区东干水利工程管理所专业技术人员","1452400203","贺州市平桂区水利局","贺州市平桂区东干水利工程管理所","专业技术人员"]
["贺州市平桂区狮洞水库工程管理所专业技术人员","1452400204","贺州市平桂区水利局","贺州市平桂区狮洞水库工程管理所","专业技术人员"]
["贺州市平桂区民政福利综合服务中心工作人员","1452400205","贺州市平桂区民政局","贺州市平桂区民政福利综合服务中心","工作人员"]
["贺州市平桂区综合运输管理服务中心技术人员","1452400206","贺州市平桂区交通运输局","贺州市平桂区综合运输管理服务中心","技术人员"]
["贺州市平桂区政务服务中心工作人员一","1452400207","贺州市平桂区行政审批局","贺州市平桂区政务服务中心","工作人员一"]
["贺州市平桂区政务服务中心工作人员二","1452400208","贺州市平桂区行政审批局","贺州市平桂区政务服务中心","工作人员二"]
["贺州市平桂区业余体校游泳教练","1452400209","贺州市平桂区文化广电和旅游局","贺州市平桂区业余体校","游泳教练"]
["贺州市平桂区图书馆文博馆员","1452400210","贺州市平桂区文化广电和旅游局","贺州市平桂区图书馆","文博馆员"]
["贺州市平桂区矿产资源规费征收管理站工作人员","1452400211","贺州市平桂区自然资源局","贺州市平桂区矿产资源规费征收管理站","工作人员"]
["贺州市平桂区土地开发整理中心工作人员","1452400212","贺州市平桂区自然资源局","贺州市平桂区土地开发整理中心","工作人员"]
["贺州市平桂区地质环境监测站工作人员","1452400213","贺州市平桂区自然资源局","贺州市平桂区地质环境监测站","工作人员"]
["贺州市平桂区建筑安装工程劳动保险费管理所工作人员一","1452400214","贺州市平桂区住房和城乡建设局","贺州市平桂区建筑安装工程劳动保险费管理所","工作人员一"]
["贺州市平桂区建筑安装工程劳动保险费管理所工作人员二","1452400215","贺州市平桂区住房和城乡建设局","贺州市平桂区建筑安装工程劳动保险费管理所","工作人员二"]
["贺州市平桂区建筑安装工程劳动保险费管理所工作人员三","1452400216","贺州市平桂区住房和城乡建设局","贺州市平桂区建筑安装工程劳动保险费管理所","工作人员三"]
["贺州市平桂区建筑安装工程劳动保险费管理所工作人员四","1452400217","贺州市平桂区住房和城乡建设局","贺州市平桂区建筑安装工程劳动保险费管理所","工作人员四"]
["贺州市平桂区学生资助管理中心会计一","1452400218","贺州市平桂区教育局","贺州市平桂区学生资助管理中心","会计一"]
["贺州市平桂区学生资助管理中心会计二","1452400219","贺州市平桂区教育局","贺州市平桂区学生资助管理中心","会计二"]
["贺州市平桂区羊头镇中心小学会计","1452400220","贺州市平桂区教育局","贺州市平桂区羊头镇中心小学","会计"]
["贺州市平桂区羊头镇大井完小会计","1452400221","贺州市平桂区教育局","贺州市平桂区羊头镇大井完小","会计"]
["贺州市平桂区大平瑶族乡民族学校会计","1452400222","贺州市平桂区教育局","贺州市平桂区大平瑶族乡民族学校","会计"]
["贺州市平桂区鹅塘镇初级中学会计","1452400223","贺州市平桂区教育局","贺州市平桂区鹅塘镇初级中学","会计"]
["贺州市平桂区望高镇中学会计","1452400224","贺州市平桂区教育局","贺州市平桂区望高镇中学","会计"]
["贺州市平桂区公会中学会计","1452400225","贺州市平桂区教育局","贺州市平桂区公会中学","会计"]
["贺州市平桂区羊头镇中学会计","1452400226","贺州市平桂区教育局","贺州市平桂区羊头镇中学","会计"]
["贺州市平桂区沙田镇中心学校会计","1452400227","贺州市平桂区教育局","贺州市平桂区沙田镇中心学校","会计"]
["贺州市平桂区鹅塘镇中心学校会计","1452400228","贺州市平桂区教育局","贺州市平桂区鹅塘镇中心学校","会计"]
["贺州市平桂区流动人口计划生育管理站临床医师","1452400229","贺州市平桂区卫生健康局","贺州市平桂区流动人口计划生育管理站","临床医师"]
["贺州市平桂区流动人口计划生育管理站公共卫生人员","1452400230","贺州市平桂区卫生健康局","贺州市平桂区流动人口计划生育管理站","公共卫生人员"]
["贺州市平桂区防治艾滋病服务中心会计","1452400231","贺州市平桂区卫生健康局","贺州市平桂区防治艾滋病服务中心","会计"]
["贺州市平桂区疾病预防控制中心专业技术人员","1452400232","贺州市平桂区卫生健康局","贺州市平桂区疾病预防控制中心","专业技术人员"]
["贺州市平桂区大平卫生院临床医师","1452400233","贺州市平桂区卫生健康局","贺州市平桂区大平卫生院","临床医师"]
["贺州市平桂区大平卫生院中医医师","1452400234","贺州市平桂区卫生健康局","贺州市平桂区大平卫生院","中医医师"]
["贺州市平桂区大平卫生院医学影像","1452400235","贺州市平桂区卫生健康局","贺州市平桂区大平卫生院","医学影像"]
["贺州市平桂区大平卫生院妇产科医师","1452400236","贺州市平桂区卫生健康局","贺州市平桂区大平卫生院","妇产科医师"]
["贺州市平桂区大平卫生院康复技术人员","1452400237","贺州市平桂区卫生健康局","贺州市平桂区大平卫生院","康复技术人员"]
["贺州市平桂区大平卫生院公卫防疫医师","1452400238","贺州市平桂区卫生健康局","贺州市平桂区大平卫生院","公卫防疫医师"]
["贺州市平桂区羊头卫生院妇产科医生","1452400239","贺州市平桂区卫生健康局","贺州市平桂区羊头卫生院","妇产科医生"]
["贺州市平桂区公会中心卫生院临床医生","1452400240","贺州市平桂区卫生健康局","贺州市平桂区公会中心卫生院","临床医生"]
["贺州市平桂区公会中心卫生院妇产科医生","1452400241","贺州市平桂区卫生健康局","贺州市平桂区公会中心卫生院","妇产科医生"]
["贺州市平桂区水口卫生院临床医生","1452400242","贺州市平桂区卫生健康局","贺州市平桂区水口卫生院","临床医生"]
["贺州市平桂区水口卫生院医学影像技师","1452400243","贺州市平桂区卫生健康局","贺州市平桂区水口卫生院","医学影像技师"]
["贺州市平桂区鹅塘镇乡村建设综合服务中心工作人员","1452400244","贺州市平桂区鹅塘镇人民政府","贺州市平桂区鹅塘镇乡村建设综合服务中心","工作人员"]
["贺州市平桂区望高镇便民服务中心工作人员一","1452400245","贺州市平桂区望高镇人民政府","贺州市平桂区望高镇便民服务中心","工作人员一"]
["贺州市平桂区望高镇便民服务中心工作人员二","1452400246","贺州市平桂区望高镇人民政府","贺州市平桂区望高镇便民服务中心","工作人员二"]
["贺州市平桂区望高镇便民服务中心工作人员三","1452400247","贺州市平桂区望高镇人民政府","贺州市平桂区望高镇便民服务中心","工作人员三"]
["贺州市平桂区望高镇综合行政执法队工作人员一","1452400248","贺州市平桂区望高镇人民政府","贺州市平桂区望高镇综合行政执法队","工作人员一"]
["贺州市平桂区望高镇综合行政执法队工作人员二","1452400249","贺州市平桂区望高镇人民政府","贺州市平桂区望高镇综合行政执法队","工作人员二"]
["贺州市平桂区羊头镇农业服务中心专业技术人员","1452400250","贺州市平桂区羊头镇人民政府","贺州市平桂区羊头镇农业服务中心","专业技术人员"]
["贺州市平桂区羊头镇乡村建设综合服务中心专业技术人员","1452400251","贺州市平桂区羊头镇人民政府","贺州市平桂区羊头镇乡村建设综合服务中心","专业技术人员"]
["贺州市平桂区羊头镇便民服务中心工作人员一","1452400252","贺州市平桂区羊头镇人民政府","贺州市平桂区羊头镇便民服务中心","工作人员一"]
["贺州市平桂区羊头镇便民服务中心工作人员二","1452400253","贺州市平桂区羊头镇人民政府","贺州市平桂区羊头镇便民服务中心","工作人员二"]
["贺州市平桂区公会镇乡村建设综合服务中心工作人员一","1452400254","贺州市平桂区公会镇人民政府","贺州市平桂区公会镇乡村建设综合服务中心","工作人员一"]
["贺州市平桂区公会镇乡村建设综合服务中心工作人员二","1452400255","贺州市平桂区公会镇人民政府","贺州市平桂区公会镇乡村建设综合服务中心","工作人员二"]
["贺州市平桂区公会镇乡村建设综合服务中心工作人员三","1452400256","贺州市平桂区公会镇人民政府","贺州市平桂区公会镇乡村建设综合服务中心","工作人员三"]
["贺州市平桂区公会镇乡村建设综合服务中心工作人员四","1452400257","贺州市平桂区公会镇人民政府","贺州市平桂区公会镇乡村建设综合服务中心","工作人员四"]
["贺州市平桂区公会镇乡村建设综合服务中心工作人员五","1452400258","贺州市平桂区公会镇人民政府","贺州市平桂区公会镇乡村建设综合服务中心","工作人员五"]
["贺州市平桂区公会镇综合行政执法队工作人员一","1452400259","贺州市平桂区公会镇人民政府","贺州市平桂区公会镇综合行政执法队","工作人员一"]
["贺州市平桂区公会镇综合行政执法队工作人员二","1452400260","贺州市平桂区公会镇人民政府","贺州市平桂区公会镇综合行政执法队","工作人员二"]
["贺州市平桂区公会镇便民服务中心工作人员","1452400261","贺州市平桂区公会镇人民政府","贺州市平桂区公会镇便民服务中心","工作人员"]
["贺州市平桂区沙田镇便民服务中心工作人员一","1452400262","贺州市平桂区沙田镇人民政府","贺州市平桂区沙田镇便民服务中心","工作人员一"]
["贺州市平桂区沙田镇便民服务中心工作人员二","1452400263","贺州市平桂区沙田镇人民政府","贺州市平桂区沙田镇便民服务中心","工作人员二"]
["贺州市平桂区沙田镇农业服务中心工作人员","1452400264","贺州市平桂区沙田镇人民政府","贺州市平桂区沙田镇农业服务中心","工作人员"]
["贺州市平桂区沙田镇乡村建设综合服务中心工作人员一","1452400265","贺州市平桂区沙田镇人民政府","贺州市平桂区沙田镇乡村建设综合服务中心","工作人员一"]
["贺州市平桂区沙田镇乡村建设综合服务中心工作人员二","1452400266","贺州市平桂区沙田镇人民政府","贺州市平桂区沙田镇乡村建设综合服务中心","工作人员二"]
["贺州市平桂区沙田镇综合行政执法队工作人员一","1452400267","贺州市平桂区沙田镇人民政府","贺州市平桂区沙田镇综合行政执法队","工作人员一"]
["贺州市平桂区沙田镇综合行政执法队工作人员二","1452400268","贺州市平桂区沙田镇人民政府","贺州市平桂区沙田镇综合行政执法队","工作人员二"]
["贺州市平桂区大平瑶族乡乡村建设综合服务中心工作人员","1452400269","贺州市平桂区大平瑶族乡人民政府","贺州市平桂区大平瑶族乡乡村建设综合服务中心","工作人员"]
["贺州市平桂区大平瑶族乡农业服务中心工作人员","1452400270","贺州市平桂区大平瑶族乡人民政府","贺州市平桂区大平瑶族乡农业服务中心","工作人员"]
["贺州市平桂区大平瑶族乡便民服务中心工作人员","1452400271","贺州市平桂区大平瑶族乡人民政府","贺州市平桂区大平瑶族乡便民服务中心","工作人员"]
["贺州市平桂区大平瑶族乡综合行政执法队工作人员一","1452400272","贺州市平桂区大平瑶族乡人民政府","贺州市平桂区大平瑶族乡综合行政执法队","工作人员一"]
["贺州市平桂区大平瑶族乡综合行政执法队工作人员二","1452400273","贺州市平桂区大平瑶族乡人民政府","贺州市平桂区大平瑶族乡综合行政执法队","工作人员二"]
["贺州市平桂区水口镇乡村建设综合服务中心工作人员","1452400274","贺州市平桂区水口镇人民政府","贺州市平桂区水口镇乡村建设综合服务中心","工作人员"]
["贺州市平桂区水口镇便民服务中心工作人员一","1452400275","贺州市平桂区水口镇人民政府","贺州市平桂区水口镇便民服务中心","工作人员一"]
["贺州市平桂区水口镇便民服务中心工作人员二","1452400276","贺州市平桂区水口镇人民政府","贺州市平桂区水口镇便民服务中心","工作人员二"]
["贺州市平桂区水口镇便民服务中心工作人员三","1452400277","贺州市平桂区水口镇人民政府","贺州市平桂区水口镇便民服务中心","工作人员三"]
["贺州市平桂区水口镇综合行政执法队工作人员","1452400278","贺州市平桂区水口镇人民政府","贺州市平桂区水口镇综合行政执法队","工作人员"]
["富川瑶族自治县高级中学校医","1452400279","富川瑶族自治县教育局","富川瑶族自治县高级中学","校医"]
["富川瑶族自治县职业教育中心财务","1452400280","富川瑶族自治县教育局","富川瑶族自治县职业教育中心","财务"]
["富川瑶族自治县职业教育中心校医","1452400281","富川瑶族自治县教育局","富川瑶族自治县职业教育中心","校医"]
["富川瑶族自治县石家乡中心校财务","1452400282","富川瑶族自治县教育局","富川瑶族自治县石家乡中心校","财务"]
["富川瑶族自治县朝东镇油沐中心校财务","1452400283","富川瑶族自治县教育局","富川瑶族自治县朝东镇油沐中心校","财务"]
["富川瑶族自治县立新小学财务","1452400284","富川瑶族自治县教育局","富川瑶族自治县立新小学","财务"]
["富川瑶族自治县新华乡中心校财务","1452400285","富川瑶族自治县教育局","富川瑶族自治县新华乡中心校","财务"]
["富川瑶族自治县白沙镇中心校财务","1452400286","富川瑶族自治县教育局","富川瑶族自治县白沙镇中心校","财务"]
["富川瑶族自治县麦岭镇中心校财务","1452400287","富川瑶族自治县教育局","富川瑶族自治县麦岭镇中心校","财务"]
["富川瑶族自治县疾病预防控制中心公卫医师","1452400288","富川瑶族自治县卫生健康局","富川瑶族自治县疾病预防控制中心","公卫医师"]
["富川瑶族自治县妇幼保健院西医临床岗位一","1452400289","富川瑶族自治县卫生健康局","富川瑶族自治县妇幼保健院","西医临床岗位一"]
["富川瑶族自治县妇幼保健院西医临床岗位二","1452400290","富川瑶族自治县卫生健康局","富川瑶族自治县妇幼保健院","西医临床岗位二"]
["富川瑶族自治县妇幼保健院财务岗位","1452400291","富川瑶族自治县卫生健康局","富川瑶族自治县妇幼保健院","财务岗位"]
["富川瑶族自治县妇幼保健院医院办公室岗位","1452400292","富川瑶族自治县卫生健康局","富川瑶族自治县妇幼保健院","医院办公室岗位"]
["富川瑶族自治县人民医院临床医生一","1452400293","富川瑶族自治县卫生健康局","富川瑶族自治县人民医院","临床医生一"]
["富川瑶族自治县人民医院临床医生二","1452400294","富川瑶族自治县卫生健康局","富川瑶族自治县人民医院","临床医生二"]
["富川瑶族自治县人民医院临床医生三","1452400295","富川瑶族自治县卫生健康局","富川瑶族自治县人民医院","临床医生三"]
["富川瑶族自治县人民医院临床医生四","1452400296","富川瑶族自治县卫生健康局","富川瑶族自治县人民医院","临床医生四"]
["富川瑶族自治县人民医院临床医生五","1452400297","富川瑶族自治县卫生健康局","富川瑶族自治县人民医院","临床医生五"]
["富川瑶族自治县人民医院全科医师","1452400298","富川瑶族自治县卫生健康局","富川瑶族自治县人民医院","全科医师"]
["富川瑶族自治县人民医院口腔医师","1452400299","富川瑶族自治县卫生健康局","富川瑶族自治县人民医院","口腔医师"]
["富川瑶族自治县人民医院医学检验","1452400300","富川瑶族自治县卫生健康局","富川瑶族自治县人民医院","医学检验"]
["富川瑶族自治县人民医院放射医师","1452400301","富川瑶族自治县卫生健康局","富川瑶族自治县人民医院","放射医师"]
["富川瑶族自治县人民医院护理","1452400302","富川瑶族自治县卫生健康局","富川瑶族自治县人民医院","护理"]
["富川瑶族自治县人民医院财务","1452400303","富川瑶族自治县卫生健康局","富川瑶族自治县人民医院","财务"]
["富川瑶族自治县民族医医院中医临床医师","1452400304","富川瑶族自治县卫生健康局","富川瑶族自治县民族医医院","中医临床医师"]
["富川瑶族自治县民族医医院会计岗位","1452400305","富川瑶族自治县卫生健康局","富川瑶族自治县民族医医院","会计岗位"]
["富川瑶族自治县白沙镇卫生院中西医临床岗位","1452400306","富川瑶族自治县卫生健康局","富川瑶族自治县白沙镇卫生院","中西医临床岗位"]
["富川瑶族自治县白沙镇卫生院会计岗位","1452400307","富川瑶族自治县卫生健康局","富川瑶族自治县白沙镇卫生院","会计岗位"]
["富川瑶族自治县葛坡镇卫生院会计岗位","1452400308","富川瑶族自治县卫生健康局","富川瑶族自治县葛坡镇卫生院","会计岗位"]
["富川瑶族自治县葛坡镇卫生院中医临床岗位","1452400309","富川瑶族自治县卫生健康局","富川瑶族自治县葛坡镇卫生院","中医临床岗位"]
["富川瑶族自治县莲山中心卫生院中医临床岗位","1452400310","富川瑶族自治县卫生健康局","富川瑶族自治县莲山中心卫生院","中医临床岗位"]
["富川瑶族自治县麦岭中心卫生院临床医生岗位","1452400311","富川瑶族自治县卫生健康局","富川瑶族自治县麦岭中心卫生院","临床医生岗位"]
["富川瑶族自治县新华乡卫生院会计岗位","1452400312","富川瑶族自治县卫生健康局","富川瑶族自治县新华乡卫生院","会计岗位"]
["富川瑶族自治县柳家乡卫生院中西医临床岗位","1452400313","富川瑶族自治县卫生健康局","富川瑶族自治县柳家乡卫生院","中西医临床岗位"]
["富川瑶族自治县民族艺术团舞蹈编导","1452400314","富川瑶族自治县文体广电和旅游局","富川瑶族自治县民族艺术团","舞蹈编导"]
["富川瑶族自治县民政福利综合服务中心会计","1452400315","富川瑶族自治县民政局","富川瑶族自治县民政福利综合服务中心","会计"]
["富川瑶族自治县民政福利综合服务中心工作人员","1452400316","富川瑶族自治县民政局","富川瑶族自治县民政福利综合服务中心","工作人员"]
["富川瑶族自治县财政局财政投资评审中心工作人员","1452400317","富川瑶族自治县财政局","富川瑶族自治县财政局财政投资评审中心","工作人员"]
["富川瑶族自治县土地收购储备中心专业技术人员","1452400318","富川瑶族自治县自然资源局","富川瑶族自治县土地收购储备中心","专业技术人员"]
["富川瑶族自治县鸡公山水库水利工程管理所专业技术人员","1452400319","富川瑶族自治县水利局","富川瑶族自治县鸡公山水库水利工程管理所","专业技术人员"]
["富川瑶族自治县公证处公证员","1452400320","富川瑶族自治县司法局","富川瑶族自治县公证处","公证员"]
["富川瑶族自治县交通运输综合行政执法大队工作人员一","1452400321","富川瑶族自治县交通运输局","富川瑶族自治县交通运输综合行政执法大队","工作人员一"]
["富川瑶族自治县交通运输综合行政执法大队工作人员二","1452400322","富川瑶族自治县交通运输局","富川瑶族自治县交通运输综合行政执法大队","工作人员二"]
["富川瑶族自治县交通运输综合行政执法大队办公室人员","1452400323","富川瑶族自治县交通运输局","富川瑶族自治县交通运输综合行政执法大队","办公室人员"]
["富川瑶族自治县交通运输综合行政执法大队财务人员","1452400324","富川瑶族自治县交通运输局","富川瑶族自治县交通运输综合行政执法大队","财务人员"]
["富川瑶族自治县政务服务和绩效考评中心财务人员","1452400325","富川瑶族自治县行政审批局","富川瑶族自治县政务服务和绩效考评中心","财务人员"]
["富川瑶族自治县政务服务和绩效考评中心专业技术人员","1452400326","富川瑶族自治县行政审批局","富川瑶族自治县政务服务和绩效考评中心","专业技术人员"]
["富川瑶族自治县未成年人思想道德建设服务中心工作人员一","1452400327","中共富川瑶族自治县委员会宣传部","富川瑶族自治县未成年人思想道德建设服务中心","工作人员一"]
["富川瑶族自治县未成年人思想道德建设服务中心工作人员二","1452400328","中共富川瑶族自治县委员会宣传部","富川瑶族自治县未成年人思想道德建设服务中心","工作人员二"]
["富川瑶族自治县融媒体中心工作人员","1452400329","中共富川瑶族自治县委员会宣传部","富川瑶族自治县融媒体中心","工作人员"]
["富川瑶族自治县经济作物站专业技术人员","1452400330","富川瑶族自治县农业农村局","富川瑶族自治县经济作物站","专业技术人员"]
["富川瑶族自治县动物疫病预防控制中心专业技术人员","1452400331","富川瑶族自治县农业农村局","富川瑶族自治县动物疫病预防控制中心","专业技术人员"]
["富川瑶族自治县乡村振兴建设服务站工作人员","1452400332","富川瑶族自治县农业农村局","富川瑶族自治县乡村振兴建设服务站","工作人员"]
["富川瑶族自治县政府发展研究中心工作人员一","1452400333","富川瑶族自治县人民政府办公室","富川瑶族自治县政府发展研究中心","工作人员一"]
["富川瑶族自治县政府发展研究中心工作人员二","1452400334","富川瑶族自治县人民政府办公室","富川瑶族自治县政府发展研究中心","工作人员二"]
["富川瑶族自治县政府发展研究中心工作人员三","1452400335","富川瑶族自治县人民政府办公室","富川瑶族自治县政府发展研究中心","工作人员三"]
["富川瑶族自治县民兵训练基地办公室人员","1452400336","富川瑶族自治县人民武装部","富川瑶族自治县民兵训练基地","办公室人员"]
["富川瑶族自治县劳动人事争议仲裁院工作人员一","1452400337","富川瑶族自治县人力资源和社会保障局","富川瑶族自治县劳动人事争议仲裁院","工作人员一"]
["富川瑶族自治县劳动人事争议仲裁院工作人员二","1452400338","富川瑶族自治县人力资源和社会保障局","富川瑶族自治县劳动人事争议仲裁院","工作人员二"]
["富川瑶族自治县劳动人事争议仲裁院工作人员三","1452400339","富川瑶族自治县人力资源和社会保障局","富川瑶族自治县劳动人事争议仲裁院","工作人员三"]
["富川瑶族自治县应急救援指挥中心工作人员一","1452400340","富川瑶族自治县应急管理局","富川瑶族自治县应急救援指挥中心","工作人员一"]
["富川瑶族自治县应急救援指挥中心工作人员二","1452400341","富川瑶族自治县应急管理局","富川瑶族自治县应急救援指挥中心","工作人员二"]
["富川瑶族自治县应急救援指挥中心工作人员三","1452400342","富川瑶族自治县应急管理局","富川瑶族自治县应急救援指挥中心","工作人员三"]
["中共委员会办公室信息管理和专用通信服务中心工作人员一","1452400343","中共富川瑶族自治县委员会办公室","中共委员会办公室信息管理和专用通信服务中心","工作人员一"]
["中共委员会办公室信息管理和专用通信服务中心工作人员二","1452400344","中共富川瑶族自治县委员会办公室","中共委员会办公室信息管理和专用通信服务中心","工作人员二"]
["富川瑶族自治县医疗救助中心工作人员","1452400345","富川瑶族自治县医疗保障局","富川瑶族自治县医疗救助中心","工作人员"]
["富川瑶族自治县社会工作服务中心工作人员","1452400346","中共富川瑶族自治县委员会社会工作部","富川瑶族自治县社会工作服务中心","工作人员"]
["富川瑶族自治县科技馆工作人员","1452400347","富川瑶族自治县科学技术协会","富川瑶族自治县科技馆","工作人员"]
["朝东镇农业服务中心工作人员一","1452400348","朝东镇人民政府","朝东镇农业服务中心","工作人员一"]
["朝东镇农业服务中心工作人员二","1452400349","朝东镇人民政府","朝东镇农业服务中心","工作人员二"]
["朝东镇综合行政执法队工作人员一","1452400350","朝东镇人民政府","朝东镇综合行政执法队","工作人员一"]
["朝东镇综合行政执法队工作人员二","1452400351","朝东镇人民政府","朝东镇综合行政执法队","工作人员二"]
["朝东镇综合行政执法队工作人员三","1452400352","朝东镇人民政府","朝东镇综合行政执法队","工作人员三"]
["福利镇乡村建设综合服务中心会计","1452400353","福利镇人民政府","福利镇乡村建设综合服务中心","会计"]
["葛坡镇综合行政执法队管理岗位","1452400354","葛坡镇人民政府","葛坡镇综合行政执法队","管理岗位"]
["葛坡镇综合行政执法队专业技术岗位","1452400355","葛坡镇人民政府","葛坡镇综合行政执法队","专业技术岗位"]
["城北镇综治行政执法队工作人员","1452400356","城北镇人民政府","城北镇综治行政执法队","工作人员"]
["城北镇乡村建设综合服务中心工作人员","1452400357","城北镇人民政府","城北镇乡村建设综合服务中心","工作人员"]
["柳家乡乡村建设综合服务中心管理岗","1452400358","柳家乡人民政府","柳家乡乡村建设综合服务中心","管理岗"]
["柳家乡行政综合执法队专业技术岗","1452400359","柳家乡人民政府","柳家乡行政综合执法队","专业技术岗"]
["古城镇乡村建设综合服务中心工作人员","1452400360","古城镇人民政府","古城镇乡村建设综合服务中心","工作人员"]
["古城镇农业服务中心工作人员","1452400361","古城镇人民政府","古城镇农业服务中心","工作人员"]
["白沙镇乡村建设综合服务中心工作人员一","1452400362","白沙镇人民政府","白沙镇乡村建设综合服务中心","工作人员一"]
["白沙镇乡村建设综合服务中心工作人员二","1452400363","白沙镇人民政府","白沙镇乡村建设综合服务中心","工作人员二"]
["白沙镇综合行政执法队工作人员","1452400364","白沙镇人民政府","白沙镇综合行政执法队","工作人员"]
["富阳镇便民服务中心工作人员一","1452400365","富阳镇人民政府","富阳镇便民服务中心","工作人员一"]
["富阳镇便民服务中心工作人员二","1452400366","富阳镇人民政府","富阳镇便民服务中心","工作人员二"]
["富阳镇农业服务中心工作人员","1452400367","富阳镇人民政府","富阳镇农业服务中心","工作人员"]
["富阳镇综合行政执法队工作人员","1452400368","富阳镇人民政府","富阳镇综合行政执法队","工作人员"]
["富阳镇乡村建设综合服务中心工作人员","1452400369","富阳镇人民政府","富阳镇乡村建设综合服务中心","工作人员"]
["新华乡乡村建设综合服务中心工作人员一","1452400370","新华乡人民政府","新华乡乡村建设综合服务中心","工作人员一"]
["新华乡乡村建设综合服务中心工作人员二","1452400371","新华乡人民政府","新华乡乡村建设综合服务中心","工作人员二"]
["新华乡乡村建设综合服务中心工作人员三","1452400372","新华乡人民政府","新华乡乡村建设综合服务中心","工作人员三"]
["新华乡综合行政执法队工作人员一","1452400373","新华乡人民政府","新华乡综合行政执法队","工作人员一"]
["新华乡综合行政执法队工作人员二","1452400374","新华乡人民政府","新华乡综合行政执法队","工作人员二"]
["麦岭镇乡村建设综合服务中心管理岗","1452400375","麦岭镇人民政府","麦岭镇乡村建设综合服务中心","管理岗"]
["麦岭镇综合行政执法队专业技术岗","1452400376","麦岭镇人民政府","麦岭镇综合行政执法队","专业技术岗"]
["麦岭镇农业服务中心专业技术岗","1452400377","麦岭镇人民政府","麦岭镇农业服务中心","专业技术岗"]
["石家乡乡村建设综合服务中心工作人员一","1452400378","石家乡人民政府","石家乡乡村建设综合服务中心","工作人员一"]
["石家乡乡村建设综合服务中心工作人员二","1452400379","石家乡人民政府","石家乡乡村建设综合服务中心","工作人员二"]
["石家乡乡村建设综合服务中心工作人员三","1452400380","石家乡人民政府","石家乡乡村建设综合服务中心","工作人员三"]
["石家乡乡村建设综合服务中心工作人员四","1452400381","石家乡人民政府","石家乡乡村建设综合服务中心","工作人员四"]
["石家乡便民服务中心工作人员","1452400382","石家乡人民政府","石家乡便民服务中心","工作人员"]
["石家乡农业服务中心工作人员一","1452400383","石家乡人民政府","石家乡农业服务中心","工作人员一"]
["石家乡农业服务中心工作人员二","1452400384","石家乡人民政府","石家乡农业服务中心","工作人员二"]
["石家乡综合行政执法队工作人员一","1452400385","石家乡人民政府","石家乡综合行政执法队","工作人员一"]
["石家乡综合行政执法队工作人员二","1452400386","石家乡人民政府","石家乡综合行政执法队","工作人员二"]
["石家乡综合行政执法队工作人员三","1452400387","石家乡人民政府","石家乡综合行政执法队","工作人员三"]
["莲山镇乡村建设综合服务中心工作人员","1452400388","莲山镇人民政府","莲山镇乡村建设综合服务中心","工作人员"]
["莲山镇综合行政执法队工作人员","1452400389","莲山镇人民政府","莲山镇综合行政执法队","工作人员"]
["莲山镇便民服务中心工作人员一","1452400390","莲山镇人民政府","莲山镇便民服务中心","工作人员一"]
["莲山镇便民服务中心工作人员二","1452400391","莲山镇人民政府","莲山镇便民服务中心","工作人员二"]
["昭平县财政投资评审中心财会人员一","1452400392","昭平县财政局","昭平县财政投资评审中心","财会人员一"]
["昭平县财政投资评审中心财会人员二","1452400393","昭平县财政局","昭平县财政投资评审中心","财会人员二"]
["昭平县行政体制与机构改革研究室工作人员","1452400394","中共昭平县委员会机构编制委员会办公室","昭平县行政体制与机构改革研究室","工作人员"]
["昭平县政府投资审计中心工作人员一","1452400395","昭平县审计局","昭平县政府投资审计中心","工作人员一"]
["昭平县政府投资审计中心工作人员二","1452400396","昭平县审计局","昭平县政府投资审计中心","工作人员二"]
["昭平县植保植检站工作人员","1452400397","昭平县农业农村局","昭平县植保植检站","工作人员"]
["昭平县交通运输综合行政执法大队工作人员一","1452400398","昭平县交通运输局","昭平县交通运输综合行政执法大队","工作人员一"]
["昭平县交通运输综合行政执法大队工作人员二","1452400399","昭平县交通运输局","昭平县交通运输综合行政执法大队","工作人员二"]
["昭平县交通运输综合行政执法大队工作人员三","1452400400","昭平县交通运输局","昭平县交通运输综合行政执法大队","工作人员三"]
["昭平县交通运输综合行政执法大队工作人员四","1452400401","昭平县交通运输局","昭平县交通运输综合行政执法大队","工作人员四"]
["昭平县交通运输综合行政执法大队工作人员五","1452400402","昭平县交通运输局","昭平县交通运输综合行政执法大队","工作人员五"]
["昭平县交通运输综合行政执法大队工作人员六","1452400403","昭平县交通运输局","昭平县交通运输综合行政执法大队","工作人员六"]
["昭平县周家水库工程管理所工作人员一","1452400404","昭平县水利局","昭平县周家水库工程管理所","工作人员一"]
["昭平县周家水库工程管理所工作人员二","1452400405","昭平县水利局","昭平县周家水库工程管理所","工作人员二"]
["昭平县周家水库工程管理所工作人员三","1452400406","昭平县水利局","昭平县周家水库工程管理所","工作人员三"]
["昭平县砂子冲水库工程管理所工作人员","1452400407","昭平县水利局","昭平县砂子冲水库工程管理所","工作人员"]
["昭平县政务服务和绩效考评中心工作人员","1452400408","昭平县行政审批局","昭平县政务服务和绩效考评中心","工作人员"]
["昭平县数据信息中心工作人员","1452400409","昭平县行政审批局","昭平县数据信息中心","工作人员"]
["昭平县普查中心工作人员","1452400410","昭平县统计局","昭平县普查中心","工作人员"]
["昭平县房屋网签备案中心工作人员","1452400411","昭平县住房和城乡建设局","昭平县房屋网签备案中心","工作人员"]
["昭平县融媒体中心工作人员","1452400412","中共昭平县委员会宣传部","昭平县融媒体中心","工作人员"]
["昭平县医疗保障管理服务中心财会人员","1452400413","昭平县医疗保障局","昭平县医疗保障管理服务中心","财会人员"]
["昭平县医疗保障管理服务中心工作人员","1452400414","昭平县医疗保障局","昭平县医疗保障管理服务中心","工作人员"]
["昭平县环境卫生管理站工作人员一","1452400415","昭平县综合行政执法局","昭平县环境卫生管理站","工作人员一"]
["昭平县环境卫生管理站工作人员二","1452400416","昭平县综合行政执法局","昭平县环境卫生管理站","工作人员二"]
["昭平县环境卫生管理站工作人员三","1452400417","昭平县综合行政执法局","昭平县环境卫生管理站","工作人员三"]
["昭平县城市管理综合服务中心工作人员一","1452400418","昭平县综合行政执法局","昭平县城市管理综合服务中心","工作人员一"]
["昭平县城市管理综合服务中心工作人员二","1452400419","昭平县综合行政执法局","昭平县城市管理综合服务中心","工作人员二"]
["昭平县富罗林场工作人员","1452400420","昭平县林业局","昭平县富罗林场","工作人员"]
["昭平县大脑山林场工作人员一","1452400421","昭平县林业局","昭平县大脑山林场","工作人员一"]
["昭平县大脑山林场工作人员二","1452400422","昭平县林业局","昭平县大脑山林场","工作人员二"]
["昭平县大脑山林场财会人员","1452400423","昭平县林业局","昭平县大脑山林场","财会人员"]
["昭平县教研室工作人员","1452400424","昭平县教育局","昭平县教研室","工作人员"]
["昭平县职业技术学校财会人员","1452400425","昭平县教育局","昭平县职业技术学校","财会人员"]
["昭平县走马镇乡村建设综合服务中心工作人员","1452400426","昭平县走马镇人民政府","昭平县走马镇乡村建设综合服务中心","工作人员"]
["昭平县木格乡便民服务中心工作人员","1452400427","昭平县木格乡人民政府","昭平县木格乡便民服务中心","工作人员"]
["昭平县流动人口计划管理站财会人员","1452400428","昭平县卫生健康局","昭平县流动人口计划管理站","财会人员"]
["昭平县疾病预防控制中心工作人员","1452400429","昭平县卫生健康局","昭平县疾病预防控制中心","工作人员"]
["昭平县妇幼保健院妇产科医师","1452400430","昭平县卫生健康局","昭平县妇幼保健院","妇产科医师"]
["昭平县妇幼保健院医学影像医师","1452400431","昭平县卫生健康局","昭平县妇幼保健院","医学影像医师"]
["昭平县中医医院临床医师","1452400432","昭平县卫生健康局","昭平县中医医院","临床医师"]
["昭平县中医医院中医师","1452400433","昭平县卫生健康局","昭平县中医医院","中医师"]
["昭平县木格乡卫生院中医师","1452400434","昭平县卫生健康局","昭平县木格乡卫生院","中医师"]
["昭平县木格乡卫生院医学影像技士","1452400435","昭平县卫生健康局","昭平县木格乡卫生院","医学影像技士"]
["中国共产党钟山县委员会党校专职教师","1452400436","中共钟山县委员会","中国共产党钟山县委员会党校","专职教师"]
["钟山县经济合作服务中心工作人员","1452400437","钟山县人民政府办公室","钟山县经济合作服务中心","工作人员"]
["钟山县互联网传播管理中心工作人员","1452400438","中共钟山县委员会宣传部","钟山县互联网传播管理中心","工作人员"]
["钟山县融媒体中心播音主持","1452400439","中共钟山县委员会宣传部","钟山县融媒体中心","播音主持"]
["钟山县融媒体中心记者","1452400440","中共钟山县委员会宣传部","钟山县融媒体中心","记者"]
["钟山县融媒体中心编辑","1452400441","中共钟山县委员会宣传部","钟山县融媒体中心","编辑"]
["钟山县价格认证中心工作人员","1452400442","钟山县发展和改革局","钟山县价格认证中心","工作人员"]
["钟山县青少年活动中心工作人员","1452400443","钟山县教育局","钟山县青少年活动中心","工作人员"]
["钟山县花山瑶族乡民族学校会计","1452400444","钟山县教育局","钟山县花山瑶族乡民族学校","会计"]
["钟山县中小企业服务中心工作人员一","1452400445","钟山县经济贸易局","钟山县中小企业服务中心","工作人员一"]
["钟山县中小企业服务中心工作人员二","1452400446","钟山县经济贸易局","钟山县中小企业服务中心","工作人员二"]
["钟山县科学技术试验所工作人员","1452400447","钟山县经济贸易局","钟山县科学技术试验所","工作人员"]
["广西省工委历史博物馆钟山县管理所工作人员","1452400448","钟山县文化广电和旅游局","广西省工委历史博物馆钟山县管理所","工作人员"]
["广西壮族自治区钟山县公证处公证员","1452400449","钟山县司法局","广西壮族自治区钟山县公证处","公证员"]
["钟山县财政票据管理中心工作人员一","1452400450","钟山县财政局","钟山县财政票据管理中心","工作人员一"]
["钟山县财政票据管理中心工作人员二","1452400451","钟山县财政局","钟山县财政票据管理中心","工作人员二"]
["钟山县财政票据管理中心工作人员三","1452400452","钟山县财政局","钟山县财政票据管理中心","工作人员三"]
["钟山县财政票据管理中心工作人员四","1452400453","钟山县财政局","钟山县财政票据管理中心","工作人员四"]
["钟山县财政票据管理中心工作人员五","1452400454","钟山县财政局","钟山县财政票据管理中心","工作人员五"]
["钟山县不动产登记服务中心测绘人员","1452400455","钟山县自然资源局","钟山县不动产登记服务中心","测绘人员"]
["钟山县林业技术推广站工作人员","1452400456","钟山县林业局","钟山县林业技术推广站","工作人员"]
["钟山县国营花山林场工作人员一","1452400457","钟山县林业局","钟山县国营花山林场","工作人员一"]
["钟山县国营花山林场工作人员二","1452400458","钟山县林业局","钟山县国营花山林场","工作人员二"]
["钟山县国营花山林场工作人员三","1452400459","钟山县林业局","钟山县国营花山林场","工作人员三"]
["钟山县水土保持站工作人员","1452400460","钟山县水利局","钟山县水土保持站","工作人员"]
["钟山县水旱灾害防御站工作人员一","1452400461","钟山县水利局","钟山县水旱灾害防御站","工作人员一"]
["钟山县水旱灾害防御站工作人员二","1452400462","钟山县水利局","钟山县水旱灾害防御站","工作人员二"]
["钟山县水利水电工程质量与安全监督管理站工作人员","1452400463","钟山县水利局","钟山县水利水电工程质量与安全监督管理站","工作人员"]
["钟山县龙潭水库工程管理所工作人员一","1452400464","钟山县水利局","钟山县龙潭水库工程管理所","工作人员一"]
["钟山县龙潭水库工程管理所工作人员二","1452400465","钟山县水利局","钟山县龙潭水库工程管理所","工作人员二"]
["钟山县农业机械化服务中心工作人员一","1452400466","钟山县农业农村局","钟山县农业机械化服务中心","工作人员一"]
["钟山县农业机械化服务中心工作人员二","1452400467","钟山县农业农村局","钟山县农业机械化服务中心","工作人员二"]
["钟山县种子与种植业工作站工作人员一","1452400468","钟山县农业农村局","钟山县种子与种植业工作站","工作人员一"]
["钟山县种子与种植业工作站工作人员二","1452400469","钟山县农业农村局","钟山县种子与种植业工作站","工作人员二"]
["钟山县水产畜牧站工作人员","1452400470","钟山县农业农村局","钟山县水产畜牧站","工作人员"]
["钟山县动物疫病预防控制中心工作人员","1452400471","钟山县农业农村局","钟山县动物疫病预防控制中心","工作人员"]
["钟山县土壤肥料生态站工作人员","1452400472","钟山县农业农村局","钟山县土壤肥料生态站","工作人员"]
["钟山县植保植检站工作人员","1452400473","钟山县农业农村局","钟山县植保植检站","工作人员"]
["钟山县村级集体经济发展中心工作人员","1452400474","钟山县农业农村局","钟山县村级集体经济发展中心","工作人员"]
["钟山县图书馆工作人员","1452400475","钟山县文化广电和旅游局","钟山县图书馆","工作人员"]
["钟山县文化馆会计","1452400476","钟山县文化广电和旅游局","钟山县文化馆","会计"]
["钟山县业余体育学校拳击教练员","1452400477","钟山县文化广电和旅游局","钟山县业余体育学校","拳击教练员"]
["钟山县文化旅游发展中心管理人员","1452400478","钟山县文化广电和旅游局","钟山县文化旅游发展中心","管理人员"]
["钟山县科学技术馆工作人员一","1452400479","钟山县科学技术协会","钟山县科学技术馆","工作人员一"]
["钟山县科学技术馆工作人员二","1452400480","钟山县科学技术协会","钟山县科学技术馆","工作人员二"]
["钟山县应急救援指挥中心专业技术人员一","1452400481","钟山县应急管理局","钟山县应急救援指挥中心","专业技术人员一"]
["钟山县应急救援指挥中心专业技术人员二","1452400482","钟山县应急管理局","钟山县应急救援指挥中心","专业技术人员二"]
["钟山县应急救援指挥中心专业技术人员三","1452400483","钟山县应急管理局","钟山县应急救援指挥中心","专业技术人员三"]
["钟山县人民医院内科医师","1452400484","钟山县卫生健康局","钟山县人民医院","内科医师"]
["钟山县人民医院外科医师","1452400485","钟山县卫生健康局","钟山县人民医院","外科医师"]
["钟山县人民医院妇产科医师","1452400486","钟山县卫生健康局","钟山县人民医院","妇产科医师"]
["钟山县人民医院麻醉科医师","1452400487","钟山县卫生健康局","钟山县人民医院","麻醉科医师"]
["钟山县人民医院重症医学科医师","1452400488","钟山县卫生健康局","钟山县人民医院","重症医学科医师"]
["钟山县人民医院眼耳鼻咽喉科医师","1452400489","钟山县卫生健康局","钟山县人民医院","眼耳鼻咽喉科医师"]
["钟山县人民医院急诊科医师","1452400490","钟山县卫生健康局","钟山县人民医院","急诊科医师"]
["钟山县回龙镇卫生院内科医生","1452400491","钟山县卫生健康局","钟山县回龙镇卫生院","内科医生"]
["钟山县回龙镇卫生院中医科医生","1452400492","钟山县卫生健康局","钟山县回龙镇卫生院","中医科医生"]
["钟山县公安中心卫生院中医科医生","1452400493","钟山县卫生健康局","钟山县公安中心卫生院","中医科医生"]
["钟山县公安中心卫生院外科医生","1452400494","钟山县卫生健康局","钟山县公安中心卫生院","外科医生"]
["钟山县花山瑶族乡卫生院临床医生","1452400495","钟山县卫生健康局","钟山县花山瑶族乡卫生院","临床医生"]
["钟山县疾病预防控制中心公共卫生医师","1452400496","钟山县卫生健康局","钟山县疾病预防控制中心","公共卫生医师"]
["钟山县石龙中心卫生院中医科医生","1452400497","钟山县卫生健康局","钟山县石龙中心卫生院","中医科医生"]
["钟山县石龙中心卫生院临床护士","1452400498","钟山县卫生健康局","钟山县石龙中心卫生院","临床护士"]
["钟山县石龙中心卫生院临床医生","1452400499","钟山县卫生健康局","钟山县石龙中心卫生院","临床医生"]
["钟山县石龙中心卫生院口腔科医生","1452400500","钟山县卫生健康局","钟山县石龙中心卫生院","口腔科医生"]
["钟山县中医医院内科医生一","1452400501","钟山县卫生健康局","钟山县中医医院","内科医生一"]
["钟山县中医医院内科医生二","1452400502","钟山县卫生健康局","钟山县中医医院","内科医生二"]
["钟山县中医医院临床护士一","1452400503","钟山县卫生健康局","钟山县中医医院","临床护士一"]
["钟山县中医医院临床护士二","1452400504","钟山县卫生健康局","钟山县中医医院","临床护士二"]
["钟山县中医医院财务人员","1452400505","钟山县卫生健康局","钟山县中医医院","财务人员"]
["钟山县珊瑚镇卫生院临床医师","1452400506","钟山县卫生健康局","钟山县珊瑚镇卫生院","临床医师"]
["钟山县珊瑚镇卫生院中医医师","1452400507","钟山县卫生健康局","钟山县珊瑚镇卫生院","中医医师"]
["钟山县珊瑚镇卫生院护士","1452400508","钟山县卫生健康局","钟山县珊瑚镇卫生院","护士"]
["钟山县珊瑚镇卫生院公共卫生医师","1452400509","钟山县卫生健康局","钟山县珊瑚镇卫生院","公共卫生医师"]
["钟山县妇幼保健院妇产科医师","1452400510","钟山县卫生健康局","钟山县妇幼保健院","妇产科医师"]
["钟山县妇幼保健院检验科检验师","1452400511","钟山县卫生健康局","钟山县妇幼保健院","检验科检验师"]
["钟山县钟山镇卫生院外科医生","1452400512","钟山县卫生健康局","钟山县钟山镇卫生院","外科医生"]
["钟山县钟山镇卫生院五官科医生","1452400513","钟山县卫生健康局","钟山县钟山镇卫生院","五官科医生"]
["钟山县钟山镇卫生院妇产科医生","1452400514","钟山县卫生健康局","钟山县钟山镇卫生院","妇产科医生"]
["钟山县清塘中心卫生院临床医师","1452400515","钟山县卫生健康局","钟山县清塘中心卫生院","临床医师"]
["钟山县红花镇中心卫生院临床医师","1452400516","钟山县卫生健康局","钟山县红花镇中心卫生院","临床医师"]
["钟山县燕塘镇卫生院临床医生","1452400517","钟山县卫生健康局","钟山县燕塘镇卫生院","临床医生"]
["钟山县凤翔镇卫生院综合科医生","1452400518","钟山县卫生健康局","钟山县凤翔镇卫生院","综合科医生"]
["钟山县凤翔镇卫生院中医科医生","1452400519","钟山县卫生健康局","钟山县凤翔镇卫生院","中医科医生"]
["钟山县同古镇综合行政执法队工作人员","1452400520","钟山县同古镇人民政府","钟山县同古镇综合行政执法队","工作人员"]
["钟山县同古镇便民服务中心工作人员","1452400521","钟山县同古镇人民政府","钟山县同古镇便民服务中心","工作人员"]
["钟山县珊瑚镇乡村建设综合服务中心工作人员一","1452400522","钟山县珊瑚镇人民政府","钟山县珊瑚镇乡村建设综合服务中心","工作人员一"]
["钟山县珊瑚镇乡村建设综合服务中心工作人员二","1452400523","钟山县珊瑚镇人民政府","钟山县珊瑚镇乡村建设综合服务中心","工作人员二"]
["钟山县石龙镇便民服务中心工作人员","1452400524","钟山县石龙镇人民政府","钟山县石龙镇便民服务中心","工作人员"]
["钟山县红花镇便民服务中心工作人员","1452400525","钟山县红花镇人民政府","钟山县红花镇便民服务中心","工作人员"]
["钟山县清塘镇便民服务中心财会人员","1452400526","钟山县清塘镇人民政府","钟山县清塘镇便民服务中心","财会人员"]
["钟山县清塘镇便民服务中心工作人员","1452400527","钟山县清塘镇人民政府","钟山县清塘镇便民服务中心","工作人员"]
["钟山县清塘镇综合行政执法队工作人员","1452400528","钟山县清塘镇人民政府","钟山县清塘镇综合行政执法队","工作人员"]
["钟山县清塘镇综合行政执法队财会人员","1452400529","钟山县清塘镇人民政府","钟山县清塘镇综合行政执法队","财会人员"]
["钟山县清塘镇乡村建设综合服务中心工作人员","1452400530","钟山县清塘镇人民政府","钟山县清塘镇乡村建设综合服务中心","工作人员"]
["钟山县凤翔镇便民服务中心工作人员","1452400531","钟山县凤翔镇人民政府","钟山县凤翔镇便民服务中心","工作人员"]
["钟山县凤翔镇乡村建设综合服务中心工作人员","1452400532","钟山县凤翔镇人民政府","钟山县凤翔镇乡村建设综合服务中心","工作人员"]
["钟山县凤翔镇综合行政执法队工作人员","1452400533","钟山县凤翔镇人民政府","钟山县凤翔镇综合行政执法队","工作人员"]
["钟山县钟山镇便民服务中心工作人员一","1452400534","钟山县钟山镇人民政府","钟山县钟山镇便民服务中心","工作人员一"]
["钟山县钟山镇便民服务中心工作人员二","1452400535","钟山县钟山镇人民政府","钟山县钟山镇便民服务中心","工作人员二"]
["钟山县钟山镇农业服务中心工作人员","1452400536","钟山县钟山镇人民政府","钟山县钟山镇农业服务中心","工作人员"]
["钟山县钟山镇乡村建设综合服务中心工作人员一","1452400537","钟山县钟山镇人民政府","钟山县钟山镇乡村建设综合服务中心","工作人员一"]
["钟山县钟山镇乡村建设综合服务中心工作人员二","1452400538","钟山县钟山镇人民政府","钟山县钟山镇乡村建设综合服务中心","工作人员二"]
["钟山县公安镇便民服务中心工作人员一","1452400539","钟山县公安镇人民政府","钟山县公安镇便民服务中心","工作人员一"]
["钟山县公安镇便民服务中心工作人员二","1452400540","钟山县公安镇人民政府","钟山县公安镇便民服务中心","工作人员二"]
["钟山县公安镇乡村建设综合服务中心工作人员","1452400541","钟山县公安镇人民政府","钟山县公安镇乡村建设综合服务中心","工作人员"]
["钟山县两安瑶族乡乡村建设综合服务中心技术人员","1452400542","钟山县两安瑶族乡人民政府","钟山县两安瑶族乡乡村建设综合服务中心","技术人员"]
["钟山县两安瑶族乡综合行政执法队技术人员","1452400543","钟山县两安瑶族乡人民政府","钟山县两安瑶族乡综合行政执法队","技术人员"]
["钟山县两安瑶族乡农业服务中心技术人员","1452400544","钟山县两安瑶族乡人民政府","钟山县两安瑶族乡农业服务中心","技术人员"]
["钟山县两安瑶族乡便民服务中心工作人员","1452400545","钟山县两安瑶族乡人民政府","钟山县两安瑶族乡便民服务中心","工作人员"]
["钟山县两安瑶族乡便民服务中心技术人员","1452400546","钟山县两安瑶族乡人民政府","钟山县两安瑶族乡便民服务中心","技术人员"]
["钟山县燕塘镇便民服务中心工作人员","1452400547","钟山县燕塘镇人民政府","钟山县燕塘镇便民服务中心","工作人员"]
["钟山县燕塘镇便民服务中心专技人员","1452400548","钟山县燕塘镇人民政府","钟山县燕塘镇便民服务中心","专技人员"]
["钟山县燕塘镇农业服务中心专技人员","1452400549","钟山县燕塘镇人民政府","钟山县燕塘镇农业服务中心","专技人员"]
["钟山县燕塘镇综合行政执法队工作人员一","1452400550","钟山县燕塘镇人民政府","钟山县燕塘镇综合行政执法队","工作人员一"]
["钟山县燕塘镇综合行政执法队工作人员二","1452400551","钟山县燕塘镇人民政府","钟山县燕塘镇综合行政执法队","工作人员二"]

{"sheet":"单位匹配","index":3,"n_rows":552,"n_cols":4,"rows_kept":552}
["岗位编码","主管部门","招聘单位","招聘岗位名称"]
["1452400001","贺州市交通运输局","贺州市交通运输综合行政执法支队","工作人员一"]
["1452400002","贺州市交通运输局","贺州市交通运输综合行政执法支队","工作人员二"]
["1452400003","贺州市交通运输局","贺州市交通运输综合行政执法支队","工作人员三"]
["1452400004","贺州市交通运输局","贺州市交通运输综合行政执法支队","工作人员四"]
["1452400005","贺州市交通运输局","贺州市交通运输综合行政执法支队","工作人员五"]
["1452400006","贺州市交通运输局","贺州市交通运输综合行政执法支队","工作人员六"]
["1452400007","贺州市交通运输局","贺州市交通运输综合行政执法支队","工作人员七"]
["1452400008","贺州市交通运输局","贺州市交通运输综合行政执法支队","工作人员八"]
["1452400009","贺州市交通运输局","贺州市交通运输综合行政执法支队","工作人员九"]
["1452400010","贺州市交通运输局","贺州市综合运输发展中心","工作人员"]
["1452400011","贺州市财政局","贺州市财政局社会保障资金管理中心","社会保障资金管理核算职位一"]
["1452400012","贺州市财政局","贺州市财政局社会保障资金管理中心","社会保障资金管理核算职位二"]
["1452400013","贺州市林业局","贺州市国营林场管理站","工作人员一"]
["1452400014","贺州市林业局","贺州市国营林场管理站","工作人员二"]
["1452400015","贺州市林业局","贺州市姑婆山林场","工作人员"]
["1452400016","贺州市林业局","贺州市林业科学研究所","工作人员一"]
["1452400017","贺州市林业局","贺州市林业科学研究所","工作人员二"]
["1452400018","贺州市水利局","贺州市水旱灾害防御中心","专业技术岗位"]
["1452400019","贺州市民政局","贺州市福利彩票发行中心","财务管理"]
["1452400020","贺州市文化广电和旅游局","贺州市图书馆","工作人员"]
["1452400021","贺州市应急管理局","贺州市地震监测服务中心","工作人员一"]
["1452400022","贺州市应急管理局","贺州市地震监测服务中心","工作人员二"]
["1452400023","贺州市自然资源局","贺州市土地征收服务中心","工作人员"]
["1452400024","贺州市自然资源局","贺州市矿产站","工作人员"]
["1452400025","贺州市自然资源局","贺州市城乡规划设计院","工作人员"]
["1452400026","贺州市自然资源局","贺州市自然资源测绘地理信息规划院","工作人员"]
["1452400027","贺州市农业农村局","贺州市农技科教站","工作人员"]
["1452400028","贺州市农业农村局","贺州市土壤肥料生态站","工作人员"]
["1452400029","贺州市农业农村局","贺州市农业科学院","工作人员"]
["1452400030","贺州市行政审批局","贺州市公共资源交易中心","工作人员"]
["1452400031","贺州市科学技术协会","贺州市科学技术馆","专业技术岗位"]
["1452400032","贺州高新技术产业开发区管理委员会","贺州高新技术产业开发区综合服务中心","工作人员一"]
["1452400033","贺州高新技术产业开发区管理委员会","贺州高新技术产业开发区综合服务中心","工作人员二"]
["1452400034","广西东融先行示范区（贺州）管理委员会","广西东融先行示范区（贺州）综合服务中心","工作人员"]
["1452400035","贺州市融媒体中心","贺州市融媒体中心","记者"]
["1452400036","贺州市融媒体中心","贺州市融媒体中心","视觉设计师"]
["1452400037","贺州市人民政府","贺州市黄姚古镇旅游文化产业发展中心","工作人员"]
["1452400038","贺州市教育局","贺州第一高级中学","图书管理员"]
["1452400039","贺州市教育局","贺州第一高级中学","工作人员"]
["1452400040","贺州市教育局","贺州第二高级中学","校医"]
["1452400041","贺州市教育局","贺州第三高级中学","校医"]
["1452400042","贺州市教育局","贺州第三高级中学","图书管理员"]
["1452400043","贺州市教育局","贺州第三高级中学","工作人员"]
["1452400044","贺州市教育局","贺州第三高级中学","财务人员一"]
["1452400045","贺州市教育局","贺州第三高级中学","财务人员二"]
["1452400046","贺州市教育局","贺州市职业教育发展中心","工作人员一"]
["1452400047","贺州市教育局","贺州市职业教育发展中心","工作人员二"]
["1452400048","贺州市教育局","贺州市职业教育发展中心","工作人员三"]
["1452400049","贺州市教育局","贺州市职业教育发展中心","工作人员四"]
["1452400050","贺州市教育局","贺州市幼儿园","财务人员"]
["1452400051","贺州市卫生健康委员会","贺州市卫生健康综合服务中心","专业技术人员"]
["1452400052","贺州市卫生健康委员会","广西壮族自治区桂东人民医院","神经内科一科医师"]
["1452400053","贺州市卫生健康委员会","广西壮族自治区桂东人民医院","神经内科二科医师"]
["1452400054","贺州市卫生健康委员会","广西壮族自治区桂东人民医院","心血管内科一科医师"]
["1452400055","贺州市卫生健康委员会","广西壮族自治区桂东人民医院","心血管内科二科医师"]
["1452400056","贺州市卫生健康委员会","广西壮族自治区桂东人民医院","肾内科医师"]
["1452400057","贺州市卫生健康委员会","广西壮族自治区桂东人民医院","内分泌科医师"]
["1452400058","贺州市卫生健康委员会","广西壮族自治区桂东人民医院","神经外科医师"]
["1452400059","贺州市卫生健康委员会","广西壮族自治区桂东人民医院","心胸外科医师"]
["1452400060","贺州市卫生健康委员会","广西壮族自治区桂东人民医院","儿科医师"]
["1452400061","贺州市卫生健康委员会","广西壮族自治区桂东人民医院","感染性疾病科一科医师"]
["1452400062","贺州市卫生健康委员会","广西壮族自治区桂东人民医院","感染性疾病科二科医师"]
["1452400063","贺州市卫生健康委员会","广西壮族自治区桂东人民医院","急诊医学科医师"]
["1452400064","贺州市卫生健康委员会","广西壮族自治区桂东人民医院","康复医学科医师一"]
["1452400065","贺州市卫生健康委员会","广西壮族自治区桂东人民医院","康复医学科医师二"]
["1452400066","贺州市卫生健康委员会","广西壮族自治区桂东人民医院","麻醉科医师"]
["1452400067","贺州市卫生健康委员会","广西壮族自治区桂东人民医院","重症医学科医师"]
["1452400068","贺州市卫生健康委员会","广西壮族自治区桂东人民医院","血液风湿免疫科医师"]
["1452400069","贺州市卫生健康委员会","贺州市妇幼保健院","放射科医师"]
["1452400070","贺州市卫生健康委员会","贺州市妇幼保健院","麻醉科医师"]
["1452400071","贺州市卫生健康委员会","贺州市皮肤病防治院（贺州市第五人民医院）","公共卫生执业医师"]
["1452400072","贺州市卫生健康委员会","贺州市疾病预防控制中心","工作人员一"]
["1452400073","贺州市卫生健康委员会","贺州市疾病预防控制中心","工作人员二"]
["1452400074","贺州市八步区民政局","八步区福利院","工作人员"]
["1452400075","贺州市八步区林业局","八步区乡镇林业工作总站","技术人员一"]
["1452400076","贺州市八步区林业局","八步区乡镇林业工作总站","技术人员二"]
["1452400077","贺州市八步区林业局","八步区乡镇林业工作总站","技术人员三"]
["1452400078","贺州市八步区林业局","八步区乡镇林业工作总站","技术人员四"]
["1452400079","贺州市八步区林业局","八步区林业产权交易管理服务中心","技术人员一"]
["1452400080","贺州市八步区林业局","八步区林业产权交易管理服务中心","技术人员二"]
["1452400081","贺州市八步区林业局","八步区林业产权交易管理服务中心","技术人员三"]
["1452400082","贺州市八步区林业局","八步区林业产权交易管理服务中心","技术人员四"]
["1452400083","贺州市八步区林业局","八步区林业产权交易管理服务中心","技术人员五"]
["1452400084","贺州市八步区林业局","八步区林业产权交易管理服务中心","技术人员六"]
["1452400085","贺州市八步区林业局","八步区林业产权交易管理服务中心","管理人员七"]
["1452400086","贺州市八步区林业局","贺州市八步区林业科学研究所","技术人员"]
["1452400087","贺州市八步区水利局","八步区农村水利水电管理中心","工作人员一"]
["1452400088","贺州市八步区水利局","八步区农村水利水电管理中心","工作人员二"]
["1452400089","贺州市八步区水利局","八步区农村水利水电管理中心","工作人员三"]
["1452400090","贺州市八步区水利局","八步区农村水利水电管理中心","工作人员四"]
["1452400091","贺州市八步区水利局","八步区农村水利水电管理中心","工作人员五"]
["1452400092","贺州市八步区水利局","八步区农村水利水电管理中心","工作人员六"]
["1452400093","贺州市八步区水利局","八步区水旱灾害防御中心","工作人员"]
["1452400094","贺州市八步区医疗保障管理服务中心","八步区八步街道新型农村合作医疗管理分中心","信息技术员"]
["1452400095","贺州市八步区医疗保障管理服务中心","八步区仁义镇新型农村合作医疗管理分中心","医疗费用审核员"]
["1452400096","贺州市八步区经济贸易局","八步区科学技术情报研究所","工作人员"]
["1452400097","贺州市八步区经济贸易局","八步区节能监察中心","工作人员"]
["1452400098","贺州市八步区文化广电和旅游局","八步区文物管理所","工作人员"]
["1452400099","贺州市八步区自然资源局","八步区土地开发整理中心","工作人员"]
["1452400100","贺州市八步区人民政府","贺州市八步区现代商贸产业园综合服务中心","工作人员一"]
["1452400101","贺州市八步区人民政府","贺州市八步区现代商贸产业园综合服务中心","工作人员二"]
["1452400102","贺州市八步区人民政府","贺州市八步区现代商贸产业园综合服务中心","工作人员三"]
["1452400103","中共贺州市八步区委员会社会工作部","贺州市八步区社会工作服务中心","工作人员"]
["1452400104","贺州市八步区应急管理局","贺州市八步区应急管理综合行政执法大队","工作人员一"]
["1452400105","贺州市八步区应急管理局","贺州市八步区应急管理综合行政执法大队","工作人员二"]
["1452400106","贺州市八步区市场监督管理局","八步区食品药品安全信息与监控中心","工作人员"]
["1452400107","贺州市八步区住房和城乡建设局","贺州市八步区新型墙体材料推广中心","专业技术人员"]
["1452400108","中国人民解放军广西壮族自治区贺州市八步区人民武装部","贺州市八步区民兵军事训练基地(中心)","工作人员"]
["1452400109","贺州市八步区农业农村局","八步区农产品质量安全检测站","工作人员"]
["1452400110","贺州市八步区农业农村局","贺州市八步区农业技术推广服务站","工作人员"]
["1452400111","贺州市八步区农业农村局","贺州市八步区畜牧站","工作人员"]
["1452400112","贺州市八步区司法局","贺州市八步区法律援助中心","工作人员"]
["1452400113","贺州市八步区开山镇人民政府","贺州市八步区开山镇便民服务中心","工作人员"]
["1452400114","贺州市八步区开山镇人民政府","贺州市八步区开山镇综合行政执法队","工作人员"]
["1452400115","贺州市八步区开山镇人民政府","贺州市八步区开山镇农业服务中心","工作人员一"]
["1452400116","贺州市八步区开山镇人民政府","贺州市八步区开山镇农业服务中心","工作人员二"]
["1452400117","贺州市八步区开山镇人民政府","贺州市八步区开山镇乡村建设综合服务中心","工作人员"]
["1452400118","贺州市八步区黄洞瑶族乡人民政府","贺州市八步区黄洞瑶族乡便民服务中心","工作人员"]
["1452400119","贺州市八步区里松镇人民政府","贺州市八步区里松镇便民服务中心","工作人员"]
["1452400120","贺州市八步区里松镇人民政府","贺州市八步区里松镇乡村建设综合服务中心","工作人员"]
["1452400121","贺州市八步区里松镇人民政府","贺州市八步区里松镇综合行政执法队","工作人员"]
["1452400122","贺州市八步区信都镇人民政府","贺州市八步区信都镇乡村建设综合服务中心","工作人员一"]
["1452400123","贺州市八步区信都镇人民政府","贺州市八步区信都镇乡村建设综合服务中心","工作人员二"]
["1452400124","贺州市八步区信都镇人民政府","贺州市八步区信都镇乡村建设综合服务中心","工作人员三"]
["1452400125","贺州市八步区步头镇人民政府","贺州市八步区步头镇乡村建设综合服务中心","工作人员一"]
["1452400126","贺州市八步区步头镇人民政府","贺州市八步区步头镇乡村建设综合服务中心","工作人员二"]
["1452400127","贺州市八步区步头镇人民政府","贺州市八步区步头镇乡村建设综合服务中心","工作人员三"]
["1452400128","贺州市八步区步头镇人民政府","贺州市八步区步头镇农业服务中心","工作人员"]
["1452400129","贺州市八步区步头镇人民政府","贺州市八步区步头镇综合行政执法队","工作人员"]
["1452400130","贺州市八步区灵峰镇人民政府","贺州市八步区灵峰镇农业农村服务中心","工作人员一"]
["1452400131","贺州市八步区灵峰镇人民政府","贺州市八步区灵峰镇农业农村服务中心","工作人员二"]
["1452400132","贺州市八步区灵峰镇人民政府","贺州市八步区灵峰镇乡村建设综合服务中心","工作人员"]
["1452400133","贺州市八步区城东街道办事处","贺州市八步区城东街道社会事务治理中心","工作人员"]
["1452400134","贺州市八步区大宁镇人民政府","贺州市八步区大宁镇农业服务中心","工作人员一"]
["1452400135","贺州市八步区大宁镇人民政府","贺州市八步区大宁镇农业服务中心","工作人员二"]
["1452400136","贺州市八步区桂岭镇人民政府","贺州市八步区桂岭镇便民服务中心","工作人员一"]
["1452400137","贺州市八步区桂岭镇人民政府","贺州市八步区桂岭镇便民服务中心","工作人员二"]
["1452400138","贺州市八步区桂岭镇人民政府","贺州市八步区桂岭镇便民服务中心","工作人员三"]
["1452400139","贺州市八步区桂岭镇人民政府","贺州市八步区桂岭镇乡村建设综合服务中心","工作人员"]
["1452400140","贺州市八步区桂岭镇人民政府","贺州市八步区桂岭镇农业服务中心","工作人员一"]
["1452400141","贺州市八步区桂岭镇人民政府","贺州市八步区桂岭镇农业服务中心","工作人员二"]
["1452400142","贺州市八步区桂岭镇人民政府","贺州市八步区桂岭镇综合行政执法队","工作人员一"]
["1452400143","贺州市八步区桂岭镇人民政府","贺州市八步区桂岭镇综合行政执法队","工作人员二"]
["1452400144","贺州市八步区仁义镇人民政府","贺州市八步区仁义镇乡村建设综合服务中心","工作人员"]
["1452400145","贺州市八步区仁义镇人民政府","贺州市八步区仁义镇农业服务中心","工作人员一"]
["1452400146","贺州市八步区仁义镇人民政府","贺州市八步区仁义镇农业服务中心","工作人员二"]
["1452400147","贺州市八步区仁义镇人民政府","贺州市八步区仁义镇便民服务中心","工作人员"]
["1452400148","贺州市八步区仁义镇人民政府","贺州市八步区仁义镇综合行政执法队","工作人员"]
["1452400149","贺州市八步区南乡镇人民政府","贺州市八步区南乡镇乡村建设综合服务中心","工作人员一"]
["1452400150","贺州市八步区南乡镇人民政府","贺州市八步区南乡镇乡村建设综合服务中心","工作人员二"]
["1452400151","贺州市八步区南乡镇人民政府","贺州市八步区南乡镇便民服务中心","工作人员"]
["1452400152","贺州市八步区南乡镇人民政府","贺州市八步区南乡镇综合行政执法队","工作人员一"]
["1452400153","贺州市八步区南乡镇人民政府","贺州市八步区南乡镇综合行政执法队","工作人员二"]
["1452400154","贺州市八步区八步街道办事处","贺州市八步区八步街道社会事务治理中心","工作人员"]
["1452400155","贺州市八步区贺街镇人民政府","贺州市八步区贺街镇乡村建设综合服务中心","工作人员一"]
["1452400156","贺州市八步区贺街镇人民政府","贺州市八步区贺街镇乡村建设综合服务中心","工作人员二"]
["1452400157","贺州市八步区贺街镇人民政府","贺州市八步区贺街镇农业服务中心","工作人员一"]
["1452400158","贺州市八步区贺街镇人民政府","贺州市八步区贺街镇农业服务中心","工作人员二"]
["1452400159","贺州市八步区莲塘镇人民政府","贺州市八步区莲塘镇便民服务中心","工作人员一"]
["1452400160","贺州市八步区莲塘镇人民政府","贺州市八步区莲塘镇便民服务中心","工作人员二"]
["1452400161","贺州市八步区莲塘镇人民政府","贺州市八步区莲塘镇农业服务中心","工作人员"]
["1452400162","贺州市八步区莲塘镇人民政府","贺州市八步区莲塘镇乡村建设综合服务中心","工作人员"]
["1452400163","贺州市八步区铺门镇人民政府","贺州市八步区铺门镇综合行政执法队","工作人员"]
["1452400164","贺州市八步区铺门镇人民政府","贺州市八步区铺门镇便民服务中心","工作人员一"]
["1452400165","贺州市八步区铺门镇人民政府","贺州市八步区铺门镇便民服务中心","工作人员二"]
["1452400166","贺州市八步区铺门镇人民政府","贺州市八步区铺门镇农业服务中心","工作人员"]
["1452400167","贺州市八步区铺门镇人民政府","贺州市八步区铺门镇乡村建设综合服务中心","工作人员"]
["1452400168","贺州市八步区卫生健康局","贺州市八步区疾病预防控制中心","专业技术岗一"]
["1452400169","贺州市八步区卫生健康局","贺州市八步区疾病预防控制中心","专业技术岗二"]
["1452400170","贺州市八步区卫生健康局","贺州市八步区防治艾滋病服务中心","专业技术岗"]
["1452400171","贺州市八步区卫生健康局","八步区计划生育服务站","专业技术岗"]
["1452400172","贺州市八步区卫生健康局","贺州市八步区初级卫生保健服务中心","管理岗"]
["1452400173","贺州市八步区卫生健康局","八步区桂岭中心卫生院","专业技术岗一"]
["1452400174","贺州市八步区卫生健康局","八步区桂岭中心卫生院","专业技术岗二"]
["1452400175","贺州市八步区卫生健康局","八步区桂岭中心卫生院","专业技术岗三"]
["1452400176","贺州市八步区卫生健康局","贺州市八步区第二人民医院","专业技术岗一"]
["1452400177","贺州市八步区卫生健康局","贺州市八步区第二人民医院","专业技术岗二"]
["1452400178","贺州市八步区卫生健康局","贺州市八步区第二人民医院","专业技术岗三"]
["1452400179","贺州市八步区卫生健康局","八步区贺街中心卫生院","专业技术岗一"]
["1452400180","贺州市八步区卫生健康局","八步区贺街中心卫生院","专业技术岗二"]
["1452400181","贺州市八步区卫生健康局","八步区贺街中心卫生院","专业技术岗三"]
["1452400182","贺州市八步区卫生健康局","八步区大宁镇中心卫生院","专业技术岗"]
["1452400183","贺州市八步区卫生健康局","八步区开山卫生院","专业技术岗"]
["1452400184","贺州市八步区卫生健康局","八步区步头卫生院","专业技术岗"]
["1452400185","贺州市八步区卫生健康局","八步区南乡卫生院","专业技术岗"]
["1452400186","贺州市八步区卫生健康局","八步区里松卫生院","专业技术岗"]
["1452400187","贺州市八步区卫生健康局","八步区黄洞卫生院","专业技术岗"]
["1452400188","贺州市八步区卫生健康局","八步区建中社区卫生服务中心","专业技术岗"]
["1452400189","中共贺州市平桂区纪律检查委员会机关贺州市平桂区监察委员会","贺州市平桂区纪检监察电教信息中心","工作人员"]
["1452400190","贺州市平桂区发展和改革局","贺州市平桂区民兵军事训练基地","民兵教练员一"]
["1452400191","贺州市平桂区发展和改革局","贺州市平桂区民兵军事训练基地","民兵教练员二"]
["1452400192","贺州市平桂区新兴产业发展服务中心","贺州市平桂区新兴产业发展服务中心","工作人员"]
["1452400193","贺州市平桂区财政局","贺州市平桂区财政投资评审中心","工作人员"]
["1452400194","贺州市平桂区审计局","贺州市平桂区经济责任审计和政府投资审计中心","专业技术岗"]
["1452400195","贺州市平桂区应急管理局","贺州市平桂区应急管理综合行政执法大队","工作人员一"]
["1452400196","贺州市平桂区应急管理局","贺州市平桂区应急管理综合行政执法大队","工作人员二"]
["1452400197","贺州市平桂区应急管理局","贺州市平桂区应急管理综合行政执法大队","工作人员三"]
["1452400198","贺州市平桂区应急管理局","贺州市平桂区应急管理综合行政执法大队","工作人员四"]
["1452400199","贺州市平桂区应急管理局","贺州市平桂区应急管理综合行政执法大队","工作人员五"]
["1452400200","贺州市平桂区应急管理局","贺州市平桂区应急管理综合行政执法大队","工作人员六"]
["1452400201","贺州市平桂区水利局","贺州市平桂区水旱灾害防御站","工作人员一"]
["1452400202","贺州市平桂区水利局","贺州市平桂区水旱灾害防御站","工作人员二"]
["1452400203","贺州市平桂区水利局","贺州市平桂区东干水利工程管理所","专业技术人员"]
["1452400204","贺州市平桂区水利局","贺州市平桂区狮洞水库工程管理所","专业技术人员"]
["1452400205","贺州市平桂区民政局","贺州市平桂区民政福利综合服务中心","工作人员"]
["1452400206","贺州市平桂区交通运输局","贺州市平桂区综合运输管理服务中心","技术人员"]
["1452400207","贺州市平桂区行政审批局","贺州市平桂区政务服务中心","工作人员一"]
["1452400208","贺州市平桂区行政审批局","贺州市平桂区政务服务中心","工作人员二"]
["1452400209","贺州市平桂区文化广电和旅游局","贺州市平桂区业余体校","游泳教练"]
["1452400210","贺州市平桂区文化广电和旅游局","贺州市平桂区图书馆","文博馆员"]
["1452400211","贺州市平桂区自然资源局","贺州市平桂区矿产资源规费征收管理站","工作人员"]
["1452400212","贺州市平桂区自然资源局","贺州市平桂区土地开发整理中心","工作人员"]
["1452400213","贺州市平桂区自然资源局","贺州市平桂区地质环境监测站","工作人员"]
["1452400214","贺州市平桂区住房和城乡建设局","贺州市平桂区建筑安装工程劳动保险费管理所","工作人员一"]
["1452400215","贺州市平桂区住房和城乡建设局","贺州市平桂区建筑安装工程劳动保险费管理所","工作人员二"]
["1452400216","贺州市平桂区住房和城乡建设局","贺州市平桂区建筑安装工程劳动保险费管理所","工作人员三"]
["1452400217","贺州市平桂区住房和城乡建设局","贺州市平桂区建筑安装工程劳动保险费管理所","工作人员四"]
["1452400218","贺州市平桂区教育局","贺州市平桂区学生资助管理中心","会计一"]
["1452400219","贺州市平桂区教育局","贺州市平桂区学生资助管理中心","会计二"]
["1452400220","贺州市平桂区教育局","贺州市平桂区羊头镇中心小学","会计"]
["1452400221","贺州市平桂区教育局","贺州市平桂区羊头镇大井完小","会计"]
["1452400222","贺州市平桂区教育局","贺州市平桂区大平瑶族乡民族学校","会计"]
["1452400223","贺州市平桂区教育局","贺州市平桂区鹅塘镇初级中学","会计"]
["1452400224","贺州市平桂区教育局","贺州市平桂区望高镇中学","会计"]
["1452400225","贺州市平桂区教育局","贺州市平桂区公会中学","会计"]
["1452400226","贺州市平桂区教育局","贺州市平桂区羊头镇中学","会计"]
["1452400227","贺州市平桂区教育局","贺州市平桂区沙田镇中心学校","会计"]
["1452400228","贺州市平桂区教育局","贺州市平桂区鹅塘镇中心学校","会计"]
["1452400229","贺州市平桂区卫生健康局","贺州市平桂区流动人口计划生育管理站","临床医师"]
["1452400230","贺州市平桂区卫生健康局","贺州市平桂区流动人口计划生育管理站","公共卫生人员"]
["1452400231","贺州市平桂区卫生健康局","贺州市平桂区防治艾滋病服务中心","会计"]
["1452400232","贺州市平桂区卫生健康局","贺州市平桂区疾病预防控制中心","专业技术人员"]
["1452400233","贺州市平桂区卫生健康局","贺州市平桂区大平卫生院","临床医师"]
["1452400234","贺州市平桂区卫生健康局","贺州市平桂区大平卫生院","中医医师"]
["1452400235","贺州市平桂区卫生健康局","贺州市平桂区大平卫生院","医学影像"]
["1452400236","贺州市平桂区卫生健康局","贺州市平桂区大平卫生院","妇产科医师"]
["1452400237","贺州市平桂区卫生健康局","贺州市平桂区大平卫生院","康复技术人员"]
["1452400238","贺州市平桂区卫生健康局","贺州市平桂区大平卫生院","公卫防疫医师"]
["1452400239","贺州市平桂区卫生健康局","贺州市平桂区羊头卫生院","妇产科医生"]
["1452400240","贺州市平桂区卫生健康局","贺州市平桂区公会中心卫生院","临床医生"]
["1452400241","贺州市平桂区卫生健康局","贺州市平桂区公会中心卫生院","妇产科医生"]
["1452400242","贺州市平桂区卫生健康局","贺州市平桂区水口卫生院","临床医生"]
["1452400243","贺州市平桂区卫生健康局","贺州市平桂区水口卫生院","医学影像技师"]
["1452400244","贺州市平桂区鹅塘镇人民政府","贺州市平桂区鹅塘镇乡村建设综合服务中心","工作人员"]
["1452400245","贺州市平桂区望高镇人民政府","贺州市平桂区望高镇便民服务中心","工作人员一"]
["1452400246","贺州市平桂区望高镇人民政府","贺州市平桂区望高镇便民服务中心","工作人员二"]
["1452400247","贺州市平桂区望高镇人民政府","贺州市平桂区望高镇便民服务中心","工作人员三"]
["1452400248","贺州市平桂区望高镇人民政府","贺州市平桂区望高镇综合行政执法队","工作人员一"]
["1452400249","贺州市平桂区望高镇人民政府","贺州市平桂区望高镇综合行政执法队","工作人员二"]
["1452400250","贺州市平桂区羊头镇人民政府","贺州市平桂区羊头镇农业服务中心","专业技术人员"]
["1452400251","贺州市平桂区羊头镇人民政府","贺州市平桂区羊头镇乡村建设综合服务中心","专业技术人员"]
["1452400252","贺州市平桂区羊头镇人民政府","贺州市平桂区羊头镇便民服务中心","工作人员一"]
["1452400253","贺州市平桂区羊头镇人民政府","贺州市平桂区羊头镇便民服务中心","工作人员二"]
["1452400254","贺州市平桂区公会镇人民政府","贺州市平桂区公会镇乡村建设综合服务中心","工作人员一"]
["1452400255","贺州市平桂区公会镇人民政府","贺州市平桂区公会镇乡村建设综合服务中心","工作人员二"]
["1452400256","贺州市平桂区公会镇人民政府","贺州市平桂区公会镇乡村建设综合服务中心","工作人员三"]
["1452400257","贺州市平桂区公会镇人民政府","贺州市平桂区公会镇乡村建设综合服务中心","工作人员四"]
["1452400258","贺州市平桂区公会镇人民政府","贺州市平桂区公会镇乡村建设综合服务中心","工作人员五"]
["1452400259","贺州市平桂区公会镇人民政府","贺州市平桂区公会镇综合行政执法队","工作人员一"]
["1452400260","贺州市平桂区公会镇人民政府","贺州市平桂区公会镇综合行政执法队","工作人员二"]
["1452400261","贺州市平桂区公会镇人民政府","贺州市平桂区公会镇便民服务中心","工作人员"]
["1452400262","贺州市平桂区沙田镇人民政府","贺州市平桂区沙田镇便民服务中心","工作人员一"]
["1452400263","贺州市平桂区沙田镇人民政府","贺州市平桂区沙田镇便民服务中心","工作人员二"]
["1452400264","贺州市平桂区沙田镇人民政府","贺州市平桂区沙田镇农业服务中心","工作人员"]
["1452400265","贺州市平桂区沙田镇人民政府","贺州市平桂区沙田镇乡村建设综合服务中心","工作人员一"]
["1452400266","贺州市平桂区沙田镇人民政府","贺州市平桂区沙田镇乡村建设综合服务中心","工作人员二"]
["1452400267","贺州市平桂区沙田镇人民政府","贺州市平桂区沙田镇综合行政执法队","工作人员一"]
["1452400268","贺州市平桂区沙田镇人民政府","贺州市平桂区沙田镇综合行政执法队","工作人员二"]
["1452400269","贺州市平桂区大平瑶族乡人民政府","贺州市平桂区大平瑶族乡乡村建设综合服务中心","工作人员"]
["1452400270","贺州市平桂区大平瑶族乡人民政府","贺州市平桂区大平瑶族乡农业服务中心","工作人员"]
["1452400271","贺州市平桂区大平瑶族乡人民政府","贺州市平桂区大平瑶族乡便民服务中心","工作人员"]
["1452400272","贺州市平桂区大平瑶族乡人民政府","贺州市平桂区大平瑶族乡综合行政执法队","工作人员一"]
["1452400273","贺州市平桂区大平瑶族乡人民政府","贺州市平桂区大平瑶族乡综合行政执法队","工作人员二"]
["1452400274","贺州市平桂区水口镇人民政府","贺州市平桂区水口镇乡村建设综合服务中心","工作人员"]
["1452400275","贺州市平桂区水口镇人民政府","贺州市平桂区水口镇便民服务中心","工作人员一"]
["1452400276","贺州市平桂区水口镇人民政府","贺州市平桂区水口镇便民服务中心","工作人员二"]
["1452400277","贺州市平桂区水口镇人民政府","贺州市平桂区水口镇便民服务中心","工作人员三"]
["1452400278","贺州市平桂区水口镇人民政府","贺州市平桂区水口镇综合行政执法队","工作人员"]
["1452400279","富川瑶族自治县教育局","富川瑶族自治县高级中学","校医"]
["1452400280","富川瑶族自治县教育局","富川瑶族自治县职业教育中心","财务"]
["1452400281","富川瑶族自治县教育局","富川瑶族自治县职业教育中心","校医"]
["1452400282","富川瑶族自治县教育局","富川瑶族自治县石家乡中心校","财务"]
["1452400283","富川瑶族自治县教育局","富川瑶族自治县朝东镇油沐中心校","财务"]
["1452400284","富川瑶族自治县教育局","富川瑶族自治县立新小学","财务"]
["1452400285","富川瑶族自治县教育局","富川瑶族自治县新华乡中心校","财务"]
["1452400286","富川瑶族自治县教育局","富川瑶族自治县白沙镇中心校","财务"]
["1452400287","富川瑶族自治县教育局","富川瑶族自治县麦岭镇中心校","财务"]
["1452400288","富川瑶族自治县卫生健康局","富川瑶族自治县疾病预防控制中心","公卫医师"]
["1452400289","富川瑶族自治县卫生健康局","富川瑶族自治县妇幼保健院","西医临床岗位一"]
["1452400290","富川瑶族自治县卫生健康局","富川瑶族自治县妇幼保健院","西医临床岗位二"]
["1452400291","富川瑶族自治县卫生健康局","富川瑶族自治县妇幼保健院","财务岗位"]
["1452400292","富川瑶族自治县卫生健康局","富川瑶族自治县妇幼保健院","医院办公室岗位"]
["1452400293","富川瑶族自治县卫生健康局","富川瑶族自治县人民医院","临床医生一"]
["1452400294","富川瑶族自治县卫生健康局","富川瑶族自治县人民医院","临床医生二"]
["1452400295","富川瑶族自治县卫生健康局","富川瑶族自治县人民医院","临床医生三"]
["1452400296","富川瑶族自治县卫生健康局","富川瑶族自治县人民医院","临床医生四"]
["1452400297","富川瑶族自治县卫生健康局","富川瑶族自治县人民医院","临床医生五"]
["1452400298","富川瑶族自治县卫生健康局","富川瑶族自治县人民医院","全科医师"]
["1452400299","富川瑶族自治县卫生健康局","富川瑶族自治县人民医院","口腔医师"]
["1452400300","富川瑶族自治县卫生健康局","富川瑶族自治县人民医院","医学检验"]
["1452400301","富川瑶族自治县卫生健康局","富川瑶族自治县人民医院","放射医师"]
["1452400302","富川瑶族自治县卫生健康局","富川瑶族自治县人民医院","护理"]
["1452400303","富川瑶族自治县卫生健康局","富川瑶族自治县人民医院","财务"]
["1452400304","富川瑶族自治县卫生健康局","富川瑶族自治县民族医医院","中医临床医师"]
["1452400305","富川瑶族自治县卫生健康局","富川瑶族自治县民族医医院","会计岗位"]
["1452400306","富川瑶族自治县卫生健康局","富川瑶族自治县白沙镇卫生院","中西医临床岗位"]
["1452400307","富川瑶族自治县卫生健康局","富川瑶族自治县白沙镇卫生院","会计岗位"]
["1452400308","富川瑶族自治县卫生健康局","富川瑶族自治县葛坡镇卫生院","会计岗位"]
["1452400309","富川瑶族自治县卫生健康局","富川瑶族自治县葛坡镇卫生院","中医临床岗位"]
["1452400310","富川瑶族自治县卫生健康局","富川瑶族自治县莲山中心卫生院","中医临床岗位"]
["1452400311","富川瑶族自治县卫生健康局","富川瑶族自治县麦岭中心卫生院","临床医生岗位"]
["1452400312","富川瑶族自治县卫生健康局","富川瑶族自治县新华乡卫生院","会计岗位"]
["1452400313","富川瑶族自治县卫生健康局","富川瑶族自治县柳家乡卫生院","中西医临床岗位"]
["1452400314","富川瑶族自治县文体广电和旅游局","富川瑶族自治县民族艺术团","舞蹈编导"]
["1452400315","富川瑶族自治县民政局","富川瑶族自治县民政福利综合服务中心","会计"]
["1452400316","富川瑶族自治县民政局","富川瑶族自治县民政福利综合服务中心","工作人员"]
["1452400317","富川瑶族自治县财政局","富川瑶族自治县财政局财政投资评审中心","工作人员"]
["1452400318","富川瑶族自治县自然资源局","富川瑶族自治县土地收购储备中心","专业技术人员"]
["1452400319","富川瑶族自治县水利局","富川瑶族自治县鸡公山水库水利工程管理所","专业技术人员"]
["1452400320","富川瑶族自治县司法局","富川瑶族自治县公证处","公证员"]
["1452400321","富川瑶族自治县交通运输局","富川瑶族自治县交通运输综合行政执法大队","工作人员一"]
["1452400322","富川瑶族自治县交通运输局","富川瑶族自治县交通运输综合行政执法大队","工作人员二"]
["1452400323","富川瑶族自治县交通运输局","富川瑶族自治县交通运输综合行政执法大队","办公室人员"]
["1452400324","富川瑶族自治县交通运输局","富川瑶族自治县交通运输综合行政执法大队","财务人员"]
["1452400325","富川瑶族自治县行政审批局","富川瑶族自治县政务服务和绩效考评中心","财务人员"]
["1452400326","富川瑶族自治县行政审批局","富川瑶族自治县政务服务和绩效考评中心","专业技术人员"]
["1452400327","中共富川瑶族自治县委员会宣传部","富川瑶族自治县未成年人思想道德建设服务中心","工作人员一"]
["1452400328","中共富川瑶族自治县委员会宣传部","富川瑶族自治县未成年人思想道德建设服务中心","工作人员二"]
["1452400329","中共富川瑶族自治县委员会宣传部","富川瑶族自治县融媒体中心","工作人员"]
["1452400330","富川瑶族自治县农业农村局","富川瑶族自治县经济作物站","专业技术人员"]
["1452400331","富川瑶族自治县农业农村局","富川瑶族自治县动物疫病预防控制中心","专业技术人员"]
["1452400332","富川瑶族自治县农业农村局","富川瑶族自治县乡村振兴建设服务站","工作人员"]
["1452400333","富川瑶族自治县人民政府办公室","富川瑶族自治县政府发展研究中心","工作人员一"]
["1452400334","富川瑶族自治县人民政府办公室","富川瑶族自治县政府发展研究中心","工作人员二"]
["1452400335","富川瑶族自治县人民政府办公室","富川瑶族自治县政府发展研究中心","工作人员三"]
["1452400336","富川瑶族自治县人民武装部","富川瑶族自治县民兵训练基地","办公室人员"]
["1452400337","富川瑶族自治县人力资源和社会保障局","富川瑶族自治县劳动人事争议仲裁院","工作人员一"]
["1452400338","富川瑶族自治县人力资源和社会保障局","富川瑶族自治县劳动人事争议仲裁院","工作人员二"]
["1452400339","富川瑶族自治县人力资源和社会保障局","富川瑶族自治县劳动人事争议仲裁院","工作人员三"]
["1452400340","富川瑶族自治县应急管理局","富川瑶族自治县应急救援指挥中心","工作人员一"]
["1452400341","富川瑶族自治县应急管理局","富川瑶族自治县应急救援指挥中心","工作人员二"]
["1452400342","富川瑶族自治县应急管理局","富川瑶族自治县应急救援指挥中心","工作人员三"]
["1452400343","中共富川瑶族自治县委员会办公室","中共委员会办公室信息管理和专用通信服务中心","工作人员一"]
["1452400344","中共富川瑶族自治县委员会办公室","中共委员会办公室信息管理和专用通信服务中心","工作人员二"]
["1452400345","富川瑶族自治县医疗保障局","富川瑶族自治县医疗救助中心","工作人员"]
["1452400346","中共富川瑶族自治县委员会社会工作部","富川瑶族自治县社会工作服务中心","工作人员"]
["1452400347","富川瑶族自治县科学技术协会","富川瑶族自治县科技馆","工作人员"]
["1452400348","朝东镇人民政府","朝东镇农业服务中心","工作人员一"]
["1452400349","朝东镇人民政府","朝东镇农业服务中心","工作人员二"]
["1452400350","朝东镇人民政府","朝东镇综合行政执法队","工作人员一"]
["1452400351","朝东镇人民政府","朝东镇综合行政执法队","工作人员二"]
["1452400352","朝东镇人民政府","朝东镇综合行政执法队","工作人员三"]
["1452400353","福利镇人民政府","福利镇乡村建设综合服务中心","会计"]
["1452400354","葛坡镇人民政府","葛坡镇综合行政执法队","管理岗位"]
["1452400355","葛坡镇人民政府","葛坡镇综合行政执法队","专业技术岗位"]
["1452400356","城北镇人民政府","城北镇综治行政执法队","工作人员"]
["1452400357","城北镇人民政府","城北镇乡村建设综合服务中心","工作人员"]
["1452400358","柳家乡人民政府","柳家乡乡村建设综合服务中心","管理岗"]
["1452400359","柳家乡人民政府","柳家乡行政综合执法队","专业技术岗"]
["1452400360","古城镇人民政府","古城镇乡村建设综合服务中心","工作人员"]
["1452400361","古城镇人民政府","古城镇农业服务中心","工作人员"]
["1452400362","白沙镇人民政府","白沙镇乡村建设综合服务中心","工作人员一"]
["1452400363","白沙镇人民政府","白沙镇乡村建设综合服务中心","工作人员二"]
["1452400364","白沙镇人民政府","白沙镇综合行政执法队","工作人员"]
["1452400365","富阳镇人民政府","富阳镇便民服务中心","工作人员一"]
["1452400366","富阳镇人民政府","富阳镇便民服务中心","工作人员二"]
["1452400367","富阳镇人民政府","富阳镇农业服务中心","工作人员"]
["1452400368","富阳镇人民政府","富阳镇综合行政执法队","工作人员"]
["1452400369","富阳镇人民政府","富阳镇乡村建设综合服务中心","工作人员"]
["1452400370","新华乡人民政府","新华乡乡村建设综合服务中心","工作人员一"]
["1452400371","新华乡人民政府","新华乡乡村建设综合服务中心","工作人员二"]
["1452400372","新华乡人民政府","新华乡乡村建设综合服务中心","工作人员三"]
["1452400373","新华乡人民政府","新华乡综合行政执法队","工作人员一"]
["1452400374","新华乡人民政府","新华乡综合行政执法队","工作人员二"]
["1452400375","麦岭镇人民政府","麦岭镇乡村建设综合服务中心","管理岗"]
["1452400376","麦岭镇人民政府","麦岭镇综合行政执法队","专业技术岗"]
["1452400377","麦岭镇人民政府","麦岭镇农业服务中心","专业技术岗"]
["1452400378","石家乡人民政府","石家乡乡村建设综合服务中心","工作人员一"]
["1452400379","石家乡人民政府","石家乡乡村建设综合服务中心","工作人员二"]
["1452400380","石家乡人民政府","石家乡乡村建设综合服务中心","工作人员三"]
["1452400381","石家乡人民政府","石家乡乡村建设综合服务中心","工作人员四"]
["1452400382","石家乡人民政府","石家乡便民服务中心","工作人员"]
["1452400383","石家乡人民政府","石家乡农业服务中心","工作人员一"]
["1452400384","石家乡人民政府","石家乡农业服务中心","工作人员二"]
["1452400385","石家乡人民政府","石家乡综合行政执法队","工作人员一"]
["1452400386","石家乡人民政府","石家乡综合行政执法队","工作人员二"]
["1452400387","石家乡人民政府","石家乡综合行政执法队","工作人员三"]
["1452400388","莲山镇人民政府","莲山镇乡村建设综合服务中心","工作人员"]
["1452400389","莲山镇人民政府","莲山镇综合行政执法队","工作人员"]
["1452400390","莲山镇人民政府","莲山镇便民服务中心","工作人员一"]
["1452400391","莲山镇人民政府","莲山镇便民服务中心","工作人员二"]
["1452400392","昭平县财政局","昭平县财政投资评审中心","财会人员一"]
["1452400393","昭平县财政局","昭平县财政投资评审中心","财会人员二"]
["1452400394","中共昭平县委员会机构编制委员会办公室","昭平县行政体制与机构改革研究室","工作人员"]
["1452400395","昭平县审计局","昭平县政府投资审计中心","工作人员一"]
["1452400396","昭平县审计局","昭平县政府投资审计中心","工作人员二"]
["1452400397","昭平县农业农村局","昭平县植保植检站","工作人员"]
["1452400398","昭平县交通运输局","昭平县交通运输综合行政执法大队","工作人员一"]
["1452400399","昭平县交通运输局","昭平县交通运输综合行政执法大队","工作人员二"]
["1452400400","昭平县交通运输局","昭平县交通运输综合行政执法大队","工作人员三"]
["1452400401","昭平县交通运输局","昭平县交通运输综合行政执法大队","工作人员四"]
["1452400402","昭平县交通运输局","昭平县交通运输综合行政执法大队","工作人员五"]
["1452400403","昭平县交通运输局","昭平县交通运输综合行政执法大队","工作人员六"]
["1452400404","昭平县水利局","昭平县周家水库工程管理所","工作人员一"]
["1452400405","昭平县水利局","昭平县周家水库工程管理所","工作人员二"]
["1452400406","昭平县水利局","昭平县周家水库工程管理所","工作人员三"]
["1452400407","昭平县水利局","昭平县砂子冲水库工程管理所","工作人员"]
["1452400408","昭平县行政审批局","昭平县政务服务和绩效考评中心","工作人员"]
["1452400409","昭平县行政审批局","昭平县数据信息中心","工作人员"]
["1452400410","昭平县统计局","昭平县普查中心","工作人员"]
["1452400411","昭平县住房和城乡建设局","昭平县房屋网签备案中心","工作人员"]
["1452400412","中共昭平县委员会宣传部","昭平县融媒体中心","工作人员"]
["1452400413","昭平县医疗保障局","昭平县医疗保障管理服务中心","财会人员"]
["1452400414","昭平县医疗保障局","昭平县医疗保障管理服务中心","工作人员"]
["1452400415","昭平县综合行政执法局","昭平县环境卫生管理站","工作人员一"]
["1452400416","昭平县综合行政执法局","昭平县环境卫生管理站","工作人员二"]
["1452400417","昭平县综合行政执法局","昭平县环境卫生管理站","工作人员三"]
["1452400418","昭平县综合行政执法局","昭平县城市管理综合服务中心","工作人员一"]
["1452400419","昭平县综合行政执法局","昭平县城市管理综合服务中心","工作人员二"]
["1452400420","昭平县林业局","昭平县富罗林场","工作人员"]
["1452400421","昭平县林业局","昭平县大脑山林场","工作人员一"]
["1452400422","昭平县林业局","昭平县大脑山林场","工作人员二"]
["1452400423","昭平县林业局","昭平县大脑山林场","财会人员"]
["1452400424","昭平县教育局","昭平县教研室","工作人员"]
["1452400425","昭平县教育局","昭平县职业技术学校","财会人员"]
["1452400426","昭平县走马镇人民政府","昭平县走马镇乡村建设综合服务中心","工作人员"]
["1452400427","昭平县木格乡人民政府","昭平县木格乡便民服务中心","工作人员"]
["1452400428","昭平县卫生健康局","昭平县流动人口计划管理站","财会人员"]
["1452400429","昭平县卫生健康局","昭平县疾病预防控制中心","工作人员"]
["1452400430","昭平县卫生健康局","昭平县妇幼保健院","妇产科医师"]
["1452400431","昭平县卫生健康局","昭平县妇幼保健院","医学影像医师"]
["1452400432","昭平县卫生健康局","昭平县中医医院","临床医师"]
["1452400433","昭平县卫生健康局","昭平县中医医院","中医师"]
["1452400434","昭平县卫生健康局","昭平县木格乡卫生院","中医师"]
["1452400435","昭平县卫生健康局","昭平县木格乡卫生院","医学影像技士"]
["1452400436","中共钟山县委员会","中国共产党钟山县委员会党校","专职教师"]
["1452400437","钟山县人民政府办公室","钟山县经济合作服务中心","工作人员"]
["1452400438","中共钟山县委员会宣传部","钟山县互联网传播管理中心","工作人员"]
["1452400439","中共钟山县委员会宣传部","钟山县融媒体中心","播音主持"]
["1452400440","中共钟山县委员会宣传部","钟山县融媒体中心","记者"]
["1452400441","中共钟山县委员会宣传部","钟山县融媒体中心","编辑"]
["1452400442","钟山县发展和改革局","钟山县价格认证中心","工作人员"]
["1452400443","钟山县教育局","钟山县青少年活动中心","工作人员"]
["1452400444","钟山县教育局","钟山县花山瑶族乡民族学校","会计"]
["1452400445","钟山县经济贸易局","钟山县中小企业服务中心","工作人员一"]
["1452400446","钟山县经济贸易局","钟山县中小企业服务中心","工作人员二"]
["1452400447","钟山县经济贸易局","钟山县科学技术试验所","工作人员"]
["1452400448","钟山县文化广电和旅游局","广西省工委历史博物馆钟山县管理所","工作人员"]
["1452400449","钟山县司法局","广西壮族自治区钟山县公证处","公证员"]
["1452400450","钟山县财政局","钟山县财政票据管理中心","工作人员一"]
["1452400451","钟山县财政局","钟山县财政票据管理中心","工作人员二"]
["1452400452","钟山县财政局","钟山县财政票据管理中心","工作人员三"]
["1452400453","钟山县财政局","钟山县财政票据管理中心","工作人员四"]
["1452400454","钟山县财政局","钟山县财政票据管理中心","工作人员五"]
["1452400455","钟山县自然资源局","钟山县不动产登记服务中心","测绘人员"]
["1452400456","钟山县林业局","钟山县林业技术推广站","工作人员"]
["1452400457","钟山县林业局","钟山县国营花山林场","工作人员一"]
["1452400458","钟山县林业局","钟山县国营花山林场","工作人员二"]
["1452400459","钟山县林业局","钟山县国营花山林场","工作人员三"]
["1452400460","钟山县水利局","钟山县水土保持站","工作人员"]
["1452400461","钟山县水利局","钟山县水旱灾害防御站","工作人员一"]
["1452400462","钟山县水利局","钟山县水旱灾害防御站","工作人员二"]
["1452400463","钟山县水利局","钟山县水利水电工程质量与安全监督管理站","工作人员"]
["1452400464","钟山县水利局","钟山县龙潭水库工程管理所","工作人员一"]
["1452400465","钟山县水利局","钟山县龙潭水库工程管理所","工作人员二"]
["1452400466","钟山县农业农村局","钟山县农业机械化服务中心","工作人员一"]
["1452400467","钟山县农业农村局","钟山县农业机械化服务中心","工作人员二"]
["1452400468","钟山县农业农村局","钟山县种子与种植业工作站","工作人员一"]
["1452400469","钟山县农业农村局","钟山县种子与种植业工作站","工作人员二"]
["1452400470","钟山县农业农村局","钟山县水产畜牧站","工作人员"]
["1452400471","钟山县农业农村局","钟山县动物疫病预防控制中心","工作人员"]
["1452400472","钟山县农业农村局","钟山县土壤肥料生态站","工作人员"]
["1452400473","钟山县农业农村局","钟山县植保植检站","工作人员"]
["1452400474","钟山县农业农村局","钟山县村级集体经济发展中心","工作人员"]
["1452400475","钟山县文化广电和旅游局","钟山县图书馆","工作人员"]
["1452400476","钟山县文化广电和旅游局","钟山县文化馆","会计"]
["1452400477","钟山县文化广电和旅游局","钟山县业余体育学校","拳击教练员"]
["1452400478","钟山县文化广电和旅游局","钟山县文化旅游发展中心","管理人员"]
["1452400479","钟山县科学技术协会","钟山县科学技术馆","工作人员一"]
["1452400480","钟山县科学技术协会","钟山县科学技术馆","工作人员二"]
["1452400481","钟山县应急管理局","钟山县应急救援指挥中心","专业技术人员一"]
["1452400482","钟山县应急管理局","钟山县应急救援指挥中心","专业技术人员二"]
["1452400483","钟山县应急管理局","钟山县应急救援指挥中心","专业技术人员三"]
["1452400484","钟山县卫生健康局","钟山县人民医院","内科医师"]
["1452400485","钟山县卫生健康局","钟山县人民医院","外科医师"]
["1452400486","钟山县卫生健康局","钟山县人民医院","妇产科医师"]
["1452400487","钟山县卫生健康局","钟山县人民医院","麻醉科医师"]
["1452400488","钟山县卫生健康局","钟山县人民医院","重症医学科医师"]
["1452400489","钟山县卫生健康局","钟山县人民医院","眼耳鼻咽喉科医师"]
["1452400490","钟山县卫生健康局","钟山县人民医院","急诊科医师"]
["1452400491","钟山县卫生健康局","钟山县回龙镇卫生院","内科医生"]
["1452400492","钟山县卫生健康局","钟山县回龙镇卫生院","中医科医生"]
["1452400493","钟山县卫生健康局","钟山县公安中心卫生院","中医科医生"]
["1452400494","钟山县卫生健康局","钟山县公安中心卫生院","外科医生"]
["1452400495","钟山县卫生健康局","钟山县花山瑶族乡卫生院","临床医生"]
["1452400496","钟山县卫生健康局","钟山县疾病预防控制中心","公共卫生医师"]
["1452400497","钟山县卫生健康局","钟山县石龙中心卫生院","中医科医生"]
["1452400498","钟山县卫生健康局","钟山县石龙中心卫生院","临床护士"]
["1452400499","钟山县卫生健康局","钟山县石龙中心卫生院","临床医生"]
["1452400500","钟山县卫生健康局","钟山县石龙中心卫生院","口腔科医生"]
["1452400501","钟山县卫生健康局","钟山县中医医院","内科医生一"]
["1452400502","钟山县卫生健康局","钟山县中医医院","内科医生二"]
["1452400503","钟山县卫生健康局","钟山县中医医院","临床护士一"]
["1452400504","钟山县卫生健康局","钟山县中医医院","临床护士二"]
["1452400505","钟山县卫生健康局","钟山县中医医院","财务人员"]
["1452400506","钟山县卫生健康局","钟山县珊瑚镇卫生院","临床医师"]
["1452400507","钟山县卫生健康局","钟山县珊瑚镇卫生院","中医医师"]
["1452400508","钟山县卫生健康局","钟山县珊瑚镇卫生院","护士"]
["1452400509","钟山县卫生健康局","钟山县珊瑚镇卫生院","公共卫生医师"]
["1452400510","钟山县卫生健康局","钟山县妇幼保健院","妇产科医师"]
["1452400511","钟山县卫生健康局","钟山县妇幼保健院","检验科检验师"]
["1452400512","钟山县卫生健康局","钟山县钟山镇卫生院","外科医生"]
["1452400513","钟山县卫生健康局","钟山县钟山镇卫生院","五官科医生"]
["1452400514","钟山县卫生健康局","钟山县钟山镇卫生院","妇产科医生"]
["1452400515","钟山县卫生健康局","钟山县清塘中心卫生院","临床医师"]
["1452400516","钟山县卫生健康局","钟山县红花镇中心卫生院","临床医师"]
["1452400517","钟山县卫生健康局","钟山县燕塘镇卫生院","临床医生"]
["1452400518","钟山县卫生健康局","钟山县凤翔镇卫生院","综合科医生"]
["1452400519","钟山县卫生健康局","钟山县凤翔镇卫生院","中医科医生"]
["1452400520","钟山县同古镇人民政府","钟山县同古镇综合行政执法队","工作人员"]
["1452400521","钟山县同古镇人民政府","钟山县同古镇便民服务中心","工作人员"]
["1452400522","钟山县珊瑚镇人民政府","钟山县珊瑚镇乡村建设综合服务中心","工作人员一"]
["1452400523","钟山县珊瑚镇人民政府","钟山县珊瑚镇乡村建设综合服务中心","工作人员二"]
["1452400524","钟山县石龙镇人民政府","钟山县石龙镇便民服务中心","工作人员"]
["1452400525","钟山县红花镇人民政府","钟山县红花镇便民服务中心","工作人员"]
["1452400526","钟山县清塘镇人民政府","钟山县清塘镇便民服务中心","财会人员"]
["1452400527","钟山县清塘镇人民政府","钟山县清塘镇便民服务中心","工作人员"]
["1452400528","钟山县清塘镇人民政府","钟山县清塘镇综合行政执法队","工作人员"]
["1452400529","钟山县清塘镇人民政府","钟山县清塘镇综合行政执法队","财会人员"]
["1452400530","钟山县清塘镇人民政府","钟山县清塘镇乡村建设综合服务中心","工作人员"]
["1452400531","钟山县凤翔镇人民政府","钟山县凤翔镇便民服务中心","工作人员"]
["1452400532","钟山县凤翔镇人民政府","钟山县凤翔镇乡村建设综合服务中心","工作人员"]
["1452400533","钟山县凤翔镇人民政府","钟山县凤翔镇综合行政执法队","工作人员"]
["1452400534","钟山县钟山镇人民政府","钟山县钟山镇便民服务中心","工作人员一"]
["1452400535","钟山县钟山镇人民政府","钟山县钟山镇便民服务中心","工作人员二"]
["1452400536","钟山县钟山镇人民政府","钟山县钟山镇农业服务中心","工作人员"]
["1452400537","钟山县钟山镇人民政府","钟山县钟山镇乡村建设综合服务中心","工作人员一"]
["1452400538","钟山县钟山镇人民政府","钟山县钟山镇乡村建设综合服务中心","工作人员二"]
["1452400539","钟山县公安镇人民政府","钟山县公安镇便民服务中心","工作人员一"]
["1452400540","钟山县公安镇人民政府","钟山县公安镇便民服务中心","工作人员二"]
["1452400541","钟山县公安镇人民政府","钟山县公安镇乡村建设综合服务中心","工作人员"]
["1452400542","钟山县两安瑶族乡人民政府","钟山县两安瑶族乡乡村建设综合服务中心","技术人员"]
["1452400543","钟山县两安瑶族乡人民政府","钟山县两安瑶族乡综合行政执法队","技术人员"]
["1452400544","钟山县两安瑶族乡人民政府","钟山县两安瑶族乡农业服务中心","技术人员"]
["1452400545","钟山县两安瑶族乡人民政府","钟山县两安瑶族乡便民服务中心","工作人员"]
["1452400546","钟山县两安瑶族乡人民政府","钟山县两安瑶族乡便民服务中心","技术人员"]
["1452400547","钟山县燕塘镇人民政府","钟山县燕塘镇便民服务中心","工作人员"]
["1452400548","钟山县燕塘镇人民政府","钟山县燕塘镇便民服务中心","专技人员"]
["1452400549","钟山县燕塘镇人民政府","钟山县燕塘镇农业服务中心","专技人员"]
["1452400550","钟山县燕塘镇人民政府","钟山县燕塘镇综合行政执法队","工作人员一"]
["1452400551","钟山县燕塘镇人民政府","钟山县燕塘镇综合行政执法队","工作人员二"]